Workbook

Sheet confW5_Bias
A1: -4 | B1: 1 | C1: -1 | D1: 1 | E1: -1 | F1: 1 | G1: -1 | H1: 1 | I1: -1 | J1: -1 | K1: 1 | L1: 2 | M1: -1 | N1: -1 | O1: 2 | P1: 1 | Q1: -1 | R1: -1 | S1: -1 | T1: -1 | U1: -1 | V1: -4 | W1: -1 | X1: 2 | Y1: 1 | Z1: 2 | AA1: -1 | AB1: -1 | AC1: 2 | AD1: 2 | AE1: -1 | AF1: -1 | AG1: 2 | AH1: 1 | AI1: -1 | AJ1: -1 | AK1: 2 | AL1: -1 | AM1: 1 | AN1: 2 | AO1: -1 | AP1: -1 | AQ1: -4 | AR1: 1 | AS1: 1 | AT1: -2 | AU1: 2 | AV1: -1 | AW1: -2 | AX1: -1 | AY1: 1 | AZ1: 2 | BA1: -1 | BB1: 1 | BC1: 1 | BD1: 2 | BE1: 1 | BF1: -1 | BG1: 1 | BH1: -1 | BI1: 1 | BJ1: 1 | BK1: -1 | BL1: -1 | BM1: 2 | BN1: -1 | BO1: 1 | BP1: 1 | BQ1: 1 | BR1: 1 | BS1: -1 | BT1: -1 | BU1: 1 | BV1: -1 | BW1: 1 | BX1: -2 | BY1: -1 | BZ1: 2 | CA1: -1 | CB1: 2 | CC1: 1 | CD1: 1 | CE1: -1 | CF1: 1
A2: -1 | B2: -1 | C2: 1 | D2: -1 | E2: -2 | F2: -1 | G2: 1 | H2: -1 | I2: -1 | J2: 1 | K2: -2 | L2: 1 | M2: -2 | N2: -2 | O2: -1 | P2: 1 | Q2: 2 | R2: -1 | S2: -1 | T2: -1 | U2: -1 | V2: -1 | W2: 1 | X2: 1 | Y2: -1 | Z2: -1 | AA2: 1 | AB2: -2 | AC2: -1 | AD2: -1 | AE2: 2 | AF2: -2 | AG2: 2 | AH2: 1 | AI2: -1 | AJ2: -1 | AK2: -2 | AL2: -1 | AM2: -1 | AN2: 1 | AO2: 1 | AP2: 1 | AQ2: -1 | AR2: 1 | AS2: 1 | AT2: 2 | AU2: -1 | AV2: 1 | AW2: 1 | AX2: -1 | AY2: 1 | AZ2: -1 | BA2: -1 | BB2: 2 | BC2: 1 | BD2: 1 | BE2: -1 | BF2: -1 | BG2: -1 | BH2: 1 | BI2: 1 | BJ2: 1 | BK2: -1 | BL2: -1 | BM2: -2 | BN2: -1 | BO2: -1 | BP2: -1 | BQ2: -1 | BR2: -2 | BS2: -1 | BT2: 1 | BU2: 2 | BV2: -2 | BW2: 1 | BX2: 1 | BY2: 1 | BZ2: 1 | CA2: 1 | CB2: 1 | CC2: 1 | CD2: -1 | CE2: -2 | CF2: -1
A3: -4 | B3: 1 | C3: 1 | D3: 1 | E3: 2 | F3: -1 | G3: -1 | H3: 1 | I3: -1 | J3: 1 | K3: -1 | L3: 2 | M3: 2 | N3: 1 | O3: 2 | P3: -2 | Q3: 1 | R3: -1 | S3: 1 | T3: 1 | U3: -1 | V3: -4 | W3: -1 | X3: 1 | Y3: -1 | Z3: -1 | AA3: 1 | AB3: 1 | AC3: -1 | AD3: 2 | AE3: -1 | AF3: -1 | AG3: 2 | AH3: 1 | AI3: -1 | AJ3: 2 | AK3: 2 | AL3: 1 | AM3: -1 | AN3: -1 | AO3: -2 | AP3: -1 | AQ3: -2 | AR3: -1 | AS3: 1 | AT3: -1 | AU3: 2 | AV3: -1 | AW3: 1 | AX3: 2 | AY3: 1 | AZ3: -1 | BA3: 1 | BB3: 2 | BC3: -1 | BD3: 1 | BE3: -1 | BF3: -1 | BG3: -1 | BH3: -2 | BI3: -1 | BJ3: -2 | BK3: 1 | BL3: -2 | BM3: 1 | BN3: -1 | BO3: 1 | BP3: -1 | BQ3: 1 | BR3: -1 | BS3: 1 | BT3: 1 | BU3: -1 | BV3: 1 | BW3: -1 | BX3: -1 | BY3: 1 | BZ3: 1 | CA3: 1 | CB3: -1 | CC3: 1 | CD3: -1 | CE3: 1 | CF3: -1
A4: 1 | B4: -1 | C4: 1 | D4: -2 | E4: 1 | F4: 1 | G4: -1 | H4: 1 | I4: 1 | J4: 1 | K4: -2 | L4: 2 | M4: -1 | N4: -2 | O4: 1 | P4: -1 | Q4: 2 | R4: 1 | S4: 1 | T4: -1 | U4: -1 | V4: 1 | W4: 1 | X4: 1 | Y4: 1 | Z4: -1 | AA4: -1 | AB4: -1 | AC4: 1 | AD4: -1 | AE4: 1 | AF4: 1 | AG4: -1 | AH4: 1 | AI4: -1 | AJ4: 1 | AK4: -2 | AL4: 1 | AM4: -1 | AN4: 1 | AO4: 1 | AP4: -2 | AQ4: 1 | AR4: -1 | AS4: 2 | AT4: -1 | AU4: 1 | AV4: -1 | AW4: -2 | AX4: -1 | AY4: -1 | AZ4: 1 | BA4: -2 | BB4: 2 | BC4: 1 | BD4: -2 | BE4: 1 | BF4: 1 | BG4: 1 | BH4: -1 | BI4: -1 | BJ4: -1 | BK4: 1 | BL4: -1 | BM4: -1 | BN4: -1 | BO4: 1 | BP4: -1 | BQ4: 2 | BR4: -1 | BS4: 1 | BT4: 2 | BU4: 1 | BV4: -2 | BW4: -1 | BX4: -1 | BY4: 1 | BZ4: 1 | CA4: 1 | CB4: -1 | CC4: -1 | CD4: 1 | CE4: 2 | CF4: 1
A5: 2 | B5: -2 | C5: -1 | D5: -1 | E5: -1 | F5: -2 | G5: -2 | H5: -2 | I5: -2 | J5: 1 | K5: -1 | L5: 2 | M5: -1 | N5: 1 | O5: -2 | P5: 2 | Q5: 1 | R5: 1 | S5: 1 | T5: -1 | U5: 1 | V5: 4 | W5: -1 | X5: -1 | Y5: -1 | Z5: -1 | AA5: -1 | AB5: -2 | AC5: 1 | AD5: -2 | AE5: 1 | AF5: -2 | AG5: 2 | AH5: -2 | AI5: 1 | AJ5: -1 | AK5: 1 | AL5: 2 | AM5: 1 | AN5: 2 | AO5: -2 | AP5: -1 | AQ5: 2 | AR5: -2 | AS5: -1 | AT5: -1 | AU5: -1 | AV5: -2 | AW5: -1 | AX5: -1 | AY5: 1 | AZ5: 2 | BA5: -1 | BB5: 4 | BC5: -1 | BD5: -2 | BE5: -1 | BF5: -1 | BG5: 2 | BH5: 1 | BI5: 2 | BJ5: -1 | BK5: 1 | BL5: 2 | BM5: 1 | BN5: 1 | BO5: -1 | BP5: -1 | BQ5: 1 | BR5: -2 | BS5: -2 | BT5: -2 | BU5: 2 | BV5: -1 | BW5: 1 | BX5: -2 | BY5: 1 | BZ5: -1 | CA5: -1 | CB5: 2 | CC5: -1 | CD5: 2 | CE5: 1 | CF5: -1
A6: 1 | B6: -1 | C6: -1 | D6: -1 | E6: 2 | F6: -2 | G6: -2 | H6: -1 | I6: -1 | J6: 1 | K6: 1 | L6: 1 | M6: -1 | N6: -1 | O6: -1 | P6: -1 | Q6: 2 | R6: 1 | S6: 2 | T6: -2 | U6: 1 | V6: -1 | W6: -2 | X6: 1 | Y6: -1 | Z6: -1 | AA6: -1 | AB6: -2 | AC6: 1 | AD6: 2 | AE6: 1 | AF6: -1 | AG6: 2 | AH6: 2 | AI6: -1 | AJ6: 1 | AK6: 1 | AL6: 1 | AM6: -1 | AN6: -1 | AO6: -1 | AP6: -1 | AQ6: 1 | AR6: 1 | AS6: -1 | AT6: -2 | AU6: 1 | AV6: -1 | AW6: -2 | AX6: 1 | AY6: 1 | AZ6: -1 | BA6: -2 | BB6: 2 | BC6: -1 | BD6: -2 | BE6: -1 | BF6: 1 | BG6: 2 | BH6: -1 | BI6: 1 | BJ6: -2 | BK6: -2 | BL6: 1 | BM6: -2 | BN6: -1 | BO6: 2 | BP6: 1 | BQ6: 2 | BR6: -1 | BS6: -1 | BT6: 2 | BU6: -1 | BV6: 1 | BW6: 2 | BX6: 2 | BY6: 1 | BZ6: -1 | CA6: -1 | CB6: -1 | CC6: -1 | CD6: 1 | CE6: -2 | CF6: -1
A7: 2 | B7: 1 | C7: -1 | D7: 1 | E7: 2 | F7: -2 | G7: 1 | H7: 2 | I7: 1 | J7: 2 | K7: 1 | L7: 2 | M7: -1 | N7: 1 | O7: 1 | P7: -1 | Q7: 1 | R7: -2 | S7: -1 | T7: 1 | U7: -1 | V7: 2 | W7: 1 | X7: -1 | Y7: -2 | Z7: 1 | AA7: 1 | AB7: -2 | AC7: -1 | AD7: 1 | AE7: -1 | AF7: -2 | AG7: -1 | AH7: 1 | AI7: -1 | AJ7: -2 | AK7: -1 | AL7: -1 | AM7: 1 | AN7: 2 | AO7: -1 | AP7: 1 | AQ7: 1 | AR7: 1 | AS7: -2 | AT7: -1 | AU7: -1 | AV7: -1 | AW7: -1 | AX7: -2 | AY7: 2 | AZ7: -1 | BA7: 1 | BB7: 2 | BC7: 1 | BD7: 1 | BE7: 1 | BF7: 1 | BG7: -1 | BH7: -1 | BI7: -1 | BJ7: -1 | BK7: -1 | BL7: -1 | BM7: -1 | BN7: -1 | BO7: -2 | BP7: -1 | BQ7: 1 | BR7: 1 | BS7: 1 | BT7: -2 | BU7: 1 | BV7: -2 | BW7: 1 | BX7: 1 | BY7: -1 | BZ7: 2 | CA7: -2 | CB7: -1 | CC7: 2 | CD7: 1 | CE7: -1 | CF7: -1
A8: 1 | B8: -2 | C8: 1 | D8: -1 | E8: -2 | F8: 1 | G8: 1 | H8: 1 | I8: -1 | J8: 2 | K8: -2 | L8: 1 | M8: -1 | N8: -1 | O8: -1 | P8: 4 | Q8: 2 | R8: -2 | S8: 1 | T8: 1 | U8: -1 | V8: 1 | W8: 1 | X8: 2 | Y8: 1 | Z8: -1 | AA8: -1 | AB8: 1 | AC8: -1 | AD8: 1 | AE8: 1 | AF8: -1 | AG8: 2 | AH8: -1 | AI8: 1 | AJ8: -2 | AK8: 2 | AL8: -1 | AM8: 1 | AN8: 2 | AO8: 1 | AP8: -1 | AQ8: -1 | AR8: 1 | AS8: -1 | AT8: 1 | AU8: -2 | AV8: -1 | AW8: -2 | AX8: -1 | AY8: 1 | AZ8: -1 | BA8: -2 | BB8: -1 | BC8: -1 | BD8: 1 | BE8: 1 | BF8: 1 | BG8: 2 | BH8: -1 | BI8: 1 | BJ8: 2 | BK8: -1 | BL8: -1 | BM8: 1 | BN8: 1 | BO8: 1 | BP8: 1 | BQ8: 2 | BR8: -1 | BS8: 1 | BT8: 1 | BU8: 2 | BV8: -1 | BW8: 2 | BX8: -1 | BY8: -2 | BZ8: -1 | CA8: 2 | CB8: 2 | CC8: 1 | CD8: 1 | CE8: 1 | CF8: 1
A9: -2 | B9: 1 | C9: -2 | D9: -1 | E9: 1 | F9: 1 | G9: -2 | H9: 1 | I9: 1 | J9: 2 | K9: -1 | L9: -1 | M9: -1 | N9: 2 | O9: 1 | P9: 1 | Q9: -2 | R9: -1 | S9: 2 | T9: 1 | U9: -2 | V9: -2 | W9: -1 | X9: 1 | Y9: -1 | Z9: 1 | AA9: 1 | AB9: -2 | AC9: 1 | AD9: -1 | AE9: 1 | AF9: 1 | AG9: 1 | AH9: -1 | AI9: 1 | AJ9: 1 | AK9: -1 | AL9: -1 | AM9: 2 | AN9: 2 | AO9: -1 | AP9: 1 | AQ9: 1 | AR9: -1 | AS9: 1 | AT9: -1 | AU9: -1 | AV9: 2 | AW9: -1 | AX9: 1 | AY9: -1 | AZ9: 1 | BA9: -1 | BB9: -1 | BC9: 1 | BD9: -1 | BE9: -1 | BF9: 4 | BG9: 2 | BH9: 1 | BI9: -1 | BJ9: 2 | BK9: -2 | BL9: -1 | BM9: 1 | BN9: -1 | BO9: -2 | BP9: -2 | BQ9: -2 | BR9: 1 | BS9: -1 | BT9: 1 | BU9: 2 | BV9: -1 | BW9: -1 | BX9: 2 | BY9: 2 | BZ9: 1 | CA9: -1 | CB9: -1 | CC9: -1 | CD9: 2 | CE9: 1 | CF9: -1
A10: -1 | B10: 1 | C10: -1 | D10: 1 | E10: 1 | F10: -1 | G10: -2 | H10: 1 | I10: 2 | J10: 1 | K10: 2 | L10: 1 | M10: -1 | N10: 1 | O10: -1 | P10: -1 | Q10: 2 | R10: -1 | S10: 1 | T10: -1 | U10: -2 | V10: 1 | W10: -1 | X10: 1 | Y10: -1 | Z10: 1 | AA10: -1 | AB10: -2 | AC10: 2 | AD10: 1 | AE10: 1 | AF10: -1 | AG10: 1 | AH10: -1 | AI10: -1 | AJ10: 2 | AK10: 1 | AL10: -1 | AM10: 1 | AN10: 1 | AO10: -1 | AP10: 1 | AQ10: 1 | AR10: 1 | AS10: 2 | AT10: 1 | AU10: 1 | AV10: 1 | AW10: 1 | AX10: -1 | AY10: 1 | AZ10: 1 | BA10: -1 | BB10: 1 | BC10: -1 | BD10: -1 | BE10: 2 | BF10: 1 | BG10: -1 | BH10: -1 | BI10: 1 | BJ10: -2 | BK10: -1 | BL10: -2 | BM10: -1 | BN10: 2 | BO10: 2 | BP10: -1 | BQ10: 1 | BR10: 1 | BS10: 2 | BT10: -1 | BU10: -1 | BV10: 1 | BW10: 1 | BX10: 2 | BY10: -1 | BZ10: -1 | CA10: 1 | CB10: -1 | CC10: 1 | CD10: -2 | CE10: 2 | CF10: -2
A11: -1 | B11: 1 | C11: 1 | D11: -1 | E11: -2 | F11: 2 | G11: 1 | H11: -1 | I11: 1 | J11: -2 | K11: 1 | L11: -2 | M11: 2 | N11: -1 | O11: 2 | P11: 2 | Q11: -1 | R11: 1 | S11: -1 | T11: 1 | U11: -2 | V11: -2 | W11: 1 | X11: 1 | Y11: 2 | Z11: -2 | AA11: -1 | AB11: -1 | AC11: 1 | AD11: 2 | AE11: -2 | AF11: -1 | AG11: -1 | AH11: 1 | AI11: 2 | AJ11: -1 | AK11: 2 | AL11: -1 | AM11: -2 | AN11: 1 | AO11: 1 | AP11: -1 | AQ11: -1 | AR11: 1 | AS11: 1 | AT11: -1 | AU11: 1 | AV11: 1 | AW11: -2 | AX11: 2 | AY11: -2 | AZ11: 1 | BA11: -2 | BB11: 1 | BC11: -1 | BD11: 1 | BE11: 2 | BF11: -1 | BG11: 1 | BH11: -1 | BI11: 1 | BJ11: -1 | BK11: 1 | BL11: -1 | BM11: -1 | BN11: -1 | BO11: 1 | BP11: -2 | BQ11: 2 | BR11: -2 | BS11: 2 | BT11: -1 | BU11: -1 | BV11: -1 | BW11: -1 | BX11: 2 | BY11: 1 | BZ11: 1 | CA11: 2 | CB11: -1 | CC11: -1 | CD11: -2 | CE11: 1 | CF11: 1
A12: 2 | B12: -1 | C12: 2 | D12: -1 | E12: 1 | F12: -1 | G12: -1 | H12: -1 | I12: -1 | J12: 1 | K12: -1 | L12: 2 | M12: -2 | N12: -1 | O12: 2 | P12: -2 | Q12: -1 | R12: -2 | S12: -2 | T12: 1 | U12: 1 | V12: 2 | W12: -1 | X12: -1 | Y12: 2 | Z12: 1 | AA12: 1 | AB12: -1 | AC12: -1 | AD12: -2 | AE12: 1 | AF12: 1 | AG12: 1 | AH12: -1 | AI12: -1 | AJ12: 2 | AK12: 1 | AL12: 1 | AM12: 1 | AN12: 1 | AO12: 1 | AP12: -1 | AQ12: -1 | AR12: 1 | AS12: 1 | AT12: 1 | AU12: -1 | AV12: -2 | AW12: -2 | AX12: -1 | AY12: 1 | AZ12: -1 | BA12: 1 | BB12: 1 | BC12: -1 | BD12: -1 | BE12: 1 | BF12: 1 | BG12: -1 | BH12: -1 | BI12: 1 | BJ12: -1 | BK12: 1 | BL12: 4 | BM12: 1 | BN12: -1 | BO12: 1 | BP12: -1 | BQ12: 2 | BR12: -1 | BS12: -1 | BT12: -2 | BU12: -1 | BV12: -1 | BW12: -1 | BX12: -1 | BY12: -1 | BZ12: 1 | CA12: -2 | CB12: -1 | CC12: 1 | CD12: -1 | CE12: 1 | CF12: -1
A13: 1 | B13: -1 | C13: 1 | D13: 1 | E13: -1 | F13: 1 | G13: 1 | H13: -1 | I13: -1 | J13: 1 | K13: -1 | L13: 1 | M13: 1 | N13: -1 | O13: 1 | P13: -1 | Q13: 1 | R13: -1 | S13: 1 | T13: -1 | U13: -1 | V13: 1 | W13: 1 | X13: 1 | Y13: 1 | Z13: -1 | AA13: 1 | AB13: -1 | AC13: 2 | AD13: 1 | AE13: 1 | AF13: 1 | AG13: -1 | AH13: 1 | AI13: 1 | AJ13: -1 | AK13: 1 | AL13: 1 | AM13: -2 | AN13: 1 | AO13: 1 | AP13: 1 | AQ13: 1 | AR13: 2 | AS13: 1 | AT13: -1 | AU13: -1 | AV13: 1 | AW13: -1 | AX13: 2 | AY13: 2 | AZ13: 1 | BA13: -1 | BB13: 1 | BC13: 1 | BD13: 1 | BE13: 2 | BF13: 2 | BG13: -2 | BH13: -2 | BI13: -1 | BJ13: 1 | BK13: 1 | BL13: -1 | BM13: -1 | BN13: 1 | BO13: -1 | BP13: 1 | BQ13: -1 | BR13: -1 | BS13: 2 | BT13: 1 | BU13: -1 | BV13: 1 | BW13: -2 | BX13: 1 | BY13: 2 | BZ13: 1 | CA13: -1 | CB13: 1 | CC13: -1 | CD13: 1 | CE13: 1 | CF13: -2
A14: 2 | B14: -1 | C14: -1 | D14: 1 | E14: -1 | F14: 2 | G14: 1 | H14: -2 | I14: 2 | J14: 1 | K14: -1 | L14: -1 | M14: -1 | N14: -1 | O14: 1 | P14: 2 | Q14: -1 | R14: -2 | S14: -2 | T14: 1 | U14: 1 | V14: 1 | W14: -1 | X14: -1 | Y14: -1 | Z14: -1 | AA14: -1 | AB14: -1 | AC14: -2 | AD14: -1 | AE14: -1 | AF14: -2 | AG14: 1 | AH14: 1 | AI14: 1 | AJ14: 1 | AK14: 4 | AL14: 1 | AM14: 1 | AN14: 1 | AO14: -2 | AP14: -1 | AQ14: 4 | AR14: 1 | AS14: 1 | AT14: 1 | AU14: 1 | AV14: 1 | AW14: -1 | AX14: 1 | AY14: 1 | AZ14: 1 | BA14: -2 | BB14: -2 | BC14: -2 | BD14: 1 | BE14: 1 | BF14: 1 | BG14: 1 | BH14: -1 | BI14: 1 | BJ14: -1 | BK14: 1 | BL14: -1 | BM14: 1 | BN14: 1 | BO14: 1 | BP14: 1 | BQ14: -1 | BR14: -1 | BS14: 2 | BT14: -1 | BU14: -1 | BV14: 1 | BW14: -2 | BX14: 1 | BY14: -1 | BZ14: 2 | CA14: 2 | CB14: -1 | CC14: -2 | CD14: -2 | CE14: 1 | CF14: -2
A15: 1 | B15: 2 | C15: 1 | D15: 1 | E15: 1 | F15: -1 | G15: -1 | H15: -1 | I15: -1 | J15: 1 | K15: 1 | L15: 1 | M15: -1 | N15: -1 | O15: 2 | P15: 1 | Q15: 1 | R15: -1 | S15: -1 | T15: -1 | U15: -2 | V15: 2 | W15: -1 | X15: -2 | Y15: 1 | Z15: 1 | AA15: 1 | AB15: -1 | AC15: 1 | AD15: -1 | AE15: -1 | AF15: -2 | AG15: 1 | AH15: 1 | AI15: -1 | AJ15: 1 | AK15: 2 | AL15: 1 | AM15: 1 | AN15: 1 | AO15: -1 | AP15: -2 | AQ15: 2 | AR15: -1 | AS15: -1 | AT15: -1 | AU15: -2 | AV15: 1 | AW15: -2 | AX15: 1 | AY15: -2 | AZ15: 1 | BA15: -1 | BB15: -1 | BC15: 1 | BD15: -1 | BE15: -1 | BF15: 1 | BG15: 2 | BH15: -2 | BI15: -2 | BJ15: -1 | BK15: -2 | BL15: 4 | BM15: 1 | BN15: -1 | BO15: -1 | BP15: 1 | BQ15: -1 | BR15: 1 | BS15: 1 | BT15: -1 | BU15: 2 | BV15: -1 | BW15: 2 | BX15: -1 | BY15: -1 | BZ15: 1 | CA15: -2 | CB15: 1 | CC15: -1 | CD15: -2 | CE15: -1 | CF15: -1
A16: -1 | B16: -2 | C16: 1 | D16: 2 | E16: 1 | F16: 1 | G16: 1 | H16: 1 | I16: 1 | J16: 2 | K16: 1 | L16: 1 | M16: -1 | N16: -1 | O16: 2 | P16: 1 | Q16: 1 | R16: -1 | S16: -1 | T16: -1 | U16: -1 | V16: -1 | W16: 1 | X16: -1 | Y16: 1 | Z16: 1 | AA16: -1 | AB16: -1 | AC16: 1 | AD16: -1 | AE16: 2 | AF16: -2 | AG16: 1 | AH16: 1 | AI16: 1 | AJ16: 1 | AK16: -1 | AL16: -2 | AM16: -1 | AN16: 1 | AO16: 2 | AP16: -1 | AQ16: -1 | AR16: 2 | AS16: -1 | AT16: 2 | AU16: 1 | AV16: 2 | AW16: 1 | AX16: -1 | AY16: -1 | AZ16: 1 | BA16: -2 | BB16: 1 | BC16: 1 | BD16: 1 | BE16: -1 | BF16: -1 | BG16: -1 | BH16: 1 | BI16: 1 | BJ16: -2 | BK16: -1 | BL16: -1 | BM16: -1 | BN16: -1 | BO16: 2 | BP16: 1 | BQ16: -1 | BR16: -1 | BS16: 1 | BT16: -1 | BU16: 1 | BV16: -1 | BW16: 1 | BX16: 1 | BY16: -1 | BZ16: 2 | CA16: 1 | CB16: -1 | CC16: 1 | CD16: 1 | CE16: 1 | CF16: -1
A17: -1 | B17: -1 | C17: -1 | D17: -1 | E17: 1 | F17: -1 | G17: -1 | H17: 1 | I17: -1 | J17: -2 | K17: 1 | L17: -1 | M17: -1 | N17: 1 | O17: -1 | P17: 2 | Q17: 1 | R17: -1 | S17: 1 | T17: -1 | U17: -1 | V17: 2 | W17: 1 | X17: -1 | Y17: -1 | Z17: -1 | AA17: -1 | AB17: 1 | AC17: -1 | AD17: 1 | AE17: 1 | AF17: 1 | AG17: 1 | AH17: 1 | AI17: 1 | AJ17: -1 | AK17: 1 | AL17: -1 | AM17: -1 | AN17: -2 | AO17: -1 | AP17: 1 | AQ17: 1 | AR17: -1 | AS17: -2 | AT17: -1 | AU17: -1 | AV17: 1 | AW17: 1 | AX17: -1 | AY17: -2 | AZ17: -1 | BA17: -1 | BB17: 1 | BC17: -1 | BD17: 1 | BE17: 1 | BF17: 2 | BG17: -1 | BH17: -1 | BI17: -1 | BJ17: -2 | BK17: -1 | BL17: 4 | BM17: -1 | BN17: 2 | BO17: -1 | BP17: 1 | BQ17: 2 | BR17: -2 | BS17: 1 | BT17: 1 | BU17: -1 | BV17: -1 | BW17: -1 | BX17: -1 | BY17: 1 | BZ17: -1 | CA17: 1 | CB17: 1 | CC17: -1 | CD17: 2 | CE17: 1 | CF17: -2
A18: 1 | B18: 1 | C18: -2 | D18: -1 | E18: -2 | F18: -1 | G18: 2 | H18: -1 | I18: 1 | J18: -2 | K18: -1 | L18: -1 | M18: -1 | N18: 1 | O18: 2 | P18: 2 | Q18: -1 | R18: 1 | S18: 1 | T18: -1 | U18: -2 | V18: -1 | W18: 1 | X18: -1 | Y18: 1 | Z18: 1 | AA18: -1 | AB18: -1 | AC18: 2 | AD18: 1 | AE18: -1 | AF18: -2 | AG18: 2 | AH18: 1 | AI18: -1 | AJ18: 1 | AK18: 2 | AL18: 1 | AM18: -1 | AN18: 1 | AO18: 1 | AP18: 1 | AQ18: -2 | AR18: -1 | AS18: 1 | AT18: -1 | AU18: -2 | AV18: -1 | AW18: -1 | AX18: -1 | AY18: -1 | AZ18: -1 | BA18: 1 | BB18: 2 | BC18: -1 | BD18: -1 | BE18: 2 | BF18: 1 | BG18: -1 | BH18: 1 | BI18: -1 | BJ18: -1 | BK18: 1 | BL18: 1 | BM18: -1 | BN18: -2 | BO18: -1 | BP18: -1 | BQ18: -1 | BR18: -1 | BS18: -1 | BT18: 1 | BU18: -1 | BV18: 1 | BW18: 1 | BX18: 1 | BY18: 1 | BZ18: 1 | CA18: -1 | CB18: 2 | CC18: 2 | CD18: 2 | CE18: -1 | CF18: 1
A19: -1 | B19: -1 | C19: 2 | D19: 1 | E19: -1 | F19: 1 | G19: 1 | H19: -1 | I19: 2 | J19: 1 | K19: 1 | L19: 1 | M19: 2 | N19: 1 | O19: 2 | P19: 1 | Q19: 1 | R19: -2 | S19: 2 | T19: 1 | U19: -1 | V19: 2 | W19: -1 | X19: -1 | Y19: -1 | Z19: -2 | AA19: -1 | AB19: 1 | AC19: -1 | AD19: 2 | AE19: -1 | AF19: 1 | AG19: 1 | AH19: -1 | AI19: 2 | AJ19: 2 | AK19: -2 | AL19: 1 | AM19: 1 | AN19: 2 | AO19: 1 | AP19: -1 | AQ19: -1 | AR19: 1 | AS19: -1 | AT19: 1 | AU19: -1 | AV19: 1 | AW19: -1 | AX19: 1 | AY19: 2 | AZ19: 1 | BA19: -1 | BB19: -1 | BC19: 1 | BD19: -1 | BE19: 2 | BF19: 2 | BG19: -2 | BH19: -1 | BI19: 2 | BJ19: -1 | BK19: -2 | BL19: 1 | BM19: -2 | BN19: -1 | BO19: -1 | BP19: -2 | BQ19: 1 | BR19: -1 | BS19: 1 | BT19: 2 | BU19: -1 | BV19: 1 | BW19: 1 | BX19: 1 | BY19: -1 | BZ19: 2 | CA19: -1 | CB19: 1 | CC19: -1 | CD19: -1 | CE19: -2 | CF19: 1
A20: 1 | B20: -2 | C20: -1 | D20: -1 | E20: -2 | F20: -1 | G20: -2 | H20: -1 | I20: 4 | J20: -1 | K20: 1 | L20: -1 | M20: 1 | N20: 1 | O20: -1 | P20: 1 | Q20: 1 | R20: 1 | S20: 2 | T20: -2 | U20: 1 | V20: -1 | W20: -2 | X20: -2 | Y20: -1 | Z20: -2 | AA20: 1 | AB20: -2 | AC20: -1 | AD20: -1 | AE20: -1 | AF20: -1 | AG20: 1 | AH20: -1 | AI20: 2 | AJ20: -1 | AK20: 1 | AL20: 1 | AM20: 1 | AN20: 2 | AO20: -2 | AP20: 1 | AQ20: -1 | AR20: 1 | AS20: -1 | AT20: 2 | AU20: 1 | AV20: 2 | AW20: -1 | AX20: -1 | AY20: 1 | AZ20: -1 | BA20: 1 | BB20: 1 | BC20: -1 | BD20: 1 | BE20: -1 | BF20: -1 | BG20: -1 | BH20: -2 | BI20: 2 | BJ20: 1 | BK20: -1 | BL20: 1 | BM20: 1 | BN20: -1 | BO20: 1 | BP20: -1 | BQ20: 4 | BR20: -1 | BS20: 2 | BT20: 1 | BU20: 1 | BV20: -2 | BW20: -2 | BX20: 2 | BY20: 2 | BZ20: 1 | CA20: 2 | CB20: -1 | CC20: -1 | CD20: -1 | CE20: -1 | CF20: -2
A21: 1 | B21: -1 | C21: -1 | D21: -1 | E21: 1 | F21: 2 | G21: 1 | H21: 1 | I21: 1 | J21: 1 | K21: -1 | L21: -1 | M21: 1 | N21: 1 | O21: 1 | P21: -1 | Q21: 1 | R21: 1 | S21: 1 | T21: -1 | U21: -2 | V21: -1 | W21: -2 | X21: 1 | Y21: -1 | Z21: -1 | AA21: 2 | AB21: -2 | AC21: 1 | AD21: -1 | AE21: 1 | AF21: 1 | AG21: -1 | AH21: 1 | AI21: 2 | AJ21: 2 | AK21: 1 | AL21: -1 | AM21: 1 | AN21: 1 | AO21: -2 | AP21: -2 | AQ21: -2 | AR21: -1 | AS21: 1 | AT21: 1 | AU21: -1 | AV21: 1 | AW21: -2 | AX21: 1 | AY21: 1 | AZ21: -2 | BA21: 1 | BB21: -1 | BC21: 2 | BD21: 2 | BE21: 1 | BF21: 1 | BG21: -1 | BH21: 2 | BI21: 1 | BJ21: -2 | BK21: -2 | BL21: -1 | BM21: -1 | BN21: 2 | BO21: -1 | BP21: 1 | BQ21: 1 | BR21: -2 | BS21: 2 | BT21: -1 | BU21: 1 | BV21: -2 | BW21: -1 | BX21: -1 | BY21: 1 | BZ21: -1 | CA21: 1 | CB21: -2 | CC21: 1 | CD21: 1 | CE21: 1 | CF21: -1
A22: 4 | B22: 1 | C22: -1 | D22: 1 | E22: -1 | F22: -1 | G22: -1 | H22: 1 | I22: -1 | J22: 1 | K22: 1 | L22: 1 | M22: 2 | N22: -2 | O22: -1 | P22: 2 | Q22: -2 | R22: 1 | S22: 1 | T22: -1 | U22: -1 | V22: 1 | W22: -2 | X22: -1 | Y22: 1 | Z22: -1 | AA22: -1 | AB22: 1 | AC22: 1 | AD22: -1 | AE22: -1 | AF22: -2 | AG22: -1 | AH22: -1 | AI22: 1 | AJ22: 1 | AK22: -1 | AL22: -1 | AM22: -2 | AN22: 1 | AO22: -2 | AP22: 1 | AQ22: 2 | AR22: -2 | AS22: -2 | AT22: 1 | AU22: 1 | AV22: 1 | AW22: -2 | AX22: -2 | AY22: -1 | AZ22: 1 | BA22: -2 | BB22: -1 | BC22: 1 | BD22: 2 | BE22: 1 | BF22: -1 | BG22: -1 | BH22: -1 | BI22: 2 | BJ22: -1 | BK22: -1 | BL22: 4 | BM22: 1 | BN22: -2 | BO22: 1 | BP22: -1 | BQ22: -1 | BR22: -2 | BS22: -1 | BT22: -1 | BU22: 1 | BV22: 1 | BW22: 1 | BX22: -1 | BY22: 1 | BZ22: 1 | CA22: 1 | CB22: 1 | CC22: -1 | CD22: 2 | CE22: -2 | CF22: -1
A23: 4 | B23: -4 | C23: 1 | D23: 1 | E23: -2 | F23: 1 | G23: -1 | H23: 1 | I23: 1 | J23: 1 | K23: -2 | L23: -1 | M23: 2 | N23: 1 | O23: 1 | P23: 2 | Q23: -1 | R23: -1 | S23: 1 | T23: -2 | U23: -1 | V23: 4 | W23: -2 | X23: -2 | Y23: 1 | Z23: -2 | AA23: 1 | AB23: -2 | AC23: 1 | AD23: 1 | AE23: -1 | AF23: -2 | AG23: -2 | AH23: 2 | AI23: 1 | AJ23: 1 | AK23: 4 | AL23: 1 | AM23: -1 | AN23: 1 | AO23: -2 | AP23: -2 | AQ23: 8 | AR23: -2 | AS23: -1 | AT23: -1 | AU23: 1 | AV23: 1 | AW23: -2 | AX23: -2 | AY23: 1 | AZ23: 2 | BA23: -1 | BB23: 1 | BC23: -1 | BD23: 1 | BE23: 1 | BF23: 2 | BG23: 1 | BH23: -1 | BI23: 1 | BJ23: -1 | BK23: -2 | BL23: 2 | BM23: -2 | BN23: -2 | BO23: 2 | BP23: -1 | BQ23: -1 | BR23: 1 | BS23: -2 | BT23: 4 | BU23: 1 | BV23: -2 | BW23: -1 | BX23: 2 | BY23: 1 | BZ23: -1 | CA23: 2 | CB23: -2 | CC23: 1 | CD23: -1 | CE23: -1 | CF23: 1
A24: 4 | B24: -1 | C24: -1 | D24: -1 | E24: -1 | F24: -1 | G24: -2 | H24: 1 | I24: 2 | J24: 2 | K24: 1 | L24: 1 | M24: -1 | N24: -2 | O24: -1 | P24: 1 | Q24: -1 | R24: -2 | S24: 1 | T24: -1 | U24: -2 | V24: 1 | W24: -2 | X24: 1 | Y24: -2 | Z24: -1 | AA24: 1 | AB24: 1 | AC24: -1 | AD24: 1 | AE24: 1 | AF24: 1 | AG24: 2 | AH24: -1 | AI24: 1 | AJ24: 1 | AK24: 1 | AL24: 1 | AM24: -1 | AN24: 2 | AO24: -1 | AP24: 1 | AQ24: 1 | AR24: -1 | AS24: 1 | AT24: -2 | AU24: 1 | AV24: 1 | AW24: 1 | AX24: 2 | AY24: 2 | AZ24: 1 | BA24: -2 | BB24: 2 | BC24: 1 | BD24: -1 | BE24: 1 | BF24: 1 | BG24: -1 | BH24: -2 | BI24: 2 | BJ24: -1 | BK24: -1 | BL24: 1 | BM24: 1 | BN24: -1 | BO24: -1 | BP24: -1 | BQ24: 2 | BR24: -1 | BS24: -1 | BT24: -1 | BU24: -1 | BV24: -1 | BW24: 1 | BX24: 1 | BY24: -1 | BZ24: -1 | CA24: -1 | CB24: 1 | CC24: 1 | CD24: 1 | CE24: 1 | CF24: -1
A25: 1 | B25: -1 | C25: -2 | D25: -1 | E25: -1 | F25: 1 | G25: -1 | H25: -1 | I25: 1 | J25: 1 | K25: -1 | L25: 2 | M25: -1 | N25: 1 | O25: -2 | P25: -1 | Q25: -2 | R25: -1 | S25: 1 | T25: -1 | U25: 1 | V25: -1 | W25: 1 | X25: -2 | Y25: 1 | Z25: -1 | AA25: 1 | AB25: -2 | AC25: 1 | AD25: -1 | AE25: 1 | AF25: 1 | AG25: -1 | AH25: 1 | AI25: -1 | AJ25: -1 | AK25: -1 | AL25: -1 | AM25: 1 | AN25: 1 | AO25: -1 | AP25: 1 | AQ25: 1 | AR25: -1 | AS25: -2 | AT25: -2 | AU25: 1 | AV25: 1 | AW25: 1 | AX25: -1 | AY25: 1 | AZ25: 1 | BA25: -2 | BB25: 1 | BC25: -1 | BD25: -2 | BE25: -1 | BF25: 1 | BG25: -2 | BH25: 1 | BI25: 1 | BJ25: -1 | BK25: 1 | BL25: 4 | BM25: -1 | BN25: -2 | BO25: -2 | BP25: -2 | BQ25: 1 | BR25: 1 | BS25: -1 | BT25: 1 | BU25: 2 | BV25: -2 | BW25: 2 | BX25: -1 | BY25: 2 | BZ25: -1 | CA25: 1 | CB25: 1 | CC25: 1 | CD25: 2 | CE25: 1 | CF25: -1
A26: 1 | B26: -1 | C26: 1 | D26: 1 | E26: -1 | F26: 1 | G26: 1 | H26: -1 | I26: -1 | J26: -1 | K26: 1 | L26: -1 | M26: 2 | N26: 2 | O26: 1 | P26: -1 | Q26: -2 | R26: -1 | S26: -1 | T26: 1 | U26: -2 | V26: 1 | W26: 1 | X26: -1 | Y26: -1 | Z26: 1 | AA26: 2 | AB26: -1 | AC26: 1 | AD26: 2 | AE26: 1 | AF26: -1 | AG26: -2 | AH26: -1 | AI26: -1 | AJ26: -1 | AK26: 1 | AL26: -1 | AM26: -2 | AN26: 2 | AO26: -2 | AP26: -1 | AQ26: 4 | AR26: -1 | AS26: 1 | AT26: -1 | AU26: -1 | AV26: -1 | AW26: -1 | AX26: 1 | AY26: 1 | AZ26: 2 | BA26: 1 | BB26: 1 | BC26: 1 | BD26: -2 | BE26: 1 | BF26: 1 | BG26: -1 | BH26: -1 | BI26: 1 | BJ26: -1 | BK26: 1 | BL26: 1 | BM26: -2 | BN26: 1 | BO26: -2 | BP26: -1 | BQ26: 2 | BR26: -2 | BS26: 1 | BT26: 2 | BU26: 1 | BV26: -1 | BW26: -1 | BX26: 1 | BY26: 1 | BZ26: -1 | CA26: 2 | CB26: -2 | CC26: -1 | CD26: 2 | CE26: -1 | CF26: -2
A27: -2 | B27: 1 | C27: -2 | D27: 1 | E27: 2 | F27: -1 | G27: 1 | H27: -1 | I27: 1 | J27: 2 | K27: -1 | L27: 1 | M27: -2 | N27: 2 | O27: 1 | P27: 1 | Q27: 1 | R27: -1 | S27: -1 | T27: -1 | U27: -1 | V27: 2 | W27: -1 | X27: 1 | Y27: -1 | Z27: -1 | AA27: 2 | AB27: 1 | AC27: -1 | AD27: 2 | AE27: -1 | AF27: 1 | AG27: 2 | AH27: -1 | AI27: 1 | AJ27: -1 | AK27: -1 | AL27: -1 | AM27: -2 | AN27: 1 | AO27: 1 | AP27: 1 | AQ27: 1 | AR27: -2 | AS27: -1 | AT27: 1 | AU27: 1 | AV27: 2 | AW27: -1 | AX27: 1 | AY27: 1 | AZ27: 1 | BA27: -1 | BB27: 1 | BC27: 1 | BD27: -2 | BE27: -1 | BF27: 1 | BG27: 1 | BH27: 1 | BI27: -1 | BJ27: 2 | BK27: -1 | BL27: 2 | BM27: 1 | BN27: 2 | BO27: -1 | BP27: -2 | BQ27: 1 | BR27: 1 | BS27: 1 | BT27: 1 | BU27: 2 | BV27: 2 | BW27: 1 | BX27: -1 | BY27: 1 | BZ27: -1 | CA27: -1 | CB27: -1 | CC27: 1 | CD27: 1 | CE27: 1 | CF27: -1
A28: -1 | B28: -1 | C28: 1 | D28: 1 | E28: 2 | F28: -1 | G28: -1 | H28: 2 | I28: -2 | J28: 1 | K28: -1 | L28: 1 | M28: 1 | N28: 1 | O28: 1 | P28: -1 | Q28: 1 | R28: 1 | S28: -1 | T28: -1 | U28: 2 | V28: 1 | W28: 1 | X28: 1 | Y28: 1 | Z28: 1 | AA28: -1 | AB28: 1 | AC28: 1 | AD28: -1 | AE28: -1 | AF28: -2 | AG28: 1 | AH28: 1 | AI28: -1 | AJ28: 2 | AK28: 1 | AL28: -1 | AM28: -2 | AN28: -1 | AO28: 1 | AP28: 1 | AQ28: -1 | AR28: 1 | AS28: -1 | AT28: 1 | AU28: -1 | AV28: -1 | AW28: 1 | AX28: -1 | AY28: 1 | AZ28: -2 | BA28: -1 | BB28: -2 | BC28: 2 | BD28: -1 | BE28: 2 | BF28: 2 | BG28: 1 | BH28: -1 | BI28: 2 | BJ28: -1 | BK28: -1 | BL28: 2 | BM28: 1 | BN28: -2 | BO28: -1 | BP28: -1 | BQ28: 1 | BR28: 1 | BS28: 1 | BT28: -1 | BU28: -1 | BV28: -2 | BW28: -1 | BX28: -1 | BY28: 1 | BZ28: -1 | CA28: 1 | CB28: 1 | CC28: -1 | CD28: -1 | CE28: -1 | CF28: 1
A29: -2 | B29: 1 | C29: 1 | D29: 1 | E29: -1 | F29: 1 | G29: 1 | H29: -1 | I29: 2 | J29: 1 | K29: 1 | L29: 1 | M29: -1 | N29: 1 | O29: 2 | P29: 1 | Q29: -1 | R29: 1 | S29: 1 | T29: -1 | U29: 1 | V29: -1 | W29: -1 | X29: 1 | Y29: 1 | Z29: 2 | AA29: -1 | AB29: -1 | AC29: 1 | AD29: -1 | AE29: 1 | AF29: -1 | AG29: 1 | AH29: -2 | AI29: -1 | AJ29: -1 | AK29: 1 | AL29: 1 | AM29: 1 | AN29: -2 | AO29: -1 | AP29: 1 | AQ29: -1 | AR29: -1 | AS29: -1 | AT29: -2 | AU29: 1 | AV29: 2 | AW29: -1 | AX29: -1 | AY29: 1 | AZ29: -1 | BA29: -1 | BB29: 1 | BC29: 2 | BD29: 1 | BE29: -1 | BF29: 2 | BG29: -2 | BH29: 1 | BI29: 1 | BJ29: 1 | BK29: 1 | BL29: 1 | BM29: 1 | BN29: -1 | BO29: 1 | BP29: 1 | BQ29: 1 | BR29: 1 | BS29: 1 | BT29: 1 | BU29: 1 | BV29: -1 | BW29: -1 | BX29: -1 | BY29: -1 | BZ29: -1 | CA29: 1 | CB29: -2 | CC29: 1 | CD29: -1 | CE29: -1 | CF29: 1
A30: -2 | B30: -1 | C30: 2 | D30: -1 | E30: 1 | F30: 1 | G30: 1 | H30: 1 | I30: -1 | J30: -1 | K30: -1 | L30: 2 | M30: 2 | N30: -1 | O30: 1 | P30: 1 | Q30: 1 | R30: -2 | S30: 1 | T30: 2 | U30: 2 | V30: -1 | W30: -2 | X30: 1 | Y30: 1 | Z30: 1 | AA30: 1 | AB30: 1 | AC30: 2 | AD30: -2 | AE30: -1 | AF30: -2 | AG30: 1 | AH30: 1 | AI30: -2 | AJ30: 1 | AK30: 1 | AL30: -2 | AM30: -1 | AN30: 1 | AO30: -1 | AP30: -1 | AQ30: -2 | AR30: 2 | AS30: 1 | AT30: 1 | AU30: -2 | AV30: 2 | AW30: -1 | AX30: 1 | AY30: -1 | AZ30: 1 | BA30: 1 | BB30: 1 | BC30: 1 | BD30: -1 | BE30: -1 | BF30: -1 | BG30: 1 | BH30: -1 | BI30: -1 | BJ30: 1 | BK30: -1 | BL30: -1 | BM30: 1 | BN30: -2 | BO30: -1 | BP30: 2 | BQ30: 1 | BR30: -1 | BS30: -2 | BT30: -1 | BU30: 1 | BV30: 1 | BW30: -1 | BX30: 1 | BY30: -1 | BZ30: 1 | CA30: 2 | CB30: 1 | CC30: 1 | CD30: 2 | CE30: 1 | CF30: 2
A31: -1 | B31: -2 | C31: -2 | D31: -2 | E31: 1 | F31: 1 | G31: 2 | H31: 1 | I31: 1 | J31: 2 | K31: -1 | L31: -1 | M31: 1 | N31: 1 | O31: 2 | P31: -1 | Q31: -1 | R31: -1 | S31: 1 | T31: 1 | U31: -1 | V31: 1 | W31: -1 | X31: 1 | Y31: -1 | Z31: -1 | AA31: 1 | AB31: 2 | AC31: 1 | AD31: -2 | AE31: 2 | AF31: -2 | AG31: 1 | AH31: 1 | AI31: -2 | AJ31: 1 | AK31: 1 | AL31: -1 | AM31: 1 | AN31: -1 | AO31: 1 | AP31: 2 | AQ31: 1 | AR31: 1 | AS31: 1 | AT31: -2 | AU31: 1 | AV31: 1 | AW31: -1 | AX31: -1 | AY31: 1 | AZ31: 1 | BA31: -1 | BB31: -1 | BC31: -2 | BD31: -2 | BE31: -1 | BF31: 1 | BG31: -2 | BH31: 1 | BI31: 2 | BJ31: 1 | BK31: 1 | BL31: 2 | BM31: -1 | BN31: 1 | BO31: -1 | BP31: 1 | BQ31: 2 | BR31: -1 | BS31: 2 | BT31: 1 | BU31: 2 | BV31: -1 | BW31: -1 | BX31: 1 | BY31: -1 | BZ31: -1 | CA31: 1 | CB31: -2 | CC31: 1 | CD31: 1 | CE31: -2 | CF31: -1
A32: 2 | B32: -2 | C32: -2 | D32: 1 | E32: 1 | F32: 1 | G32: 1 | H32: 2 | I32: -2 | J32: 2 | K32: -1 | L32: -2 | M32: -1 | N32: 1 | O32: -1 | P32: -1 | Q32: 1 | R32: 1 | S32: 1 | T32: -2 | U32: 2 | V32: 2 | W32: -1 | X32: -2 | Y32: -1 | Z32: 1 | AA32: -1 | AB32: 2 | AC32: 2 | AD32: -1 | AE32: -1 | AF32: -2 | AG32: -1 | AH32: -2 | AI32: -2 | AJ32: -1 | AK32: -1 | AL32: 1 | AM32: -1 | AN32: -2 | AO32: -2 | AP32: 1 | AQ32: -1 | AR32: -1 | AS32: -1 | AT32: -1 | AU32: -1 | AV32: 2 | AW32: 1 | AX32: 2 | AY32: 1 | AZ32: 1 | BA32: -1 | BB32: 2 | BC32: 1 | BD32: -1 | BE32: 1 | BF32: -1 | BG32: 1 | BH32: -1 | BI32: -1 | BJ32: -1 | BK32: -1 | BL32: 2 | BM32: 1 | BN32: -1 | BO32: -2 | BP32: 1 | BQ32: 1 | BR32: 2 | BS32: -1 | BT32: 1 | BU32: 2 | BV32: 1 | BW32: 1 | BX32: -2 | BY32: -1 | BZ32: 2 | CA32: 1 | CB32: 1 | CC32: 1 | CD32: -2 | CE32: -1 | CF32: 2
A33: 1 | B33: -1 | C33: -2 | D33: 1 | E33: -1 | F33: 1 | G33: 2 | H33: -2 | I33: 1 | J33: 2 | K33: 1 | L33: 1 | M33: -1 | N33: -1 | O33: 1 | P33: 1 | Q33: 1 | R33: -2 | S33: -1 | T33: -1 | U33: 1 | V33: 1 | W33: 1 | X33: -1 | Y33: -1 | Z33: -1 | AA33: 1 | AB33: 1 | AC33: 1 | AD33: -1 | AE33: -1 | AF33: -1 | AG33: 2 | AH33: 1 | AI33: -1 | AJ33: 2 | AK33: 1 | AL33: 1 | AM33: 1 | AN33: 1 | AO33: -2 | AP33: -1 | AQ33: 1 | AR33: -1 | AS33: -1 | AT33: 1 | AU33: -1 | AV33: -1 | AW33: 2 | AX33: -1 | AY33: -1 | AZ33: 1 | BA33: 1 | BB33: 2 | BC33: 1 | BD33: -1 | BE33: 1 | BF33: -1 | BG33: 1 | BH33: -1 | BI33: 1 | BJ33: 1 | BK33: -1 | BL33: 1 | BM33: 1 | BN33: -2 | BO33: -1 | BP33: -1 | BQ33: -1 | BR33: 2 | BS33: 1 | BT33: 1 | BU33: -1 | BV33: 1 | BW33: -1 | BX33: 1 | BY33: 1 | BZ33: 1 | CA33: 1 | CB33: 2 | CC33: 1 | CD33: -1 | CE33: 1 | CF33: -1
A34: -1 | B34: -2 | C34: 1 | D34: -1 | E34: 1 | F34: 1 | G34: -1 | H34: 1 | I34: 1 | J34: -1 | K34: 1 | L34: -1 | M34: -2 | N34: 1 | O34: 1 | P34: 2 | Q34: 1 | R34: -2 | S34: -1 | T34: -1 | U34: 2 | V34: 1 | W34: -1 | X34: -1 | Y34: -1 | Z34: 2 | AA34: -1 | AB34: 2 | AC34: 1 | AD34: -1 | AE34: 1 | AF34: 1 | AG34: -1 | AH34: 1 | AI34: -2 | AJ34: -1 | AK34: 2 | AL34: -2 | AM34: 1 | AN34: 1 | AO34: -1 | AP34: -1 | AQ34: 1 | AR34: 2 | AS34: 1 | AT34: 1 | AU34: -1 | AV34: 1 | AW34: 2 | AX34: 2 | AY34: 2 | AZ34: -1 | BA34: -2 | BB34: -1 | BC34: 2 | BD34: 1 | BE34: 1 | BF34: -1 | BG34: -1 | BH34: -1 | BI34: -1 | BJ34: -2 | BK34: -1 | BL34: 2 | BM34: 1 | BN34: -1 | BO34: -2 | BP34: -1 | BQ34: 1 | BR34: -1 | BS34: -1 | BT34: -1 | BU34: 1 | BV34: 1 | BW34: -1 | BX34: -1 | BY34: 1 | BZ34: -1 | CA34: 1 | CB34: -1 | CC34: -1 | CD34: 1 | CE34: 1 | CF34: -2
A35: 2 | B35: -2 | C35: -2 | D35: -2 | E35: 1 | F35: 1 | G35: -1 | H35: 1 | I35: 1 | J35: 1 | K35: 1 | L35: 1 | M35: -2 | N35: -2 | O35: -1 | P35: 1 | Q35: -1 | R35: 1 | S35: 1 | T35: -2 | U35: 2 | V35: -2 | W35: 1 | X35: -2 | Y35: -1 | Z35: -1 | AA35: 1 | AB35: -1 | AC35: 1 | AD35: -2 | AE35: 2 | AF35: -1 | AG35: 1 | AH35: -2 | AI35: 1 | AJ35: 1 | AK35: -1 | AL35: -1 | AM35: 1 | AN35: 1 | AO35: 1 | AP35: -1 | AQ35: -1 | AR35: 1 | AS35: -1 | AT35: 1 | AU35: 2 | AV35: 1 | AW35: -1 | AX35: 2 | AY35: -2 | AZ35: 1 | BA35: -1 | BB35: -1 | BC35: -1 | BD35: -1 | BE35: 1 | BF35: -1 | BG35: 2 | BH35: -1 | BI35: -1 | BJ35: -1 | BK35: 2 | BL35: 1 | BM35: -2 | BN35: 1 | BO35: -1 | BP35: 1 | BQ35: 2 | BR35: 2 | BS35: -1 | BT35: -2 | BU35: -1 | BV35: -1 | BW35: -1 | BX35: -1 | BY35: -1 | BZ35: -1 | CA35: -1 | CB35: 1 | CC35: -1 | CD35: 1 | CE35: -2 | CF35: -1
A36: -2 | B36: 1 | C36: -1 | D36: 1 | E36: 1 | F36: 1 | G36: -1 | H36: -1 | I36: 1 | J36: 1 | K36: -2 | L36: 1 | M36: 1 | N36: -1 | O36: 2 | P36: 1 | Q36: -1 | R36: 1 | S36: 1 | T36: 1 | U36: -1 | V36: -1 | W36: 1 | X36: -1 | Y36: -2 | Z36: -1 | AA36: -1 | AB36: 1 | AC36: -2 | AD36: -2 | AE36: -1 | AF36: -1 | AG36: -1 | AH36: 1 | AI36: -1 | AJ36: -1 | AK36: -1 | AL36: 1 | AM36: 1 | AN36: 1 | AO36: 1 | AP36: 1 | AQ36: 1 | AR36: -1 | AS36: 1 | AT36: 1 | AU36: 1 | AV36: 2 | AW36: 1 | AX36: 2 | AY36: -1 | AZ36: 1 | BA36: -1 | BB36: 1 | BC36: -1 | BD36: -2 | BE36: -1 | BF36: 1 | BG36: 1 | BH36: 1 | BI36: -1 | BJ36: 2 | BK36: 1 | BL36: 1 | BM36: 1 | BN36: -1 | BO36: -2 | BP36: -1 | BQ36: -1 | BR36: -1 | BS36: -2 | BT36: -1 | BU36: 1 | BV36: 1 | BW36: 1 | BX36: -1 | BY36: -1 | BZ36: 2 | CA36: -1 | CB36: -1 | CC36: -1 | CD36: -1 | CE36: 1 | CF36: 1
A37: 1 | B37: -2 | C37: -1 | D37: -1 | E37: 1 | F37: 1 | G37: -2 | H37: 1 | I37: 1 | J37: 2 | K37: -1 | L37: 1 | M37: 1 | N37: -1 | O37: 1 | P37: 1 | Q37: -1 | R37: 1 | S37: -1 | T37: 1 | U37: -1 | V37: -1 | W37: 1 | X37: 1 | Y37: -1 | Z37: 1 | AA37: -1 | AB37: -2 | AC37: -1 | AD37: -1 | AE37: 2 | AF37: 1 | AG37: -1 | AH37: 2 | AI37: 1 | AJ37: -1 | AK37: 2 | AL37: -2 | AM37: 1 | AN37: 1 | AO37: -1 | AP37: -1 | AQ37: 1 | AR37: 1 | AS37: -1 | AT37: 1 | AU37: 2 | AV37: 1 | AW37: -2 | AX37: -1 | AY37: -1 | AZ37: -2 | BA37: 1 | BB37: -1 | BC37: -1 | BD37: 2 | BE37: 2 | BF37: 2 | BG37: -1 | BH37: 1 | BI37: -1 | BJ37: -1 | BK37: -1 | BL37: 1 | BM37: -1 | BN37: 1 | BO37: 1 | BP37: 1 | BQ37: 1 | BR37: -1 | BS37: 1 | BT37: -1 | BU37: -1 | BV37: -1 | BW37: 1 | BX37: -1 | BY37: 1 | BZ37: -1 | CA37: -1 | CB37: 1 | CC37: 1 | CD37: 1 | CE37: -1 | CF37: 2
A38: -4 | B38: -1 | C38: 2 | D38: -1 | E38: 1 | F38: -1 | G38: -1 | H38: 1 | I38: 2 | J38: -1 | K38: -1 | L38: -1 | M38: 1 | N38: -1 | O38: 1 | P38: 2 | Q38: -2 | R38: 1 | S38: -2 | T38: 1 | U38: 1 | V38: -2 | W38: -2 | X38: 1 | Y38: -1 | Z38: 1 | AA38: -1 | AB38: -1 | AC38: 1 | AD38: 1 | AE38: 1 | AF38: 1 | AG38: 1 | AH38: 1 | AI38: -1 | AJ38: 1 | AK38: 1 | AL38: 1 | AM38: -1 | AN38: -1 | AO38: 2 | AP38: -1 | AQ38: -1 | AR38: 1 | AS38: 2 | AT38: 2 | AU38: 1 | AV38: 1 | AW38: -1 | AX38: -1 | AY38: 1 | AZ38: 1 | BA38: -1 | BB38: 1 | BC38: 2 | BD38: -1 | BE38: -1 | BF38: -1 | BG38: -2 | BH38: 2 | BI38: -1 | BJ38: 1 | BK38: -1 | BL38: -1 | BM38: -2 | BN38: -1 | BO38: 2 | BP38: 1 | BQ38: 2 | BR38: -1 | BS38: -1 | BT38: 2 | BU38: 1 | BV38: -2 | BW38: -1 | BX38: 2 | BY38: -2 | BZ38: 1 | CA38: 1 | CB38: 1 | CC38: 1 | CD38: -2 | CE38: -1 | CF38: -2
A39: 1 | B39: -2 | C39: -1 | D39: 1 | E39: 1 | F39: 1 | G39: -1 | H39: 1 | I39: 1 | J39: -1 | K39: 2 | L39: -1 | M39: -1 | N39: 1 | O39: 1 | P39: -2 | Q39: -1 | R39: -1 | S39: 1 | T39: -1 | U39: 2 | V39: -2 | W39: 1 | X39: 2 | Y39: -1 | Z39: 2 | AA39: 1 | AB39: 1 | AC39: 1 | AD39: -1 | AE39: 1 | AF39: -1 | AG39: 1 | AH39: 1 | AI39: -1 | AJ39: -1 | AK39: 1 | AL39: 1 | AM39: 2 | AN39: 1 | AO39: -1 | AP39: 1 | AQ39: -4 | AR39: -2 | AS39: 1 | AT39: 1 | AU39: 2 | AV39: 1 | AW39: -1 | AX39: 1 | AY39: -1 | AZ39: -1 | BA39: -1 | BB39: 1 | BC39: 1 | BD39: 1 | BE39: -1 | BF39: -1 | BG39: 1 | BH39: -1 | BI39: -1 | BJ39: 1 | BK39: -1 | BL39: -1 | BM39: 1 | BN39: -1 | BO39: -2 | BP39: -1 | BQ39: -1 | BR39: 1 | BS39: -2 | BT39: -1 | BU39: 1 | BV39: 1 | BW39: -1 | BX39: -1 | BY39: -1 | BZ39: -1 | CA39: -2 | CB39: -2 | CC39: 1 | CD39: 1 | CE39: 2 | CF39: -1
A40: 2 | B40: -1 | C40: 1 | D40: -1 | E40: -1 | F40: -2 | G40: -1 | H40: 1 | I40: 1 | J40: 1 | K40: -1 | L40: 1 | M40: 1 | N40: -1 | O40: -1 | P40: -1 | Q40: 2 | R40: 1 | S40: 2 | T40: 1 | U40: 1 | V40: 4 | W40: -2 | X40: -1 | Y40: 1 | Z40: 1 | AA40: 1 | AB40: 1 | AC40: -1 | AD40: 1 | AE40: -1 | AF40: 1 | AG40: 1 | AH40: -2 | AI40: 1 | AJ40: 1 | AK40: 1 | AL40: 1 | AM40: 1 | AN40: 2 | AO40: -1 | AP40: 1 | AQ40: 2 | AR40: -1 | AS40: 1 | AT40: 1 | AU40: 1 | AV40: 1 | AW40: -1 | AX40: -2 | AY40: 1 | AZ40: 1 | BA40: -1 | BB40: -1 | BC40: -1 | BD40: 1 | BE40: -1 | BF40: 1 | BG40: 1 | BH40: 1 | BI40: -1 | BJ40: 1 | BK40: -1 | BL40: 1 | BM40: -1 | BN40: -1 | BO40: 2 | BP40: -1 | BQ40: -1 | BR40: -2 | BS40: -1 | BT40: -1 | BU40: 1 | BV40: -1 | BW40: 1 | BX40: 1 | BY40: -1 | BZ40: 2 | CA40: 1 | CB40: 1 | CC40: -1 | CD40: -2 | CE40: 1 | CF40: 1
A41: -1 | B41: -1 | C41: -1 | D41: 1 | E41: 1 | F41: 1 | G41: 1 | H41: 1 | I41: 1 | J41: 1 | K41: 1 | L41: 1 | M41: 1 | N41: 1 | O41: -1 | P41: -1 | Q41: -1 | R41: 2 | S41: 1 | T41: -1 | U41: -2 | V41: -4 | W41: 1 | X41: -1 | Y41: -1 | Z41: -1 | AA41: -1 | AB41: 1 | AC41: 1 | AD41: 2 | AE41: 1 | AF41: -2 | AG41: -2 | AH41: -1 | AI41: -1 | AJ41: 1 | AK41: 1 | AL41: -1 | AM41: -1 | AN41: 1 | AO41: -1 | AP41: 1 | AQ41: -1 | AR41: 1 | AS41: -1 | AT41: 1 | AU41: -1 | AV41: -1 | AW41: -1 | AX41: 1 | AY41: -1 | AZ41: -1 | BA41: -1 | BB41: -1 | BC41: 1 | BD41: 2 | BE41: -1 | BF41: 1 | BG41: -1 | BH41: -1 | BI41: 2 | BJ41: -1 | BK41: -1 | BL41: 1 | BM41: 1 | BN41: -1 | BO41: 1 | BP41: -1 | BQ41: -1 | BR41: 1 | BS41: 1 | BT41: -1 | BU41: 1 | BV41: -1 | BW41: 1 | BX41: 1 | BY41: -1 | BZ41: -2 | CA41: -1 | CB41: -1 | CC41: 1 | CD41: 1 | CE41: -1 | CF41: -1
A42: 1 | B42: 1 | C42: 1 | D42: -1 | E42: -1 | F42: -1 | G42: 1 | H42: 1 | I42: -2 | J42: -1 | K42: 1 | L42: 2 | M42: -1 | N42: 1 | O42: -1 | P42: 1 | Q42: -1 | R42: 1 | S42: 1 | T42: -1 | U42: -1 | V42: 1 | W42: 1 | X42: 2 | Y42: -2 | Z42: 2 | AA42: 1 | AB42: 1 | AC42: 2 | AD42: -2 | AE42: 2 | AF42: 1 | AG42: 2 | AH42: -1 | AI42: 1 | AJ42: 1 | AK42: -2 | AL42: -2 | AM42: 2 | AN42: 1 | AO42: -1 | AP42: 1 | AQ42: 4 | AR42: 1 | AS42: -2 | AT42: 1 | AU42: -1 | AV42: -1 | AW42: -2 | AX42: -1 | AY42: -1 | AZ42: -1 | BA42: 1 | BB42: 1 | BC42: 1 | BD42: -1 | BE42: 2 | BF42: 1 | BG42: -1 | BH42: 1 | BI42: -1 | BJ42: -1 | BK42: 1 | BL42: 2 | BM42: 1 | BN42: -1 | BO42: -1 | BP42: 2 | BQ42: -1 | BR42: -1 | BS42: 1 | BT42: -2 | BU42: 2 | BV42: 1 | BW42: -1 | BX42: 1 | BY42: -1 | BZ42: 2 | CA42: -2 | CB42: -1 | CC42: 2 | CD42: -1 | CE42: 1 | CF42: 2
A43: 2 | B43: 1 | C43: -1 | D43: -1 | E43: -1 | F43: -1 | G43: 1 | H43: 1 | I43: 1 | J43: -1 | K43: -1 | L43: -1 | M43: 1 | N43: 1 | O43: -1 | P43: -1 | Q43: 1 | R43: -1 | S43: 1 | T43: 2 | U43: 1 | V43: 8 | W43: -1 | X43: -1 | Y43: -1 | Z43: -2 | AA43: -1 | AB43: -2 | AC43: -2 | AD43: 1 | AE43: -1 | AF43: -1 | AG43: -1 | AH43: -1 | AI43: -1 | AJ43: -2 | AK43: -2 | AL43: 1 | AM43: 1 | AN43: 1 | AO43: -1 | AP43: -1 | AQ43: 4 | AR43: 1 | AS43: -1 | AT43: 1 | AU43: -1 | AV43: 1 | AW43: 1 | AX43: 1 | AY43: 1 | AZ43: 1 | BA43: 1 | BB43: 1 | BC43: -1 | BD43: -1 | BE43: 1 | BF43: 1 | BG43: -1 | BH43: 1 | BI43: 1 | BJ43: 2 | BK43: 1 | BL43: 2 | BM43: -2 | BN43: 1 | BO43: 1 | BP43: -1 | BQ43: 1 | BR43: -2 | BS43: -1 | BT43: -1 | BU43: 1 | BV43: 1 | BW43: 1 | BX43: 2 | BY43: -2 | BZ43: 1 | CA43: -2 | CB43: -1 | CC43: -2 | CD43: 1 | CE43: 2 | CF43: -2
A44: -4 | B44: 1 | C44: 1 | D44: -1 | E44: -2 | F44: -2 | G44: -1 | H44: -1 | I44: 2 | J44: 1 | K44: -1 | L44: -1 | M44: -1 | N44: 1 | O44: 1 | P44: 2 | Q44: -1 | R44: 1 | S44: 1 | T44: 1 | U44: 1 | V44: -4 | W44: -1 | X44: 1 | Y44: 1 | Z44: 1 | AA44: 1 | AB44: 1 | AC44: -1 | AD44: 2 | AE44: -1 | AF44: -1 | AG44: -1 | AH44: 1 | AI44: 1 | AJ44: 1 | AK44: 1 | AL44: 1 | AM44: -1 | AN44: -2 | AO44: -1 | AP44: -2 | AQ44: -4 | AR44: 1 | AS44: 1 | AT44: 1 | AU44: -1 | AV44: 1 | AW44: 2 | AX44: 1 | AY44: -1 | AZ44: -1 | BA44: 1 | BB44: 2 | BC44: 1 | BD44: 1 | BE44: 1 | BF44: -1 | BG44: -1 | BH44: -1 | BI44: -1 | BJ44: -1 | BK44: -2 | BL44: 2 | BM44: -2 | BN44: 1 | BO44: -2 | BP44: 1 | BQ44: -1 | BR44: -2 | BS44: 1 | BT44: 1 | BU44: 1 | BV44: -1 | BW44: 1 | BX44: -2 | BY44: 1 | BZ44: 1 | CA44: 1 | CB44: 1 | CC44: -1 | CD44: -1 | CE44: -1 | CF44: 1
A45: 1 | B45: 1 | C45: 2 | D45: -1 | E45: 1 | F45: -2 | G45: 2 | H45: 1 | I45: 1 | J45: 1 | K45: -1 | L45: -1 | M45: -1 | N45: -1 | O45: 1 | P45: 1 | Q45: -2 | R45: -2 | S45: 1 | T45: 1 | U45: 1 | V45: 1 | W45: -1 | X45: 1 | Y45: 1 | Z45: 2 | AA45: 1 | AB45: 1 | AC45: 1 | AD45: 1 | AE45: 1 | AF45: 1 | AG45: 2 | AH45: -2 | AI45: -1 | AJ45: 1 | AK45: 1 | AL45: -1 | AM45: -1 | AN45: -1 | AO45: 1 | AP45: 1 | AQ45: 2 | AR45: 1 | AS45: -2 | AT45: 1 | AU45: 1 | AV45: -1 | AW45: -2 | AX45: 1 | AY45: 2 | AZ45: 1 | BA45: 1 | BB45: -1 | BC45: -1 | BD45: -1 | BE45: 1 | BF45: 2 | BG45: 1 | BH45: -1 | BI45: -1 | BJ45: 2 | BK45: -1 | BL45: 2 | BM45: -1 | BN45: 1 | BO45: -2 | BP45: 1 | BQ45: 1 | BR45: 2 | BS45: 1 | BT45: -1 | BU45: -1 | BV45: 1 | BW45: -1 | BX45: -2 | BY45: -2 | BZ45: 1 | CA45: 1 | CB45: 1 | CC45: -1 | CD45: 1 | CE45: 1 | CF45: 1
A46: -2 | B46: 1 | C46: -1 | D46: 2 | E46: -1 | F46: -1 | G46: 1 | H46: -1 | I46: -1 | J46: -2 | K46: 1 | L46: -1 | M46: -1 | N46: -1 | O46: 1 | P46: -1 | Q46: -2 | R46: -1 | S46: 1 | T46: -2 | U46: 1 | V46: 1 | W46: -2 | X46: 1 | Y46: 1 | Z46: -2 | AA46: -1 | AB46: -1 | AC46: -2 | AD46: 2 | AE46: -1 | AF46: -1 | AG46: -1 | AH46: 2 | AI46: -1 | AJ46: -2 | AK46: -1 | AL46: -2 | AM46: 1 | AN46: 1 | AO46: -1 | AP46: -1 | AQ46: 1 | AR46: 1 | AS46: -1 | AT46: 1 | AU46: -2 | AV46: 1 | AW46: -1 | AX46: 1 | AY46: -1 | AZ46: 2 | BA46: 1 | BB46: -1 | BC46: 1 | BD46: 1 | BE46: 1 | BF46: -1 | BG46: 1 | BH46: -1 | BI46: 1 | BJ46: -1 | BK46: 1 | BL46: 1 | BM46: -1 | BN46: -1 | BO46: 1 | BP46: -1 | BQ46: -1 | BR46: -1 | BS46: -1 | BT46: 1 | BU46: 1 | BV46: 1 | BW46: -1 | BX46: -2 | BY46: -1 | BZ46: -1 | CA46: 1 | CB46: 2 | CC46: 1 | CD46: -2 | CE46: 2 | CF46: 1
A47: -2 | B47: -1 | C47: 1 | D47: -1 | E47: 2 | F47: 2 | G47: -1 | H47: 1 | I47: -2 | J47: 1 | K47: 1 | L47: -1 | M47: -1 | N47: 2 | O47: 2 | P47: 1 | Q47: -1 | R47: 1 | S47: 1 | T47: 1 | U47: 1 | V47: -2 | W47: -2 | X47: -1 | Y47: -2 | Z47: 1 | AA47: -2 | AB47: -1 | AC47: 1 | AD47: 1 | AE47: -1 | AF47: 1 | AG47: -1 | AH47: -1 | AI47: -2 | AJ47: -1 | AK47: -1 | AL47: 1 | AM47: 1 | AN47: 1 | AO47: 1 | AP47: -1 | AQ47: 1 | AR47: 1 | AS47: -1 | AT47: -1 | AU47: -1 | AV47: -1 | AW47: 1 | AX47: -1 | AY47: -1 | AZ47: -1 | BA47: -1 | BB47: 1 | BC47: -1 | BD47: 1 | BE47: -1 | BF47: 1 | BG47: 1 | BH47: 1 | BI47: -1 | BJ47: -2 | BK47: 1 | BL47: 1 | BM47: -1 | BN47: 1 | BO47: 1 | BP47: -1 | BQ47: 1 | BR47: -2 | BS47: -1 | BT47: -1 | BU47: -1 | BV47: 2 | BW47: -2 | BX47: -1 | BY47: -2 | BZ47: 1 | CA47: -1 | CB47: 1 | CC47: -1 | CD47: 1 | CE47: 1 | CF47: -1
A48: 1 | B48: -1 | C48: -1 | D48: -1 | E48: 2 | F48: -1 | G48: -1 | H48: 2 | I48: 2 | J48: 1 | K48: 1 | L48: -1 | M48: 1 | N48: -1 | O48: 2 | P48: -1 | Q48: -1 | R48: -1 | S48: -1 | T48: 2 | U48: -2 | V48: -1 | W48: 1 | X48: -1 | Y48: 1 | Z48: 1 | AA48: -1 | AB48: -1 | AC48: -1 | AD48: 1 | AE48: -2 | AF48: -1 | AG48: 1 | AH48: -1 | AI48: 1 | AJ48: -2 | AK48: 2 | AL48: 1 | AM48: 2 | AN48: -1 | AO48: 1 | AP48: 1 | AQ48: 1 | AR48: 1 | AS48: -2 | AT48: -1 | AU48: 1 | AV48: -2 | AW48: 1 | AX48: 2 | AY48: -1 | AZ48: 1 | BA48: 1 | BB48: 2 | BC48: 1 | BD48: 1 | BE48: 1 | BF48: -1 | BG48: 2 | BH48: 1 | BI48: -1 | BJ48: 1 | BK48: -2 | BL48: -1 | BM48: -1 | BN48: 1 | BO48: 1 | BP48: -1 | BQ48: -1 | BR48: -1 | BS48: 1 | BT48: -1 | BU48: 1 | BV48: 1 | BW48: -1 | BX48: 2 | BY48: -1 | BZ48: 1 | CA48: 1 | CB48: -1 | CC48: -1 | CD48: -1 | CE48: 1 | CF48: -1
A49: -1 | B49: 1 | C49: -1 | D49: -2 | E49: 1 | F49: 1 | G49: 2 | H49: 1 | I49: 2 | J49: -1 | K49: -2 | L49: -1 | M49: -2 | N49: 1 | O49: -1 | P49: -1 | Q49: -1 | R49: -1 | S49: 1 | T49: -2 | U49: -1 | V49: -1 | W49: 1 | X49: -1 | Y49: 1 | Z49: 1 | AA49: 1 | AB49: -1 | AC49: -1 | AD49: 1 | AE49: 2 | AF49: 2 | AG49: -1 | AH49: -1 | AI49: 1 | AJ49: 1 | AK49: 1 | AL49: -1 | AM49: -2 | AN49: -1 | AO49: 2 | AP49: -1 | AQ49: 1 | AR49: -1 | AS49: 2 | AT49: 1 | AU49: 1 | AV49: 1 | AW49: 1 | AX49: -1 | AY49: -1 | AZ49: 1 | BA49: -1 | BB49: -1 | BC49: -1 | BD49: 1 | BE49: -1 | BF49: 1 | BG49: 1 | BH49: 2 | BI49: -1 | BJ49: 1 | BK49: -1 | BL49: 1 | BM49: 2 | BN49: -1 | BO49: -1 | BP49: 1 | BQ49: -2 | BR49: -1 | BS49: 1 | BT49: -1 | BU49: -1 | BV49: 1 | BW49: -1 | BX49: -2 | BY49: 1 | BZ49: -1 | CA49: -1 | CB49: 1 | CC49: -1 | CD49: 1 | CE49: -1 | CF49: -2
A50: 1 | B50: 1 | C50: -1 | D50: -2 | E50: 1 | F50: 2 | G50: -1 | H50: -2 | I50: 2 | J50: 1 | K50: -1 | L50: 1 | M50: -1 | N50: 2 | O50: 1 | P50: -1 | Q50: 1 | R50: -1 | S50: -1 | T50: -1 | U50: 1 | V50: 1 | W50: -2 | X50: 2 | Y50: 1 | Z50: 2 | AA50: -1 | AB50: -1 | AC50: -2 | AD50: 2 | AE50: 1 | AF50: 1 | AG50: 1 | AH50: 1 | AI50: -1 | AJ50: -1 | AK50: -1 | AL50: -1 | AM50: 1 | AN50: 1 | AO50: 1 | AP50: -1 | AQ50: 1 | AR50: 1 | AS50: 2 | AT50: -1 | AU50: 1 | AV50: -1 | AW50: 1 | AX50: 1 | AY50: 1 | AZ50: -1 | BA50: -1 | BB50: -1 | BC50: 1 | BD50: -1 | BE50: -1 | BF50: -1 | BG50: 1 | BH50: -1 | BI50: -1 | BJ50: -2 | BK50: 1 | BL50: -1 | BM50: 2 | BN50: 1 | BO50: -1 | BP50: 1 | BQ50: -1 | BR50: -1 | BS50: -1 | BT50: -1 | BU50: 1 | BV50: 1 | BW50: -1 | BX50: 1 | BY50: 1 | BZ50: -1 | CA50: -1 | CB50: -1 | CC50: 1 | CD50: 1 | CE50: 2 | CF50: 2
A51: 2 | B51: -2 | C51: 2 | D51: -2 | E51: 1 | F51: -1 | G51: 1 | H51: 2 | I51: -1 | J51: 2 | K51: -2 | L51: 1 | M51: 1 | N51: 2 | O51: -1 | P51: 2 | Q51: 1 | R51: 1 | S51: 1 | T51: 1 | U51: -1 | V51: -1 | W51: 1 | X51: 1 | Y51: -1 | Z51: -1 | AA51: -1 | AB51: 1 | AC51: -2 | AD51: 1 | AE51: 1 | AF51: -1 | AG51: 2 | AH51: 2 | AI51: 2 | AJ51: -1 | AK51: -2 | AL51: -1 | AM51: 1 | AN51: 1 | AO51: 1 | AP51: 1 | AQ51: 1 | AR51: -1 | AS51: 1 | AT51: -1 | AU51: -1 | AV51: 1 | AW51: -1 | AX51: -1 | AY51: -1 | AZ51: 1 | BA51: 2 | BB51: 1 | BC51: -1 | BD51: -1 | BE51: 1 | BF51: 1 | BG51: -2 | BH51: 1 | BI51: -1 | BJ51: -1 | BK51: 2 | BL51: 1 | BM51: 2 | BN51: 1 | BO51: 1 | BP51: 1 | BQ51: 1 | BR51: -1 | BS51: -1 | BT51: -1 | BU51: -1 | BV51: 1 | BW51: 2 | BX51: 1 | BY51: -1 | BZ51: -1 | CA51: -1 | CB51: 1 | CC51: -1 | CD51: 1 | CE51: 2 | CF51: 2
A52: -1 | B52: -2 | C52: 1 | D52: 2 | E52: 1 | F52: 1 | G52: 2 | H52: -1 | I52: 1 | J52: -2 | K52: 1 | L52: 1 | M52: -2 | N52: -1 | O52: 1 | P52: 1 | Q52: 1 | R52: 1 | S52: -1 | T52: 2 | U52: -1 | V52: 1 | W52: 1 | X52: 1 | Y52: 1 | Z52: -1 | AA52: -1 | AB52: 1 | AC52: -1 | AD52: 1 | AE52: 2 | AF52: -1 | AG52: 1 | AH52: 1 | AI52: -1 | AJ52: -1 | AK52: -1 | AL52: -2 | AM52: -2 | AN52: -1 | AO52: 1 | AP52: 2 | AQ52: -1 | AR52: 1 | AS52: 1 | AT52: 1 | AU52: -1 | AV52: -1 | AW52: -2 | AX52: 1 | AY52: -1 | AZ52: 1 | BA52: 1 | BB52: -2 | BC52: 1 | BD52: 1 | BE52: -1 | BF52: 1 | BG52: -2 | BH52: 1 | BI52: 1 | BJ52: 1 | BK52: -1 | BL52: 2 | BM52: 2 | BN52: -1 | BO52: -1 | BP52: 1 | BQ52: 1 | BR52: -1 | BS52: -1 | BT52: 1 | BU52: 1 | BV52: 2 | BW52: -1 | BX52: -1 | BY52: -1 | BZ52: 1 | CA52: 1 | CB52: 1 | CC52: 2 | CD52: 1 | CE52: 2 | CF52: 2
A53: 1 | B53: 1 | C53: 1 | D53: 1 | E53: -1 | F53: -1 | G53: -2 | H53: -1 | I53: 2 | J53: 1 | K53: -1 | L53: 1 | M53: -1 | N53: -1 | O53: 1 | P53: 1 | Q53: 1 | R53: -1 | S53: 2 | T53: -1 | U53: 1 | V53: 1 | W53: 1 | X53: -1 | Y53: 1 | Z53: -1 | AA53: -1 | AB53: 1 | AC53: 1 | AD53: -2 | AE53: -1 | AF53: -1 | AG53: 2 | AH53: -1 | AI53: -1 | AJ53: 1 | AK53: 2 | AL53: 1 | AM53: -2 | AN53: 1 | AO53: 1 | AP53: -1 | AQ53: 2 | AR53: 1 | AS53: 1 | AT53: -2 | AU53: -1 | AV53: -1 | AW53: -1 | AX53: -2 | AY53: -1 | AZ53: 1 | BA53: -1 | BB53: 1 | BC53: 1 | BD53: 2 | BE53: 2 | BF53: -1 | BG53: -1 | BH53: 1 | BI53: -1 | BJ53: 2 | BK53: 1 | BL53: 1 | BM53: -1 | BN53: -1 | BO53: -1 | BP53: -1 | BQ53: 1 | BR53: -1 | BS53: 1 | BT53: 1 | BU53: -1 | BV53: 1 | BW53: -1 | BX53: -1 | BY53: 1 | BZ53: 1 | CA53: 1 | CB53: 1 | CC53: 1 | CD53: 1 | CE53: 1 | CF53: 1
A54: -1 | B54: -1 | C54: -2 | D54: -1 | E54: 1 | F54: 1 | G54: -1 | H54: -1 | I54: -1 | J54: 1 | K54: -2 | L54: -2 | M54: 1 | N54: -1 | O54: -1 | P54: -1 | Q54: -1 | R54: -1 | S54: -1 | T54: 1 | U54: 1 | V54: -1 | W54: -2 | X54: 1 | Y54: -1 | Z54: 1 | AA54: 2 | AB54: 1 | AC54: 1 | AD54: -1 | AE54: 1 | AF54: 1 | AG54: 1 | AH54: -2 | AI54: -1 | AJ54: 2 | AK54: 2 | AL54: -1 | AM54: -1 | AN54: -2 | AO54: -1 | AP54: 1 | AQ54: 1 | AR54: 1 | AS54: 1 | AT54: -1 | AU54: -1 | AV54: 1 | AW54: -1 | AX54: 1 | AY54: 1 | AZ54: 1 | BA54: -1 | BB54: 1 | BC54: 1 | BD54: -1 | BE54: -1 | BF54: 1 | BG54: 1 | BH54: -1 | BI54: 1 | BJ54: -2 | BK54: -1 | BL54: 2 | BM54: -1 | BN54: 1 | BO54: 1 | BP54: 1 | BQ54: -1 | BR54: 1 | BS54: 1 | BT54: 1 | BU54: -2 | BV54: 1 | BW54: -2 | BX54: -1 | BY54: 2 | BZ54: -1 | CA54: -2 | CB54: 1 | CC54: 1 | CD54: 1 | CE54: 1 | CF54: 1
A55: 4 | B55: 1 | C55: 1 | D55: 1 | E55: -1 | F55: -1 | G55: -2 | H55: 1 | I55: 1 | J55: -1 | K55: -1 | L55: 1 | M55: -1 | N55: 1 | O55: -2 | P55: -1 | Q55: 1 | R55: -1 | S55: -1 | T55: 1 | U55: -1 | V55: 4 | W55: -1 | X55: 2 | Y55: -1 | Z55: 1 | AA55: 1 | AB55: -1 | AC55: 2 | AD55: 1 | AE55: -1 | AF55: -1 | AG55: 1 | AH55: 1 | AI55: -2 | AJ55: 1 | AK55: 1 | AL55: -2 | AM55: 2 | AN55: 1 | AO55: 1 | AP55: 1 | AQ55: 2 | AR55: -1 | AS55: -2 | AT55: 1 | AU55: -2 | AV55: 1 | AW55: -1 | AX55: -1 | AY55: -1 | AZ55: -1 | BA55: -1 | BB55: -1 | BC55: -2 | BD55: -1 | BE55: -1 | BF55: -1 | BG55: -1 | BH55: -1 | BI55: -1 | BJ55: -1 | BK55: -1 | BL55: 1 | BM55: 2 | BN55: 1 | BO55: 1 | BP55: 1 | BQ55: 1 | BR55: 1 | BS55: 1 | BT55: 1 | BU55: 1 | BV55: -1 | BW55: -1 | BX55: -1 | BY55: 1 | BZ55: 1 | CA55: 1 | CB55: 1 | CC55: -1 | CD55: -1 | CE55: -1 | CF55: 1
A56: 1 | B56: -2 | C56: -1 | D56: -1 | E56: 1 | F56: -2 | G56: 2 | H56: -1 | I56: 1 | J56: -1 | K56: 2 | L56: -2 | M56: 2 | N56: 1 | O56: 1 | P56: -2 | Q56: -1 | R56: 1 | S56: 2 | T56: 1 | U56: 1 | V56: -1 | W56: -1 | X56: -1 | Y56: 1 | Z56: 1 | AA56: -1 | AB56: -1 | AC56: -1 | AD56: -1 | AE56: 2 | AF56: 2 | AG56: 1 | AH56: -1 | AI56: -1 | AJ56: 1 | AK56: -1 | AL56: -2 | AM56: 1 | AN56: 2 | AO56: 2 | AP56: 1 | AQ56: 2 | AR56: -1 | AS56: -1 | AT56: -1 | AU56: 1 | AV56: -2 | AW56: 1 | AX56: 1 | AY56: -1 | AZ56: 1 | BA56: -1 | BB56: 1 | BC56: 2 | BD56: 1 | BE56: 1 | BF56: 1 | BG56: 1 | BH56: 1 | BI56: -1 | BJ56: 1 | BK56: 1 | BL56: -1 | BM56: 1 | BN56: -1 | BO56: -2 | BP56: 1 | BQ56: -2 | BR56: 1 | BS56: -1 | BT56: 1 | BU56: -1 | BV56: 2 | BW56: 1 | BX56: 2 | BY56: -1 | BZ56: 2 | CA56: 1 | CB56: -2 | CC56: 1 | CD56: 1 | CE56: -1 | CF56: -1
A57: 4 | B57: 1 | C57: 1 | D57: 1 | E57: -1 | F57: 2 | G57: -1 | H57: -1 | I57: 1 | J57: -1 | K57: -2 | L57: 1 | M57: 1 | N57: -2 | O57: -1 | P57: -1 | Q57: 2 | R57: 1 | S57: 2 | T57: -1 | U57: 1 | V57: 1 | W57: -1 | X57: -1 | Y57: -1 | Z57: -1 | AA57: -1 | AB57: -1 | AC57: -2 | AD57: -1 | AE57: -2 | AF57: 1 | AG57: -1 | AH57: 1 | AI57: -1 | AJ57: 1 | AK57: 1 | AL57: -1 | AM57: -1 | AN57: 1 | AO57: 1 | AP57: 2 | AQ57: -1 | AR57: 1 | AS57: -2 | AT57: -1 | AU57: 1 | AV57: 1 | AW57: -1 | AX57: -1 | AY57: -1 | AZ57: -1 | BA57: -1 | BB57: -1 | BC57: 1 | BD57: -1 | BE57: 1 | BF57: -1 | BG57: 1 | BH57: -1 | BI57: 1 | BJ57: -1 | BK57: 1 | BL57: 2 | BM57: 1 | BN57: -1 | BO57: -2 | BP57: 1 | BQ57: 2 | BR57: 1 | BS57: 2 | BT57: -2 | BU57: -1 | BV57: 1 | BW57: 1 | BX57: -1 | BY57: 1 | BZ57: -2 | CA57: -1 | CB57: -1 | CC57: -1 | CD57: 1 | CE57: 1 | CF57: 1
A58: 2 | B58: 1 | C58: 2 | D58: -1 | E58: 1 | F58: -2 | G58: -1 | H58: -1 | I58: 1 | J58: 1 | K58: 2 | L58: 1 | M58: -1 | N58: -1 | O58: 1 | P58: -2 | Q58: 1 | R58: 2 | S58: -1 | T58: 1 | U58: 1 | V58: 1 | W58: -1 | X58: 1 | Y58: -2 | Z58: 1 | AA58: 1 | AB58: -2 | AC58: -1 | AD58: -1 | AE58: 1 | AF58: -1 | AG58: -1 | AH58: -2 | AI58: -1 | AJ58: 1 | AK58: -1 | AL58: 1 | AM58: -2 | AN58: 1 | AO58: 2 | AP58: -1 | AQ58: 2 | AR58: 1 | AS58: -1 | AT58: -1 | AU58: -2 | AV58: -1 | AW58: 1 | AX58: 1 | AY58: 2 | AZ58: 1 | BA58: -1 | BB58: 1 | BC58: -1 | BD58: 2 | BE58: 2 | BF58: -1 | BG58: -2 | BH58: 1 | BI58: 2 | BJ58: 1 | BK58: 1 | BL58: 1 | BM58: -2 | BN58: -2 | BO58: 1 | BP58: -1 | BQ58: -1 | BR58: 1 | BS58: 1 | BT58: -2 | BU58: -1 | BV58: -1 | BW58: -1 | BX58: 2 | BY58: 1 | BZ58: -1 | CA58: 1 | CB58: -1 | CC58: 1 | CD58: 1 | CE58: 1 | CF58: -2
A59: -2 | B59: -1 | C59: -1 | D59: -1 | E59: 1 | F59: -2 | G59: -1 | H59: 2 | I59: 1 | J59: 1 | K59: 1 | L59: -1 | M59: -1 | N59: -1 | O59: -1 | P59: -1 | Q59: 1 | R59: 1 | S59: 1 | T59: -1 | U59: -1 | V59: -1 | W59: 1 | X59: 2 | Y59: -1 | Z59: -1 | AA59: -2 | AB59: 1 | AC59: -1 | AD59: 1 | AE59: 1 | AF59: -1 | AG59: -2 | AH59: 2 | AI59: 1 | AJ59: 1 | AK59: -1 | AL59: -2 | AM59: -2 | AN59: 1 | AO59: -1 | AP59: -1 | AQ59: 1 | AR59: -1 | AS59: 1 | AT59: -1 | AU59: 1 | AV59: 1 | AW59: 1 | AX59: 1 | AY59: -1 | AZ59: -1 | BA59: 2 | BB59: -2 | BC59: 1 | BD59: -1 | BE59: 1 | BF59: -1 | BG59: -1 | BH59: -1 | BI59: 1 | BJ59: 1 | BK59: 1 | BL59: 2 | BM59: 1 | BN59: 2 | BO59: 1 | BP59: 1 | BQ59: -1 | BR59: -1 | BS59: 1 | BT59: 1 | BU59: 1 | BV59: -1 | BW59: 1 | BX59: -2 | BY59: -2 | BZ59: 1 | CA59: -1 | CB59: 1 | CC59: 1 | CD59: 1 | CE59: -1 | CF59: -1
A60: 2 | B60: -1 | C60: -1 | D60: 1 | E60: 1 | F60: 1 | G60: 1 | H60: -2 | I60: -1 | J60: 1 | K60: -1 | L60: 1 | M60: -2 | N60: 1 | O60: -1 | P60: -1 | Q60: 1 | R60: -1 | S60: 1 | T60: 1 | U60: -1 | V60: -1 | W60: -1 | X60: 1 | Y60: -2 | Z60: 1 | AA60: -1 | AB60: -2 | AC60: -1 | AD60: 2 | AE60: -1 | AF60: -1 | AG60: 2 | AH60: 1 | AI60: 1 | AJ60: -2 | AK60: -1 | AL60: -1 | AM60: 1 | AN60: 2 | AO60: 1 | AP60: -1 | AQ60: -1 | AR60: 1 | AS60: 1 | AT60: 1 | AU60: -1 | AV60: 1 | AW60: -1 | AX60: 1 | AY60: 1 | AZ60: -1 | BA60: -1 | BB60: 1 | BC60: 1 | BD60: 1 | BE60: -1 | BF60: 1 | BG60: 1 | BH60: 1 | BI60: -1 | BJ60: -2 | BK60: -1 | BL60: 1 | BM60: 1 | BN60: -1 | BO60: -1 | BP60: -1 | BQ60: -2 | BR60: -2 | BS60: -1 | BT60: 1 | BU60: -1 | BV60: -1 | BW60: 1 | BX60: -1 | BY60: -1 | BZ60: -2 | CA60: -1 | CB60: 1 | CC60: 2 | CD60: 1 | CE60: -1 | CF60: -1
A61: 2 | B61: 2 | C61: 1 | D61: 1 | E61: -1 | F61: -2 | G61: -2 | H61: -1 | I61: 1 | J61: -1 | K61: -1 | L61: -1 | M61: -1 | N61: 2 | O61: 1 | P61: -1 | Q61: -1 | R61: 1 | S61: -1 | T61: 2 | U61: -2 | V61: 1 | W61: 1 | X61: -1 | Y61: 1 | Z61: 1 | AA61: 1 | AB61: -2 | AC61: 1 | AD61: 1 | AE61: 1 | AF61: 1 | AG61: -1 | AH61: 1 | AI61: -1 | AJ61: -1 | AK61: -1 | AL61: -1 | AM61: -1 | AN61: 1 | AO61: 1 | AP61: -1 | AQ61: 2 | AR61: -1 | AS61: -1 | AT61: 1 | AU61: 1 | AV61: -1 | AW61: 1 | AX61: -1 | AY61: -2 | AZ61: -2 | BA61: -2 | BB61: -2 | BC61: -2 | BD61: -1 | BE61: 1 | BF61: -1 | BG61: -1 | BH61: 1 | BI61: -2 | BJ61: 1 | BK61: -1 | BL61: 1 | BM61: 1 | BN61: 1 | BO61: -1 | BP61: 1 | BQ61: -2 | BR61: -2 | BS61: -1 | BT61: -1 | BU61: 1 | BV61: 2 | BW61: 1 | BX61: -1 | BY61: -1 | BZ61: -1 | CA61: 1 | CB61: -1 | CC61: 1 | CD61: 2 | CE61: 1 | CF61: -2
A62: -1 | B62: 2 | C62: -1 | D62: -1 | E62: 1 | F62: -1 | G62: -2 | H62: 1 | I62: -2 | J62: 1 | K62: 1 | L62: -1 | M62: -1 | N62: 1 | O62: 1 | P62: -1 | Q62: -2 | R62: -1 | S62: 2 | T62: 2 | U62: -1 | V62: -1 | W62: 1 | X62: -1 | Y62: -1 | Z62: 1 | AA62: -1 | AB62: 1 | AC62: 1 | AD62: 2 | AE62: 2 | AF62: -1 | AG62: -1 | AH62: 1 | AI62: -1 | AJ62: -1 | AK62: 1 | AL62: 1 | AM62: 1 | AN62: -1 | AO62: 1 | AP62: 1 | AQ62: 4 | AR62: -1 | AS62: -2 | AT62: -1 | AU62: -2 | AV62: -1 | AW62: -1 | AX62: 1 | AY62: -2 | AZ62: -1 | BA62: -1 | BB62: -1 | BC62: -1 | BD62: -1 | BE62: 1 | BF62: 1 | BG62: 1 | BH62: 1 | BI62: -2 | BJ62: 2 | BK62: 1 | BL62: -2 | BM62: 1 | BN62: 1 | BO62: -1 | BP62: -2 | BQ62: -2 | BR62: -1 | BS62: 1 | BT62: -1 | BU62: 2 | BV62: 1 | BW62: -1 | BX62: -1 | BY62: 1 | BZ62: 1 | CA62: -1 | CB62: 1 | CC62: 1 | CD62: 1 | CE62: -1 | CF62: -1
A63: 1 | B63: 1 | C63: 1 | D63: -2 | E63: -1 | F63: -1 | G63: 1 | H63: 2 | I63: 2 | J63: -1 | K63: 1 | L63: 1 | M63: -2 | N63: -2 | O63: -2 | P63: 1 | Q63: 1 | R63: 1 | S63: -2 | T63: -1 | U63: -1 | V63: -1 | W63: 1 | X63: 1 | Y63: -1 | Z63: -1 | AA63: 1 | AB63: 1 | AC63: 1 | AD63: -2 | AE63: 2 | AF63: -1 | AG63: -1 | AH63: -1 | AI63: 1 | AJ63: 1 | AK63: -1 | AL63: -2 | AM63: 2 | AN63: 2 | AO63: 2 | AP63: 2 | AQ63: -2 | AR63: 1 | AS63: 1 | AT63: -1 | AU63: 1 | AV63: -1 | AW63: 1 | AX63: 2 | AY63: -1 | AZ63: -2 | BA63: -1 | BB63: 2 | BC63: 1 | BD63: -1 | BE63: 1 | BF63: -2 | BG63: -1 | BH63: -1 | BI63: 1 | BJ63: -1 | BK63: -1 | BL63: 1 | BM63: 1 | BN63: 2 | BO63: 1 | BP63: 1 | BQ63: -1 | BR63: 1 | BS63: 1 | BT63: -1 | BU63: 1 | BV63: -1 | BW63: 1 | BX63: -1 | BY63: 1 | BZ63: 1 | CA63: -1 | CB63: 1 | CC63: -1 | CD63: 1 | CE63: 1 | CF63: 1
A64: 2 | B64: -1 | C64: 1 | D64: -1 | E64: 1 | F64: -1 | G64: 2 | H64: 1 | I64: -1 | J64: -1 | K64: -1 | L64: -1 | M64: 1 | N64: 1 | O64: -1 | P64: -2 | Q64: 1 | R64: 1 | S64: -1 | T64: 2 | U64: 1 | V64: 1 | W64: 1 | X64: 1 | Y64: -2 | Z64: 1 | AA64: 2 | AB64: 2 | AC64: 1 | AD64: -1 | AE64: 1 | AF64: -1 | AG64: -1 | AH64: -1 | AI64: -1 | AJ64: 1 | AK64: -1 | AL64: -1 | AM64: -1 | AN64: 1 | AO64: 2 | AP64: 1 | AQ64: -1 | AR64: -1 | AS64: 2 | AT64: -1 | AU64: 1 | AV64: -1 | AW64: 2 | AX64: 2 | AY64: -1 | AZ64: -2 | BA64: 2 | BB64: 1 | BC64: 1 | BD64: 1 | BE64: 1 | BF64: -2 | BG64: 1 | BH64: 1 | BI64: 2 | BJ64: -1 | BK64: -2 | BL64: 1 | BM64: -1 | BN64: 1 | BO64: -1 | BP64: 1 | BQ64: 1 | BR64: 2 | BS64: 1 | BT64: 1 | BU64: -1 | BV64: 1 | BW64: 1 | BX64: -1 | BY64: -1 | BZ64: -2 | CA64: 1 | CB64: -1 | CC64: 2 | CD64: 1 | CE64: -1 | CF64: -1
A65: 1 | B65: -1 | C65: -1 | D65: 1 | E65: 1 | F65: -1 | G65: -1 | H65: 1 | I65: -1 | J65: 2 | K65: 1 | L65: -1 | M65: -1 | N65: 1 | O65: 1 | P65: 1 | Q65: -1 | R65: 1 | S65: -1 | T65: -2 | U65: 1 | V65: 1 | W65: -1 | X65: -1 | Y65: -2 | Z65: -1 | AA65: -1 | AB65: -2 | AC65: 1 | AD65: 1 | AE65: -1 | AF65: -2 | AG65: 1 | AH65: -1 | AI65: -1 | AJ65: 1 | AK65: -2 | AL65: -2 | AM65: 1 | AN65: -1 | AO65: -1 | AP65: -1 | AQ65: -1 | AR65: -2 | AS65: 1 | AT65: -1 | AU65: 1 | AV65: -1 | AW65: 1 | AX65: -1 | AY65: -1 | AZ65: 1 | BA65: 1 | BB65: -1 | BC65: -1 | BD65: -1 | BE65: -1 | BF65: -2 | BG65: -1 | BH65: 1 | BI65: 2 | BJ65: -1 | BK65: -2 | BL65: -1 | BM65: -2 | BN65: -1 | BO65: -1 | BP65: 2 | BQ65: 1 | BR65: 1 | BS65: 2 | BT65: -1 | BU65: 1 | BV65: 1 | BW65: 1 | BX65: 1 | BY65: 1 | BZ65: 1 | CA65: 1 | CB65: 1 | CC65: 1 | CD65: -1 | CE65: -1 | CF65: -1
A66: -1 | B66: -1 | C66: 1 | D66: -1 | E66: 1 | F66: 1 | G66: -1 | H66: 1 | I66: 1 | J66: -1 | K66: 1 | L66: 1 | M66: -1 | N66: 1 | O66: 1 | P66: -1 | Q66: -1 | R66: 2 | S66: 2 | T66: -1 | U66: -1 | V66: 1 | W66: 1 | X66: 1 | Y66: 1 | Z66: 1 | AA66: -1 | AB66: 1 | AC66: 1 | AD66: 2 | AE66: 2 | AF66: 1 | AG66: 1 | AH66: 2 | AI66: 2 | AJ66: -1 | AK66: -2 | AL66: -1 | AM66: -2 | AN66: 1 | AO66: -1 | AP66: 1 | AQ66: 2 | AR66: 2 | AS66: -1 | AT66: 1 | AU66: 1 | AV66: -1 | AW66: -2 | AX66: -1 | AY66: 1 | AZ66: 1 | BA66: -2 | BB66: -1 | BC66: 1 | BD66: 1 | BE66: -1 | BF66: 1 | BG66: -1 | BH66: -1 | BI66: -1 | BJ66: 1 | BK66: -1 | BL66: 1 | BM66: -1 | BN66: 1 | BO66: 1 | BP66: 1 | BQ66: 1 | BR66: -1 | BS66: -1 | BT66: 1 | BU66: 1 | BV66: 1 | BW66: 1 | BX66: 1 | BY66: -1 | BZ66: 2 | CA66: -1 | CB66: 1 | CC66: 1 | CD66: -1 | CE66: -1 | CF66: 1
A67: -1 | B67: -2 | C67: 1 | D67: -1 | E67: 1 | F67: -1 | G67: 1 | H67: 2 | I67: 1 | J67: -1 | K67: 1 | L67: 1 | M67: -1 | N67: 1 | O67: 1 | P67: 2 | Q67: 1 | R67: -1 | S67: 2 | T67: 2 | U67: 2 | V67: -1 | W67: -1 | X67: 1 | Y67: -1 | Z67: 2 | AA67: -1 | AB67: 1 | AC67: 1 | AD67: -1 | AE67: -1 | AF67: 2 | AG67: -2 | AH67: -1 | AI67: 1 | AJ67: 1 | AK67: 1 | AL67: -1 | AM67: -1 | AN67: 2 | AO67: -2 | AP67: 1 | AQ67: -1 | AR67: -1 | AS67: 1 | AT67: 2 | AU67: 1 | AV67: -1 | AW67: -1 | AX67: -2 | AY67: 1 | AZ67: 1 | BA67: -1 | BB67: 1 | BC67: 1 | BD67: 2 | BE67: 2 | BF67: -1 | BG67: 1 | BH67: -1 | BI67: -1 | BJ67: -1 | BK67: 1 | BL67: -1 | BM67: -1 | BN67: 1 | BO67: 1 | BP67: 2 | BQ67: 1 | BR67: 1 | BS67: 1 | BT67: -2 | BU67: -1 | BV67: -1 | BW67: -1 | BX67: 1 | BY67: -1 | BZ67: 1 | CA67: -1 | CB67: 2 | CC67: -1 | CD67: -1 | CE67: -1 | CF67: -1
A68: 1 | B68: 1 | C68: -2 | D68: -1 | E68: 1 | F68: 1 | G68: 1 | H68: -1 | I68: -1 | J68: -2 | K68: -1 | L68: -2 | M68: 2 | N68: -1 | O68: -1 | P68: -1 | Q68: -2 | R68: 1 | S68: -1 | T68: 1 | U68: -1 | V68: 2 | W68: -1 | X68: -1 | Y68: 1 | Z68: 1 | AA68: 1 | AB68: 1 | AC68: -2 | AD68: -2 | AE68: 1 | AF68: 2 | AG68: 1 | AH68: 1 | AI68: 2 | AJ68: 1 | AK68: 1 | AL68: 1 | AM68: -1 | AN68: 1 | AO68: 1 | AP68: -1 | AQ68: 1 | AR68: -1 | AS68: 1 | AT68: 1 | AU68: -1 | AV68: 1 | AW68: -2 | AX68: -1 | AY68: 1 | AZ68: -1 | BA68: 1 | BB68: 2 | BC68: 1 | BD68: 1 | BE68: 1 | BF68: 2 | BG68: -1 | BH68: 1 | BI68: -1 | BJ68: -1 | BK68: -1 | BL68: -1 | BM68: 1 | BN68: -1 | BO68: -2 | BP68: -1 | BQ68: 1 | BR68: -1 | BS68: 1 | BT68: 1 | BU68: 1 | BV68: -2 | BW68: -1 | BX68: 1 | BY68: -1 | BZ68: -1 | CA68: 2 | CB68: 1 | CC68: -2 | CD68: 2 | CE68: -2 | CF68: -1
A69: -1 | B69: -1 | C69: -1 | D69: 1 | E69: -1 | F69: -1 | G69: -2 | H69: -1 | I69: 1 | J69: -1 | K69: -1 | L69: -1 | M69: -1 | N69: -1 | O69: -1 | P69: -2 | Q69: -1 | R69: 1 | S69: -1 | T69: 1 | U69: -1 | V69: 2 | W69: -1 | X69: -1 | Y69: 1 | Z69: 1 | AA69: 2 | AB69: 1 | AC69: -1 | AD69: 1 | AE69: 1 | AF69: 1 | AG69: 1 | AH69: 1 | AI69: -1 | AJ69: -1 | AK69: 1 | AL69: -1 | AM69: 2 | AN69: 1 | AO69: 1 | AP69: -2 | AQ69: -1 | AR69: -2 | AS69: -2 | AT69: 1 | AU69: -1 | AV69: 1 | AW69: 2 | AX69: 1 | AY69: -1 | AZ69: 1 | BA69: -1 | BB69: -2 | BC69: -1 | BD69: -2 | BE69: -1 | BF69: 1 | BG69: 2 | BH69: 1 | BI69: 1 | BJ69: 1 | BK69: 1 | BL69: 2 | BM69: -2 | BN69: 1 | BO69: 1 | BP69: 1 | BQ69: -2 | BR69: 1 | BS69: -1 | BT69: -1 | BU69: -1 | BV69: -1 | BW69: -1 | BX69: -1 | BY69: 1 | BZ69: 1 | CA69: -1 | CB69: 1 | CC69: -1 | CD69: -1 | CE69: -1 | CF69: 1
A70: -1 | B70: 1 | C70: -2 | D70: 2 | E70: -1 | F70: 2 | G70: 1 | H70: 1 | I70: 2 | J70: 1 | K70: -1 | L70: 1 | M70: -1 | N70: 1 | O70: 1 | P70: -2 | Q70: -1 | R70: -1 | S70: -2 | T70: 1 | U70: 1 | V70: -1 | W70: -1 | X70: -1 | Y70: -1 | Z70: -2 | AA70: 1 | AB70: 1 | AC70: 1 | AD70: 1 | AE70: -1 | AF70: -1 | AG70: 1 | AH70: 1 | AI70: 1 | AJ70: 1 | AK70: 1 | AL70: 1 | AM70: 2 | AN70: -2 | AO70: -1 | AP70: 2 | AQ70: -1 | AR70: 1 | AS70: -1 | AT70: 1 | AU70: 2 | AV70: -1 | AW70: -1 | AX70: -1 | AY70: 1 | AZ70: 2 | BA70: 1 | BB70: 1 | BC70: 1 | BD70: -1 | BE70: -1 | BF70: 1 | BG70: 1 | BH70: -2 | BI70: -1 | BJ70: 1 | BK70: 1 | BL70: -1 | BM70: -1 | BN70: -2 | BO70: -2 | BP70: -1 | BQ70: 1 | BR70: -1 | BS70: 1 | BT70: 1 | BU70: -1 | BV70: -1 | BW70: -1 | BX70: -1 | BY70: -1 | BZ70: 2 | CA70: 1 | CB70: 1 | CC70: -1 | CD70: 1 | CE70: -1 | CF70: 1
A71: -1 | B71: 1 | C71: -1 | D71: 1 | E71: -1 | F71: -1 | G71: -2 | H71: -1 | I71: -1 | J71: -1 | K71: -2 | L71: 1 | M71: -2 | N71: -1 | O71: -1 | P71: -1 | Q71: -1 | R71: 1 | S71: 1 | T71: -1 | U71: -1 | V71: 1 | W71: 1 | X71: -1 | Y71: 1 | Z71: 1 | AA71: 1 | AB71: 2 | AC71: -1 | AD71: -2 | AE71: -1 | AF71: 1 | AG71: -1 | AH71: -2 | AI71: -1 | AJ71: -1 | AK71: -1 | AL71: 1 | AM71: 1 | AN71: 1 | AO71: -1 | AP71: 2 | AQ71: -1 | AR71: -1 | AS71: 1 | AT71: -1 | AU71: -2 | AV71: -1 | AW71: 2 | AX71: 1 | AY71: 1 | AZ71: -1 | BA71: 1 | BB71: -2 | BC71: -1 | BD71: 2 | BE71: 1 | BF71: 1 | BG71: -1 | BH71: 1 | BI71: -1 | BJ71: -1 | BK71: 1 | BL71: -1 | BM71: -1 | BN71: -1 | BO71: -2 | BP71: -1 | BQ71: -2 | BR71: 1 | BS71: -1 | BT71: 1 | BU71: 1 | BV71: -1 | BW71: -2 | BX71: 2 | BY71: -2 | BZ71: -1 | CA71: 1 | CB71: 1 | CC71: -2 | CD71: -1 | CE71: -1 | CF71: 1
A72: 1 | B72: -2 | C72: -1 | D72: 1 | E72: -1 | F72: 1 | G72: -1 | H72: 1 | I72: -2 | J72: -1 | K72: 1 | L72: 2 | M72: -1 | N72: -1 | O72: -1 | P72: -1 | Q72: 1 | R72: -1 | S72: 1 | T72: 2 | U72: -1 | V72: 1 | W72: 1 | X72: 1 | Y72: -1 | Z72: 1 | AA72: -1 | AB72: 1 | AC72: 2 | AD72: 2 | AE72: 1 | AF72: -1 | AG72: 2 | AH72: -1 | AI72: -1 | AJ72: 1 | AK72: -1 | AL72: -1 | AM72: 1 | AN72: 2 | AO72: -1 | AP72: -1 | AQ72: 1 | AR72: -1 | AS72: 1 | AT72: 1 | AU72: -1 | AV72: -1 | AW72: -1 | AX72: 1 | AY72: 1 | AZ72: -1 | BA72: -1 | BB72: 1 | BC72: 2 | BD72: 1 | BE72: -1 | BF72: -1 | BG72: -1 | BH72: 1 | BI72: 1 | BJ72: 1 | BK72: -1 | BL72: 1 | BM72: 1 | BN72: 1 | BO72: -2 | BP72: -2 | BQ72: -2 | BR72: 1 | BS72: 1 | BT72: 1 | BU72: -1 | BV72: 1 | BW72: 1 | BX72: -1 | BY72: -1 | BZ72: 1 | CA72: -1 | CB72: 1 | CC72: -2 | CD72: -1 | CE72: 1 | CF72: 1
A73: 2 | B73: 1 | C73: -1 | D73: 1 | E73: 1 | F73: -2 | G73: -1 | H73: -1 | I73: 1 | J73: -1 | K73: 1 | L73: 2 | M73: 1 | N73: 1 | O73: -1 | P73: -1 | Q73: -1 | R73: -1 | S73: -1 | T73: 1 | U73: 1 | V73: 1 | W73: 1 | X73: -2 | Y73: 1 | Z73: -1 | AA73: 1 | AB73: 1 | AC73: 1 | AD73: 1 | AE73: -1 | AF73: -1 | AG73: 1 | AH73: -1 | AI73: 1 | AJ73: 1 | AK73: -1 | AL73: -1 | AM73: 1 | AN73: -1 | AO73: -1 | AP73: 1 | AQ73: 1 | AR73: 1 | AS73: -1 | AT73: 2 | AU73: -2 | AV73: -1 | AW73: -1 | AX73: -1 | AY73: 2 | AZ73: -1 | BA73: -2 | BB73: 1 | BC73: -1 | BD73: 1 | BE73: -1 | BF73: -1 | BG73: 1 | BH73: -1 | BI73: 1 | BJ73: -2 | BK73: -1 | BL73: 2 | BM73: 2 | BN73: 1 | BO73: -2 | BP73: -1 | BQ73: 1 | BR73: -1 | BS73: -2 | BT73: -1 | BU73: -1 | BV73: 1 | BW73: 1 | BX73: -1 | BY73: 1 | BZ73: -1 | CA73: 1 | CB73: 1 | CC73: 1 | CD73: -1 | CE73: -1 | CF73: -1
A74: -2 | B74: -1 | C74: -1 | D74: 2 | E74: -2 | F74: 1 | G74: 1 | H74: 1 | I74: 4 | J74: 1 | K74: -1 | L74: -2 | M74: 2 | N74: -1 | O74: -2 | P74: -2 | Q74: -1 | R74: 1 | S74: 1 | T74: -1 | U74: 1 | V74: -2 | W74: -1 | X74: -2 | Y74: 2 | Z74: 1 | AA74: 1 | AB74: -1 | AC74: -1 | AD74: 2 | AE74: 1 | AF74: -1 | AG74: 1 | AH74: 2 | AI74: -1 | AJ74: -2 | AK74: 1 | AL74: 2 | AM74: 2 | AN74: -1 | AO74: -2 | AP74: 1 | AQ74: 1 | AR74: -1 | AS74: -1 | AT74: 2 | AU74: -1 | AV74: 1 | AW74: -2 | AX74: -1 | AY74: 1 | AZ74: -1 | BA74: 1 | BB74: -1 | BC74: 1 | BD74: -1 | BE74: -2 | BF74: -1 | BG74: -1 | BH74: -1 | BI74: -1 | BJ74: 1 | BK74: 1 | BL74: -2 | BM74: 2 | BN74: -1 | BO74: 4 | BP74: 1 | BQ74: 1 | BR74: -2 | BS74: -2 | BT74: 4 | BU74: 1 | BV74: -1 | BW74: -2 | BX74: 2 | BY74: -1 | BZ74: -2 | CA74: 1 | CB74: -1 | CC74: -1 | CD74: 1 | CE74: -1 | CF74: 1
A75: -2 | B75: 1 | C75: -1 | D75: 1 | E75: -2 | F75: -1 | G75: 1 | H75: -1 | I75: 1 | J75: 1 | K75: 1 | L75: 2 | M75: 2 | N75: 1 | O75: -2 | P75: -1 | Q75: 1 | R75: -1 | S75: -1 | T75: -1 | U75: 2 | V75: -2 | W75: 1 | X75: 1 | Y75: 1 | Z75: -1 | AA75: 1 | AB75: -1 | AC75: 1 | AD75: 2 | AE75: -1 | AF75: -2 | AG75: 1 | AH75: 1 | AI75: -1 | AJ75: -1 | AK75: -1 | AL75: -2 | AM75: 1 | AN75: 1 | AO75: 1 | AP75: -1 | AQ75: -1 | AR75: 1 | AS75: 1 | AT75: -1 | AU75: -1 | AV75: -1 | AW75: 2 | AX75: 1 | AY75: 2 | AZ75: -1 | BA75: -2 | BB75: 1 | BC75: -1 | BD75: 2 | BE75: 1 | BF75: 1 | BG75: 1 | BH75: -1 | BI75: 1 | BJ75: 1 | BK75: -1 | BL75: 2 | BM75: -1 | BN75: 1 | BO75: -1 | BP75: 1 | BQ75: -1 | BR75: 1 | BS75: -1 | BT75: -1 | BU75: -1 | BV75: 1 | BW75: 1 | BX75: -1 | BY75: -1 | BZ75: 1 | CA75: 2 | CB75: -1 | CC75: -1 | CD75: 1 | CE75: 1 | CF75: -1
A76: -1 | B76: -2 | C76: 1 | D76: 1 | E76: -1 | F76: 1 | G76: -1 | H76: -1 | I76: 2 | J76: -1 | K76: 1 | L76: -1 | M76: 1 | N76: -1 | O76: -2 | P76: -1 | Q76: 2 | R76: 2 | S76: -2 | T76: -1 | U76: 2 | V76: -2 | W76: -1 | X76: 1 | Y76: 1 | Z76: -1 | AA76: 1 | AB76: -1 | AC76: 1 | AD76: 2 | AE76: -1 | AF76: 1 | AG76: -2 | AH76: -1 | AI76: 2 | AJ76: -1 | AK76: 1 | AL76: 1 | AM76: 1 | AN76: 1 | AO76: -2 | AP76: 1 | AQ76: -2 | AR76: -2 | AS76: -2 | AT76: 1 | AU76: -2 | AV76: -1 | AW76: -2 | AX76: -2 | AY76: 1 | AZ76: 1 | BA76: 1 | BB76: -1 | BC76: 2 | BD76: -1 | BE76: -2 | BF76: -1 | BG76: -1 | BH76: 1 | BI76: -2 | BJ76: 1 | BK76: 1 | BL76: 2 | BM76: -1 | BN76: 1 | BO76: 1 | BP76: -2 | BQ76: 1 | BR76: -2 | BS76: -1 | BT76: 2 | BU76: -1 | BV76: -1 | BW76: 1 | BX76: -1 | BY76: -1 | BZ76: 1 | CA76: -1 | CB76: 1 | CC76: 2 | CD76: -2 | CE76: 1 | CF76: 1
A77: 1 | B77: -2 | C77: 2 | D77: 1 | E77: -1 | F77: -1 | G77: -2 | H77: -1 | I77: 4 | J77: 1 | K77: 1 | L77: -1 | M77: 2 | N77: 1 | O77: -1 | P77: -2 | Q77: 2 | R77: 2 | S77: -1 | T77: -1 | U77: 2 | V77: 1 | W77: 1 | X77: -1 | Y77: 1 | Z77: -1 | AA77: 1 | AB77: -2 | AC77: -2 | AD77: 2 | AE77: -1 | AF77: -1 | AG77: -2 | AH77: 1 | AI77: 2 | AJ77: 1 | AK77: -2 | AL77: -1 | AM77: 2 | AN77: -2 | AO77: -1 | AP77: -1 | AQ77: 2 | AR77: -1 | AS77: 2 | AT77: 2 | AU77: -1 | AV77: 2 | AW77: -1 | AX77: -1 | AY77: 1 | AZ77: 1 | BA77: -1 | BB77: -1 | BC77: 2 | BD77: 1 | BE77: -1 | BF77: 1 | BG77: -1 | BH77: 1 | BI77: -2 | BJ77: -2 | BK77: -1 | BL77: 1 | BM77: -1 | BN77: 1 | BO77: 1 | BP77: -2 | BQ77: 1 | BR77: -1 | BS77: -1 | BT77: 2 | BU77: -1 | BV77: -1 | BW77: 1 | BX77: 2 | BY77: 1 | BZ77: -2 | CA77: -4 | CB77: 1 | CC77: 2 | CD77: 1 | CE77: -1 | CF77: 2
A78: 1 | B78: -2 | C78: 1 | D78: 1 | E78: 1 | F78: 1 | G78: -1 | H78: -2 | I78: 1 | J78: 1 | K78: -1 | L78: 1 | M78: 1 | N78: -2 | O78: -1 | P78: 1 | Q78: -1 | R78: -2 | S78: 1 | T78: -2 | U78: 1 | V78: -1 | W78: -1 | X78: 1 | Y78: -1 | Z78: -2 | AA78: -1 | AB78: -1 | AC78: 1 | AD78: 1 | AE78: 1 | AF78: -1 | AG78: 1 | AH78: 1 | AI78: -1 | AJ78: -1 | AK78: 1 | AL78: -1 | AM78: -2 | AN78: -2 | AO78: 1 | AP78: -2 | AQ78: 1 | AR78: -2 | AS78: 2 | AT78: -1 | AU78: 1 | AV78: 1 | AW78: -1 | AX78: 1 | AY78: 1 | AZ78: -1 | BA78: 1 | BB78: 2 | BC78: 1 | BD78: -1 | BE78: 1 | BF78: 2 | BG78: -1 | BH78: 1 | BI78: 1 | BJ78: -1 | BK78: 1 | BL78: 2 | BM78: 1 | BN78: -1 | BO78: 2 | BP78: 1 | BQ78: -1 | BR78: -1 | BS78: 1 | BT78: -2 | BU78: 1 | BV78: -1 | BW78: -1 | BX78: -2 | BY78: -2 | BZ78: -1 | CA78: 4 | CB78: 2 | CC78: -1 | CD78: -1 | CE78: -2 | CF78: 1
A79: 1 | B79: 1 | C79: -2 | D79: 1 | E79: -1 | F79: 1 | G79: -1 | H79: -1 | I79: -1 | J79: 1 | K79: -1 | L79: 1 | M79: -2 | N79: -1 | O79: 1 | P79: 1 | Q79: -1 | R79: 1 | S79: 2 | T79: -2 | U79: 1 | V79: 1 | W79: 1 | X79: -1 | Y79: 1 | Z79: 1 | AA79: 1 | AB79: 1 | AC79: -2 | AD79: -1 | AE79: 2 | AF79: 1 | AG79: -1 | AH79: 1 | AI79: -1 | AJ79: -2 | AK79: -1 | AL79: 2 | AM79: 1 | AN79: -2 | AO79: -1 | AP79: -1 | AQ79: -2 | AR79: 1 | AS79: 1 | AT79: 1 | AU79: -1 | AV79: 1 | AW79: -2 | AX79: 2 | AY79: -1 | AZ79: -1 | BA79: -1 | BB79: -1 | BC79: -1 | BD79: -1 | BE79: -2 | BF79: -1 | BG79: 1 | BH79: 1 | BI79: -1 | BJ79: 1 | BK79: 1 | BL79: 1 | BM79: -2 | BN79: -2 | BO79: -2 | BP79: 1 | BQ79: 1 | BR79: -2 | BS79: 1 | BT79: -1 | BU79: 2 | BV79: 1 | BW79: 1 | BX79: -1 | BY79: -1 | BZ79: 1 | CA79: -1 | CB79: -1 | CC79: -1 | CD79: -2 | CE79: -1 | CF79: 1
A80: 2 | B80: 1 | C80: 1 | D80: -1 | E80: -1 | F80: 1 | G80: -1 | H80: 2 | I80: 1 | J80: 1 | K80: -2 | L80: -1 | M80: 1 | N80: -1 | O80: -1 | P80: 1 | Q80: 2 | R80: 1 | S80: -1 | T80: -1 | U80: -1 | V80: 1 | W80: 1 | X80: -2 | Y80: 1 | Z80: -2 | AA80: -1 | AB80: 1 | AC80: -1 | AD80: 2 | AE80: 1 | AF80: -2 | AG80: 1 | AH80: 1 | AI80: -1 | AJ80: -2 | AK80: 1 | AL80: 1 | AM80: -1 | AN80: 2 | AO80: 1 | AP80: 1 | AQ80: 1 | AR80: -2 | AS80: -2 | AT80: 1 | AU80: -2 | AV80: 1 | AW80: 1 | AX80: 1 | AY80: 1 | AZ80: 2 | BA80: 1 | BB80: 2 | BC80: -1 | BD80: -1 | BE80: -2 | BF80: -1 | BG80: 1 | BH80: -1 | BI80: 2 | BJ80: -1 | BK80: 2 | BL80: 2 | BM80: -2 | BN80: 1 | BO80: 2 | BP80: -1 | BQ80: 1 | BR80: -1 | BS80: -1 | BT80: 1 | BU80: 1 | BV80: -1 | BW80: -1 | BX80: 1 | BY80: 1 | BZ80: -2 | CA80: 1 | CB80: 1 | CC80: 1 | CD80: 1 | CE80: -1 | CF80: 2
A81: 2 | B81: -2 | C81: 1 | D81: -1 | E81: 1 | F81: 1 | G81: 2 | H81: 1 | I81: -1 | J81: 2 | K81: -1 | L81: 1 | M81: 1 | N81: -1 | O81: -1 | P81: 2 | Q81: 1 | R81: -1 | S81: 1 | T81: -1 | U81: 1 | V81: 2 | W81: -1 | X81: 1 | Y81: -1 | Z81: 1 | AA81: -2 | AB81: 1 | AC81: -1 | AD81: -1 | AE81: -1 | AF81: 1 | AG81: -1 | AH81: 1 | AI81: 1 | AJ81: -1 | AK81: 1 | AL81: -1 | AM81: -1 | AN81: -1 | AO81: -2 | AP81: 1 | AQ81: -1 | AR81: -2 | AS81: 1 | AT81: -1 | AU81: 1 | AV81: -2 | AW81: -1 | AX81: 2 | AY81: -1 | AZ81: 2 | BA81: -2 | BB81: 1 | BC81: 1 | BD81: -1 | BE81: -1 | BF81: 1 | BG81: -1 | BH81: 1 | BI81: 1 | BJ81: 1 | BK81: -1 | BL81: 2 | BM81: -2 | BN81: -2 | BO81: -1 | BP81: -1 | BQ81: -1 | BR81: -1 | BS81: -2 | BT81: -1 | BU81: -1 | BV81: -2 | BW81: 1 | BX81: -1 | BY81: -1 | BZ81: 1 | CA81: 4 | CB81: 1 | CC81: -1 | CD81: -1 | CE81: -1 | CF81: 1
A82: 2 | B82: 1 | C82: -1 | D82: -1 | E82: 1 | F82: -2 | G82: 1 | H82: -1 | I82: 1 | J82: -1 | K82: -1 | L82: 2 | M82: -2 | N82: -1 | O82: -1 | P82: -1 | Q82: 1 | R82: 1 | S82: -1 | T82: -1 | U82: -1 | V82: 1 | W82: 1 | X82: -1 | Y82: -1 | Z82: -1 | AA82: -1 | AB82: -1 | AC82: 1 | AD82: -1 | AE82: -1 | AF82: 1 | AG82: 1 | AH82: -1 | AI82: 2 | AJ82: -1 | AK82: -1 | AL82: 2 | AM82: -1 | AN82: 1 | AO82: 1 | AP82: -1 | AQ82: -1 | AR82: 2 | AS82: 1 | AT82: 1 | AU82: 1 | AV82: 1 | AW82: -1 | AX82: 1 | AY82: -1 | AZ82: 1 | BA82: 1 | BB82: -2 | BC82: 1 | BD82: 2 | BE82: 2 | BF82: -2 | BG82: 1 | BH82: -1 | BI82: 1 | BJ82: 1 | BK82: 1 | BL82: 1 | BM82: 1 | BN82: -1 | BO82: -1 | BP82: -1 | BQ82: 2 | BR82: 1 | BS82: -1 | BT82: 1 | BU82: -1 | BV82: -1 | BW82: 1 | BX82: 1 | BY82: -2 | BZ82: -1 | CA82: 1 | CB82: 1 | CC82: 1 | CD82: 1 | CE82: 1 | CF82: 1
A83: -2 | B83: -2 | C83: 1 | D83: 1 | E83: -1 | F83: 1 | G83: -1 | H83: -1 | I83: 1 | J83: 1 | K83: 1 | L83: 2 | M83: 1 | N83: -1 | O83: 1 | P83: 1 | Q83: 2 | R83: 2 | S83: 2 | T83: -2 | U83: 1 | V83: 1 | W83: -1 | X83: -1 | Y83: -1 | Z83: 1 | AA83: -1 | AB83: -1 | AC83: -2 | AD83: -1 | AE83: -1 | AF83: 1 | AG83: 1 | AH83: 1 | AI83: -1 | AJ83: -1 | AK83: -2 | AL83: -1 | AM83: -2 | AN83: 2 | AO83: -1 | AP83: 2 | AQ83: 2 | AR83: -1 | AS83: 2 | AT83: 1 | AU83: -1 | AV83: 1 | AW83: 2 | AX83: 1 | AY83: 1 | AZ83: -1 | BA83: 1 | BB83: 2 | BC83: 2 | BD83: -1 | BE83: -1 | BF83: -2 | BG83: 1 | BH83: 1 | BI83: 1 | BJ83: -1 | BK83: -1 | BL83: 1 | BM83: 1 | BN83: 2 | BO83: -1 | BP83: -2 | BQ83: -1 | BR83: 2 | BS83: -2 | BT83: 2 | BU83: 2 | BV83: -1 | BW83: 2 | BX83: -2 | BY83: -1 | BZ83: 1 | CA83: -1 | CB83: -1 | CC83: -1 | CD83: 1 | CE83: -1 | CF83: -1
A84: 1 | B84: -1 | C84: 1 | D84: 1 | E84: 2 | F84: -1 | G84: 1 | H84: -1 | I84: -1 | J84: -1 | K84: -1 | L84: -1 | M84: -1 | N84: -1 | O84: -1 | P84: 1 | Q84: 1 | R84: -1 | S84: 1 | T84: 2 | U84: -2 | V84: 2 | W84: 1 | X84: 1 | Y84: 1 | Z84: -2 | AA84: -1 | AB84: -1 | AC84: -1 | AD84: -1 | AE84: 1 | AF84: 2 | AG84: -1 | AH84: 1 | AI84: -2 | AJ84: 1 | AK84: 1 | AL84: -1 | AM84: 1 | AN84: -2 | AO84: 1 | AP84: 1 | AQ84: 1 | AR84: 1 | AS84: -1 | AT84: 2 | AU84: -1 | AV84: 2 | AW84: -1 | AX84: -1 | AY84: 1 | AZ84: 1 | BA84: -1 | BB84: 1 | BC84: -1 | BD84: -1 | BE84: 1 | BF84: -1 | BG84: 1 | BH84: 1 | BI84: -1 | BJ84: 1 | BK84: 1 | BL84: 1 | BM84: 1 | BN84: 1 | BO84: -2 | BP84: -1 | BQ84: 1 | BR84: -1 | BS84: 1 | BT84: -1 | BU84: -2 | BV84: -1 | BW84: -1 | BX84: 2 | BY84: 1 | BZ84: -1 | CA84: 1 | CB84: -1 | CC84: 1 | CD84: 1 | CE84: 2 | CF84: -1
A85: -1 | B85: 1 | C85: 1 | D85: 1 | E85: -1 | F85: -1 | G85: -1 | H85: -1 | I85: -2 | J85: -2 | K85: 1 | L85: 1 | M85: 2 | N85: -1 | O85: -1 | P85: -1 | Q85: -1 | R85: -1 | S85: 2 | T85: -1 | U85: 1 | V85: 1 | W85: -2 | X85: -1 | Y85: -1 | Z85: 1 | AA85: -1 | AB85: 1 | AC85: 1 | AD85: -1 | AE85: 2 | AF85: -1 | AG85: -2 | AH85: -1 | AI85: 1 | AJ85: 1 | AK85: -2 | AL85: -1 | AM85: 1 | AN85: 2 | AO85: 1 | AP85: -1 | AQ85: -1 | AR85: 1 | AS85: 1 | AT85: 1 | AU85: -1 | AV85: 1 | AW85: 2 | AX85: -2 | AY85: 2 | AZ85: -1 | BA85: 1 | BB85: 1 | BC85: 1 | BD85: 1 | BE85: -2 | BF85: 1 | BG85: -1 | BH85: -1 | BI85: -1 | BJ85: 1 | BK85: -2 | BL85: 2 | BM85: 2 | BN85: -1 | BO85: 1 | BP85: 1 | BQ85: -1 | BR85: -1 | BS85: 1 | BT85: -2 | BU85: 1 | BV85: 2 | BW85: -1 | BX85: -1 | BY85: -1 | BZ85: -1 | CA85: -1 | CB85: 1 | CC85: 1 | CD85: 1 | CE85: 1 | CF85: 1
A86: 2 | B86: 1 | C86: 1 | D86: -1 | E86: -1 | F86: -2 | G86: -1 | H86: -1 | I86: 1 | J86: 1 | K86: -2 | L86: -1 | M86: -1 | N86: 1 | O86: 1 | P86: -2 | Q86: -2 | R86: -2 | S86: -1 | T86: 1 | U86: -1 | V86: 4 | W86: -1 | X86: 1 | Y86: 1 | Z86: 2 | AA86: 1 | AB86: 1 | AC86: 1 | AD86: 1 | AE86: -2 | AF86: -1 | AG86: -2 | AH86: 1 | AI86: 2 | AJ86: -1 | AK86: -1 | AL86: -1 | AM86: 1 | AN86: -1 | AO86: 1 | AP86: 1 | AQ86: -1 | AR86: 1 | AS86: 1 | AT86: 1 | AU86: -1 | AV86: 2 | AW86: 1 | AX86: -1 | AY86: -1 | AZ86: -1 | BA86: 1 | BB86: 1 | BC86: 1 | BD86: 1 | BE86: 1 | BF86: -2 | BG86: 1 | BH86: -1 | BI86: -1 | BJ86: -1 | BK86: -1 | BL86: 1 | BM86: -1 | BN86: -1 | BO86: 2 | BP86: 2 | BQ86: 1 | BR86: -2 | BS86: -1 | BT86: -1 | BU86: -1 | BV86: -1 | BW86: -1 | BX86: -1 | BY86: -1 | BZ86: 1 | CA86: 2 | CB86: 2 | CC86: -1 | CD86: 1 | CE86: 1 | CF86: 1
A87: 2 | B87: -1 | C87: 2 | D87: -1 | E87: 1 | F87: -1 | G87: 1 | H87: -1 | I87: 2 | J87: -2 | K87: 1 | L87: -1 | M87: 1 | N87: -1 | O87: 1 | P87: 1 | Q87: 1 | R87: -1 | S87: 2 | T87: 2 | U87: -2 | V87: 2 | W87: 1 | X87: -2 | Y87: 1 | Z87: 1 | AA87: -1 | AB87: -1 | AC87: -1 | AD87: -1 | AE87: -1 | AF87: -2 | AG87: 1 | AH87: -1 | AI87: -1 | AJ87: 1 | AK87: 1 | AL87: 1 | AM87: -2 | AN87: 1 | AO87: -1 | AP87: 1 | AQ87: -1 | AR87: -1 | AS87: -1 | AT87: -1 | AU87: -1 | AV87: -2 | AW87: -1 | AX87: 1 | AY87: 1 | AZ87: 1 | BA87: -1 | BB87: -1 | BC87: 1 | BD87: 1 | BE87: -2 | BF87: 1 | BG87: -1 | BH87: 1 | BI87: 1 | BJ87: 1 | BK87: 1 | BL87: -1 | BM87: -2 | BN87: 1 | BO87: 2 | BP87: -1 | BQ87: -1 | BR87: 1 | BS87: -1 | BT87: 1 | BU87: -1 | BV87: 1 | BW87: -1 | BX87: 1 | BY87: -1 | BZ87: 1 | CA87: 1 | CB87: -1 | CC87: -1 | CD87: 1 | CE87: 2 | CF87: -1
A88: 1 | B88: -1 | C88: -1 | D88: 1 | E88: -1 | F88: -1 | G88: 2 | H88: 1 | I88: 1 | J88: 1 | K88: 1 | L88: -1 | M88: -1 | N88: -1 | O88: -1 | P88: 2 | Q88: -1 | R88: -1 | S88: 2 | T88: 1 | U88: 1 | V88: 1 | W88: 1 | X88: -1 | Y88: -1 | Z88: -1 | AA88: 2 | AB88: 1 | AC88: -1 | AD88: 1 | AE88: -1 | AF88: -2 | AG88: -1 | AH88: -2 | AI88: 1 | AJ88: 2 | AK88: 1 | AL88: 1 | AM88: -1 | AN88: -2 | AO88: -1 | AP88: -1 | AQ88: -1 | AR88: -2 | AS88: 1 | AT88: 1 | AU88: -1 | AV88: 1 | AW88: -2 | AX88: -2 | AY88: -2 | AZ88: -2 | BA88: -1 | BB88: 1 | BC88: -1 | BD88: 2 | BE88: -1 | BF88: -1 | BG88: 1 | BH88: 1 | BI88: 1 | BJ88: -1 | BK88: 2 | BL88: -1 | BM88: 1 | BN88: -1 | BO88: 1 | BP88: -1 | BQ88: -1 | BR88: 1 | BS88: -2 | BT88: 1 | BU88: -1 | BV88: -2 | BW88: 2 | BX88: -1 | BY88: 1 | BZ88: 1 | CA88: 1 | CB88: 2 | CC88: 1 | CD88: -1 | CE88: -1 | CF88: -1
A89: 1 | B89: 1 | C89: 2 | D89: -1 | E89: 1 | F89: -1 | G89: 1 | H89: -1 | I89: -2 | J89: 1 | K89: 2 | L89: 1 | M89: -2 | N89: 1 | O89: -1 | P89: -2 | Q89: -2 | R89: 1 | S89: 2 | T89: -1 | U89: -1 | V89: 2 | W89: -1 | X89: 1 | Y89: -2 | Z89: -1 | AA89: 1 | AB89: -2 | AC89: 1 | AD89: 1 | AE89: -1 | AF89: -2 | AG89: 1 | AH89: 1 | AI89: 2 | AJ89: 2 | AK89: -1 | AL89: -1 | AM89: -1 | AN89: -1 | AO89: -1 | AP89: -1 | AQ89: -1 | AR89: 1 | AS89: 1 | AT89: 1 | AU89: -1 | AV89: -1 | AW89: 1 | AX89: -1 | AY89: 1 | AZ89: -2 | BA89: -1 | BB89: 1 | BC89: 1 | BD89: 2 | BE89: 2 | BF89: 2 | BG89: 1 | BH89: -2 | BI89: -1 | BJ89: 1 | BK89: 1 | BL89: 1 | BM89: 1 | BN89: 1 | BO89: 1 | BP89: -1 | BQ89: -1 | BR89: 1 | BS89: 1 | BT89: -1 | BU89: -1 | BV89: 1 | BW89: -1 | BX89: 1 | BY89: -1 | BZ89: -1 | CA89: 1 | CB89: -1 | CC89: 1 | CD89: -1 | CE89: -1 | CF89: 1
A90: 1 | B90: -1 | C90: -1 | D90: 1 | E90: -1 | F90: -1 | G90: -1 | H90: 1 | I90: 1 | J90: 1 | K90: -1 | L90: 2 | M90: 1 | N90: 1 | O90: -1 | P90: 1 | Q90: -2 | R90: -2 | S90: 1 | T90: 1 | U90: -1 | V90: 1 | W90: 2 | X90: -1 | Y90: 1 | Z90: -1 | AA90: -1 | AB90: 1 | AC90: 1 | AD90: 1 | AE90: -1 | AF90: -1 | AG90: -1 | AH90: -1 | AI90: 1 | AJ90: -2 | AK90: -1 | AL90: 2 | AM90: 1 | AN90: -2 | AO90: -1 | AP90: 2 | AQ90: -1 | AR90: 1 | AS90: -2 | AT90: 1 | AU90: 1 | AV90: -1 | AW90: 1 | AX90: 1 | AY90: 1 | AZ90: -1 | BA90: -1 | BB90: -1 | BC90: -1 | BD90: -1 | BE90: -2 | BF90: 1 | BG90: 1 | BH90: -1 | BI90: 1 | BJ90: -1 | BK90: -1 | BL90: -1 | BM90: 1 | BN90: 1 | BO90: 1 | BP90: -1 | BQ90: -2 | BR90: 1 | BS90: -2 | BT90: 1 | BU90: -1 | BV90: -1 | BW90: 2 | BX90: 1 | BY90: 1 | BZ90: -2 | CA90: 1 | CB90: 2 | CC90: -1 | CD90: 1 | CE90: -1 | CF90: 1
A91: -1 | B91: -2 | C91: 1 | D91: 1 | E91: 1 | F91: 1 | G91: 1 | H91: -1 | I91: 2 | J91: -2 | K91: -1 | L91: 1 | M91: 1 | N91: -1 | O91: -1 | P91: -1 | Q91: 1 | R91: 1 | S91: -1 | T91: -1 | U91: -1 | V91: 1 | W91: 1 | X91: 1 | Y91: -1 | Z91: 2 | AA91: -2 | AB91: -1 | AC91: 1 | AD91: -1 | AE91: -1 | AF91: 1 | AG91: -1 | AH91: 1 | AI91: -1 | AJ91: -1 | AK91: -2 | AL91: 1 | AM91: 2 | AN91: 1 | AO91: -1 | AP91: -1 | AQ91: 1 | AR91: -1 | AS91: 1 | AT91: -1 | AU91: 1 | AV91: 1 | AW91: -1 | AX91: 1 | AY91: -1 | AZ91: -2 | BA91: 1 | BB91: -2 | BC91: -1 | BD91: 1 | BE91: 1 | BF91: 1 | BG91: 1 | BH91: -1 | BI91: 1 | BJ91: -1 | BK91: 1 | BL91: -1 | BM91: 2 | BN91: -2 | BO91: -1 | BP91: 1 | BQ91: -1 | BR91: 1 | BS91: -1 | BT91: -1 | BU91: -1 | BV91: -1 | BW91: 1 | BX91: 1 | BY91: 1 | BZ91: -1 | CA91: -1 | CB91: 1 | CC91: 2 | CD91: 1 | CE91: 1 | CF91: 1
A92: -2 | B92: -1 | C92: -2 | D92: -2 | E92: 1 | F92: -1 | G92: 1 | H92: -1 | I92: -2 | J92: -1 | K92: 2 | L92: 1 | M92: -1 | N92: -1 | O92: 1 | P92: -1 | Q92: -2 | R92: -1 | S92: 1 | T92: 1 | U92: 2 | V92: -1 | W92: 2 | X92: 1 | Y92: -2 | Z92: -1 | AA92: 1 | AB92: 1 | AC92: 2 | AD92: -2 | AE92: 1 | AF92: -1 | AG92: 1 | AH92: 1 | AI92: -2 | AJ92: 1 | AK92: 1 | AL92: 1 | AM92: 1 | AN92: -1 | AO92: 1 | AP92: 1 | AQ92: 2 | AR92: -1 | AS92: 2 | AT92: -1 | AU92: 1 | AV92: 1 | AW92: 2 | AX92: 2 | AY92: 1 | AZ92: -1 | BA92: 2 | BB92: 2 | BC92: -1 | BD92: -1 | BE92: -2 | BF92: -1 | BG92: -1 | BH92: 1 | BI92: 2 | BJ92: -1 | BK92: -1 | BL92: -1 | BM92: 1 | BN92: -1 | BO92: 1 | BP92: 1 | BQ92: -1 | BR92: 1 | BS92: 1 | BT92: -1 | BU92: 1 | BV92: -1 | BW92: -2 | BX92: 1 | BY92: 1 | BZ92: -1 | CA92: 1 | CB92: 1 | CC92: 1 | CD92: 1 | CE92: -1 | CF92: 1
A93: 1 | B93: -2 | C93: 1 | D93: -2 | E93: 1 | F93: -2 | G93: -1 | H93: -2 | I93: 1 | J93: -1 | K93: 1 | L93: -2 | M93: 1 | N93: -1 | O93: -1 | P93: 1 | Q93: 1 | R93: 1 | S93: 1 | T93: -1 | U93: 1 | V93: -1 | W93: -1 | X93: -1 | Y93: -2 | Z93: 1 | AA93: -1 | AB93: -1 | AC93: -2 | AD93: -1 | AE93: -1 | AF93: -2 | AG93: 1 | AH93: -1 | AI93: 1 | AJ93: 1 | AK93: 1 | AL93: -1 | AM93: -1 | AN93: 1 | AO93: 1 | AP93: -1 | AQ93: 2 | AR93: 2 | AS93: 1 | AT93: 1 | AU93: -2 | AV93: 1 | AW93: -1 | AX93: 2 | AY93: -1 | AZ93: 1 | BA93: -1 | BB93: -1 | BC93: 2 | BD93: -1 | BE93: -1 | BF93: -1 | BG93: 1 | BH93: 1 | BI93: -1 | BJ93: -2 | BK93: -1 | BL93: 1 | BM93: -1 | BN93: 1 | BO93: 1 | BP93: -1 | BQ93: -1 | BR93: 1 | BS93: 1 | BT93: 1 | BU93: 1 | BV93: 1 | BW93: 1 | BX93: 2 | BY93: 1 | BZ93: -1 | CA93: 1 | CB93: -2 | CC93: 1 | CD93: -2 | CE93: -1 | CF93: -1
A94: -2 | B94: 1 | C94: -2 | D94: -1 | E94: -2 | F94: -2 | G94: -1 | H94: 1 | I94: -1 | J94: -1 | K94: 2 | L94: -1 | M94: 1 | N94: 2 | O94: -1 | P94: 1 | Q94: -2 | R94: -1 | S94: -1 | T94: -1 | U94: -1 | V94: 1 | W94: 1 | X94: 1 | Y94: 1 | Z94: 1 | AA94: 1 | AB94: 1 | AC94: 1 | AD94: 2 | AE94: -2 | AF94: 2 | AG94: -1 | AH94: 1 | AI94: 1 | AJ94: -2 | AK94: -1 | AL94: -1 | AM94: -1 | AN94: 1 | AO94: 1 | AP94: 1 | AQ94: -1 | AR94: -2 | AS94: -1 | AT94: 1 | AU94: -2 | AV94: 1 | AW94: -2 | AX94: 1 | AY94: -1 | AZ94: 1 | BA94: 1 | BB94: -1 | BC94: -2 | BD94: -1 | BE94: -1 | BF94: 1 | BG94: -1 | BH94: -1 | BI94: -1 | BJ94: 1 | BK94: -1 | BL94: 1 | BM94: -1 | BN94: -1 | BO94: 1 | BP94: -1 | BQ94: -1 | BR94: 2 | BS94: -2 | BT94: 1 | BU94: 1 | BV94: 1 | BW94: 1 | BX94: -1 | BY94: 1 | BZ94: -1 | CA94: -1 | CB94: -1 | CC94: 1 | CD94: -2 | CE94: -2 | CF94: -1
A95: -1 | B95: 1 | C95: -1 | D95: -1 | E95: -1 | F95: 1 | G95: -1 | H95: -1 | I95: 1 | J95: -1 | K95: 2 | L95: -1 | M95: 2 | N95: 1 | O95: 1 | P95: 1 | Q95: 1 | R95: 1 | S95: -1 | T95: -1 | U95: -2 | V95: 1 | W95: 1 | X95: 2 | Y95: -1 | Z95: -2 | AA95: 1 | AB95: -1 | AC95: -1 | AD95: -1 | AE95: -1 | AF95: -1 | AG95: 2 | AH95: 1 | AI95: 2 | AJ95: -2 | AK95: -1 | AL95: 2 | AM95: 1 | AN95: -1 | AO95: 1 | AP95: -1 | AQ95: -1 | AR95: 1 | AS95: -2 | AT95: 1 | AU95: -1 | AV95: 1 | AW95: -1 | AX95: -1 | AY95: -1 | AZ95: 1 | BA95: -1 | BB95: 1 | BC95: -1 | BD95: -1 | BE95: -1 | BF95: -2 | BG95: 1 | BH95: 2 | BI95: 1 | BJ95: 2 | BK95: 1 | BL95: 1 | BM95: 1 | BN95: -1 | BO95: -1 | BP95: -2 | BQ95: 1 | BR95: 1 | BS95: -1 | BT95: 1 | BU95: 1 | BV95: 2 | BW95: -1 | BX95: 2 | BY95: 1 | BZ95: 1 | CA95: 1 | CB95: -1 | CC95: 1 | CD95: 1 | CE95: -1 | CF95: -1
A96: -2 | B96: 1 | C96: -1 | D96: -1 | E96: 1 | F96: -1 | G96: 1 | H96: -2 | I96: -1 | J96: 1 | K96: 1 | L96: 1 | M96: -2 | N96: 1 | O96: 1 | P96: 1 | Q96: 2 | R96: 1 | S96: 1 | T96: 1 | U96: 1 | V96: 2 | W96: -1 | X96: -1 | Y96: -1 | Z96: -1 | AA96: 2 | AB96: -2 | AC96: -1 | AD96: -1 | AE96: 1 | AF96: 1 | AG96: -2 | AH96: -1 | AI96: 1 | AJ96: -1 | AK96: 2 | AL96: 1 | AM96: -2 | AN96: 2 | AO96: -1 | AP96: 1 | AQ96: -1 | AR96: 1 | AS96: -1 | AT96: -1 | AU96: 1 | AV96: 1 | AW96: -1 | AX96: -1 | AY96: 2 | AZ96: -1 | BA96: -1 | BB96: 1 | BC96: 1 | BD96: 1 | BE96: -1 | BF96: -1 | BG96: -1 | BH96: -2 | BI96: 1 | BJ96: -1 | BK96: 1 | BL96: 1 | BM96: 1 | BN96: -1 | BO96: 1 | BP96: 2 | BQ96: 1 | BR96: 1 | BS96: 1 | BT96: 1 | BU96: -1 | BV96: -2 | BW96: -2 | BX96: -1 | BY96: 2 | BZ96: -1 | CA96: 1 | CB96: -1 | CC96: -1 | CD96: 1 | CE96: 1 | CF96: -2
A97: 1 | B97: -1 | C97: -2 | D97: 1 | E97: -2 | F97: -1 | G97: -1 | H97: -1 | I97: 1 | J97: -1 | K97: -1 | L97: 1 | M97: -1 | N97: -1 | O97: -1 | P97: 1 | Q97: -1 | R97: 1 | S97: 1 | T97: 1 | U97: 1 | V97: -2 | W97: -1 | X97: 2 | Y97: -1 | Z97: -1 | AA97: -1 | AB97: 1 | AC97: -2 | AD97: 1 | AE97: 1 | AF97: -1 | AG97: 1 | AH97: -1 | AI97: 1 | AJ97: -1 | AK97: -2 | AL97: -1 | AM97: 1 | AN97: -1 | AO97: 1 | AP97: -1 | AQ97: 1 | AR97: -1 | AS97: 2 | AT97: 1 | AU97: -1 | AV97: -1 | AW97: 1 | AX97: -1 | AY97: 1 | AZ97: -2 | BA97: -1 | BB97: -2 | BC97: -2 | BD97: 2 | BE97: -2 | BF97: -2 | BG97: -1 | BH97: -2 | BI97: 1 | BJ97: -1 | BK97: 1 | BL97: -1 | BM97: 1 | BN97: -2 | BO97: -2 | BP97: -1 | BQ97: 1 | BR97: 2 | BS97: -2 | BT97: -2 | BU97: 1 | BV97: 1 | BW97: 1 | BX97: -1 | BY97: -1 | BZ97: 1 | CA97: 1 | CB97: 1 | CC97: 1 | CD97: -1 | CE97: -1 | CF97: 1
A98: -1 | B98: 1 | C98: 1 | D98: -1 | E98: -1 | F98: -1 | G98: 1 | H98: -1 | I98: 1 | J98: 2 | K98: 1 | L98: -1 | M98: 2 | N98: 1 | O98: -1 | P98: 1 | Q98: -1 | R98: -1 | S98: -1 | T98: -1 | U98: -1 | V98: -1 | W98: 1 | X98: -1 | Y98: 1 | Z98: 2 | AA98: 1 | AB98: -1 | AC98: 2 | AD98: 1 | AE98: -1 | AF98: -1 | AG98: 1 | AH98: 2 | AI98: 1 | AJ98: 2 | AK98: -2 | AL98: -1 | AM98: -1 | AN98: 1 | AO98: -2 | AP98: 2 | AQ98: 1 | AR98: 1 | AS98: -1 | AT98: 1 | AU98: -1 | AV98: 1 | AW98: -1 | AX98: 2 | AY98: 1 | AZ98: -1 | BA98: -2 | BB98: -2 | BC98: 1 | BD98: -1 | BE98: 2 | BF98: 1 | BG98: -1 | BH98: -2 | BI98: 1 | BJ98: -1 | BK98: 1 | BL98: -1 | BM98: 1 | BN98: 1 | BO98: 2 | BP98: -1 | BQ98: 2 | BR98: 1 | BS98: -1 | BT98: -1 | BU98: -1 | BV98: -1 | BW98: 1 | BX98: 1 | BY98: 1 | BZ98: 1 | CA98: 2 | CB98: 2 | CC98: -1 | CD98: 1 | CE98: -1 | CF98: 1
A99: 1 | B99: 1 | C99: -1 | D99: -1 | E99: -1 | F99: -1 | G99: 1 | H99: 1 | I99: 1 | J99: -2 | K99: 1 | L99: 1 | M99: 1 | N99: -2 | O99: 2 | P99: 1 | Q99: -2 | R99: -1 | S99: 2 | T99: -1 | U99: -1 | V99: -1 | W99: 1 | X99: 1 | Y99: 1 | Z99: -2 | AA99: -1 | AB99: 1 | AC99: -2 | AD99: -1 | AE99: -1 | AF99: 1 | AG99: 1 | AH99: 1 | AI99: -1 | AJ99: 1 | AK99: -2 | AL99: -1 | AM99: -1 | AN99: 1 | AO99: -1 | AP99: 1 | AQ99: -2 | AR99: 1 | AS99: -1 | AT99: 1 | AU99: -1 | AV99: -1 | AW99: -2 | AX99: 2 | AY99: 2 | AZ99: -2 | BA99: -1 | BB99: -2 | BC99: -1 | BD99: 1 | BE99: 1 | BF99: -1 | BG99: -1 | BH99: -1 | BI99: 1 | BJ99: -1 | BK99: 1 | BL99: -2 | BM99: 1 | BN99: 1 | BO99: -1 | BP99: -2 | BQ99: 1 | BR99: -1 | BS99: -1 | BT99: -1 | BU99: 1 | BV99: 1 | BW99: -1 | BX99: 1 | BY99: -1 | BZ99: -1 | CA99: 1 | CB99: -1 | CC99: 1 | CD99: 1 | CE99: 1 | CF99: 1
A100: -1 | B100: 1 | C100: -1 | D100: -1 | E100: 2 | F100: -1 | G100: 1 | H100: -1 | I100: 1 | J100: 1 | K100: -1 | L100: 2 | M100: 2 | N100: 1 | O100: -1 | P100: -1 | Q100: -1 | R100: -1 | S100: 1 | T100: -1 | U100: -1 | V100: -2 | W100: 1 | X100: -1 | Y100: -1 | Z100: 1 | AA100: -1 | AB100: 1 | AC100: -1 | AD100: -1 | AE100: -1 | AF100: -1 | AG100: 1 | AH100: 1 | AI100: 2 | AJ100: 1 | AK100: 1 | AL100: 2 | AM100: -2 | AN100: 1 | AO100: 1 | AP100: -2 | AQ100: -2 | AR100: -1 | AS100: -1 | AT100: 1 | AU100: -1 | AV100: 1 | AW100: 1 | AX100: -1 | AY100: 1 | AZ100: -1 | BA100: 1 | BB100: -1 | BC100: 2 | BD100: 2 | BE100: 1 | BF100: -1 | BG100: -1 | BH100: 1 | BI100: -1 | BJ100: -1 | BK100: 1 | BL100: -1 | BM100: -1 | BN100: -1 | BO100: 2 | BP100: -1 | BQ100: 1 | BR100: 1 | BS100: -1 | BT100: 1 | BU100: -1 | BV100: -1 | BW100: 2 | BX100: 1 | BY100: 2 | BZ100: 1 | CA100: 2 | CB100: -2 | CC100: 2 | CD100: 1 | CE100: 2 | CF100: -2
A101: 1 | B101: -1 | C101: 1 | D101: -2 | E101: 1 | F101: 1 | G101: -1 | H101: -2 | I101: 1 | J101: 2 | K101: -1 | L101: 1 | M101: 1 | N101: -1 | O101: 2 | P101: -1 | Q101: -1 | R101: -1 | S101: -1 | T101: -2 | U101: -1 | V101: 2 | W101: -2 | X101: 1 | Y101: -1 | Z101: -1 | AA101: -1 | AB101: -1 | AC101: 1 | AD101: -1 | AE101: 2 | AF101: -2 | AG101: -1 | AH101: 1 | AI101: 1 | AJ101: 2 | AK101: -1 | AL101: 1 | AM101: -2 | AN101: 1 | AO101: -2 | AP101: 1 | AQ101: 1 | AR101: -1 | AS101: -1 | AT101: -1 | AU101: 2 | AV101: 1 | AW101: -1 | AX101: -1 | AY101: 2 | AZ101: 1 | BA101: -2 | BB101: 1 | BC101: 1 | BD101: -1 | BE101: 2 | BF101: -1 | BG101: -1 | BH101: 1 | BI101: -1 | BJ101: -1 | BK101: -1 | BL101: 1 | BM101: 1 | BN101: -1 | BO101: 1 | BP101: 1 | BQ101: -1 | BR101: -1 | BS101: -2 | BT101: 1 | BU101: 2 | BV101: -2 | BW101: -1 | BX101: -1 | BY101: -1 | BZ101: 1 | CA101: 1 | CB101: -1 | CC101: -1 | CD101: 1 | CE101: -2 | CF101: 1
A102: -2 | B102: -2 | C102: 1 | D102: -1 | E102: -1 | F102: -1 | G102: 1 | H102: 1 | I102: 1 | J102: -1 | K102: -1 | L102: -1 | M102: 2 | N102: -1 | O102: -1 | P102: 1 | Q102: 1 | R102: -1 | S102: -1 | T102: 2 | U102: -1 | V102: -1 | W102: 1 | X102: 1 | Y102: -2 | Z102: 1 | AA102: -1 | AB102: -1 | AC102: 1 | AD102: 1 | AE102: -1 | AF102: -1 | AG102: 1 | AH102: 2 | AI102: 2 | AJ102: -1 | AK102: 1 | AL102: 1 | AM102: -1 | AN102: 2 | AO102: 1 | AP102: -2 | AQ102: -2 | AR102: 1 | AS102: 2 | AT102: -2 | AU102: 2 | AV102: -1 | AW102: 2 | AX102: 2 | AY102: 2 | AZ102: 1 | BA102: -2 | BB102: 1 | BC102: 2 | BD102: 1 | BE102: -1 | BF102: 1 | BG102: 2 | BH102: -1 | BI102: 1 | BJ102: -2 | BK102: 1 | BL102: -4 | BM102: 1 | BN102: 2 | BO102: 1 | BP102: -2 | BQ102: 1 | BR102: -1 | BS102: -1 | BT102: 1 | BU102: 1 | BV102: 1 | BW102: 1 | BX102: 2 | BY102: 1 | BZ102: 1 | CA102: 1 | CB102: -1 | CC102: 2 | CD102: 1 | CE102: -1 | CF102: 2
A103: -2 | B103: -1 | C103: -1 | D103: 2 | E103: 1 | F103: 1 | G103: -2 | H103: -1 | I103: 1 | J103: -1 | K103: -1 | L103: 1 | M103: 2 | N103: 1 | O103: 1 | P103: -1 | Q103: -1 | R103: 1 | S103: -2 | T103: -2 | U103: -2 | V103: 1 | W103: -1 | X103: -2 | Y103: 1 | Z103: 1 | AA103: 1 | AB103: -1 | AC103: 1 | AD103: -1 | AE103: 2 | AF103: -1 | AG103: 1 | AH103: -1 | AI103: -1 | AJ103: 1 | AK103: 2 | AL103: -1 | AM103: -2 | AN103: -1 | AO103: -1 | AP103: 1 | AQ103: -1 | AR103: 1 | AS103: 1 | AT103: 1 | AU103: -1 | AV103: -1 | AW103: -1 | AX103: 1 | AY103: -2 | AZ103: -1 | BA103: 1 | BB103: 1 | BC103: -1 | BD103: -2 | BE103: -1 | BF103: 2 | BG103: -1 | BH103: -1 | BI103: 2 | BJ103: 1 | BK103: -1 | BL103: 1 | BM103: -1 | BN103: -1 | BO103: 2 | BP103: 2 | BQ103: -1 | BR103: -1 | BS103: 1 | BT103: 1 | BU103: 1 | BV103: -1 | BW103: -1 | BX103: -1 | BY103: 2 | BZ103: 1 | CA103: 1 | CB103: -1 | CC103: 1 | CD103: -1 | CE103: 1 | CF103: -1
A104: 4 | B104: 1 | C104: -2 | D104: 1 | E104: 1 | F104: -1 | G104: 1 | H104: -1 | I104: -2 | J104: 1 | K104: 1 | L104: -1 | M104: -1 | N104: -1 | O104: -2 | P104: 1 | Q104: 1 | R104: -1 | S104: -2 | T104: -2 | U104: 1 | V104: 4 | W104: -1 | X104: -2 | Y104: -1 | Z104: -1 | AA104: 2 | AB104: 1 | AC104: 1 | AD104: -2 | AE104: 1 | AF104: -1 | AG104: -1 | AH104: -1 | AI104: 1 | AJ104: -2 | AK104: 1 | AL104: -1 | AM104: -2 | AN104: -1 | AO104: 1 | AP104: -1 | AQ104: 4 | AR104: -1 | AS104: 1 | AT104: 1 | AU104: 1 | AV104: -1 | AW104: 1 | AX104: 1 | AY104: -2 | AZ104: -1 | BA104: 1 | BB104: 1 | BC104: 1 | BD104: -1 | BE104: -1 | BF104: 1 | BG104: 1 | BH104: -1 | BI104: -1 | BJ104: -1 | BK104: -1 | BL104: 4 | BM104: -1 | BN104: -1 | BO104: 1 | BP104: 1 | BQ104: 1 | BR104: -2 | BS104: -2 | BT104: -1 | BU104: -2 | BV104: -1 | BW104: -2 | BX104: 1 | BY104: -1 | BZ104: 1 | CA104: 2 | CB104: -1 | CC104: -1 | CD104: 1 | CE104: -1 | CF104: -1
A105: -1 | B105: -2 | C105: -1 | D105: 1 | E105: 2 | F105: -1 | G105: -1 | H105: 1 | I105: 1 | J105: -1 | K105: 1 | L105: 1 | M105: 2 | N105: 1 | O105: 2 | P105: 2 | Q105: 1 | R105: -2 | S105: -1 | T105: 1 | U105: 2 | V105: 2 | W105: -1 | X105: -1 | Y105: 1 | Z105: 2 | AA105: -1 | AB105: -1 | AC105: 1 | AD105: -2 | AE105: -2 | AF105: 1 | AG105: -1 | AH105: 2 | AI105: -1 | AJ105: -1 | AK105: 2 | AL105: -1 | AM105: 2 | AN105: -1 | AO105: -2 | AP105: -1 | AQ105: 1 | AR105: -1 | AS105: 1 | AT105: -1 | AU105: 1 | AV105: 1 | AW105: 1 | AX105: 2 | AY105: 1 | AZ105: 1 | BA105: -2 | BB105: 2 | BC105: -1 | BD105: -2 | BE105: -1 | BF105: 1 | BG105: 2 | BH105: -1 | BI105: 1 | BJ105: 1 | BK105: -1 | BL105: -1 | BM105: -2 | BN105: 1 | BO105: -1 | BP105: 1 | BQ105: -1 | BR105: -1 | BS105: -1 | BT105: -2 | BU105: 1 | BV105: -1 | BW105: 1 | BX105: 1 | BY105: -2 | BZ105: -1 | CA105: -1 | CB105: 1 | CC105: -2 | CD105: -1 | CE105: -1 | CF105: 1
A106: -2 | B106: -1 | C106: 1 | D106: -2 | E106: -1 | F106: -1 | G106: 1 | H106: -1 | I106: 2 | J106: 1 | K106: 1 | L106: 1 | M106: 1 | N106: 2 | O106: 1 | P106: 1 | Q106: -1 | R106: -1 | S106: 1 | T106: 1 | U106: -1 | V106: -2 | W106: 1 | X106: -1 | Y106: 2 | Z106: 1 | AA106: 1 | AB106: 1 | AC106: -2 | AD106: 1 | AE106: 2 | AF106: 1 | AG106: -1 | AH106: -1 | AI106: 2 | AJ106: -1 | AK106: 1 | AL106: -1 | AM106: 1 | AN106: 1 | AO106: -1 | AP106: 2 | AQ106: -4 | AR106: 1 | AS106: 2 | AT106: 1 | AU106: 1 | AV106: -1 | AW106: 2 | AX106: -1 | AY106: -1 | AZ106: -1 | BA106: 1 | BB106: 1 | BC106: -1 | BD106: -1 | BE106: -2 | BF106: 1 | BG106: -1 | BH106: 1 | BI106: 2 | BJ106: 1 | BK106: 2 | BL106: -2 | BM106: 1 | BN106: 2 | BO106: 1 | BP106: 1 | BQ106: 1 | BR106: -1 | BS106: 2 | BT106: -1 | BU106: 1 | BV106: 1 | BW106: -1 | BX106: -1 | BY106: 2 | BZ106: 1 | CA106: -2 | CB106: 1 | CC106: 1 | CD106: 1 | CE106: 1 | CF106: 2
A107: 1 | B107: -2 | C107: 1 | D107: -1 | E107: 1 | F107: -2 | G107: -1 | H107: 1 | I107: -2 | J107: -1 | K107: 1 | L107: -1 | M107: -1 | N107: 1 | O107: -1 | P107: 1 | Q107: 1 | R107: 1 | S107: 1 | T107: -1 | U107: 1 | V107: 4 | W107: 1 | X107: 1 | Y107: 1 | Z107: -1 | AA107: 1 | AB107: -1 | AC107: -2 | AD107: -2 | AE107: 1 | AF107: 1 | AG107: -1 | AH107: -1 | AI107: 1 | AJ107: 1 | AK107: 1 | AL107: 1 | AM107: -1 | AN107: -2 | AO107: -1 | AP107: 1 | AQ107: 2 | AR107: -2 | AS107: -1 | AT107: -1 | AU107: 1 | AV107: 1 | AW107: 1 | AX107: 1 | AY107: -2 | AZ107: -1 | BA107: 1 | BB107: -2 | BC107: -1 | BD107: -1 | BE107: 1 | BF107: 2 | BG107: -1 | BH107: -2 | BI107: 2 | BJ107: -1 | BK107: 1 | BL107: -2 | BM107: -1 | BN107: -1 | BO107: 1 | BP107: -1 | BQ107: 1 | BR107: -1 | BS107: 1 | BT107: -2 | BU107: 1 | BV107: -1 | BW107: -1 | BX107: 2 | BY107: 1 | BZ107: -1 | CA107: 2 | CB107: 2 | CC107: -1 | CD107: 1 | CE107: -1 | CF107: 1
A108: -1 | B108: -1 | C108: -1 | D108: -1 | E108: -1 | F108: -1 | G108: -1 | H108: -1 | I108: -1 | J108: -1 | K108: 2 | L108: 1 | M108: 2 | N108: -2 | O108: 1 | P108: 2 | Q108: 2 | R108: 1 | S108: -2 | T108: 2 | U108: 1 | V108: -1 | W108: -1 | X108: -2 | Y108: 1 | Z108: -1 | AA108: -1 | AB108: -1 | AC108: 1 | AD108: -1 | AE108: 1 | AF108: -1 | AG108: -1 | AH108: -1 | AI108: -1 | AJ108: 1 | AK108: -1 | AL108: 1 | AM108: -1 | AN108: 2 | AO108: 1 | AP108: -1 | AQ108: 2 | AR108: -1 | AS108: 1 | AT108: -1 | AU108: 1 | AV108: -1 | AW108: -1 | AX108: -2 | AY108: -2 | AZ108: -1 | BA108: -1 | BB108: -1 | BC108: 1 | BD108: 1 | BE108: 1 | BF108: -1 | BG108: -1 | BH108: -1 | BI108: 2 | BJ108: 1 | BK108: -1 | BL108: -2 | BM108: 1 | BN108: -1 | BO108: 1 | BP108: -1 | BQ108: 2 | BR108: 1 | BS108: 1 | BT108: -1 | BU108: -2 | BV108: -1 | BW108: 1 | BX108: -1 | BY108: -1 | BZ108: -1 | CA108: -1 | CB108: 1 | CC108: 1 | CD108: -2 | CE108: 1 | CF108: -1
A109: -1 | B109: -1 | C109: 1 | D109: 1 | E109: 2 | F109: 1 | G109: -2 | H109: 1 | I109: -1 | J109: -1 | K109: -1 | L109: -1 | M109: -1 | N109: 2 | O109: 2 | P109: -1 | Q109: -1 | R109: -1 | S109: 1 | T109: -1 | U109: -1 | V109: -1 | W109: -1 | X109: 1 | Y109: -1 | Z109: -1 | AA109: 1 | AB109: -1 | AC109: -1 | AD109: -1 | AE109: -1 | AF109: -2 | AG109: 2 | AH109: -2 | AI109: -1 | AJ109: 2 | AK109: -1 | AL109: 1 | AM109: 1 | AN109: 2 | AO109: -2 | AP109: 2 | AQ109: 1 | AR109: -2 | AS109: -1 | AT109: -1 | AU109: -1 | AV109: 2 | AW109: 2 | AX109: 1 | AY109: -1 | AZ109: 1 | BA109: -1 | BB109: -1 | BC109: -2 | BD109: 1 | BE109: -1 | BF109: 1 | BG109: 1 | BH109: 1 | BI109: -2 | BJ109: 1 | BK109: 1 | BL109: -1 | BM109: -1 | BN109: -1 | BO109: 2 | BP109: -1 | BQ109: -1 | BR109: -1 | BS109: 1 | BT109: 1 | BU109: -1 | BV109: -1 | BW109: 1 | BX109: 2 | BY109: 1 | BZ109: -2 | CA109: -1 | CB109: 1 | CC109: -1 | CD109: 1 | CE109: -1 | CF109: -1
A110: 1 | B110: 2 | C110: -2 | D110: 1 | E110: 1 | F110: -1 | G110: 1 | H110: 1 | I110: 1 | J110: -1 | K110: -1 | L110: 1 | M110: -1 | N110: 1 | O110: -1 | P110: -1 | Q110: 1 | R110: 2 | S110: 1 | T110: 1 | U110: -1 | V110: 1 | W110: 1 | X110: -1 | Y110: -1 | Z110: -1 | AA110: -2 | AB110: 1 | AC110: -1 | AD110: 1 | AE110: 1 | AF110: 1 | AG110: -2 | AH110: -1 | AI110: -1 | AJ110: -2 | AK110: 1 | AL110: -1 | AM110: 1 | AN110: -1 | AO110: 1 | AP110: -1 | AQ110: 1 | AR110: -2 | AS110: -1 | AT110: 1 | AU110: -1 | AV110: -1 | AW110: -1 | AX110: 1 | AY110: 1 | AZ110: -1 | BA110: -1 | BB110: 1 | BC110: 1 | BD110: -1 | BE110: 2 | BF110: -1 | BG110: -1 | BH110: -1 | BI110: 1 | BJ110: 1 | BK110: -1 | BL110: -1 | BM110: -1 | BN110: -1 | BO110: -1 | BP110: 1 | BQ110: 1 | BR110: 1 | BS110: -2 | BT110: -1 | BU110: -1 | BV110: 1 | BW110: -2 | BX110: -1 | BY110: 1 | BZ110: -1 | CA110: -1 | CB110: -1 | CC110: -1 | CD110: -1 | CE110: -1 | CF110: 1
A111: -1 | B111: -1 | C111: 2 | D111: -1 | E111: -1 | F111: 2 | G111: 1 | H111: -1 | I111: 2 | J111: 1 | K111: -1 | L111: 1 | M111: -1 | N111: 1 | O111: -2 | P111: 1 | Q111: 1 | R111: -1 | S111: 1 | T111: 1 | U111: 1 | V111: -1 | W111: 2 | X111: 2 | Y111: 1 | Z111: 1 | AA111: -1 | AB111: -2 | AC111: 2 | AD111: -1 | AE111: 1 | AF111: -1 | AG111: 1 | AH111: 1 | AI111: -1 | AJ111: 1 | AK111: 2 | AL111: -1 | AM111: -1 | AN111: 1 | AO111: 1 | AP111: 1 | AQ111: 1 | AR111: -1 | AS111: -1 | AT111: 1 | AU111: -1 | AV111: -1 | AW111: 1 | AX111: 1 | AY111: 1 | AZ111: 1 | BA111: -1 | BB111: -1 | BC111: -1 | BD111: 2 | BE111: -1 | BF111: 1 | BG111: 2 | BH111: 1 | BI111: 1 | BJ111: -1 | BK111: -1 | BL111: -1 | BM111: 2 | BN111: -1 | BO111: -1 | BP111: 1 | BQ111: -1 | BR111: -1 | BS111: 1 | BT111: -1 | BU111: 1 | BV111: -1 | BW111: 1 | BX111: -2 | BY111: 1 | BZ111: -2 | CA111: 1 | CB111: -1 | CC111: 1 | CD111: 1 | CE111: -2 | CF111: -1
A112: 1 | B112: -1 | C112: 1 | D112: -1 | E112: -1 | F112: 1 | G112: -2 | H112: -1 | I112: -1 | J112: 1 | K112: -1 | L112: 1 | M112: -1 | N112: 1 | O112: -1 | P112: -2 | Q112: 1 | R112: 1 | S112: -1 | T112: 2 | U112: 1 | V112: 1 | W112: 1 | X112: 2 | Y112: 2 | Z112: -2 | AA112: -2 | AB112: 2 | AC112: -1 | AD112: -1 | AE112: -1 | AF112: -1 | AG112: -2 | AH112: -2 | AI112: 1 | AJ112: 1 | AK112: -1 | AL112: 1 | AM112: -1 | AN112: 1 | AO112: -1 | AP112: -2 | AQ112: 1 | AR112: 2 | AS112: 1 | AT112: -1 | AU112: 2 | AV112: -1 | AW112: 1 | AX112: -1 | AY112: -1 | AZ112: 1 | BA112: -2 | BB112: -1 | BC112: 1 | BD112: -2 | BE112: 2 | BF112: 2 | BG112: -1 | BH112: 1 | BI112: -1 | BJ112: -1 | BK112: 1 | BL112: 1 | BM112: -1 | BN112: 1 | BO112: -1 | BP112: -1 | BQ112: 2 | BR112: 1 | BS112: 1 | BT112: 1 | BU112: -1 | BV112: 1 | BW112: 1 | BX112: -2 | BY112: 1 | BZ112: 1 | CA112: -1 | CB112: 1 | CC112: 1 | CD112: -1 | CE112: 1 | CF112: 1
A113: 2 | B113: -1 | C113: -1 | D113: 1 | E113: -1 | F113: 2 | G113: 1 | H113: 2 | I113: -1 | J113: -1 | K113: -1 | L113: 1 | M113: -1 | N113: 1 | O113: -2 | P113: 1 | Q113: 1 | R113: 1 | S113: 1 | T113: -1 | U113: 1 | V113: -1 | W113: 1 | X113: -1 | Y113: -1 | Z113: -1 | AA113: 1 | AB113: 1 | AC113: 1 | AD113: 1 | AE113: -1 | AF113: 2 | AG113: -1 | AH113: 1 | AI113: 1 | AJ113: 2 | AK113: -1 | AL113: -1 | AM113: -1 | AN113: 1 | AO113: 2 | AP113: -1 | AQ113: 1 | AR113: 1 | AS113: -1 | AT113: 1 | AU113: -1 | AV113: -1 | AW113: 1 | AX113: 1 | AY113: -1 | AZ113: -1 | BA113: -2 | BB113: -1 | BC113: 1 | BD113: 1 | BE113: 2 | BF113: 1 | BG113: -1 | BH113: 1 | BI113: 1 | BJ113: 2 | BK113: 2 | BL113: 1 | BM113: -1 | BN113: 1 | BO113: -1 | BP113: -1 | BQ113: 2 | BR113: 1 | BS113: 2 | BT113: 2 | BU113: 1 | BV113: 1 | BW113: -1 | BX113: -1 | BY113: -1 | BZ113: -2 | CA113: -2 | CB113: 1 | CC113: -1 | CD113: -1 | CE113: 1 | CF113: 2
A114: 2 | B114: -2 | C114: 1 | D114: -1 | E114: -1 | F114: -2 | G114: -1 | H114: -1 | I114: 1 | J114: -1 | K114: 1 | L114: 1 | M114: -1 | N114: 1 | O114: -1 | P114: -2 | Q114: 1 | R114: 1 | S114: -1 | T114: -2 | U114: -1 | V114: -1 | W114: -1 | X114: -1 | Y114: -2 | Z114: 2 | AA114: -1 | AB114: -1 | AC114: -2 | AD114: 1 | AE114: -2 | AF114: -1 | AG114: -2 | AH114: -1 | AI114: 1 | AJ114: -2 | AK114: -1 | AL114: -1 | AM114: 1 | AN114: 1 | AO114: 2 | AP114: 1 | AQ114: 2 | AR114: 1 | AS114: -2 | AT114: -1 | AU114: 1 | AV114: 1 | AW114: 1 | AX114: -1 | AY114: 1 | AZ114: -1 | BA114: 2 | BB114: -1 | BC114: 1 | BD114: 1 | BE114: -1 | BF114: -1 | BG114: -1 | BH114: -1 | BI114: 1 | BJ114: -1 | BK114: 1 | BL114: -1 | BM114: 1 | BN114: 1 | BO114: -1 | BP114: 1 | BQ114: 1 | BR114: 1 | BS114: 1 | BT114: -1 | BU114: 1 | BV114: 1 | BW114: 1 | BX114: -1 | BY114: 1 | BZ114: -1 | CA114: 2 | CB114: 1 | CC114: 1 | CD114: -1 | CE114: -1 | CF114: -1
A115: -1 | B115: -1 | C115: 2 | D115: -1 | E115: 1 | F115: -1 | G115: 2 | H115: -1 | I115: 1 | J115: 1 | K115: 1 | L115: 1 | M115: -1 | N115: 1 | O115: 1 | P115: -1 | Q115: 1 | R115: 1 | S115: -1 | T115: 1 | U115: 2 | V115: -1 | W115: -2 | X115: 1 | Y115: -1 | Z115: 2 | AA115: -1 | AB115: 1 | AC115: -1 | AD115: -1 | AE115: -1 | AF115: -1 | AG115: -1 | AH115: -1 | AI115: -1 | AJ115: 2 | AK115: 1 | AL115: 2 | AM115: -1 | AN115: -1 | AO115: -2 | AP115: -1 | AQ115: -2 | AR115: -1 | AS115: -1 | AT115: -2 | AU115: 1 | AV115: -1 | AW115: -1 | AX115: -2 | AY115: 1 | AZ115: -1 | BA115: -2 | BB115: -1 | BC115: -1 | BD115: -1 | BE115: -2 | BF115: 1 | BG115: -1 | BH115: -1 | BI115: 1 | BJ115: 1 | BK115: -1 | BL115: 1 | BM115: -1 | BN115: -1 | BO115: 1 | BP115: 1 | BQ115: -2 | BR115: 1 | BS115: -1 | BT115: 1 | BU115: 1 | BV115: 2 | BW115: -1 | BX115: -1 | BY115: -2 | BZ115: 2 | CA115: -1 | CB115: 1 | CC115: 1 | CD115: 1 | CE115: 2 | CF115: -1
A116: 1 | B116: -1 | C116: -1 | D116: 1 | E116: 1 | F116: 2 | G116: 1 | H116: 1 | I116: 1 | J116: 2 | K116: -1 | L116: -1 | M116: 1 | N116: -1 | O116: -1 | P116: -1 | Q116: -2 | R116: 1 | S116: 1 | T116: 1 | U116: 1 | V116: -2 | W116: -2 | X116: -1 | Y116: 1 | Z116: -1 | AA116: -2 | AB116: 1 | AC116: 1 | AD116: 1 | AE116: -1 | AF116: 2 | AG116: 1 | AH116: 1 | AI116: 1 | AJ116: -1 | AK116: 1 | AL116: 2 | AM116: 2 | AN116: -2 | AO116: 2 | AP116: -1 | AQ116: 1 | AR116: 1 | AS116: -1 | AT116: 1 | AU116: -2 | AV116: 2 | AW116: 2 | AX116: 2 | AY116: -1 | AZ116: -1 | BA116: 1 | BB116: 1 | BC116: -1 | BD116: -2 | BE116: -1 | BF116: 1 | BG116: -1 | BH116: -1 | BI116: 1 | BJ116: 1 | BK116: -1 | BL116: -1 | BM116: -2 | BN116: -1 | BO116: 1 | BP116: -1 | BQ116: -1 | BR116: -1 | BS116: -1 | BT116: 2 | BU116: 2 | BV116: 1 | BW116: -1 | BX116: 1 | BY116: 2 | BZ116: -1 | CA116: -1 | CB116: -2 | CC116: 1 | CD116: 1 | CE116: -1 | CF116: 1
A117: 1 | B117: 1 | C117: -1 | D117: 1 | E117: -1 | F117: 1 | G117: -1 | H117: -1 | I117: -1 | J117: 1 | K117: -1 | L117: -1 | M117: -1 | N117: -1 | O117: -2 | P117: 1 | Q117: 1 | R117: 1 | S117: 1 | T117: -1 | U117: -2 | V117: 1 | W117: -1 | X117: -1 | Y117: -1 | Z117: -2 | AA117: -1 | AB117: -1 | AC117: 1 | AD117: 1 | AE117: -1 | AF117: -1 | AG117: 1 | AH117: -1 | AI117: 2 | AJ117: -1 | AK117: 2 | AL117: 2 | AM117: 1 | AN117: -1 | AO117: 1 | AP117: 2 | AQ117: 1 | AR117: 1 | AS117: -1 | AT117: 2 | AU117: -1 | AV117: 1 | AW117: 1 | AX117: 1 | AY117: 2 | AZ117: 1 | BA117: 1 | BB117: -1 | BC117: -2 | BD117: -2 | BE117: -1 | BF117: -1 | BG117: -1 | BH117: 2 | BI117: 2 | BJ117: -1 | BK117: -1 | BL117: -1 | BM117: -1 | BN117: 1 | BO117: -1 | BP117: -1 | BQ117: -1 | BR117: -1 | BS117: 1 | BT117: -1 | BU117: 1 | BV117: -2 | BW117: 1 | BX117: 1 | BY117: -1 | BZ117: -1 | CA117: -1 | CB117: -1 | CC117: -1 | CD117: -1 | CE117: 1 | CF117: -2
A118: 1 | B118: -1 | C118: 1 | D118: 1 | E118: 1 | F118: 1 | G118: -1 | H118: -1 | I118: -1 | J118: -1 | K118: -1 | L118: -1 | M118: -2 | N118: 1 | O118: -1 | P118: 1 | Q118: -2 | R118: -1 | S118: -1 | T118: 1 | U118: 1 | V118: -1 | W118: -1 | X118: -1 | Y118: 1 | Z118: -1 | AA118: 1 | AB118: -1 | AC118: 1 | AD118: -1 | AE118: -1 | AF118: -2 | AG118: 1 | AH118: 2 | AI118: 1 | AJ118: 2 | AK118: 1 | AL118: -2 | AM118: -1 | AN118: 1 | AO118: -1 | AP118: -1 | AQ118: 1 | AR118: 1 | AS118: -1 | AT118: 1 | AU118: -1 | AV118: -1 | AW118: -1 | AX118: 2 | AY118: -2 | AZ118: -1 | BA118: 1 | BB118: -1 | BC118: -1 | BD118: 1 | BE118: -1 | BF118: -1 | BG118: -1 | BH118: 1 | BI118: 1 | BJ118: 1 | BK118: -1 | BL118: 1 | BM118: -1 | BN118: -1 | BO118: -1 | BP118: 2 | BQ118: -1 | BR118: -2 | BS118: -1 | BT118: -1 | BU118: 1 | BV118: 1 | BW118: -1 | BX118: -1 | BY118: 1 | BZ118: 1 | CA118: 1 | CB118: 1 | CC118: -1 | CD118: -1 | CE118: -1 | CF118: -1
A119: -2 | B119: -1 | C119: 2 | D119: -1 | E119: -1 | F119: 1 | G119: -1 | H119: -1 | I119: 1 | J119: -2 | K119: -1 | L119: -1 | M119: 1 | N119: 1 | O119: -1 | P119: -1 | Q119: -1 | R119: -1 | S119: 1 | T119: 1 | U119: -1 | V119: -4 | W119: 1 | X119: -1 | Y119: 1 | Z119: 1 | AA119: 2 | AB119: -1 | AC119: -2 | AD119: 1 | AE119: 1 | AF119: -1 | AG119: 1 | AH119: -1 | AI119: -1 | AJ119: -1 | AK119: 1 | AL119: 1 | AM119: 1 | AN119: 2 | AO119: -1 | AP119: -2 | AQ119: -1 | AR119: -1 | AS119: -1 | AT119: 2 | AU119: 1 | AV119: 1 | AW119: 1 | AX119: 1 | AY119: 2 | AZ119: 1 | BA119: 1 | BB119: -1 | BC119: 1 | BD119: -2 | BE119: -1 | BF119: 1 | BG119: -1 | BH119: -2 | BI119: 1 | BJ119: 1 | BK119: -1 | BL119: -1 | BM119: -2 | BN119: -2 | BO119: 1 | BP119: 1 | BQ119: 1 | BR119: -1 | BS119: -1 | BT119: 1 | BU119: 2 | BV119: 1 | BW119: 1 | BX119: -2 | BY119: -2 | BZ119: -1 | CA119: -1 | CB119: 1 | CC119: 2 | CD119: -1 | CE119: -2 | CF119: -1
A120: 1 | B120: -2 | C120: 1 | D120: -2 | E120: -1 | F120: 1 | G120: -1 | H120: -1 | I120: -2 | J120: -1 | K120: 1 | L120: 1 | M120: 1 | N120: 1 | O120: 1 | P120: 1 | Q120: 1 | R120: -1 | S120: 1 | T120: 1 | U120: 2 | V120: -1 | W120: -1 | X120: -1 | Y120: -1 | Z120: -1 | AA120: 1 | AB120: 1 | AC120: 2 | AD120: 1 | AE120: -1 | AF120: 1 | AG120: 1 | AH120: -1 | AI120: -1 | AJ120: 1 | AK120: 1 | AL120: 1 | AM120: -1 | AN120: 2 | AO120: -2 | AP120: 2 | AQ120: 2 | AR120: 2 | AS120: -1 | AT120: -1 | AU120: 1 | AV120: 1 | AW120: 1 | AX120: -2 | AY120: -2 | AZ120: 2 | BA120: -1 | BB120: 2 | BC120: -2 | BD120: 2 | BE120: 1 | BF120: -1 | BG120: 1 | BH120: -2 | BI120: 1 | BJ120: 1 | BK120: -1 | BL120: 2 | BM120: -1 | BN120: -1 | BO120: 1 | BP120: -2 | BQ120: 2 | BR120: 1 | BS120: -1 | BT120: 2 | BU120: 2 | BV120: -1 | BW120: 1 | BX120: -2 | BY120: -1 | BZ120: -1 | CA120: -1 | CB120: 1 | CC120: 1 | CD120: -2 | CE120: -1 | CF120: -1
A121: 2 | B121: -1 | C121: 1 | D121: -1 | E121: -1 | F121: 2 | G121: 1 | H121: -1 | I121: -1 | J121: 1 | K121: 2 | L121: 1 | M121: 1 | N121: -1 | O121: -1 | P121: 1 | Q121: -1 | R121: 1 | S121: -1 | T121: -1 | U121: 2 | V121: -1 | W121: 1 | X121: -1 | Y121: -2 | Z121: 1 | AA121: -1 | AB121: -1 | AC121: -1 | AD121: -1 | AE121: -1 | AF121: 1 | AG121: 2 | AH121: -1 | AI121: -1 | AJ121: 1 | AK121: -1 | AL121: 2 | AM121: 2 | AN121: 1 | AO121: -2 | AP121: -1 | AQ121: 2 | AR121: 1 | AS121: 1 | AT121: 1 | AU121: -2 | AV121: -1 | AW121: 1 | AX121: 1 | AY121: 1 | AZ121: -1 | BA121: 1 | BB121: 1 | BC121: -1 | BD121: 1 | BE121: -1 | BF121: 1 | BG121: -1 | BH121: -1 | BI121: -1 | BJ121: -2 | BK121: 2 | BL121: -1 | BM121: -1 | BN121: 1 | BO121: -1 | BP121: 2 | BQ121: 2 | BR121: -1 | BS121: -1 | BT121: 1 | BU121: 2 | BV121: -1 | BW121: 1 | BX121: -1 | BY121: 1 | BZ121: 1 | CA121: 1 | CB121: -1 | CC121: -1 | CD121: -1 | CE121: -1 | CF121: -1
A122: -1 | B122: -1 | C122: 2 | D122: -1 | E122: -1 | F122: 1 | G122: -2 | H122: -1 | I122: -1 | J122: -1 | K122: -1 | L122: -1 | M122: 1 | N122: -2 | O122: -1 | P122: 1 | Q122: 1 | R122: 1 | S122: 1 | T122: -1 | U122: 1 | V122: -1 | W122: -2 | X122: -1 | Y122: -1 | Z122: 1 | AA122: -1 | AB122: 1 | AC122: 2 | AD122: 2 | AE122: 1 | AF122: -2 | AG122: 1 | AH122: -1 | AI122: 1 | AJ122: -1 | AK122: -1 | AL122: 1 | AM122: 1 | AN122: 1 | AO122: -2 | AP122: -2 | AQ122: 1 | AR122: -1 | AS122: -1 | AT122: 1 | AU122: -2 | AV122: 1 | AW122: 1 | AX122: -1 | AY122: 1 | AZ122: 1 | BA122: -1 | BB122: -1 | BC122: -1 | BD122: -1 | BE122: -1 | BF122: -2 | BG122: -2 | BH122: 1 | BI122: -1 | BJ122: 1 | BK122: 2 | BL122: 1 | BM122: 1 | BN122: -1 | BO122: -1 | BP122: -2 | BQ122: 1 | BR122: 1 | BS122: 1 | BT122: 2 | BU122: 1 | BV122: -1 | BW122: -1 | BX122: -1 | BY122: 1 | BZ122: 1 | CA122: -2 | CB122: 1 | CC122: 2 | CD122: 1 | CE122: -1 | CF122: -1
A123: 1 | B123: -2 | C123: 1 | D123: -1 | E123: 1 | F123: -1 | G123: 1 | H123: 2 | I123: -1 | J123: 1 | K123: -1 | L123: 1 | M123: 1 | N123: 1 | O123: -1 | P123: -1 | Q123: 1 | R123: 1 | S123: 1 | T123: 2 | U123: 1 | V123: 1 | W123: 1 | X123: 2 | Y123: -1 | Z123: -2 | AA123: -1 | AB123: -1 | AC123: -1 | AD123: -1 | AE123: 1 | AF123: -1 | AG123: -1 | AH123: -1 | AI123: 1 | AJ123: -1 | AK123: 1 | AL123: 1 | AM123: -2 | AN123: 1 | AO123: 1 | AP123: -1 | AQ123: -1 | AR123: 2 | AS123: 1 | AT123: 1 | AU123: -2 | AV123: 1 | AW123: 1 | AX123: -1 | AY123: 1 | AZ123: 1 | BA123: 1 | BB123: -1 | BC123: -1 | BD123: 1 | BE123: -1 | BF123: 1 | BG123: 1 | BH123: -1 | BI123: 1 | BJ123: -1 | BK123: 1 | BL123: 4 | BM123: -1 | BN123: -1 | BO123: -1 | BP123: 1 | BQ123: 1 | BR123: 1 | BS123: -1 | BT123: -2 | BU123: -2 | BV123: -1 | BW123: -1 | BX123: -2 | BY123: -1 | BZ123: 1 | CA123: 1 | CB123: 1 | CC123: 1 | CD123: -1 | CE123: -2 | CF123: -1
A124: 1 | B124: -1 | C124: 1 | D124: 1 | E124: -1 | F124: -1 | G124: 2 | H124: -1 | I124: 1 | J124: 1 | K124: 1 | L124: 1 | M124: -1 | N124: 2 | O124: 1 | P124: 1 | Q124: -1 | R124: 1 | S124: -1 | T124: -1 | U124: 1 | V124: 1 | W124: 1 | X124: -1 | Y124: -1 | Z124: 2 | AA124: 2 | AB124: 1 | AC124: -1 | AD124: 2 | AE124: -1 | AF124: -1 | AG124: 2 | AH124: -2 | AI124: 1 | AJ124: 1 | AK124: -1 | AL124: -1 | AM124: -1 | AN124: -1 | AO124: -1 | AP124: -1 | AQ124: -1 | AR124: -1 | AS124: -1 | AT124: -1 | AU124: -1 | AV124: -1 | AW124: -1 | AX124: -1 | AY124: 1 | AZ124: 2 | BA124: 1 | BB124: -1 | BC124: -1 | BD124: -1 | BE124: 1 | BF124: 2 | BG124: -1 | BH124: -1 | BI124: -2 | BJ124: 1 | BK124: 1 | BL124: -1 | BM124: -2 | BN124: -2 | BO124: 1 | BP124: -1 | BQ124: 2 | BR124: -1 | BS124: 1 | BT124: 1 | BU124: -1 | BV124: 2 | BW124: 1 | BX124: 1 | BY124: -1 | BZ124: 1 | CA124: 1 | CB124: 1 | CC124: -2 | CD124: -1 | CE124: 1 | CF124: -1
A125: 1 | B125: 2 | C125: 1 | D125: 1 | E125: -1 | F125: -1 | G125: -1 | H125: -1 | I125: 1 | J125: 1 | K125: -1 | L125: 1 | M125: 1 | N125: -1 | O125: 1 | P125: 1 | Q125: -2 | R125: 1 | S125: -1 | T125: -1 | U125: -1 | V125: -1 | W125: -1 | X125: 1 | Y125: 1 | Z125: -2 | AA125: 1 | AB125: 1 | AC125: 1 | AD125: -1 | AE125: -1 | AF125: 2 | AG125: 1 | AH125: -1 | AI125: -1 | AJ125: -1 | AK125: -1 | AL125: 1 | AM125: -1 | AN125: -1 | AO125: 1 | AP125: 1 | AQ125: 1 | AR125: -2 | AS125: -2 | AT125: -1 | AU125: 1 | AV125: 2 | AW125: 2 | AX125: 1 | AY125: -1 | AZ125: -1 | BA125: -1 | BB125: 1 | BC125: 2 | BD125: -2 | BE125: -1 | BF125: 1 | BG125: 1 | BH125: -1 | BI125: -1 | BJ125: 1 | BK125: 1 | BL125: 2 | BM125: 1 | BN125: -1 | BO125: 1 | BP125: -1 | BQ125: 1 | BR125: 2 | BS125: -2 | BT125: -1 | BU125: 2 | BV125: 1 | BW125: -2 | BX125: 1 | BY125: -1 | BZ125: -2 | CA125: -1 | CB125: -1 | CC125: -2 | CD125: -1 | CE125: 2 | CF125: 2
A126: -1 | B126: -2 | C126: 1 | D126: -1 | E126: -1 | F126: 1 | G126: -2 | H126: -2 | I126: -1 | J126: 2 | K126: -1 | L126: -1 | M126: -1 | N126: -1 | O126: -1 | P126: 1 | Q126: 1 | R126: 1 | S126: -1 | T126: -1 | U126: -1 | V126: -1 | W126: -1 | X126: 1 | Y126: -1 | Z126: 1 | AA126: 2 | AB126: -1 | AC126: -1 | AD126: -1 | AE126: -1 | AF126: -1 | AG126: -1 | AH126: -2 | AI126: 1 | AJ126: 1 | AK126: 1 | AL126: -1 | AM126: 1 | AN126: -1 | AO126: 1 | AP126: -1 | AQ126: 1 | AR126: 2 | AS126: 1 | AT126: -1 | AU126: 2 | AV126: 1 | AW126: -1 | AX126: -2 | AY126: -1 | AZ126: 1 | BA126: 2 | BB126: 1 | BC126: -1 | BD126: 1 | BE126: -1 | BF126: -1 | BG126: -2 | BH126: 1 | BI126: 1 | BJ126: 1 | BK126: 1 | BL126: 1 | BM126: -1 | BN126: -1 | BO126: 1 | BP126: -1 | BQ126: -1 | BR126: -2 | BS126: -1 | BT126: -1 | BU126: -1 | BV126: -1 | BW126: -2 | BX126: 2 | BY126: -2 | BZ126: 1 | CA126: -2 | CB126: 2 | CC126: -1 | CD126: -1 | CE126: 1 | CF126: -2
A127: -1 | B127: -2 | C127: 1 | D127: 1 | E127: -2 | F127: -1 | G127: -1 | H127: 1 | I127: 1 | J127: 2 | K127: 1 | L127: -1 | M127: -1 | N127: 1 | O127: 1 | P127: -1 | Q127: 1 | R127: 1 | S127: -1 | T127: 1 | U127: 1 | V127: -2 | W127: -1 | X127: -2 | Y127: 1 | Z127: 1 | AA127: 1 | AB127: -1 | AC127: -1 | AD127: 1 | AE127: 1 | AF127: -1 | AG127: -2 | AH127: 2 | AI127: -1 | AJ127: 1 | AK127: -1 | AL127: -2 | AM127: 1 | AN127: -1 | AO127: 1 | AP127: -1 | AQ127: 2 | AR127: -2 | AS127: 1 | AT127: -1 | AU127: -1 | AV127: -1 | AW127: 1 | AX127: 1 | AY127: 1 | AZ127: -1 | BA127: 2 | BB127: 1 | BC127: -2 | BD127: 1 | BE127: -1 | BF127: -1 | BG127: 1 | BH127: 2 | BI127: -1 | BJ127: -2 | BK127: -1 | BL127: 1 | BM127: -2 | BN127: 1 | BO127: 1 | BP127: -1 | BQ127: -1 | BR127: 1 | BS127: -1 | BT127: -1 | BU127: 1 | BV127: 1 | BW127: -1 | BX127: 2 | BY127: 1 | BZ127: 2 | CA127: -2 | CB127: -1 | CC127: -1 | CD127: -1 | CE127: -1 | CF127: -1
A128: 1 | B128: 1 | C128: -1 | D128: 1 | E128: -1 | F128: 1 | G128: -2 | H128: -1 | I128: -2 | J128: 1 | K128: -1 | L128: 1 | M128: 2 | N128: 1 | O128: 1 | P128: 2 | Q128: -1 | R128: -1 | S128: -1 | T128: -1 | U128: 1 | V128: 1 | W128: -2 | X128: 2 | Y128: 1 | Z128: -1 | AA128: -1 | AB128: -1 | AC128: -2 | AD128: -1 | AE128: 1 | AF128: -1 | AG128: -1 | AH128: 2 | AI128: 1 | AJ128: -1 | AK128: 1 | AL128: 1 | AM128: 1 | AN128: -2 | AO128: 1 | AP128: -2 | AQ128: 2 | AR128: -1 | AS128: -1 | AT128: 1 | AU128: -1 | AV128: -1 | AW128: 1 | AX128: 1 | AY128: -1 | AZ128: 1 | BA128: 1 | BB128: 1 | BC128: 2 | BD128: -1 | BE128: 1 | BF128: -1 | BG128: 1 | BH128: -1 | BI128: -1 | BJ128: -1 | BK128: 1 | BL128: -1 | BM128: -2 | BN128: 2 | BO128: -1 | BP128: -2 | BQ128: 1 | BR128: 1 | BS128: 1 | BT128: 1 | BU128: -1 | BV128: 1 | BW128: -1 | BX128: 1 | BY128: 2 | BZ128: -1 | CA128: 1 | CB128: 1 | CC128: 1 | CD128: 2 | CE128: -1 | CF128: -2
A129: -2 | B129: -1 | C129: -1 | D129: 1 | E129: -1 | F129: 2 | G129: 1 | H129: 1 | I129: 1 | J129: -1 | K129: 1 | L129: -1 | M129: -1 | N129: 1 | O129: -2 | P129: -1 | Q129: 2 | R129: 2 | S129: -1 | T129: 1 | U129: 1 | V129: -4 | W129: 1 | X129: -1 | Y129: 1 | Z129: -1 | AA129: -1 | AB129: -1 | AC129: -1 | AD129: -1 | AE129: -1 | AF129: 2 | AG129: -1 | AH129: 2 | AI129: -1 | AJ129: 1 | AK129: -1 | AL129: -1 | AM129: 1 | AN129: 1 | AO129: -1 | AP129: 1 | AQ129: -1 | AR129: -1 | AS129: 1 | AT129: -2 | AU129: -1 | AV129: -1 | AW129: -1 | AX129: 2 | AY129: -1 | AZ129: 1 | BA129: 1 | BB129: 1 | BC129: 2 | BD129: -1 | BE129: 1 | BF129: 2 | BG129: 1 | BH129: 2 | BI129: -1 | BJ129: 1 | BK129: 1 | BL129: -4 | BM129: -1 | BN129: 1 | BO129: -1 | BP129: 1 | BQ129: -1 | BR129: 1 | BS129: -1 | BT129: -2 | BU129: -1 | BV129: 2 | BW129: 1 | BX129: -1 | BY129: 1 | BZ129: -1 | CA129: -1 | CB129: 1 | CC129: -1 | CD129: 1 | CE129: 1 | CF129: 1
A130: 1 | B130: 1 | C130: -1 | D130: 1 | E130: -1 | F130: 1 | G130: -1 | H130: 1 | I130: 1 | J130: 1 | K130: 2 | L130: 1 | M130: 1 | N130: 2 | O130: 1 | P130: 1 | Q130: -2 | R130: 2 | S130: 1 | T130: -1 | U130: 2 | V130: -1 | W130: -1 | X130: 2 | Y130: -1 | Z130: -1 | AA130: -1 | AB130: 1 | AC130: -1 | AD130: -2 | AE130: 2 | AF130: 1 | AG130: -2 | AH130: 4 | AI130: 1 | AJ130: -1 | AK130: 1 | AL130: 1 | AM130: 2 | AN130: -2 | AO130: -1 | AP130: -1 | AQ130: 1 | AR130: -1 | AS130: -1 | AT130: -1 | AU130: -1 | AV130: -1 | AW130: -1 | AX130: 1 | AY130: -1 | AZ130: -1 | BA130: -1 | BB130: -2 | BC130: 2 | BD130: -1 | BE130: 1 | BF130: 1 | BG130: -2 | BH130: 1 | BI130: -1 | BJ130: 2 | BK130: 1 | BL130: -2 | BM130: 1 | BN130: -1 | BO130: -2 | BP130: -1 | BQ130: -1 | BR130: 1 | BS130: 2 | BT130: -1 | BU130: 2 | BV130: 1 | BW130: 1 | BX130: -1 | BY130: 2 | BZ130: 1 | CA130: -2 | CB130: 1 | CC130: 1 | CD130: 2 | CE130: 1 | CF130: -2
A131: 4 | B131: -1 | C131: -1 | D131: -2 | E131: -2 | F131: -1 | G131: -1 | H131: -1 | I131: 1 | J131: -1 | K131: -1 | L131: -2 | M131: 1 | N131: 1 | O131: 1 | P131: 2 | Q131: -1 | R131: 1 | S131: -1 | T131: 1 | U131: -2 | V131: 4 | W131: -2 | X131: -1 | Y131: 1 | Z131: 1 | AA131: 1 | AB131: -1 | AC131: 1 | AD131: -1 | AE131: -1 | AF131: 1 | AG131: -1 | AH131: 2 | AI131: -1 | AJ131: -1 | AK131: 1 | AL131: -1 | AM131: 2 | AN131: 1 | AO131: -2 | AP131: -1 | AQ131: 4 | AR131: -2 | AS131: -1 | AT131: -1 | AU131: 1 | AV131: 1 | AW131: -2 | AX131: 1 | AY131: -2 | AZ131: -1 | BA131: -1 | BB131: -2 | BC131: 2 | BD131: 1 | BE131: 2 | BF131: 1 | BG131: -2 | BH131: 2 | BI131: -1 | BJ131: -1 | BK131: -2 | BL131: 4 | BM131: 1 | BN131: 1 | BO131: -1 | BP131: 1 | BQ131: -2 | BR131: 1 | BS131: -1 | BT131: 2 | BU131: -1 | BV131: -1 | BW131: -2 | BX131: 2 | BY131: -1 | BZ131: 1 | CA131: 1 | CB131: 1 | CC131: 2 | CD131: -2 | CE131: -1 | CF131: -2
A132: -2 | B132: -1 | C132: 2 | D132: -1 | E132: -1 | F132: 1 | G132: -1 | H132: 1 | I132: 1 | J132: -1 | K132: -1 | L132: 1 | M132: 1 | N132: 1 | O132: -1 | P132: 1 | Q132: -1 | R132: -1 | S132: 1 | T132: -1 | U132: -2 | V132: -2 | W132: 1 | X132: 1 | Y132: -1 | Z132: -1 | AA132: -1 | AB132: -1 | AC132: -1 | AD132: 1 | AE132: -1 | AF132: -1 | AG132: -2 | AH132: 1 | AI132: 2 | AJ132: 1 | AK132: 1 | AL132: -1 | AM132: -1 | AN132: 1 | AO132: 2 | AP132: -1 | AQ132: -2 | AR132: -1 | AS132: 1 | AT132: -1 | AU132: 1 | AV132: -1 | AW132: 1 | AX132: -1 | AY132: 2 | AZ132: -2 | BA132: -1 | BB132: -2 | BC132: 4 | BD132: 2 | BE132: 1 | BF132: 2 | BG132: -2 | BH132: 1 | BI132: 1 | BJ132: -1 | BK132: -1 | BL132: 1 | BM132: -2 | BN132: -1 | BO132: 1 | BP132: -1 | BQ132: 1 | BR132: 1 | BS132: 1 | BT132: 1 | BU132: -1 | BV132: -1 | BW132: 1 | BX132: -1 | BY132: 1 | BZ132: 2 | CA132: -1 | CB132: 1 | CC132: 1 | CD132: -1 | CE132: -1 | CF132: -1
A133: 1 | B133: -2 | C133: 2 | D133: -2 | E133: 1 | F133: -1 | G133: -2 | H133: -1 | I133: 1 | J133: 2 | K133: 2 | L133: -2 | M133: 1 | N133: -1 | O133: 1 | P133: -2 | Q133: -1 | R133: 2 | S133: -1 | T133: -1 | U133: -2 | V133: 1 | W133: -2 | X133: 1 | Y133: -1 | Z133: 1 | AA133: -2 | AB133: -2 | AC133: 2 | AD133: 1 | AE133: 2 | AF133: 1 | AG133: 1 | AH133: -1 | AI133: 1 | AJ133: -1 | AK133: -1 | AL133: 2 | AM133: -1 | AN133: 1 | AO133: 1 | AP133: -1 | AQ133: 1 | AR133: -2 | AS133: 1 | AT133: -1 | AU133: 1 | AV133: -1 | AW133: 1 | AX133: 2 | AY133: -1 | AZ133: 1 | BA133: -1 | BB133: -1 | BC133: 1 | BD133: -1 | BE133: -1 | BF133: -1 | BG133: 2 | BH133: 2 | BI133: 2 | BJ133: 1 | BK133: -1 | BL133: -1 | BM133: 1 | BN133: 1 | BO133: -2 | BP133: 1 | BQ133: -2 | BR133: -1 | BS133: 1 | BT133: -1 | BU133: 1 | BV133: 1 | BW133: -1 | BX133: 1 | BY133: 1 | BZ133: -1 | CA133: -2 | CB133: -2 | CC133: -1 | CD133: 1 | CE133: 1 | CF133: 1
A134: 2 | B134: -1 | C134: -1 | D134: -1 | E134: 1 | F134: 1 | G134: 1 | H134: -1 | I134: 2 | J134: 1 | K134: 1 | L134: -2 | M134: -1 | N134: 1 | O134: 1 | P134: -1 | Q134: 1 | R134: -1 | S134: 1 | T134: -2 | U134: -1 | V134: -1 | W134: -1 | X134: -1 | Y134: -2 | Z134: -2 | AA134: -2 | AB134: -2 | AC134: 2 | AD134: -1 | AE134: -2 | AF134: -1 | AG134: -2 | AH134: 1 | AI134: 1 | AJ134: -2 | AK134: 1 | AL134: -2 | AM134: -1 | AN134: -1 | AO134: 1 | AP134: -2 | AQ134: 1 | AR134: -2 | AS134: -2 | AT134: -1 | AU134: -1 | AV134: 1 | AW134: 1 | AX134: 1 | AY134: 1 | AZ134: -1 | BA134: -1 | BB134: 1 | BC134: 1 | BD134: 1 | BE134: 1 | BF134: -1 | BG134: 1 | BH134: -1 | BI134: 1 | BJ134: -1 | BK134: -1 | BL134: -1 | BM134: -1 | BN134: -1 | BO134: -1 | BP134: 1 | BQ134: -2 | BR134: -1 | BS134: -1 | BT134: -1 | BU134: -2 | BV134: 1 | BW134: -1 | BX134: 2 | BY134: 1 | BZ134: -1 | CA134: -1 | CB134: 1 | CC134: 1 | CD134: 1 | CE134: -1 | CF134: -1
A135: -2 | B135: -1 | C135: -1 | D135: -1 | E135: -2 | F135: -1 | G135: -1 | H135: -1 | I135: 2 | J135: 1 | K135: 2 | L135: 1 | M135: 1 | N135: 2 | O135: -2 | P135: -1 | Q135: 1 | R135: 2 | S135: -1 | T135: -1 | U135: 1 | V135: -2 | W135: -1 | X135: 1 | Y135: -1 | Z135: -1 | AA135: -1 | AB135: 1 | AC135: 1 | AD135: 2 | AE135: 1 | AF135: 1 | AG135: 1 | AH135: 1 | AI135: 1 | AJ135: 1 | AK135: 1 | AL135: -1 | AM135: -1 | AN135: -1 | AO135: 2 | AP135: 1 | AQ135: -2 | AR135: -1 | AS135: -1 | AT135: 1 | AU135: 1 | AV135: 1 | AW135: 1 | AX135: 1 | AY135: 1 | AZ135: -1 | BA135: 1 | BB135: -1 | BC135: 2 | BD135: 2 | BE135: -2 | BF135: 1 | BG135: 1 | BH135: 1 | BI135: -1 | BJ135: 2 | BK135: 1 | BL135: -1 | BM135: -1 | BN135: -1 | BO135: -1 | BP135: -2 | BQ135: 1 | BR135: -1 | BS135: -1 | BT135: 1 | BU135: 1 | BV135: 1 | BW135: -1 | BX135: -1 | BY135: 1 | BZ135: 1 | CA135: 1 | CB135: 2 | CC135: 2 | CD135: -1 | CE135: 1 | CF135: -2
A136: -1 | B136: 1 | C136: 2 | D136: -2 | E136: 1 | F136: -1 | G136: 1 | H136: -1 | I136: -1 | J136: -1 | K136: -1 | L136: 1 | M136: -1 | N136: 1 | O136: -1 | P136: 2 | Q136: 1 | R136: -1 | S136: -1 | T136: 2 | U136: -2 | V136: -1 | W136: -2 | X136: 2 | Y136: -1 | Z136: -1 | AA136: 1 | AB136: -1 | AC136: -1 | AD136: -1 | AE136: 2 | AF136: -1 | AG136: -1 | AH136: -1 | AI136: -1 | AJ136: -1 | AK136: -1 | AL136: -1 | AM136: -1 | AN136: 1 | AO136: -1 | AP136: 2 | AQ136: 2 | AR136: -1 | AS136: 1 | AT136: -1 | AU136: -1 | AV136: -1 | AW136: 1 | AX136: 1 | AY136: -1 | AZ136: 1 | BA136: 1 | BB136: 1 | BC136: -1 | BD136: 1 | BE136: 1 | BF136: 1 | BG136: -2 | BH136: 1 | BI136: -1 | BJ136: 2 | BK136: -2 | BL136: -2 | BM136: 1 | BN136: 2 | BO136: -1 | BP136: 1 | BQ136: -1 | BR136: 1 | BS136: -1 | BT136: -1 | BU136: -1 | BV136: -1 | BW136: 1 | BX136: -1 | BY136: 2 | BZ136: -1 | CA136: 1 | CB136: -1 | CC136: -2 | CD136: -1 | CE136: -1 | CF136: 1
A137: 1 | B137: -1 | C137: -1 | D137: -2 | E137: 2 | F137: -1 | G137: 1 | H137: -1 | I137: 1 | J137: -1 | K137: -1 | L137: 1 | M137: -1 | N137: 1 | O137: 2 | P137: 4 | Q137: -1 | R137: 1 | S137: -1 | T137: 2 | U137: -1 | V137: -1 | W137: -1 | X137: -1 | Y137: -4 | Z137: 2 | AA137: -1 | AB137: 1 | AC137: -1 | AD137: -1 | AE137: -1 | AF137: 1 | AG137: 1 | AH137: 1 | AI137: 2 | AJ137: 1 | AK137: 1 | AL137: -1 | AM137: 1 | AN137: -2 | AO137: 1 | AP137: 1 | AQ137: 2 | AR137: 1 | AS137: -1 | AT137: -1 | AU137: -1 | AV137: -1 | AW137: -1 | AX137: -1 | AY137: -1 | AZ137: 1 | BA137: -1 | BB137: -2 | BC137: -2 | BD137: -1 | BE137: 1 | BF137: 1 | BG137: -2 | BH137: -1 | BI137: 1 | BJ137: 1 | BK137: -2 | BL137: 1 | BM137: -1 | BN137: -1 | BO137: -2 | BP137: -1 | BQ137: -1 | BR137: 1 | BS137: -1 | BT137: -1 | BU137: 1 | BV137: 2 | BW137: -1 | BX137: -2 | BY137: 2 | BZ137: -1 | CA137: 4 | CB137: -1 | CC137: 1 | CD137: 2 | CE137: -1 | CF137: 1
A138: -1 | B138: 1 | C138: 1 | D138: -1 | E138: 1 | F138: -2 | G138: -1 | H138: -1 | I138: -1 | J138: -1 | K138: 1 | L138: 1 | M138: -1 | N138: -1 | O138: -1 | P138: -2 | Q138: -1 | R138: -1 | S138: 2 | T138: 2 | U138: -2 | V138: -1 | W138: -1 | X138: -1 | Y138: -2 | Z138: -1 | AA138: -1 | AB138: 1 | AC138: 2 | AD138: -1 | AE138: -1 | AF138: 2 | AG138: 1 | AH138: -1 | AI138: 2 | AJ138: -1 | AK138: 1 | AL138: 1 | AM138: -2 | AN138: -1 | AO138: 2 | AP138: -1 | AQ138: 1 | AR138: -1 | AS138: -1 | AT138: -2 | AU138: -1 | AV138: -2 | AW138: 2 | AX138: 1 | AY138: -1 | AZ138: 1 | BA138: -1 | BB138: -1 | BC138: 1 | BD138: 1 | BE138: 1 | BF138: 1 | BG138: -2 | BH138: -1 | BI138: -1 | BJ138: -1 | BK138: -1 | BL138: -1 | BM138: -1 | BN138: -1 | BO138: -2 | BP138: 1 | BQ138: 1 | BR138: -1 | BS138: -1 | BT138: -1 | BU138: 2 | BV138: -1 | BW138: 1 | BX138: 1 | BY138: -1 | BZ138: 1 | CA138: -1 | CB138: -1 | CC138: 1 | CD138: -1 | CE138: 1 | CF138: -2
A139: -1 | B139: -1 | C139: 2 | D139: 1 | E139: -2 | F139: -2 | G139: -1 | H139: -1 | I139: -2 | J139: -1 | K139: 1 | L139: -2 | M139: -1 | N139: -1 | O139: 1 | P139: 1 | Q139: -1 | R139: 1 | S139: -1 | T139: -1 | U139: 1 | V139: -2 | W139: 1 | X139: 1 | Y139: -1 | Z139: -1 | AA139: -2 | AB139: 1 | AC139: 1 | AD139: 1 | AE139: -1 | AF139: 1 | AG139: 1 | AH139: -1 | AI139: 2 | AJ139: 2 | AK139: 1 | AL139: 1 | AM139: -1 | AN139: 2 | AO139: 1 | AP139: -1 | AQ139: 1 | AR139: 1 | AS139: -1 | AT139: -1 | AU139: -1 | AV139: 1 | AW139: 2 | AX139: -1 | AY139: -1 | AZ139: 2 | BA139: -2 | BB139: 1 | BC139: 1 | BD139: -1 | BE139: 1 | BF139: 2 | BG139: -2 | BH139: -1 | BI139: 2 | BJ139: -1 | BK139: 2 | BL139: -2 | BM139: -1 | BN139: -1 | BO139: -1 | BP139: 2 | BQ139: 1 | BR139: 1 | BS139: -1 | BT139: -1 | BU139: 1 | BV139: -1 | BW139: 2 | BX139: 1 | BY139: 1 | BZ139: 2 | CA139: 2 | CB139: -1 | CC139: 1 | CD139: -1 | CE139: 2 | CF139: 1
A140: 4 | B140: 1 | C140: -1 | D140: -2 | E140: -1 | F140: 1 | G140: 2 | H140: 2 | I140: -2 | J140: 1 | K140: -1 | L140: 1 | M140: -1 | N140: -2 | O140: 1 | P140: 2 | Q140: 1 | R140: 1 | S140: 1 | T140: 2 | U140: 1 | V140: 4 | W140: 1 | X140: 1 | Y140: -1 | Z140: 1 | AA140: -2 | AB140: 2 | AC140: 1 | AD140: -1 | AE140: -1 | AF140: -2 | AG140: 1 | AH140: -1 | AI140: -1 | AJ140: 2 | AK140: 2 | AL140: 1 | AM140: -2 | AN140: 2 | AO140: 2 | AP140: 2 | AQ140: 1 | AR140: 1 | AS140: -1 | AT140: -2 | AU140: -2 | AV140: -2 | AW140: 1 | AX140: 2 | AY140: -2 | AZ140: 1 | BA140: -1 | BB140: -2 | BC140: -2 | BD140: 2 | BE140: 1 | BF140: 1 | BG140: -2 | BH140: 1 | BI140: 4 | BJ140: 1 | BK140: 1 | BL140: 4 | BM140: -2 | BN140: 1 | BO140: -2 | BP140: -1 | BQ140: -2 | BR140: 1 | BS140: -1 | BT140: -1 | BU140: 2 | BV140: -1 | BW140: 1 | BX140: -1 | BY140: -1 | BZ140: 2 | CA140: 1 | CB140: 1 | CC140: -2 | CD140: 1 | CE140: 2 | CF140: 1
A141: 1 | B141: -1 | C141: 1 | D141: 1 | E141: 2 | F141: -1 | G141: 1 | H141: 2 | I141: -2 | J141: 1 | K141: -1 | L141: -2 | M141: 1 | N141: -1 | O141: 2 | P141: 1 | Q141: -2 | R141: -1 | S141: 2 | T141: 2 | U141: -1 | V141: 1 | W141: 1 | X141: -1 | Y141: 1 | Z141: 1 | AA141: -1 | AB141: 1 | AC141: 2 | AD141: 1 | AE141: 1 | AF141: -1 | AG141: -1 | AH141: 1 | AI141: 1 | AJ141: -1 | AK141: -1 | AL141: -2 | AM141: 1 | AN141: 2 | AO141: 2 | AP141: 1 | AQ141: -1 | AR141: -1 | AS141: 1 | AT141: 1 | AU141: 1 | AV141: 1 | AW141: 1 | AX141: 2 | AY141: 1 | AZ141: 1 | BA141: 1 | BB141: -1 | BC141: -2 | BD141: -1 | BE141: 2 | BF141: 1 | BG141: -1 | BH141: -1 | BI141: 1 | BJ141: 1 | BK141: 2 | BL141: 1 | BM141: -2 | BN141: -1 | BO141: -2 | BP141: -1 | BQ141: 1 | BR141: 2 | BS141: 1 | BT141: -1 | BU141: -1 | BV141: 1 | BW141: -1 | BX141: -1 | BY141: 1 | BZ141: -1 | CA141: 1 | CB141: -2 | CC141: 1 | CD141: 1 | CE141: -1 | CF141: 2
A142: -2 | B142: 1 | C142: 1 | D142: -1 | E142: 1 | F142: -2 | G142: 1 | H142: 1 | I142: -1 | J142: -1 | K142: -1 | L142: 1 | M142: 1 | N142: -2 | O142: -1 | P142: 2 | Q142: -2 | R142: -1 | S142: 1 | T142: 1 | U142: 1 | V142: -1 | W142: 1 | X142: -1 | Y142: -1 | Z142: 2 | AA142: 1 | AB142: 1 | AC142: 1 | AD142: -1 | AE142: 1 | AF142: 1 | AG142: 1 | AH142: -1 | AI142: 1 | AJ142: 1 | AK142: 1 | AL142: -2 | AM142: -1 | AN142: 1 | AO142: -1 | AP142: -1 | AQ142: 1 | AR142: 1 | AS142: -2 | AT142: 1 | AU142: 1 | AV142: -2 | AW142: -1 | AX142: 2 | AY142: 1 | AZ142: -1 | BA142: -1 | BB142: -1 | BC142: 1 | BD142: -1 | BE142: 2 | BF142: -2 | BG142: -1 | BH142: -1 | BI142: -1 | BJ142: 2 | BK142: -1 | BL142: -1 | BM142: 1 | BN142: -1 | BO142: -1 | BP142: 2 | BQ142: 1 | BR142: 1 | BS142: -1 | BT142: -1 | BU142: -1 | BV142: 1 | BW142: 1 | BX142: -1 | BY142: -2 | BZ142: -1 | CA142: 1 | CB142: 1 | CC142: -1 | CD142: 1 | CE142: -1 | CF142: 2
A143: -1 | B143: 1 | C143: -1 | D143: -1 | E143: 1 | F143: 1 | G143: 1 | H143: -1 | I143: -1 | J143: 1 | K143: -1 | L143: -1 | M143: -1 | N143: 1 | O143: -1 | P143: -1 | Q143: -2 | R143: -2 | S143: -1 | T143: 1 | U143: 2 | V143: 1 | W143: 1 | X143: 2 | Y143: -1 | Z143: -1 | AA143: -1 | AB143: 2 | AC143: 1 | AD143: -1 | AE143: -1 | AF143: 1 | AG143: -1 | AH143: -1 | AI143: -2 | AJ143: 1 | AK143: 1 | AL143: 1 | AM143: -1 | AN143: -2 | AO143: -1 | AP143: 1 | AQ143: -1 | AR143: 2 | AS143: -2 | AT143: -1 | AU143: -1 | AV143: -2 | AW143: 1 | AX143: 1 | AY143: -1 | AZ143: -2 | BA143: 2 | BB143: 2 | BC143: 1 | BD143: 1 | BE143: 2 | BF143: 1 | BG143: -2 | BH143: -2 | BI143: 2 | BJ143: 2 | BK143: 2 | BL143: 1 | BM143: -2 | BN143: 1 | BO143: -2 | BP143: 1 | BQ143: 1 | BR143: -1 | BS143: -1 | BT143: 1 | BU143: 2 | BV143: -1 | BW143: -1 | BX143: -1 | BY143: 1 | BZ143: 2 | CA143: 1 | CB143: 1 | CC143: -1 | CD143: -1 | CE143: 1 | CF143: -1
A144: -1 | B144: -1 | C144: -1 | D144: 1 | E144: 1 | F144: -2 | G144: 2 | H144: -1 | I144: -2 | J144: -1 | K144: 1 | L144: 1 | M144: 1 | N144: -2 | O144: 1 | P144: -1 | Q144: 1 | R144: -2 | S144: 1 | T144: 2 | U144: 2 | V144: 1 | W144: 1 | X144: 1 | Y144: 1 | Z144: 1 | AA144: -1 | AB144: 1 | AC144: 1 | AD144: -1 | AE144: -2 | AF144: -2 | AG144: 1 | AH144: 1 | AI144: -1 | AJ144: 1 | AK144: -1 | AL144: -1 | AM144: 1 | AN144: 1 | AO144: 1 | AP144: 1 | AQ144: 1 | AR144: 2 | AS144: -2 | AT144: -2 | AU144: 1 | AV144: -1 | AW144: -1 | AX144: 2 | AY144: 1 | AZ144: 1 | BA144: -1 | BB144: 1 | BC144: 1 | BD144: -1 | BE144: 2 | BF144: -1 | BG144: 1 | BH144: -1 | BI144: 1 | BJ144: 1 | BK144: -1 | BL144: 2 | BM144: 1 | BN144: -2 | BO144: 1 | BP144: -1 | BQ144: 1 | BR144: 2 | BS144: 1 | BT144: 1 | BU144: 1 | BV144: 1 | BW144: 1 | BX144: 1 | BY144: -1 | BZ144: -1 | CA144: 1 | CB144: 1 | CC144: 1 | CD144: 1 | CE144: 1 | CF144: -2
A145: -1 | B145: -2 | C145: -1 | D145: 2 | E145: 1 | F145: -1 | G145: -1 | H145: 1 | I145: 1 | J145: -1 | K145: -1 | L145: 1 | M145: -1 | N145: -1 | O145: 2 | P145: 2 | Q145: -2 | R145: -1 | S145: 1 | T145: 1 | U145: 1 | V145: 2 | W145: 2 | X145: 2 | Y145: 1 | Z145: 1 | AA145: -2 | AB145: 2 | AC145: -2 | AD145: 1 | AE145: 1 | AF145: -1 | AG145: -1 | AH145: 2 | AI145: 2 | AJ145: -1 | AK145: 2 | AL145: 1 | AM145: -1 | AN145: 1 | AO145: -1 | AP145: -1 | AQ145: 2 | AR145: -1 | AS145: 2 | AT145: -2 | AU145: 1 | AV145: 1 | AW145: -2 | AX145: -1 | AY145: -1 | AZ145: -2 | BA145: 1 | BB145: -1 | BC145: -1 | BD145: 2 | BE145: -1 | BF145: 1 | BG145: 1 | BH145: -1 | BI145: -2 | BJ145: -1 | BK145: -2 | BL145: -1 | BM145: -1 | BN145: 1 | BO145: -1 | BP145: -2 | BQ145: -2 | BR145: 1 | BS145: 2 | BT145: -1 | BU145: -1 | BV145: 1 | BW145: 1 | BX145: 1 | BY145: -1 | BZ145: -2 | CA145: 2 | CB145: -2 | CC145: 1 | CD145: -1 | CE145: -1 | CF145: -1
A146: 2 | B146: 1 | C146: -2 | D146: 1 | E146: 1 | F146: -1 | G146: 1 | H146: 1 | I146: 1 | J146: -2 | K146: 1 | L146: -1 | M146: -1 | N146: 1 | O146: 2 | P146: 1 | Q146: -1 | R146: 1 | S146: 1 | T146: 1 | U146: -1 | V146: 1 | W146: -1 | X146: -1 | Y146: 1 | Z146: 1 | AA146: -2 | AB146: 1 | AC146: -1 | AD146: 1 | AE146: -1 | AF146: -1 | AG146: 1 | AH146: 1 | AI146: 1 | AJ146: 2 | AK146: 1 | AL146: 2 | AM146: -1 | AN146: 1 | AO146: 1 | AP146: 1 | AQ146: 1 | AR146: 1 | AS146: -1 | AT146: -2 | AU146: 1 | AV146: 1 | AW146: 1 | AX146: -1 | AY146: -1 | AZ146: -1 | BA146: -1 | BB146: -1 | BC146: -1 | BD146: -1 | BE146: 1 | BF146: 1 | BG146: -1 | BH146: 1 | BI146: 1 | BJ146: -1 | BK146: 1 | BL146: 1 | BM146: 1 | BN146: 1 | BO146: 1 | BP146: 1 | BQ146: -1 | BR146: -1 | BS146: -2 | BT146: -2 | BU146: -1 | BV146: -1 | BW146: -1 | BX146: 2 | BY146: 1 | BZ146: -1 | CA146: 1 | CB146: -1 | CC146: 1 | CD146: 2 | CE146: -1 | CF146: -1
A147: 1 | B147: 1 | C147: -2 | D147: -1 | E147: -1 | F147: -1 | G147: 1 | H147: -2 | I147: -2 | J147: -1 | K147: 1 | L147: 1 | M147: -1 | N147: 2 | O147: 1 | P147: 2 | Q147: -1 | R147: 1 | S147: 1 | T147: -2 | U147: -2 | V147: -1 | W147: 1 | X147: -1 | Y147: -1 | Z147: -1 | AA147: 1 | AB147: 1 | AC147: -1 | AD147: -1 | AE147: -1 | AF147: -1 | AG147: 1 | AH147: -1 | AI147: 2 | AJ147: 1 | AK147: -1 | AL147: -1 | AM147: 1 | AN147: 1 | AO147: -2 | AP147: -1 | AQ147: 2 | AR147: 2 | AS147: -2 | AT147: 1 | AU147: -1 | AV147: -1 | AW147: -1 | AX147: -2 | AY147: -1 | AZ147: -1 | BA147: -1 | BB147: 1 | BC147: 1 | BD147: 1 | BE147: -1 | BF147: 1 | BG147: -2 | BH147: 1 | BI147: 1 | BJ147: 2 | BK147: 1 | BL147: 2 | BM147: -1 | BN147: 2 | BO147: 2 | BP147: -1 | BQ147: -2 | BR147: -1 | BS147: -1 | BT147: 1 | BU147: 2 | BV147: -1 | BW147: 1 | BX147: 1 | BY147: 1 | BZ147: 2 | CA147: -2 | CB147: -1 | CC147: 1 | CD147: -1 | CE147: -1 | CF147: -1
A148: 1 | B148: 1 | C148: 2 | D148: 1 | E148: -1 | F148: -2 | G148: -1 | H148: -1 | I148: -1 | J148: -1 | K148: -1 | L148: 1 | M148: 1 | N148: -1 | O148: 1 | P148: -1 | Q148: 1 | R148: 2 | S148: 1 | T148: -1 | U148: -1 | V148: 1 | W148: 1 | X148: -2 | Y148: -1 | Z148: 2 | AA148: 2 | AB148: 1 | AC148: 1 | AD148: 1 | AE148: 1 | AF148: 1 | AG148: 1 | AH148: -2 | AI148: -1 | AJ148: -1 | AK148: -1 | AL148: 2 | AM148: 1 | AN148: -2 | AO148: 1 | AP148: 1 | AQ148: 2 | AR148: 1 | AS148: 1 | AT148: 2 | AU148: 1 | AV148: -1 | AW148: -1 | AX148: -1 | AY148: -1 | AZ148: 1 | BA148: 1 | BB148: 1 | BC148: 1 | BD148: 1 | BE148: -1 | BF148: 1 | BG148: 1 | BH148: -1 | BI148: 1 | BJ148: -1 | BK148: -2 | BL148: -1 | BM148: 1 | BN148: -1 | BO148: -2 | BP148: -2 | BQ148: -2 | BR148: 1 | BS148: -1 | BT148: 2 | BU148: -2 | BV148: 2 | BW148: 1 | BX148: -2 | BY148: 1 | BZ148: -1 | CA148: -1 | CB148: 2 | CC148: 1 | CD148: -2 | CE148: -1 | CF148: -1
A149: -1 | B149: 1 | C149: 1 | D149: -1 | E149: 1 | F149: 1 | G149: 1 | H149: -1 | I149: -1 | J149: -1 | K149: 1 | L149: 1 | M149: 1 | N149: 1 | O149: 1 | P149: -1 | Q149: 1 | R149: -1 | S149: 1 | T149: 1 | U149: -1 | V149: 1 | W149: -1 | X149: -1 | Y149: 1 | Z149: 1 | AA149: -1 | AB149: 1 | AC149: 1 | AD149: 1 | AE149: 2 | AF149: -1 | AG149: -1 | AH149: -1 | AI149: -1 | AJ149: 1 | AK149: -2 | AL149: 1 | AM149: 1 | AN149: 2 | AO149: -1 | AP149: -1 | AQ149: -1 | AR149: 1 | AS149: -1 | AT149: -1 | AU149: 1 | AV149: -1 | AW149: -1 | AX149: -2 | AY149: -1 | AZ149: -1 | BA149: -1 | BB149: 1 | BC149: -1 | BD149: 1 | BE149: -1 | BF149: -1 | BG149: 2 | BH149: 2 | BI149: 1 | BJ149: 2 | BK149: 1 | BL149: 1 | BM149: 2 | BN149: 2 | BO149: -1 | BP149: -1 | BQ149: -2 | BR149: -1 | BS149: -1 | BT149: -2 | BU149: 1 | BV149: -1 | BW149: -1 | BX149: -1 | BY149: 1 | BZ149: -1 | CA149: 1 | CB149: 1 | CC149: -1 | CD149: 1 | CE149: 1 | CF149: -1
A150: -2 | B150: 1 | C150: 1 | D150: -1 | E150: -1 | F150: 1 | G150: 1 | H150: -1 | I150: 1 | J150: -2 | K150: 1 | L150: 1 | M150: -1 | N150: 1 | O150: 2 | P150: -1 | Q150: -1 | R150: -1 | S150: 1 | T150: 2 | U150: -1 | V150: 1 | W150: 1 | X150: 1 | Y150: -1 | Z150: 1 | AA150: -2 | AB150: 1 | AC150: -1 | AD150: 1 | AE150: 1 | AF150: -1 | AG150: 1 | AH150: 1 | AI150: -2 | AJ150: -1 | AK150: -2 | AL150: -2 | AM150: -1 | AN150: 1 | AO150: -1 | AP150: 2 | AQ150: -2 | AR150: -1 | AS150: -1 | AT150: 1 | AU150: -2 | AV150: -1 | AW150: -1 | AX150: -2 | AY150: -1 | AZ150: 1 | BA150: 1 | BB150: -1 | BC150: -1 | BD150: -1 | BE150: 1 | BF150: 1 | BG150: 1 | BH150: 1 | BI150: 1 | BJ150: -1 | BK150: 1 | BL150: 1 | BM150: -1 | BN150: -1 | BO150: 1 | BP150: 1 | BQ150: -1 | BR150: 1 | BS150: 1 | BT150: 1 | BU150: 1 | BV150: -2 | BW150: 1 | BX150: 2 | BY150: 1 | BZ150: -1 | CA150: -1 | CB150: 2 | CC150: -1 | CD150: 2 | CE150: -1 | CF150: -1
A151: 1 | B151: 1 | C151: -1 | D151: -2 | E151: -2 | F151: 1 | G151: 1 | H151: -2 | I151: 2 | J151: 2 | K151: 2 | L151: 1 | M151: 1 | N151: 1 | O151: 1 | P151: 1 | Q151: -1 | R151: -1 | S151: -1 | T151: 1 | U151: -1 | V151: 1 | W151: 2 | X151: -1 | Y151: -1 | Z151: -1 | AA151: 1 | AB151: 1 | AC151: -1 | AD151: 1 | AE151: -1 | AF151: 1 | AG151: 1 | AH151: -1 | AI151: -1 | AJ151: -1 | AK151: 1 | AL151: 1 | AM151: -1 | AN151: -1 | AO151: -2 | AP151: 1 | AQ151: -2 | AR151: 1 | AS151: -2 | AT151: 1 | AU151: 1 | AV151: 1 | AW151: -1 | AX151: -1 | AY151: -1 | AZ151: 1 | BA151: 1 | BB151: 2 | BC151: -1 | BD151: 1 | BE151: -1 | BF151: -2 | BG151: -2 | BH151: 1 | BI151: -1 | BJ151: -1 | BK151: 1 | BL151: -1 | BM151: -2 | BN151: 2 | BO151: -1 | BP151: -1 | BQ151: 2 | BR151: -1 | BS151: -1 | BT151: 1 | BU151: -1 | BV151: 1 | BW151: -1 | BX151: 1 | BY151: -2 | BZ151: -1 | CA151: 1 | CB151: 1 | CC151: 1 | CD151: -1 | CE151: 2 | CF151: -2
A152: 1 | B152: -1 | C152: 1 | D152: 2 | E152: -1 | F152: 2 | G152: 1 | H152: 2 | I152: -1 | J152: -1 | K152: 1 | L152: -1 | M152: 1 | N152: -2 | O152: 1 | P152: -1 | Q152: -2 | R152: 2 | S152: 1 | T152: -1 | U152: -1 | V152: -1 | W152: 1 | X152: 1 | Y152: -1 | Z152: -1 | AA152: -1 | AB152: 1 | AC152: -2 | AD152: 2 | AE152: -1 | AF152: -1 | AG152: 1 | AH152: -1 | AI152: -1 | AJ152: -1 | AK152: 1 | AL152: 1 | AM152: 1 | AN152: -1 | AO152: -1 | AP152: 1 | AQ152: 2 | AR152: 1 | AS152: 1 | AT152: -1 | AU152: -1 | AV152: 1 | AW152: 1 | AX152: 2 | AY152: -2 | AZ152: -1 | BA152: 1 | BB152: 1 | BC152: 1 | BD152: -1 | BE152: -1 | BF152: -2 | BG152: 1 | BH152: -1 | BI152: 1 | BJ152: 1 | BK152: 2 | BL152: 1 | BM152: -1 | BN152: 2 | BO152: 1 | BP152: -2 | BQ152: -1 | BR152: -1 | BS152: 2 | BT152: -1 | BU152: -1 | BV152: 2 | BW152: -1 | BX152: -1 | BY152: -2 | BZ152: 1 | CA152: -1 | CB152: 1 | CC152: 1 | CD152: 2 | CE152: 1 | CF152: -1
A153: -1 | B153: -1 | C153: 1 | D153: -2 | E153: 1 | F153: -1 | G153: -1 | H153: -1 | I153: 1 | J153: -2 | K153: 2 | L153: 1 | M153: 1 | N153: -1 | O153: 1 | P153: -1 | Q153: -1 | R153: -1 | S153: 1 | T153: 1 | U153: -1 | V153: 1 | W153: 1 | X153: 2 | Y153: 1 | Z153: -2 | AA153: 2 | AB153: 1 | AC153: -1 | AD153: 2 | AE153: -2 | AF153: -2 | AG153: 1 | AH153: 1 | AI153: -2 | AJ153: -1 | AK153: 2 | AL153: -1 | AM153: 1 | AN153: 2 | AO153: 1 | AP153: -2 | AQ153: 1 | AR153: -1 | AS153: -1 | AT153: -1 | AU153: 1 | AV153: 1 | AW153: 1 | AX153: -2 | AY153: 1 | AZ153: -2 | BA153: -1 | BB153: 1 | BC153: 1 | BD153: -2 | BE153: -1 | BF153: -2 | BG153: 1 | BH153: 1 | BI153: -1 | BJ153: -1 | BK153: 1 | BL153: 1 | BM153: 1 | BN153: -1 | BO153: -1 | BP153: -2 | BQ153: -1 | BR153: 1 | BS153: 1 | BT153: -1 | BU153: 1 | BV153: 1 | BW153: 1 | BX153: 1 | BY153: -1 | BZ153: -1 | CA153: -1 | CB153: 1 | CC153: -1 | CD153: -1 | CE153: -2 | CF153: -1
A154: 2 | B154: 2 | C154: -2 | D154: -1 | E154: 1 | F154: 1 | G154: -1 | H154: 1 | I154: -1 | J154: -1 | K154: 1 | L154: -2 | M154: -2 | N154: 1 | O154: 1 | P154: 1 | Q154: 2 | R154: 2 | S154: 1 | T154: -1 | U154: -2 | V154: 1 | W154: -1 | X154: -1 | Y154: -2 | Z154: 1 | AA154: 2 | AB154: -1 | AC154: 1 | AD154: 1 | AE154: -1 | AF154: -1 | AG154: -1 | AH154: -1 | AI154: -1 | AJ154: 1 | AK154: 1 | AL154: 1 | AM154: -2 | AN154: 2 | AO154: 1 | AP154: -2 | AQ154: -1 | AR154: -2 | AS154: 1 | AT154: -1 | AU154: 1 | AV154: 1 | AW154: -1 | AX154: 1 | AY154: 1 | AZ154: 1 | BA154: 1 | BB154: -1 | BC154: -1 | BD154: -1 | BE154: -2 | BF154: -1 | BG154: -1 | BH154: 1 | BI154: 1 | BJ154: 1 | BK154: -2 | BL154: 2 | BM154: 1 | BN154: 1 | BO154: -1 | BP154: -1 | BQ154: 1 | BR154: 2 | BS154: -2 | BT154: 1 | BU154: -1 | BV154: 1 | BW154: -1 | BX154: -1 | BY154: 1 | BZ154: -1 | CA154: -2 | CB154: 1 | CC154: 1 | CD154: 1 | CE154: -1 | CF154: -1
A155: -2 | B155: -1 | C155: -1 | D155: -1 | E155: -1 | F155: -1 | G155: -2 | H155: -2 | I155: -2 | J155: -1 | K155: -1 | L155: 2 | M155: -1 | N155: 1 | O155: -1 | P155: 1 | Q155: 1 | R155: 1 | S155: -2 | T155: 1 | U155: -1 | V155: -1 | W155: -1 | X155: 1 | Y155: -1 | Z155: 2 | AA155: 1 | AB155: 1 | AC155: 1 | AD155: -1 | AE155: -1 | AF155: 1 | AG155: 1 | AH155: -1 | AI155: 2 | AJ155: -2 | AK155: -1 | AL155: -1 | AM155: -1 | AN155: -2 | AO155: 2 | AP155: 1 | AQ155: 1 | AR155: 2 | AS155: -1 | AT155: 2 | AU155: -2 | AV155: 2 | AW155: 1 | AX155: -2 | AY155: 2 | AZ155: 1 | BA155: -1 | BB155: -1 | BC155: -2 | BD155: -1 | BE155: 1 | BF155: -1 | BG155: 1 | BH155: 1 | BI155: -1 | BJ155: -2 | BK155: -1 | BL155: 2 | BM155: 1 | BN155: 1 | BO155: -2 | BP155: -1 | BQ155: 2 | BR155: -1 | BS155: -2 | BT155: 1 | BU155: -1 | BV155: -1 | BW155: -1 | BX155: -1 | BY155: -1 | BZ155: -1 | CA155: -2 | CB155: 2 | CC155: -2 | CD155: -1 | CE155: -1 | CF155: 1
A156: 1 | B156: -1 | C156: -2 | D156: 1 | E156: -1 | F156: -2 | G156: -2 | H156: -1 | I156: 1 | J156: 1 | K156: -1 | L156: -1 | M156: -1 | N156: -1 | O156: -1 | P156: 1 | Q156: 2 | R156: 1 | S156: 1 | T156: 1 | U156: 1 | V156: 1 | W156: 1 | X156: 2 | Y156: 1 | Z156: 1 | AA156: 1 | AB156: 2 | AC156: -1 | AD156: 1 | AE156: 2 | AF156: 1 | AG156: -1 | AH156: -1 | AI156: -2 | AJ156: 1 | AK156: -1 | AL156: 2 | AM156: 1 | AN156: -1 | AO156: -2 | AP156: 1 | AQ156: 1 | AR156: -1 | AS156: -1 | AT156: 1 | AU156: 1 | AV156: -2 | AW156: 1 | AX156: -1 | AY156: -1 | AZ156: -1 | BA156: -2 | BB156: 1 | BC156: -1 | BD156: 1 | BE156: 1 | BF156: -1 | BG156: -1 | BH156: 1 | BI156: 1 | BJ156: -1 | BK156: 1 | BL156: -1 | BM156: -1 | BN156: 1 | BO156: -1 | BP156: 1 | BQ156: -1 | BR156: 1 | BS156: -1 | BT156: -1 | BU156: -1 | BV156: -1 | BW156: 1 | BX156: -1 | BY156: -1 | BZ156: -1 | CA156: -1 | CB156: 1 | CC156: 1 | CD156: -2 | CE156: 1 | CF156: 1
A157: -1 | B157: -1 | C157: -1 | D157: -1 | E157: 1 | F157: 1 | G157: -1 | H157: -1 | I157: 1 | J157: -1 | K157: 1 | L157: 1 | M157: -1 | N157: 1 | O157: 1 | P157: -2 | Q157: 1 | R157: -2 | S157: -1 | T157: 1 | U157: -1 | V157: -1 | W157: -1 | X157: 1 | Y157: 2 | Z157: -1 | AA157: -1 | AB157: 1 | AC157: -1 | AD157: -2 | AE157: -1 | AF157: 2 | AG157: 1 | AH157: -2 | AI157: -1 | AJ157: 1 | AK157: -1 | AL157: 1 | AM157: 1 | AN157: -1 | AO157: -1 | AP157: -2 | AQ157: 1 | AR157: 1 | AS157: 1 | AT157: -1 | AU157: -1 | AV157: 2 | AW157: 1 | AX157: -1 | AY157: -1 | AZ157: 1 | BA157: 1 | BB157: -1 | BC157: 1 | BD157: -1 | BE157: -2 | BF157: 1 | BG157: 1 | BH157: 1 | BI157: -1 | BJ157: 1 | BK157: -1 | BL157: 2 | BM157: 1 | BN157: 2 | BO157: -2 | BP157: 1 | BQ157: -1 | BR157: 1 | BS157: 1 | BT157: -2 | BU157: 1 | BV157: -1 | BW157: 1 | BX157: -2 | BY157: 1 | BZ157: 1 | CA157: 2 | CB157: -1 | CC157: 1 | CD157: 1 | CE157: -1 | CF157: 1
A158: -1 | B158: 1 | C158: -1 | D158: 1 | E158: -1 | F158: -1 | G158: 1 | H158: -1 | I158: -2 | J158: 1 | K158: -1 | L158: -1 | M158: -1 | N158: -1 | O158: -1 | P158: -1 | Q158: -1 | R158: -2 | S158: 1 | T158: -1 | U158: 1 | V158: -1 | W158: 1 | X158: -1 | Y158: 1 | Z158: 2 | AA158: -2 | AB158: 1 | AC158: -1 | AD158: -1 | AE158: 1 | AF158: -1 | AG158: 1 | AH158: -1 | AI158: -1 | AJ158: -1 | AK158: 1 | AL158: -1 | AM158: 1 | AN158: -1 | AO158: -1 | AP158: -1 | AQ158: -2 | AR158: -1 | AS158: -1 | AT158: -1 | AU158: 1 | AV158: 1 | AW158: 1 | AX158: 1 | AY158: -1 | AZ158: -1 | BA158: 1 | BB158: 1 | BC158: 1 | BD158: 1 | BE158: 1 | BF158: -1 | BG158: -1 | BH158: 1 | BI158: 1 | BJ158: -1 | BK158: 1 | BL158: -1 | BM158: -1 | BN158: 1 | BO158: 1 | BP158: 1 | BQ158: 2 | BR158: -2 | BS158: -1 | BT158: -1 | BU158: 1 | BV158: -2 | BW158: 1 | BX158: -1 | BY158: 1 | BZ158: 2 | CA158: 1 | CB158: -1 | CC158: -1 | CD158: 1 | CE158: -1 | CF158: 2
A159: 2 | B159: -1 | C159: 2 | D159: -1 | E159: -1 | F159: -2 | G159: -1 | H159: -1 | I159: 1 | J159: -1 | K159: -2 | L159: -1 | M159: -1 | N159: 1 | O159: 1 | P159: -1 | Q159: 2 | R159: 2 | S159: -1 | T159: 1 | U159: 1 | V159: 1 | W159: -1 | X159: 1 | Y159: 2 | Z159: -1 | AA159: 2 | AB159: 1 | AC159: -1 | AD159: -2 | AE159: -1 | AF159: 1 | AG159: -2 | AH159: 1 | AI159: -2 | AJ159: -1 | AK159: -1 | AL159: -1 | AM159: -1 | AN159: -1 | AO159: -1 | AP159: -1 | AQ159: -1 | AR159: 1 | AS159: 1 | AT159: 2 | AU159: 2 | AV159: -1 | AW159: 1 | AX159: -1 | AY159: 1 | AZ159: -2 | BA159: -2 | BB159: 1 | BC159: -1 | BD159: -1 | BE159: -1 | BF159: 1 | BG159: 1 | BH159: 1 | BI159: 1 | BJ159: 2 | BK159: 1 | BL159: 1 | BM159: -1 | BN159: -1 | BO159: 2 | BP159: 1 | BQ159: 1 | BR159: -1 | BS159: -1 | BT159: 1 | BU159: 1 | BV159: -1 | BW159: -2 | BX159: 1 | BY159: 1 | BZ159: 1 | CA159: 1 | CB159: 1 | CC159: -1 | CD159: 1 | CE159: -1 | CF159: -1
A160: -1 | B160: 2 | C160: 1 | D160: -2 | E160: -1 | F160: -1 | G160: 1 | H160: 2 | I160: -1 | J160: 1 | K160: 1 | L160: -2 | M160: 1 | N160: -2 | O160: -1 | P160: 2 | Q160: 1 | R160: -2 | S160: -1 | T160: 1 | U160: 1 | V160: 1 | W160: 2 | X160: 2 | Y160: 1 | Z160: 1 | AA160: -1 | AB160: -2 | AC160: -1 | AD160: -1 | AE160: -1 | AF160: 1 | AG160: -2 | AH160: -1 | AI160: -2 | AJ160: 1 | AK160: -1 | AL160: 1 | AM160: -1 | AN160: 1 | AO160: -1 | AP160: -1 | AQ160: 1 | AR160: -1 | AS160: 1 | AT160: 1 | AU160: 1 | AV160: -1 | AW160: -2 | AX160: -1 | AY160: 2 | AZ160: -1 | BA160: 1 | BB160: 1 | BC160: 1 | BD160: 1 | BE160: 2 | BF160: 1 | BG160: -2 | BH160: 1 | BI160: 1 | BJ160: 1 | BK160: 1 | BL160: 1 | BM160: -1 | BN160: 1 | BO160: 1 | BP160: 1 | BQ160: -1 | BR160: -1 | BS160: -1 | BT160: -1 | BU160: -2 | BV160: 1 | BW160: -2 | BX160: -1 | BY160: -2 | BZ160: -1 | CA160: 1 | CB160: 1 | CC160: -1 | CD160: 1 | CE160: -1 | CF160: 1
A161: 2 | B161: -1 | C161: -1 | D161: -1 | E161: -1 | F161: -1 | G161: -1 | H161: 1 | I161: -1 | J161: -1 | K161: 1 | L161: 1 | M161: 1 | N161: 1 | O161: 1 | P161: 1 | Q161: 1 | R161: -2 | S161: 2 | T161: 1 | U161: 1 | V161: -1 | W161: 1 | X161: -1 | Y161: 1 | Z161: 1 | AA161: -2 | AB161: 1 | AC161: -1 | AD161: 2 | AE161: 1 | AF161: -1 | AG161: 2 | AH161: 1 | AI161: -1 | AJ161: 1 | AK161: -1 | AL161: -1 | AM161: 1 | AN161: -1 | AO161: -1 | AP161: 1 | AQ161: -1 | AR161: 1 | AS161: 2 | AT161: -1 | AU161: -2 | AV161: -1 | AW161: 1 | AX161: -1 | AY161: 2 | AZ161: 1 | BA161: 1 | BB161: -1 | BC161: -1 | BD161: 1 | BE161: -1 | BF161: 1 | BG161: 1 | BH161: 1 | BI161: 1 | BJ161: 2 | BK161: 1 | BL161: -1 | BM161: 2 | BN161: 2 | BO161: 1 | BP161: -1 | BQ161: -2 | BR161: 1 | BS161: 1 | BT161: 2 | BU161: -1 | BV161: -1 | BW161: -2 | BX161: -1 | BY161: -2 | BZ161: 1 | CA161: -2 | CB161: 2 | CC161: 2 | CD161: -1 | CE161: -1 | CF161: -1
A162: -1 | B162: -1 | C162: 2 | D162: 1 | E162: 1 | F162: -1 | G162: -1 | H162: 1 | I162: -2 | J162: 1 | K162: 1 | L162: -2 | M162: -1 | N162: 1 | O162: 1 | P162: 1 | Q162: -1 | R162: 2 | S162: -1 | T162: 1 | U162: 2 | V162: 1 | W162: 1 | X162: -1 | Y162: 1 | Z162: -1 | AA162: 1 | AB162: -1 | AC162: 1 | AD162: -2 | AE162: 1 | AF162: -1 | AG162: -1 | AH162: 2 | AI162: 1 | AJ162: 2 | AK162: 1 | AL162: -1 | AM162: 1 | AN162: -1 | AO162: 1 | AP162: 1 | AQ162: -1 | AR162: 1 | AS162: 2 | AT162: 1 | AU162: -1 | AV162: -1 | AW162: -1 | AX162: 1 | AY162: 1 | AZ162: 2 | BA162: 1 | BB162: -1 | BC162: 2 | BD162: -2 | BE162: -2 | BF162: 1 | BG162: 1 | BH162: -2 | BI162: 2 | BJ162: 1 | BK162: -1 | BL162: 2 | BM162: 2 | BN162: 2 | BO162: -1 | BP162: 1 | BQ162: 1 | BR162: -1 | BS162: 1 | BT162: 1 | BU162: -2 | BV162: -1 | BW162: -1 | BX162: -1 | BY162: -1 | BZ162: 1 | CA162: -1 | CB162: -1 | CC162: 1 | CD162: -1 | CE162: 1 | CF162: -1
A163: 2 | B163: -2 | C163: -1 | D163: 1 | E163: -2 | F163: 1 | G163: 1 | H163: 1 | I163: -1 | J163: -1 | K163: -1 | L163: 2 | M163: 1 | N163: 2 | O163: 1 | P163: 1 | Q163: -1 | R163: 1 | S163: -1 | T163: -1 | U163: 1 | V163: 2 | W163: -1 | X163: 1 | Y163: -1 | Z163: -2 | AA163: -1 | AB163: 1 | AC163: 1 | AD163: -2 | AE163: -1 | AF163: 1 | AG163: 2 | AH163: -1 | AI163: -1 | AJ163: 1 | AK163: 2 | AL163: -1 | AM163: -1 | AN163: -1 | AO163: -1 | AP163: -1 | AQ163: -1 | AR163: 1 | AS163: -1 | AT163: 1 | AU163: -1 | AV163: -1 | AW163: -1 | AX163: -1 | AY163: -2 | AZ163: 1 | BA163: -1 | BB163: 2 | BC163: -1 | BD163: -1 | BE163: -1 | BF163: 1 | BG163: 2 | BH163: 1 | BI163: 1 | BJ163: -1 | BK163: 1 | BL163: 2 | BM163: 2 | BN163: 1 | BO163: -1 | BP163: 1 | BQ163: -1 | BR163: -1 | BS163: -2 | BT163: 1 | BU163: -1 | BV163: 1 | BW163: 2 | BX163: 2 | BY163: 1 | BZ163: 1 | CA163: 1 | CB163: -1 | CC163: 2 | CD163: 1 | CE163: 2 | CF163: 2
A164: -1 | B164: 1 | C164: -1 | D164: -1 | E164: 1 | F164: -1 | G164: 1 | H164: -1 | I164: -1 | J164: -1 | K164: 1 | L164: 2 | M164: 2 | N164: -1 | O164: 2 | P164: 1 | Q164: -1 | R164: -1 | S164: -1 | T164: 1 | U164: -1 | V164: 1 | W164: -1 | X164: -1 | Y164: -1 | Z164: -1 | AA164: -1 | AB164: -1 | AC164: -1 | AD164: -1 | AE164: -1 | AF164: -1 | AG164: 2 | AH164: 1 | AI164: -1 | AJ164: -1 | AK164: 1 | AL164: -1 | AM164: 2 | AN164: -2 | AO164: 1 | AP164: 1 | AQ164: 2 | AR164: -1 | AS164: 1 | AT164: -1 | AU164: -1 | AV164: -2 | AW164: -2 | AX164: -2 | AY164: -1 | AZ164: 1 | BA164: -1 | BB164: 1 | BC164: 1 | BD164: 1 | BE164: -1 | BF164: 1 | BG164: 1 | BH164: -2 | BI164: -2 | BJ164: 1 | BK164: -2 | BL164: -1 | BM164: -1 | BN164: 2 | BO164: 1 | BP164: -1 | BQ164: -1 | BR164: 1 | BS164: 1 | BT164: 1 | BU164: -2 | BV164: -1 | BW164: 2 | BX164: 1 | BY164: 1 | BZ164: 1 | CA164: 1 | CB164: 1 | CC164: 1 | CD164: -1 | CE164: -1 | CF164: -2
A165: -1 | B165: 1 | C165: 2 | D165: -1 | E165: 1 | F165: 1 | G165: -1 | H165: -1 | I165: 1 | J165: -1 | K165: -2 | L165: 1 | M165: 1 | N165: 1 | O165: 2 | P165: 1 | Q165: -2 | R165: 1 | S165: -1 | T165: -1 | U165: -1 | V165: 1 | W165: -1 | X165: 2 | Y165: -1 | Z165: 1 | AA165: 1 | AB165: -2 | AC165: 1 | AD165: -1 | AE165: 1 | AF165: -1 | AG165: -1 | AH165: -1 | AI165: 2 | AJ165: 2 | AK165: 1 | AL165: -1 | AM165: -1 | AN165: -1 | AO165: -1 | AP165: -1 | AQ165: 1 | AR165: -2 | AS165: 2 | AT165: -1 | AU165: -1 | AV165: 2 | AW165: -2 | AX165: 1 | AY165: -2 | AZ165: 1 | BA165: 1 | BB165: 2 | BC165: 1 | BD165: -1 | BE165: 2 | BF165: -1 | BG165: 1 | BH165: -2 | BI165: -2 | BJ165: 1 | BK165: -1 | BL165: -1 | BM165: -2 | BN165: 1 | BO165: 2 | BP165: -1 | BQ165: 1 | BR165: -1 | BS165: 1 | BT165: -1 | BU165: -1 | BV165: -2 | BW165: 1 | BX165: 2 | BY165: -1 | BZ165: 1 | CA165: -1 | CB165: 1 | CC165: 1 | CD165: 1 | CE165: -2 | CF165: 1
A166: -1 | B166: -1 | C166: 1 | D166: -1 | E166: 1 | F166: -1 | G166: 1 | H166: 1 | I166: -1 | J166: 1 | K166: -1 | L166: 2 | M166: -1 | N166: 1 | O166: -1 | P166: 2 | Q166: -1 | R166: -1 | S166: -2 | T166: -2 | U166: 2 | V166: 1 | W166: -1 | X166: -1 | Y166: -1 | Z166: -1 | AA166: -1 | AB166: -1 | AC166: -1 | AD166: 1 | AE166: 1 | AF166: -1 | AG166: 2 | AH166: -1 | AI166: 1 | AJ166: 1 | AK166: 1 | AL166: 1 | AM166: -2 | AN166: 1 | AO166: -1 | AP166: 1 | AQ166: 2 | AR166: -1 | AS166: -1 | AT166: -2 | AU166: -2 | AV166: 1 | AW166: 1 | AX166: -1 | AY166: -2 | AZ166: -1 | BA166: -1 | BB166: 2 | BC166: -1 | BD166: -1 | BE166: 1 | BF166: 1 | BG166: 1 | BH166: 1 | BI166: -2 | BJ166: -1 | BK166: -1 | BL166: -1 | BM166: -1 | BN166: -2 | BO166: -1 | BP166: -1 | BQ166: 1 | BR166: -1 | BS166: 1 | BT166: -1 | BU166: 1 | BV166: 1 | BW166: 2 | BX166: -1 | BY166: -1 | BZ166: -1 | CA166: 1 | CB166: -1 | CC166: -2 | CD166: 1 | CE166: 1 | CF166: 2
A167: 2 | B167: -1 | C167: 1 | D167: -2 | E167: -1 | F167: -1 | G167: 1 | H167: 1 | I167: 1 | J167: 1 | K167: -2 | L167: 1 | M167: 2 | N167: -1 | O167: 1 | P167: 2 | Q167: 1 | R167: 1 | S167: 2 | T167: -1 | U167: 1 | V167: 2 | W167: -2 | X167: 1 | Y167: 1 | Z167: 1 | AA167: 1 | AB167: 1 | AC167: -1 | AD167: 1 | AE167: -1 | AF167: -2 | AG167: 2 | AH167: 1 | AI167: -1 | AJ167: 2 | AK167: 1 | AL167: -1 | AM167: -2 | AN167: 1 | AO167: 1 | AP167: -1 | AQ167: 1 | AR167: -2 | AS167: 1 | AT167: 1 | AU167: -2 | AV167: -1 | AW167: 1 | AX167: -1 | AY167: -1 | AZ167: 1 | BA167: 1 | BB167: -1 | BC167: 2 | BD167: -1 | BE167: 2 | BF167: 2 | BG167: 2 | BH167: -1 | BI167: 1 | BJ167: -1 | BK167: 1 | BL167: -1 | BM167: 1 | BN167: 1 | BO167: 1 | BP167: -1 | BQ167: -1 | BR167: -1 | BS167: 1 | BT167: -2 | BU167: 1 | BV167: 1 | BW167: 1 | BX167: -1 | BY167: -2 | BZ167: -1 | CA167: 1 | CB167: 1 | CC167: 1 | CD167: -1 | CE167: -1 | CF167: 1
A168: -2 | B168: -1 | C168: -1 | D168: -1 | E168: 1 | F168: 2 | G168: 1 | H168: -1 | I168: 2 | J168: 1 | K168: -1 | L168: -1 | M168: 2 | N168: 1 | O168: -1 | P168: 4 | Q168: -1 | R168: -2 | S168: -1 | T168: -1 | U168: -1 | V168: -1 | W168: -2 | X168: 2 | Y168: 2 | Z168: -1 | AA168: 1 | AB168: -1 | AC168: 1 | AD168: 1 | AE168: 1 | AF168: -1 | AG168: -2 | AH168: 1 | AI168: -1 | AJ168: 2 | AK168: 2 | AL168: 1 | AM168: 1 | AN168: 1 | AO168: -2 | AP168: -1 | AQ168: -2 | AR168: -1 | AS168: 2 | AT168: -1 | AU168: -1 | AV168: 1 | AW168: -2 | AX168: 2 | AY168: 1 | AZ168: 1 | BA168: 1 | BB168: 1 | BC168: -1 | BD168: 1 | BE168: 1 | BF168: 1 | BG168: -1 | BH168: -1 | BI168: 1 | BJ168: -1 | BK168: 1 | BL168: -2 | BM168: -1 | BN168: -2 | BO168: 1 | BP168: -2 | BQ168: 1 | BR168: -1 | BS168: -1 | BT168: 1 | BU168: 1 | BV168: 1 | BW168: -1 | BX168: -1 | BY168: 1 | BZ168: -1 | CA168: 2 | CB168: -1 | CC168: -1 | CD168: 1 | CE168: -1 | CF168: 1
A169: 1 | B169: 1 | C169: -1 | D169: -1 | E169: 1 | F169: -1 | G169: 1 | H169: -1 | I169: 2 | J169: 2 | K169: 1 | L169: 1 | M169: 2 | N169: -1 | O169: -1 | P169: -1 | Q169: -1 | R169: 1 | S169: 1 | T169: -1 | U169: -1 | V169: 1 | W169: 1 | X169: 2 | Y169: 2 | Z169: -1 | AA169: -2 | AB169: -1 | AC169: -1 | AD169: 1 | AE169: -1 | AF169: 1 | AG169: 1 | AH169: -2 | AI169: -2 | AJ169: 1 | AK169: -1 | AL169: 1 | AM169: -2 | AN169: -1 | AO169: -1 | AP169: 1 | AQ169: 2 | AR169: -2 | AS169: -1 | AT169: 1 | AU169: 1 | AV169: -1 | AW169: 1 | AX169: -1 | AY169: -1 | AZ169: 2 | BA169: -1 | BB169: -1 | BC169: 1 | BD169: 1 | BE169: 1 | BF169: -1 | BG169: -1 | BH169: -1 | BI169: 1 | BJ169: -1 | BK169: -2 | BL169: 1 | BM169: -1 | BN169: 1 | BO169: 1 | BP169: 1 | BQ169: 1 | BR169: 1 | BS169: -1 | BT169: 1 | BU169: 1 | BV169: -2 | BW169: 2 | BX169: -1 | BY169: -1 | BZ169: 1 | CA169: -2 | CB169: -1 | CC169: 1 | CD169: 1 | CE169: 1 | CF169: -1
A170: 2 | B170: -1 | C170: 1 | D170: 1 | E170: -1 | F170: -2 | G170: -1 | H170: 1 | I170: -1 | J170: 1 | K170: -2 | L170: -1 | M170: 2 | N170: -2 | O170: 1 | P170: 2 | Q170: 2 | R170: 1 | S170: 2 | T170: 1 | U170: -1 | V170: 2 | W170: -1 | X170: 1 | Y170: -1 | Z170: 2 | AA170: -2 | AB170: -2 | AC170: 2 | AD170: -1 | AE170: 2 | AF170: 1 | AG170: 1 | AH170: 1 | AI170: -2 | AJ170: -2 | AK170: 1 | AL170: 1 | AM170: -1 | AN170: -1 | AO170: -1 | AP170: 1 | AQ170: -1 | AR170: 2 | AS170: -1 | AT170: -1 | AU170: -1 | AV170: -1 | AW170: -1 | AX170: -1 | AY170: 1 | AZ170: 1 | BA170: -2 | BB170: 2 | BC170: 1 | BD170: -1 | BE170: -1 | BF170: -1 | BG170: -1 | BH170: -1 | BI170: -1 | BJ170: -1 | BK170: 1 | BL170: -1 | BM170: -2 | BN170: 1 | BO170: 1 | BP170: 1 | BQ170: 1 | BR170: 2 | BS170: -1 | BT170: 1 | BU170: 1 | BV170: -1 | BW170: 1 | BX170: -1 | BY170: -2 | BZ170: -1 | CA170: 1 | CB170: -1 | CC170: -1 | CD170: -1 | CE170: -2 | CF170: 1
A171: -2 | B171: 1 | C171: -2 | D171: 1 | E171: -1 | F171: 1 | G171: 2 | H171: -1 | I171: -1 | J171: 1 | K171: -1 | L171: -1 | M171: 2 | N171: -1 | O171: 1 | P171: 1 | Q171: 1 | R171: -2 | S171: -1 | T171: 1 | U171: 1 | V171: -2 | W171: 1 | X171: -1 | Y171: 1 | Z171: -1 | AA171: 1 | AB171: 1 | AC171: 1 | AD171: -1 | AE171: 1 | AF171: -1 | AG171: -1 | AH171: 2 | AI171: -1 | AJ171: 2 | AK171: 2 | AL171: -1 | AM171: 1 | AN171: 1 | AO171: 1 | AP171: -1 | AQ171: -2 | AR171: -1 | AS171: 1 | AT171: 2 | AU171: 1 | AV171: -1 | AW171: 1 | AX171: -1 | AY171: 1 | AZ171: -1 | BA171: -2 | BB171: -2 | BC171: 2 | BD171: -1 | BE171: 1 | BF171: -1 | BG171: -1 | BH171: -1 | BI171: 1 | BJ171: -1 | BK171: -1 | BL171: -2 | BM171: -2 | BN171: 1 | BO171: 1 | BP171: -1 | BQ171: -1 | BR171: -1 | BS171: 2 | BT171: -1 | BU171: -1 | BV171: -2 | BW171: -1 | BX171: 1 | BY171: -1 | BZ171: -1 | CA171: 1 | CB171: 1 | CC171: 1 | CD171: -1 | CE171: -1 | CF171: -1
A172: -1 | B172: -1 | C172: -2 | D172: -2 | E172: 1 | F172: -1 | G172: 1 | H172: -1 | I172: 2 | J172: 1 | K172: -1 | L172: -1 | M172: 1 | N172: -1 | O172: -1 | P172: -1 | Q172: -1 | R172: 1 | S172: 1 | T172: 1 | U172: -1 | V172: -1 | W172: -1 | X172: -2 | Y172: 1 | Z172: -1 | AA172: 1 | AB172: -1 | AC172: 2 | AD172: -1 | AE172: 2 | AF172: -1 | AG172: -2 | AH172: -1 | AI172: 1 | AJ172: -2 | AK172: 2 | AL172: 1 | AM172: -1 | AN172: -2 | AO172: 1 | AP172: -1 | AQ172: 1 | AR172: 1 | AS172: 2 | AT172: 1 | AU172: 1 | AV172: 1 | AW172: 1 | AX172: 1 | AY172: -1 | AZ172: -1 | BA172: 1 | BB172: -2 | BC172: 1 | BD172: -1 | BE172: 1 | BF172: -1 | BG172: -1 | BH172: 1 | BI172: -2 | BJ172: -1 | BK172: -1 | BL172: -1 | BM172: 2 | BN172: 1 | BO172: -1 | BP172: -1 | BQ172: -2 | BR172: 1 | BS172: 1 | BT172: 1 | BU172: 1 | BV172: 2 | BW172: 1 | BX172: -1 | BY172: -1 | BZ172: 2 | CA172: 2 | CB172: -2 | CC172: -1 | CD172: -1 | CE172: -1 | CF172: 1
A173: 1 | B173: 1 | C173: 1 | D173: -1 | E173: 1 | F173: -1 | G173: 1 | H173: 2 | I173: -1 | J173: 1 | K173: 2 | L173: -2 | M173: 1 | N173: -1 | O173: 1 | P173: -1 | Q173: 1 | R173: -2 | S173: 1 | T173: 1 | U173: -2 | V173: 1 | W173: 2 | X173: -2 | Y173: 1 | Z173: 1 | AA173: -1 | AB173: 2 | AC173: 1 | AD173: -2 | AE173: -2 | AF173: 2 | AG173: -1 | AH173: 1 | AI173: -1 | AJ173: 1 | AK173: 1 | AL173: 1 | AM173: -2 | AN173: -2 | AO173: -1 | AP173: 1 | AQ173: 1 | AR173: 1 | AS173: -2 | AT173: 1 | AU173: -1 | AV173: 1 | AW173: 2 | AX173: 1 | AY173: 1 | AZ173: -1 | BA173: 1 | BB173: -2 | BC173: -1 | BD173: -1 | BE173: -1 | BF173: 2 | BG173: -2 | BH173: 1 | BI173: -1 | BJ173: 1 | BK173: -2 | BL173: -1 | BM173: 1 | BN173: -1 | BO173: -2 | BP173: 1 | BQ173: -1 | BR173: -1 | BS173: 1 | BT173: -2 | BU173: -1 | BV173: 2 | BW173: -2 | BX173: 1 | BY173: 1 | BZ173: -1 | CA173: 1 | CB173: -1 | CC173: 2 | CD173: -1 | CE173: 2 | CF173: 1
A174: -2 | B174: 1 | C174: 1 | D174: 1 | E174: -1 | F174: 2 | G174: 2 | H174: -1 | I174: 1 | J174: -1 | K174: -1 | L174: -1 | M174: 2 | N174: 1 | O174: 1 | P174: 1 | Q174: -2 | R174: 1 | S174: -1 | T174: 1 | U174: 1 | V174: -2 | W174: -1 | X174: -1 | Y174: -1 | Z174: 1 | AA174: -1 | AB174: 2 | AC174: -1 | AD174: -2 | AE174: -1 | AF174: 2 | AG174: -2 | AH174: 2 | AI174: -1 | AJ174: -1 | AK174: 1 | AL174: 1 | AM174: -1 | AN174: -1 | AO174: -1 | AP174: -1 | AQ174: -2 | AR174: -1 | AS174: -1 | AT174: 1 | AU174: 1 | AV174: -1 | AW174: 1 | AX174: 2 | AY174: 1 | AZ174: -1 | BA174: -1 | BB174: -1 | BC174: 1 | BD174: 1 | BE174: -2 | BF174: 1 | BG174: 1 | BH174: 1 | BI174: 1 | BJ174: -1 | BK174: -2 | BL174: -2 | BM174: -1 | BN174: -1 | BO174: -1 | BP174: 2 | BQ174: 2 | BR174: 1 | BS174: 1 | BT174: 1 | BU174: 1 | BV174: 1 | BW174: -1 | BX174: -1 | BY174: -1 | BZ174: -1 | CA174: -1 | CB174: -2 | CC174: -2 | CD174: -2 | CE174: 1 | CF174: -2
A175: -2 | B175: 2 | C175: -2 | D175: -1 | E175: 1 | F175: 1 | G175: 1 | H175: 1 | I175: 1 | J175: -2 | K175: 1 | L175: -2 | M175: -2 | N175: -1 | O175: -1 | P175: -1 | Q175: 1 | R175: 1 | S175: -2 | T175: 1 | U175: -1 | V175: -1 | W175: 1 | X175: -1 | Y175: 2 | Z175: 1 | AA175: 1 | AB175: 2 | AC175: 2 | AD175: -1 | AE175: -1 | AF175: 2 | AG175: 1 | AH175: -1 | AI175: 2 | AJ175: -1 | AK175: -1 | AL175: -1 | AM175: 1 | AN175: 1 | AO175: 1 | AP175: 1 | AQ175: 1 | AR175: 1 | AS175: -1 | AT175: 1 | AU175: 1 | AV175: -1 | AW175: 2 | AX175: 2 | AY175: -1 | AZ175: 1 | BA175: 2 | BB175: 1 | BC175: -1 | BD175: -1 | BE175: 1 | BF175: -1 | BG175: -2 | BH175: -1 | BI175: -1 | BJ175: 1 | BK175: -1 | BL175: -2 | BM175: 1 | BN175: -2 | BO175: -1 | BP175: 1 | BQ175: -2 | BR175: -1 | BS175: 1 | BT175: 1 | BU175: 1 | BV175: 1 | BW175: 1 | BX175: -1 | BY175: 1 | BZ175: -1 | CA175: -1 | CB175: -2 | CC175: 1 | CD175: -1 | CE175: -1 | CF175: 1
A176: 2 | B176: 2 | C176: -1 | D176: -2 | E176: 1 | F176: 1 | G176: 1 | H176: 2 | I176: -1 | J176: 1 | K176: 2 | L176: -1 | M176: 1 | N176: 1 | O176: 2 | P176: -1 | Q176: -1 | R176: 1 | S176: 1 | T176: -1 | U176: -1 | V176: 4 | W176: -1 | X176: -1 | Y176: -2 | Z176: -1 | AA176: -1 | AB176: 1 | AC176: 2 | AD176: -2 | AE176: -1 | AF176: 2 | AG176: -1 | AH176: -1 | AI176: -1 | AJ176: -1 | AK176: -2 | AL176: -1 | AM176: -2 | AN176: -2 | AO176: -1 | AP176: -2 | AQ176: 2 | AR176: 2 | AS176: -1 | AT176: -1 | AU176: -2 | AV176: -1 | AW176: -1 | AX176: -1 | AY176: -1 | AZ176: 1 | BA176: 1 | BB176: -2 | BC176: -1 | BD176: 2 | BE176: 2 | BF176: -1 | BG176: -1 | BH176: 1 | BI176: -1 | BJ176: 1 | BK176: -1 | BL176: 4 | BM176: -1 | BN176: -1 | BO176: 1 | BP176: 1 | BQ176: -2 | BR176: 1 | BS176: 1 | BT176: -2 | BU176: 2 | BV176: 2 | BW176: -2 | BX176: -1 | BY176: -1 | BZ176: 1 | CA176: -2 | CB176: -1 | CC176: -1 | CD176: 1 | CE176: -1 | CF176: -2
A177: -2 | B177: -1 | C177: -1 | D177: -1 | E177: -1 | F177: -2 | G177: 1 | H177: 1 | I177: -1 | J177: 1 | K177: 1 | L177: -1 | M177: 1 | N177: -2 | O177: 1 | P177: -2 | Q177: -1 | R177: 1 | S177: -2 | T177: 1 | U177: -2 | V177: 1 | W177: 1 | X177: -1 | Y177: 1 | Z177: -1 | AA177: 2 | AB177: 1 | AC177: 2 | AD177: -1 | AE177: -2 | AF177: 2 | AG177: -1 | AH177: -1 | AI177: 1 | AJ177: 1 | AK177: 1 | AL177: -2 | AM177: 1 | AN177: -1 | AO177: -1 | AP177: -1 | AQ177: -1 | AR177: 1 | AS177: 1 | AT177: -2 | AU177: -1 | AV177: 1 | AW177: 1 | AX177: 1 | AY177: 1 | AZ177: 1 | BA177: 1 | BB177: -2 | BC177: 1 | BD177: 1 | BE177: 2 | BF177: -1 | BG177: -2 | BH177: 1 | BI177: 1 | BJ177: 1 | BK177: -2 | BL177: 1 | BM177: -1 | BN177: 1 | BO177: -1 | BP177: 1 | BQ177: 1 | BR177: -1 | BS177: 1 | BT177: -2 | BU177: 1 | BV177: 1 | BW177: -1 | BX177: -2 | BY177: 1 | BZ177: 1 | CA177: -1 | CB177: 2 | CC177: 1 | CD177: 2 | CE177: -1 | CF177: -1
A178: 1 | B178: 1 | C178: -1 | D178: -1 | E178: -1 | F178: -1 | G178: -1 | H178: 1 | I178: 1 | J178: -2 | K178: 1 | L178: -2 | M178: 1 | N178: -1 | O178: 2 | P178: -1 | Q178: 1 | R178: -1 | S178: 1 | T178: 2 | U178: -1 | V178: -2 | W178: -1 | X178: 1 | Y178: 2 | Z178: 1 | AA178: 1 | AB178: 1 | AC178: 1 | AD178: 1 | AE178: -1 | AF178: 2 | AG178: -1 | AH178: -1 | AI178: 1 | AJ178: 1 | AK178: -2 | AL178: -1 | AM178: 1 | AN178: 1 | AO178: 2 | AP178: -1 | AQ178: -1 | AR178: -1 | AS178: -1 | AT178: -2 | AU178: 1 | AV178: 1 | AW178: -1 | AX178: 1 | AY178: -1 | AZ178: 2 | BA178: 2 | BB178: -1 | BC178: -1 | BD178: 2 | BE178: -1 | BF178: 1 | BG178: 1 | BH178: 2 | BI178: 1 | BJ178: -1 | BK178: 2 | BL178: -2 | BM178: 2 | BN178: 1 | BO178: 1 | BP178: -1 | BQ178: 1 | BR178: 1 | BS178: 1 | BT178: 1 | BU178: -1 | BV178: -1 | BW178: -2 | BX178: 1 | BY178: -1 | BZ178: 1 | CA178: -2 | CB178: -1 | CC178: -1 | CD178: 2 | CE178: -1 | CF178: 1
A179: 1 | B179: 1 | C179: -2 | D179: 1 | E179: 1 | F179: 1 | G179: 1 | H179: -1 | I179: 1 | J179: -1 | K179: 2 | L179: -1 | M179: -1 | N179: -1 | O179: 1 | P179: -2 | Q179: -1 | R179: 1 | S179: -1 | T179: 1 | U179: 1 | V179: -1 | W179: 1 | X179: 1 | Y179: -1 | Z179: -2 | AA179: 1 | AB179: -1 | AC179: 2 | AD179: 1 | AE179: -1 | AF179: -1 | AG179: -1 | AH179: -1 | AI179: 2 | AJ179: -1 | AK179: -2 | AL179: -2 | AM179: 1 | AN179: 1 | AO179: 1 | AP179: -1 | AQ179: 1 | AR179: 1 | AS179: 2 | AT179: 1 | AU179: -1 | AV179: -2 | AW179: -2 | AX179: 1 | AY179: 1 | AZ179: 1 | BA179: -1 | BB179: -1 | BC179: 1 | BD179: 2 | BE179: 1 | BF179: -2 | BG179: 1 | BH179: -1 | BI179: 1 | BJ179: 1 | BK179: -1 | BL179: 1 | BM179: 1 | BN179: -1 | BO179: -1 | BP179: -2 | BQ179: -1 | BR179: -1 | BS179: 1 | BT179: 1 | BU179: 1 | BV179: 2 | BW179: 1 | BX179: 2 | BY179: 2 | BZ179: 2 | CA179: -1 | CB179: -1 | CC179: 1 | CD179: 2 | CE179: 1 | CF179: -2
A180: -2 | B180: -1 | C180: 1 | D180: -1 | E180: 1 | F180: 1 | G180: 1 | H180: -1 | I180: -2 | J180: 2 | K180: 1 | L180: 1 | M180: -2 | N180: 1 | O180: -1 | P180: -1 | Q180: 1 | R180: -2 | S180: -1 | T180: -1 | U180: -2 | V180: -2 | W180: 1 | X180: -1 | Y180: -1 | Z180: -1 | AA180: 1 | AB180: 1 | AC180: -1 | AD180: 1 | AE180: 1 | AF180: 1 | AG180: -1 | AH180: -1 | AI180: 1 | AJ180: -1 | AK180: -1 | AL180: -1 | AM180: 1 | AN180: -1 | AO180: 1 | AP180: -2 | AQ180: 1 | AR180: -1 | AS180: 2 | AT180: -1 | AU180: -1 | AV180: -1 | AW180: -1 | AX180: 1 | AY180: 1 | AZ180: 1 | BA180: 1 | BB180: -1 | BC180: -2 | BD180: -1 | BE180: -1 | BF180: 1 | BG180: -1 | BH180: 1 | BI180: 1 | BJ180: 2 | BK180: 1 | BL180: -1 | BM180: 1 | BN180: -1 | BO180: -1 | BP180: 2 | BQ180: -1 | BR180: -1 | BS180: -1 | BT180: 1 | BU180: -1 | BV180: -1 | BW180: -1 | BX180: 1 | BY180: 1 | BZ180: 1 | CA180: -1 | CB180: 1 | CC180: -2 | CD180: 1 | CE180: -1 | CF180: -1
A181: -1 | B181: 1 | C181: -1 | D181: 1 | E181: 1 | F181: -2 | G181: -2 | H181: -1 | I181: 2 | J181: 1 | K181: -1 | L181: -1 | M181: -1 | N181: 1 | O181: -1 | P181: -1 | Q181: 1 | R181: 1 | S181: 2 | T181: -1 | U181: -1 | V181: -2 | W181: 1 | X181: -1 | Y181: -1 | Z181: 2 | AA181: 1 | AB181: 2 | AC181: -1 | AD181: 1 | AE181: -1 | AF181: 1 | AG181: -1 | AH181: 1 | AI181: -1 | AJ181: -1 | AK181: 1 | AL181: -1 | AM181: 1 | AN181: 1 | AO181: 1 | AP181: 2 | AQ181: -2 | AR181: 1 | AS181: 1 | AT181: 1 | AU181: 1 | AV181: -1 | AW181: -1 | AX181: 1 | AY181: -2 | AZ181: 1 | BA181: -2 | BB181: 1 | BC181: 1 | BD181: 1 | BE181: 2 | BF181: 1 | BG181: 1 | BH181: -1 | BI181: -1 | BJ181: 1 | BK181: 1 | BL181: -1 | BM181: -1 | BN181: -1 | BO181: 2 | BP181: -1 | BQ181: -2 | BR181: 1 | BS181: -1 | BT181: 1 | BU181: 1 | BV181: -1 | BW181: 2 | BX181: -1 | BY181: -1 | BZ181: 1 | CA181: -1 | CB181: -1 | CC181: -1 | CD181: -2 | CE181: -1 | CF181: 1
A182: -1 | B182: 2 | C182: 1 | D182: 1 | E182: -1 | F182: 1 | G182: -1 | H182: -2 | I182: -2 | J182: 1 | K182: 1 | L182: -2 | M182: -1 | N182: 2 | O182: 2 | P182: 1 | Q182: -2 | R182: 1 | S182: -1 | T182: -1 | U182: -1 | V182: 1 | W182: -1 | X182: -1 | Y182: 1 | Z182: 1 | AA182: -2 | AB182: 1 | AC182: -2 | AD182: -2 | AE182: 1 | AF182: -1 | AG182: -2 | AH182: -1 | AI182: 1 | AJ182: -1 | AK182: -1 | AL182: -1 | AM182: -1 | AN182: -1 | AO182: -1 | AP182: 1 | AQ182: -2 | AR182: 1 | AS182: -1 | AT182: -1 | AU182: -1 | AV182: 1 | AW182: -1 | AX182: 1 | AY182: -1 | AZ182: -2 | BA182: -1 | BB182: 1 | BC182: 1 | BD182: 1 | BE182: 1 | BF182: -1 | BG182: -2 | BH182: -1 | BI182: 1 | BJ182: 1 | BK182: -1 | BL182: -1 | BM182: 1 | BN182: 1 | BO182: 1 | BP182: 1 | BQ182: 1 | BR182: -2 | BS182: -1 | BT182: -1 | BU182: 1 | BV182: -1 | BW182: 1 | BX182: -2 | BY182: -1 | BZ182: 1 | CA182: 1 | CB182: 2 | CC182: 1 | CD182: -1 | CE182: -1 | CF182: -2
A183: -2 | B183: -1 | C183: 2 | D183: 2 | E183: 2 | F183: -1 | G183: 1 | H183: -1 | I183: -1 | J183: -1 | K183: 1 | L183: -1 | M183: -1 | N183: -1 | O183: 1 | P183: 2 | Q183: 1 | R183: -1 | S183: -1 | T183: 2 | U183: 1 | V183: -4 | W183: -1 | X183: 2 | Y183: -1 | Z183: -1 | AA183: -2 | AB183: -1 | AC183: -1 | AD183: 1 | AE183: 1 | AF183: 1 | AG183: 1 | AH183: 1 | AI183: 2 | AJ183: 1 | AK183: 1 | AL183: -1 | AM183: -1 | AN183: -1 | AO183: 1 | AP183: -1 | AQ183: -4 | AR183: 1 | AS183: 1 | AT183: 1 | AU183: 2 | AV183: 1 | AW183: -1 | AX183: -1 | AY183: -1 | AZ183: -1 | BA183: 1 | BB183: 1 | BC183: 2 | BD183: 1 | BE183: 1 | BF183: 1 | BG183: -1 | BH183: 1 | BI183: -1 | BJ183: 1 | BK183: -2 | BL183: -2 | BM183: 1 | BN183: -1 | BO183: -1 | BP183: 1 | BQ183: -1 | BR183: -2 | BS183: 1 | BT183: 1 | BU183: -1 | BV183: -1 | BW183: -1 | BX183: 2 | BY183: 1 | BZ183: 1 | CA183: 1 | CB183: -1 | CC183: -1 | CD183: 1 | CE183: -1 | CF183: 1
A184: 1 | B184: -1 | C184: 1 | D184: 1 | E184: -1 | F184: -2 | G184: -1 | H184: -1 | I184: 1 | J184: -1 | K184: -1 | L184: 1 | M184: 1 | N184: 2 | O184: 1 | P184: -1 | Q184: -1 | R184: 1 | S184: 1 | T184: 2 | U184: 1 | V184: 1 | W184: 2 | X184: -2 | Y184: -1 | Z184: 1 | AA184: 1 | AB184: -1 | AC184: 1 | AD184: 1 | AE184: -1 | AF184: -1 | AG184: -1 | AH184: 2 | AI184: 1 | AJ184: 1 | AK184: -1 | AL184: -1 | AM184: 1 | AN184: -1 | AO184: 2 | AP184: 1 | AQ184: 1 | AR184: -1 | AS184: -1 | AT184: -1 | AU184: -1 | AV184: -1 | AW184: -2 | AX184: 1 | AY184: 1 | AZ184: 1 | BA184: 1 | BB184: 1 | BC184: 1 | BD184: 2 | BE184: 1 | BF184: 1 | BG184: -1 | BH184: 1 | BI184: 1 | BJ184: -1 | BK184: 1 | BL184: -1 | BM184: -1 | BN184: 1 | BO184: -1 | BP184: -1 | BQ184: -1 | BR184: 1 | BS184: 1 | BT184: 1 | BU184: 1 | BV184: -1 | BW184: 1 | BX184: 1 | BY184: -1 | BZ184: -1 | CA184: -1 | CB184: -1 | CC184: -1 | CD184: 1 | CE184: 2 | CF184: 2
A185: 2 | B185: 2 | C185: -1 | D185: 1 | E185: -1 | F185: 1 | G185: -1 | H185: -1 | I185: -2 | J185: -2 | K185: 1 | L185: 1 | M185: -2 | N185: 1 | O185: -1 | P185: -2 | Q185: 2 | R185: -1 | S185: -2 | T185: 1 | U185: -2 | V185: 4 | W185: 1 | X185: -1 | Y185: 2 | Z185: 1 | AA185: 1 | AB185: -1 | AC185: -1 | AD185: 1 | AE185: -1 | AF185: -2 | AG185: -2 | AH185: -1 | AI185: -1 | AJ185: 1 | AK185: 2 | AL185: -1 | AM185: -1 | AN185: -1 | AO185: 1 | AP185: -1 | AQ185: 4 | AR185: 1 | AS185: -1 | AT185: 1 | AU185: 2 | AV185: -2 | AW185: -1 | AX185: -2 | AY185: 1 | AZ185: -1 | BA185: -1 | BB185: 1 | BC185: -2 | BD185: 2 | BE185: 2 | BF185: 2 | BG185: 1 | BH185: -2 | BI185: -2 | BJ185: 1 | BK185: -1 | BL185: 1 | BM185: 2 | BN185: 2 | BO185: 1 | BP185: 2 | BQ185: -2 | BR185: 1 | BS185: 1 | BT185: -2 | BU185: 1 | BV185: -2 | BW185: 1 | BX185: -1 | BY185: 2 | BZ185: 1 | CA185: 2 | CB185: -1 | CC185: 1 | CD185: -1 | CE185: 2 | CF185: -2
A186: -1 | B186: -1 | C186: 1 | D186: 1 | E186: -1 | F186: -1 | G186: 1 | H186: 1 | I186: -2 | J186: 1 | K186: -1 | L186: -2 | M186: 1 | N186: -1 | O186: 1 | P186: 1 | Q186: 1 | R186: -1 | S186: -1 | T186: 2 | U186: 1 | V186: 1 | W186: 2 | X186: 1 | Y186: 2 | Z186: -1 | AA186: -2 | AB186: 1 | AC186: 1 | AD186: -1 | AE186: 1 | AF186: 1 | AG186: -2 | AH186: -1 | AI186: 1 | AJ186: -1 | AK186: -2 | AL186: -1 | AM186: 1 | AN186: -1 | AO186: 1 | AP186: 1 | AQ186: -1 | AR186: 2 | AS186: 2 | AT186: 2 | AU186: -1 | AV186: -1 | AW186: 1 | AX186: -1 | AY186: 1 | AZ186: 1 | BA186: -1 | BB186: -2 | BC186: 1 | BD186: 1 | BE186: 1 | BF186: -2 | BG186: 1 | BH186: -1 | BI186: 2 | BJ186: 1 | BK186: 1 | BL186: -2 | BM186: 2 | BN186: 2 | BO186: 2 | BP186: 2 | BQ186: 1 | BR186: -1 | BS186: -2 | BT186: -1 | BU186: 1 | BV186: 2 | BW186: -2 | BX186: -1 | BY186: 1 | BZ186: 1 | CA186: 2 | CB186: -1 | CC186: -1 | CD186: -1 | CE186: 1 | CF186: -1
A187: 1 | B187: 1 | C187: 1 | D187: 1 | E187: -1 | F187: -1 | G187: 1 | H187: 1 | I187: 1 | J187: -2 | K187: 1 | L187: -2 | M187: -1 | N187: 1 | O187: 1 | P187: -1 | Q187: 2 | R187: -1 | S187: -1 | T187: 2 | U187: 2 | V187: 1 | W187: 1 | X187: 2 | Y187: 1 | Z187: 1 | AA187: -1 | AB187: 1 | AC187: -2 | AD187: -1 | AE187: 1 | AF187: -1 | AG187: 1 | AH187: -1 | AI187: -1 | AJ187: -1 | AK187: 2 | AL187: -1 | AM187: 1 | AN187: 2 | AO187: 1 | AP187: 1 | AQ187: 4 | AR187: 1 | AS187: -1 | AT187: 1 | AU187: 1 | AV187: -2 | AW187: -1 | AX187: 1 | AY187: -2 | AZ187: 1 | BA187: -1 | BB187: 1 | BC187: 1 | BD187: -1 | BE187: -1 | BF187: 2 | BG187: 1 | BH187: -1 | BI187: 1 | BJ187: -1 | BK187: 2 | BL187: -1 | BM187: -1 | BN187: 1 | BO187: 1 | BP187: 1 | BQ187: -1 | BR187: 1 | BS187: 1 | BT187: -1 | BU187: -1 | BV187: -1 | BW187: -1 | BX187: -1 | BY187: 1 | BZ187: -1 | CA187: -1 | CB187: -1 | CC187: -1 | CD187: -2 | CE187: -1 | CF187: -1
A188: 1 | B188: -1 | C188: 1 | D188: 1 | E188: -1 | F188: -1 | G188: 2 | H188: -1 | I188: -1 | J188: 1 | K188: -1 | L188: -1 | M188: -1 | N188: 2 | O188: 1 | P188: -1 | Q188: -1 | R188: 1 | S188: -2 | T188: 1 | U188: -1 | V188: -1 | W188: 1 | X188: -1 | Y188: -1 | Z188: -1 | AA188: -1 | AB188: -1 | AC188: -1 | AD188: 1 | AE188: 1 | AF188: 1 | AG188: 2 | AH188: -1 | AI188: 2 | AJ188: -1 | AK188: -1 | AL188: 1 | AM188: -1 | AN188: -1 | AO188: 1 | AP188: -1 | AQ188: 2 | AR188: -2 | AS188: -1 | AT188: -1 | AU188: 1 | AV188: -1 | AW188: -1 | AX188: -1 | AY188: 1 | AZ188: -1 | BA188: 1 | BB188: 1 | BC188: -2 | BD188: -1 | BE188: 2 | BF188: -1 | BG188: -1 | BH188: 1 | BI188: -1 | BJ188: -1 | BK188: -1 | BL188: 2 | BM188: 1 | BN188: -1 | BO188: -1 | BP188: -1 | BQ188: -1 | BR188: -1 | BS188: -2 | BT188: 1 | BU188: 1 | BV188: -2 | BW188: 1 | BX188: -2 | BY188: 1 | BZ188: -1 | CA188: 1 | CB188: 1 | CC188: -1 | CD188: -1 | CE188: 2 | CF188: 2
A189: 1 | B189: -1 | C189: 1 | D189: -1 | E189: 2 | F189: 1 | G189: -1 | H189: 1 | I189: -2 | J189: 1 | K189: 1 | L189: -2 | M189: -1 | N189: 1 | O189: -1 | P189: 1 | Q189: 1 | R189: -1 | S189: 1 | T189: 1 | U189: 1 | V189: 2 | W189: -1 | X189: 2 | Y189: 1 | Z189: 1 | AA189: -1 | AB189: 1 | AC189: -2 | AD189: 1 | AE189: -2 | AF189: 1 | AG189: 1 | AH189: 2 | AI189: 1 | AJ189: -1 | AK189: 1 | AL189: 2 | AM189: 1 | AN189: -1 | AO189: 1 | AP189: -1 | AQ189: 1 | AR189: -1 | AS189: 1 | AT189: 1 | AU189: 1 | AV189: 1 | AW189: -2 | AX189: -1 | AY189: 1 | AZ189: -1 | BA189: 1 | BB189: -1 | BC189: -2 | BD189: -1 | BE189: 1 | BF189: 1 | BG189: 1 | BH189: 2 | BI189: 2 | BJ189: 1 | BK189: -1 | BL189: -1 | BM189: -1 | BN189: 2 | BO189: -1 | BP189: -1 | BQ189: 1 | BR189: 1 | BS189: -1 | BT189: -1 | BU189: -2 | BV189: 1 | BW189: -2 | BX189: 1 | BY189: 1 | BZ189: -1 | CA189: 1 | CB189: -1 | CC189: -2 | CD189: 1 | CE189: 1 | CF189: -1
A190: 2 | B190: 1 | C190: -1 | D190: -1 | E190: -1 | F190: 1 | G190: -2 | H190: 1 | I190: -2 | J190: 2 | K190: -2 | L190: -1 | M190: -1 | N190: -1 | O190: -1 | P190: 2 | Q190: -2 | R190: -2 | S190: 1 | T190: 2 | U190: 1 | V190: 4 | W190: -1 | X190: 1 | Y190: 1 | Z190: -1 | AA190: 1 | AB190: 1 | AC190: -1 | AD190: -1 | AE190: -1 | AF190: 1 | AG190: -1 | AH190: 1 | AI190: -1 | AJ190: 1 | AK190: -1 | AL190: -2 | AM190: 1 | AN190: -1 | AO190: -2 | AP190: -1 | AQ190: -1 | AR190: 1 | AS190: 1 | AT190: -1 | AU190: 1 | AV190: -1 | AW190: 1 | AX190: 2 | AY190: -1 | AZ190: -1 | BA190: 1 | BB190: 1 | BC190: -1 | BD190: 1 | BE190: -1 | BF190: -2 | BG190: 1 | BH190: -1 | BI190: -2 | BJ190: -1 | BK190: 2 | BL190: 2 | BM190: -1 | BN190: -1 | BO190: -2 | BP190: -1 | BQ190: 1 | BR190: 1 | BS190: 2 | BT190: 2 | BU190: 1 | BV190: 1 | BW190: 2 | BX190: -1 | BY190: -1 | BZ190: 2 | CA190: 1 | CB190: -1 | CC190: -2 | CD190: -1 | CE190: -1 | CF190: -1
A191: 1 | B191: -1 | C191: -1 | D191: -2 | E191: -1 | F191: 1 | G191: -1 | H191: 1 | I191: -1 | J191: -1 | K191: -1 | L191: 1 | M191: 1 | N191: 1 | O191: -1 | P191: -1 | Q191: 1 | R191: -1 | S191: 1 | T191: -1 | U191: 1 | V191: 1 | W191: 1 | X191: 1 | Y191: -1 | Z191: -1 | AA191: -1 | AB191: 1 | AC191: 2 | AD191: -1 | AE191: 1 | AF191: -1 | AG191: -1 | AH191: -1 | AI191: -1 | AJ191: 2 | AK191: -1 | AL191: 1 | AM191: -2 | AN191: 1 | AO191: -1 | AP191: -2 | AQ191: 2 | AR191: 1 | AS191: 1 | AT191: -1 | AU191: 1 | AV191: 1 | AW191: -1 | AX191: 1 | AY191: 1 | AZ191: 2 | BA191: 1 | BB191: 2 | BC191: 1 | BD191: -2 | BE191: 1 | BF191: -2 | BG191: -1 | BH191: -1 | BI191: -2 | BJ191: 1 | BK191: -1 | BL191: -2 | BM191: -1 | BN191: -1 | BO191: -2 | BP191: -1 | BQ191: 1 | BR191: 1 | BS191: -1 | BT191: 1 | BU191: 2 | BV191: 1 | BW191: 2 | BX191: -1 | BY191: -1 | BZ191: -1 | CA191: 1 | CB191: -1 | CC191: -2 | CD191: 1 | CE191: 1 | CF191: 1
A192: 4 | B192: -1 | C192: 1 | D192: -2 | E192: 1 | F192: 1 | G192: -1 | H192: 1 | I192: -1 | J192: 1 | K192: -2 | L192: -1 | M192: 1 | N192: 1 | O192: 2 | P192: -1 | Q192: -1 | R192: -1 | S192: -1 | T192: -1 | U192: -1 | V192: 1 | W192: -1 | X192: 1 | Y192: -1 | Z192: 1 | AA192: 1 | AB192: -1 | AC192: 2 | AD192: 2 | AE192: -2 | AF192: -2 | AG192: -1 | AH192: 2 | AI192: -1 | AJ192: 1 | AK192: 1 | AL192: 2 | AM192: 1 | AN192: 1 | AO192: -1 | AP192: 1 | AQ192: 2 | AR192: -1 | AS192: 1 | AT192: 1 | AU192: -1 | AV192: 1 | AW192: 2 | AX192: 1 | AY192: -1 | AZ192: 1 | BA192: -2 | BB192: 1 | BC192: 1 | BD192: -2 | BE192: -1 | BF192: -1 | BG192: -1 | BH192: -1 | BI192: -2 | BJ192: -1 | BK192: -1 | BL192: 4 | BM192: -1 | BN192: 1 | BO192: 1 | BP192: 1 | BQ192: 1 | BR192: 2 | BS192: 1 | BT192: -1 | BU192: -1 | BV192: 1 | BW192: 2 | BX192: -1 | BY192: 1 | BZ192: -1 | CA192: -2 | CB192: 1 | CC192: 1 | CD192: -1 | CE192: 1 | CF192: -2
A193: 2 | B193: 2 | C193: -1 | D193: -2 | E193: -1 | F193: 1 | G193: -1 | H193: 2 | I193: 1 | J193: 1 | K193: -2 | L193: 2 | M193: -1 | N193: -1 | O193: 2 | P193: 2 | Q193: 1 | R193: -1 | S193: -2 | T193: 1 | U193: 1 | V193: 2 | W193: 2 | X193: -1 | Y193: -1 | Z193: -1 | AA193: 1 | AB193: 1 | AC193: 1 | AD193: -1 | AE193: 1 | AF193: 1 | AG193: 1 | AH193: -2 | AI193: 1 | AJ193: 1 | AK193: -1 | AL193: -1 | AM193: -2 | AN193: -2 | AO193: 1 | AP193: 1 | AQ193: 1 | AR193: 1 | AS193: 1 | AT193: -1 | AU193: 2 | AV193: 1 | AW193: 1 | AX193: 2 | AY193: 1 | AZ193: 1 | BA193: 1 | BB193: 2 | BC193: -2 | BD193: 1 | BE193: 1 | BF193: -1 | BG193: 1 | BH193: -2 | BI193: -2 | BJ193: -1 | BK193: -2 | BL193: 1 | BM193: 1 | BN193: 2 | BO193: 1 | BP193: 1 | BQ193: 1 | BR193: -1 | BS193: 1 | BT193: 1 | BU193: 2 | BV193: 1 | BW193: 1 | BX193: 1 | BY193: 1 | BZ193: -1 | CA193: 2 | CB193: 1 | CC193: 1 | CD193: 1 | CE193: 1 | CF193: -1
A194: -2 | B194: 1 | C194: 1 | D194: -1 | E194: -1 | F194: 1 | G194: 1 | H194: 1 | I194: 1 | J194: -1 | K194: -1 | L194: 2 | M194: 1 | N194: 1 | O194: 1 | P194: -1 | Q194: 1 | R194: -1 | S194: -1 | T194: -1 | U194: -2 | V194: -2 | W194: -1 | X194: -1 | Y194: -1 | Z194: -1 | AA194: 2 | AB194: 1 | AC194: 2 | AD194: -1 | AE194: -2 | AF194: -1 | AG194: -1 | AH194: -2 | AI194: 1 | AJ194: 2 | AK194: 1 | AL194: 1 | AM194: -2 | AN194: 1 | AO194: -1 | AP194: -2 | AQ194: -1 | AR194: 2 | AS194: -1 | AT194: -1 | AU194: -2 | AV194: 1 | AW194: -1 | AX194: 2 | AY194: 1 | AZ194: 2 | BA194: 1 | BB194: 1 | BC194: -2 | BD194: 1 | BE194: 1 | BF194: -1 | BG194: 1 | BH194: 1 | BI194: -1 | BJ194: -1 | BK194: -2 | BL194: -1 | BM194: -1 | BN194: -1 | BO194: -1 | BP194: -1 | BQ194: 2 | BR194: 1 | BS194: 2 | BT194: -1 | BU194: 2 | BV194: -2 | BW194: -1 | BX194: 1 | BY194: 1 | BZ194: 4 | CA194: -2 | CB194: -1 | CC194: -2 | CD194: -2 | CE194: -1 | CF194: -2
A195: 2 | B195: 1 | C195: 2 | D195: 1 | E195: 1 | F195: 2 | G195: -1 | H195: 2 | I195: -2 | J195: 1 | K195: 1 | L195: 2 | M195: 1 | N195: -1 | O195: 1 | P195: -1 | Q195: 1 | R195: -1 | S195: -2 | T195: -1 | U195: -2 | V195: -1 | W195: -1 | X195: 2 | Y195: 1 | Z195: -1 | AA195: -1 | AB195: 1 | AC195: 2 | AD195: -1 | AE195: 1 | AF195: -1 | AG195: 2 | AH195: -2 | AI195: 1 | AJ195: -1 | AK195: -1 | AL195: 1 | AM195: 1 | AN195: -1 | AO195: -2 | AP195: 1 | AQ195: 1 | AR195: -1 | AS195: 2 | AT195: -1 | AU195: 1 | AV195: 1 | AW195: 2 | AX195: -1 | AY195: -1 | AZ195: -1 | BA195: -1 | BB195: 4 | BC195: -1 | BD195: -1 | BE195: -1 | BF195: 1 | BG195: 1 | BH195: -1 | BI195: -1 | BJ195: -1 | BK195: -2 | BL195: 2 | BM195: -1 | BN195: -1 | BO195: -2 | BP195: 1 | BQ195: -1 | BR195: 1 | BS195: -1 | BT195: -1 | BU195: -2 | BV195: -1 | BW195: 2 | BX195: -1 | BY195: 1 | BZ195: 2 | CA195: 1 | CB195: 1 | CC195: 1 | CD195: -1 | CE195: -1 | CF195: -1
A196: 1 | B196: 1 | C196: 1 | D196: -1 | E196: -1 | F196: 1 | G196: -1 | H196: -2 | I196: 1 | J196: -2 | K196: -1 | L196: -1 | M196: 1 | N196: 1 | O196: -1 | P196: 1 | Q196: -1 | R196: -1 | S196: -1 | T196: -1 | U196: 1 | V196: 1 | W196: -1 | X196: 1 | Y196: -1 | Z196: -1 | AA196: -1 | AB196: 1 | AC196: -1 | AD196: -1 | AE196: -1 | AF196: -2 | AG196: -1 | AH196: -2 | AI196: 1 | AJ196: 1 | AK196: 1 | AL196: -1 | AM196: 1 | AN196: 1 | AO196: 1 | AP196: -1 | AQ196: 1 | AR196: 2 | AS196: 1 | AT196: 1 | AU196: -1 | AV196: -1 | AW196: 1 | AX196: -1 | AY196: -1 | AZ196: 1 | BA196: 1 | BB196: 2 | BC196: -1 | BD196: -1 | BE196: 1 | BF196: -1 | BG196: -2 | BH196: 1 | BI196: -1 | BJ196: 2 | BK196: -1 | BL196: -1 | BM196: -1 | BN196: -1 | BO196: 1 | BP196: -1 | BQ196: -1 | BR196: 1 | BS196: 1 | BT196: 1 | BU196: -1 | BV196: 1 | BW196: -1 | BX196: 1 | BY196: -1 | BZ196: -1 | CA196: 2 | CB196: 1 | CC196: 1 | CD196: -2 | CE196: 1 | CF196: -1
A197: 2 | B197: 1 | C197: 2 | D197: -1 | E197: -2 | F197: 1 | G197: -2 | H197: 2 | I197: -1 | J197: 1 | K197: -1 | L197: -1 | M197: -1 | N197: -2 | O197: 2 | P197: -1 | Q197: 1 | R197: 1 | S197: -2 | T197: -1 | U197: -2 | V197: 1 | W197: -1 | X197: 2 | Y197: -2 | Z197: -1 | AA197: 1 | AB197: 2 | AC197: 1 | AD197: 1 | AE197: -1 | AF197: 1 | AG197: 1 | AH197: -1 | AI197: 1 | AJ197: 1 | AK197: -1 | AL197: -1 | AM197: -2 | AN197: 1 | AO197: -1 | AP197: 1 | AQ197: 2 | AR197: -1 | AS197: -2 | AT197: -1 | AU197: 2 | AV197: 2 | AW197: 1 | AX197: 1 | AY197: -1 | AZ197: 1 | BA197: -1 | BB197: 1 | BC197: 1 | BD197: 1 | BE197: 1 | BF197: 1 | BG197: 1 | BH197: -1 | BI197: -1 | BJ197: -1 | BK197: -1 | BL197: 1 | BM197: -1 | BN197: 2 | BO197: -2 | BP197: -1 | BQ197: -1 | BR197: 1 | BS197: -1 | BT197: 1 | BU197: 2 | BV197: -1 | BW197: 1 | BX197: -1 | BY197: -1 | BZ197: 2 | CA197: 1 | CB197: 1 | CC197: -1 | CD197: -1 | CE197: -1 | CF197: -2
A198: -1 | B198: 1 | C198: 1 | D198: -1 | E198: -1 | F198: 1 | G198: -1 | H198: 1 | I198: 1 | J198: -2 | K198: 1 | L198: -1 | M198: -1 | N198: 1 | O198: -1 | P198: 1 | Q198: 1 | R198: -1 | S198: -1 | T198: 1 | U198: -1 | V198: -1 | W198: 2 | X198: 1 | Y198: -2 | Z198: 1 | AA198: 1 | AB198: 1 | AC198: 1 | AD198: -2 | AE198: -1 | AF198: 1 | AG198: 1 | AH198: -2 | AI198: -1 | AJ198: 2 | AK198: 1 | AL198: -1 | AM198: -2 | AN198: -1 | AO198: -2 | AP198: -2 | AQ198: -1 | AR198: 1 | AS198: 1 | AT198: -2 | AU198: 1 | AV198: -1 | AW198: 1 | AX198: -1 | AY198: 1 | AZ198: -1 | BA198: -1 | BB198: -1 | BC198: -1 | BD198: -1 | BE198: 1 | BF198: 1 | BG198: 1 | BH198: 1 | BI198: 1 | BJ198: -2 | BK198: -1 | BL198: 2 | BM198: -2 | BN198: -1 | BO198: -1 | BP198: 1 | BQ198: 2 | BR198: -1 | BS198: -1 | BT198: -2 | BU198: 1 | BV198: 1 | BW198: 1 | BX198: 1 | BY198: -1 | BZ198: 1 | CA198: 2 | CB198: 1 | CC198: -1 | CD198: -1 | CE198: -2 | CF198: 1
A199: 1 | B199: -1 | C199: 1 | D199: 1 | E199: 1 | F199: 2 | G199: -2 | H199: 1 | I199: -1 | J199: -1 | K199: -2 | L199: 1 | M199: 1 | N199: 2 | O199: 1 | P199: -1 | Q199: -1 | R199: 1 | S199: 1 | T199: 2 | U199: 2 | V199: 1 | W199: -1 | X199: 2 | Y199: 1 | Z199: 1 | AA199: -2 | AB199: -2 | AC199: 1 | AD199: 1 | AE199: 1 | AF199: 1 | AG199: 1 | AH199: 1 | AI199: 1 | AJ199: 1 | AK199: -1 | AL199: 1 | AM199: 1 | AN199: -1 | AO199: -1 | AP199: 1 | AQ199: -1 | AR199: 1 | AS199: -1 | AT199: 1 | AU199: -1 | AV199: -2 | AW199: 1 | AX199: -1 | AY199: -1 | AZ199: -1 | BA199: -1 | BB199: 1 | BC199: -1 | BD199: -1 | BE199: -1 | BF199: -1 | BG199: 1 | BH199: -1 | BI199: -2 | BJ199: 1 | BK199: 1 | BL199: -1 | BM199: -1 | BN199: 1 | BO199: -2 | BP199: -1 | BQ199: 1 | BR199: -1 | BS199: 1 | BT199: 1 | BU199: -1 | BV199: -1 | BW199: -2 | BX199: 1 | BY199: 2 | BZ199: -1 | CA199: 1 | CB199: -2 | CC199: -1 | CD199: 1 | CE199: -1 | CF199: -1
A200: 2 | B200: -2 | C200: 1 | D200: -1 | E200: -2 | F200: -1 | G200: -1 | H200: -1 | I200: -2 | J200: -1 | K200: 1 | L200: -1 | M200: 1 | N200: 2 | O200: -1 | P200: -1 | Q200: -1 | R200: 1 | S200: 1 | T200: -1 | U200: -1 | V200: 1 | W200: -1 | X200: 1 | Y200: 1 | Z200: -2 | AA200: -2 | AB200: -1 | AC200: -1 | AD200: 1 | AE200: -1 | AF200: 1 | AG200: 2 | AH200: 1 | AI200: -1 | AJ200: 1 | AK200: 1 | AL200: -1 | AM200: 1 | AN200: 1 | AO200: 2 | AP200: -2 | AQ200: 1 | AR200: -1 | AS200: 1 | AT200: 1 | AU200: 1 | AV200: -2 | AW200: 1 | AX200: 1 | AY200: 1 | AZ200: -2 | BA200: -1 | BB200: -1 | BC200: 1 | BD200: -1 | BE200: -1 | BF200: -1 | BG200: -1 | BH200: -1 | BI200: -1 | BJ200: -1 | BK200: 1 | BL200: 1 | BM200: 1 | BN200: 2 | BO200: 2 | BP200: -1 | BQ200: -1 | BR200: -1 | BS200: 1 | BT200: -2 | BU200: -2 | BV200: -1 | BW200: 1 | BX200: -1 | BY200: 2 | BZ200: -1 | CA200: 2 | CB200: -1 | CC200: 1 | CD200: 1 | CE200: -1 | CF200: -2
... 920 more rows

Sheet im2colAll_confW5
A1: 3323 | B1: -191 | C1: -526 | D1: -246 | E1: -4 | F1: -402 | G1: -123 | H1: 169 | I1: -1142 | J1: 426 | K1: -150 | L1: -179 | M1: -510 | N1: -206 | O1: -335 | P1: 1219 | Q1: 70 | R1: -796 | S1: 190 | T1: 172 | U1: -499 | V1: 2842 | W1: -363 | X1: -391 | Y1: -597 | Z1: -121 | AA1: -520 | AB1: -67 | AC1: 270 | AD1: -1149 | AE1: 13 | AF1: -301 | AG1: -26 | AH1: -561 | AI1: 134 | AJ1: -105 | AK1: 1279 | AL1: -456 | AM1: -869 | AN1: 436 | AO1: -171 | AP1: -482 | AQ1: 2974 | AR1: -541 | AS1: -573 | AT1: -653 | AU1: 177 | AV1: -850 | AW1: -159 | AX1: 481 | AY1: -1071 | AZ1: -16 | BA1: -207 | BB1: -145 | BC1: -138 | BD1: -104 | BE1: -37 | BF1: 1266 | BG1: -426 | BH1: -1060 | BI1: 585 | BJ1: -102 | BK1: -415 | BL1: 2697 | BM1: -379 | BN1: -47 | BO1: -514 | BP1: -111 | BQ1: -507 | BR1: -114 | BS1: -84 | BT1: -739 | BU1: -158 | BV1: -168 | BW1: -355 | BX1: -189 | BY1: 127 | BZ1: -218 | CA1: 1046 | CB1: -218 | CC1: -913 | CD1: 142 | CE1: -8 | CF1: -448
A2: 3914 | B2: -561 | C2: -521 | D2: -876 | E2: -239 | F2: -687 | G2: -590 | H2: 778 | I2: -1539 | J2: 593 | K2: 19 | L2: -398 | M2: -524 | N2: -19 | O2: -153 | P2: 1355 | Q2: -377 | R2: -885 | S2: 239 | T2: -101 | U2: -200 | V2: 4113 | W2: -96 | X2: -684 | Y2: -972 | Z2: -418 | AA2: -446 | AB2: -289 | AC2: 281 | AD2: -1510 | AE2: 360 | AF2: -499 | AG2: 208 | AH2: -527 | AI2: 428 | AJ2: 339 | AK2: 1802 | AL2: -705 | AM2: -695 | AN2: 794 | AO2: -132 | AP2: -484 | AQ2: 4474 | AR2: -466 | AS2: -985 | AT2: -865 | AU2: 88 | AV2: -917 | AW2: -200 | AX2: 572 | AY2: -1343 | AZ2: 440 | BA2: -135 | BB2: -120 | BC2: -245 | BD2: 79 | BE2: 39 | BF2: 1943 | BG2: -921 | BH2: -1302 | BI2: 817 | BJ2: -84 | BK2: -161 | BL2: 2632 | BM2: -793 | BN2: -222 | BO2: -946 | BP2: -634 | BQ2: -886 | BR2: -394 | BS2: 94 | BT2: -959 | BU2: 77 | BV2: 40 | BW2: -810 | BX2: -69 | BY2: 5 | BZ2: -261 | CA2: 1596 | CB2: -974 | CC2: -1101 | CD2: 315 | CE2: 35 | CF2: -700
A3: 3995 | B3: 54 | C3: -260 | D3: -854 | E3: 113 | F3: -827 | G3: -413 | H3: 561 | I3: -1446 | J3: 624 | K3: -27 | L3: 36 | M3: -472 | N3: 23 | O3: -339 | P3: 917 | Q3: -191 | R3: -743 | S3: 308 | T3: 2 | U3: -409 | V3: 3531 | W3: 111 | X3: -357 | Y3: -908 | Z3: 23 | AA3: -770 | AB3: -268 | AC3: 50 | AD3: -1240 | AE3: 257 | AF3: -566 | AG3: 406 | AH3: -191 | AI3: 174 | AJ3: -94 | AK3: 1155 | AL3: -394 | AM3: -754 | AN3: 601 | AO3: 29 | AP3: -755 | AQ3: 3484 | AR3: -164 | AS3: -576 | AT3: -660 | AU3: -48 | AV3: -467 | AW3: -369 | AX3: 291 | AY3: -1124 | AZ3: 219 | BA3: -107 | BB3: 324 | BC3: -262 | BD3: -40 | BE3: 33 | BF3: 1110 | BG3: -561 | BH3: -785 | BI3: 323 | BJ3: -229 | BK3: 35 | BL3: 3014 | BM3: -545 | BN3: -386 | BO3: -773 | BP3: -346 | BQ3: -971 | BR3: -309 | BS3: 271 | BT3: -1060 | BU3: 95 | BV3: -58 | BW3: -356 | BX3: -406 | BY3: -57 | BZ3: -474 | CA3: 1253 | CB3: -422 | CC3: -726 | CD3: 327 | CE3: -14 | CF3: -607
A4: 2467 | B4: -14 | C4: 333 | D4: -595 | E4: -89 | F4: -1095 | G4: -1275 | H4: 244 | I4: -926 | J4: 124 | K4: 149 | L4: -31 | M4: 176 | N4: 713 | O4: 26 | P4: 1354 | Q4: -568 | R4: -803 | S4: 226 | T4: 172 | U4: -1201 | V4: 2280 | W4: -229 | X4: 30 | Y4: -843 | Z4: -106 | AA4: -1375 | AB4: -1169 | AC4: 514 | AD4: -940 | AE4: -202 | AF4: -109 | AG4: -8 | AH4: -117 | AI4: 785 | AJ4: 155 | AK4: 1259 | AL4: -933 | AM4: -777 | AN4: 53 | AO4: 66 | AP4: -1391 | AQ4: 1869 | AR4: -169 | AS4: 218 | AT4: -661 | AU4: 77 | AV4: -823 | AW4: -881 | AX4: 519 | AY4: -866 | AZ4: -295 | BA4: 111 | BB4: -106 | BC4: 178 | BD4: 689 | BE4: -112 | BF4: 959 | BG4: -1133 | BH4: -742 | BI4: 275 | BJ4: -153 | BK4: -1141 | BL4: 2782 | BM4: -369 | BN4: 448 | BO4: -336 | BP4: -444 | BQ4: -1053 | BR4: -942 | BS4: 43 | BT4: -946 | BU4: 165 | BV4: -54 | BW4: -34 | BX4: -207 | BY4: 828 | BZ4: 129 | CA4: 1462 | CB4: -270 | CC4: -286 | CD4: 394 | CE4: -306 | CF4: -1084
A5: 1456 | B5: -430 | C5: 700 | D5: -890 | E5: -486 | F5: -1550 | G5: -1506 | H5: 1042 | I5: -780 | J5: 174 | K5: 466 | L5: -445 | M5: 615 | N5: 1780 | O5: 730 | P5: 1145 | Q5: -1793 | R5: -712 | S5: 625 | T5: 72 | U5: -1664 | V5: 1931 | W5: -40 | X5: 387 | Y5: -1264 | Z5: -482 | AA5: -1727 | AB5: -1566 | AC5: 901 | AD5: -1057 | AE5: 328 | AF5: 254 | AG5: -273 | AH5: 641 | AI5: 1867 | AJ5: 804 | AK5: 1556 | AL5: -1762 | AM5: -615 | AN5: 864 | AO5: 92 | AP5: -2000 | AQ5: 1981 | AR5: -47 | AS5: -245 | AT5: -984 | AU5: -175 | AV5: -1159 | AW5: -1303 | AX5: 718 | AY5: -871 | AZ5: 221 | BA5: 323 | BB5: -344 | BC5: 660 | BD5: 1727 | BE5: 368 | BF5: 1324 | BG5: -1892 | BH5: -858 | BI5: 637 | BJ5: 241 | BK5: -1632 | BL5: 1880 | BM5: -532 | BN5: 689 | BO5: -686 | BP5: -1414 | BQ5: -1658 | BR5: -1364 | BS5: 335 | BT5: -1034 | BU5: 123 | BV5: 386 | BW5: -749 | BX5: 376 | BY5: 1211 | BZ5: 365 | CA5: 1448 | CB5: -1510 | CC5: -725 | CD5: 638 | CE5: -405 | CF5: -1772
A6: 3101 | B6: 113 | C6: 503 | D6: -661 | E6: -309 | F6: -1175 | G6: -1037 | H6: 479 | I6: -863 | J6: 279 | K6: 223 | L6: 19 | M6: 272 | N6: 1200 | O6: 102 | P6: 1018 | Q6: -1306 | R6: -295 | S6: 779 | T6: -260 | U6: -1671 | V6: 2806 | W6: 113 | X6: 256 | Y6: -978 | Z6: -182 | AA6: -1776 | AB6: -1190 | AC6: 848 | AD6: -1094 | AE6: 52 | AF6: 158 | AG6: 237 | AH6: 514 | AI6: 1047 | AJ6: 200 | AK6: 942 | AL6: -1374 | AM6: -822 | AN6: 971 | AO6: 163 | AP6: -1895 | AQ6: 1687 | AR6: 146 | AS6: -104 | AT6: -976 | AU6: -341 | AV6: -885 | AW6: -992 | AX6: 544 | AY6: -712 | AZ6: 259 | BA6: 374 | BB6: -287 | BC6: 395 | BD6: 1158 | BE6: 424 | BF6: 473 | BG6: -1354 | BH6: -383 | BI6: 354 | BJ6: -137 | BK6: -1615 | BL6: 3473 | BM6: -309 | BN6: -77 | BO6: -989 | BP6: -769 | BQ6: -1143 | BR6: -1356 | BS6: 3 | BT6: -1177 | BU6: 401 | BV6: 485 | BW6: -143 | BX6: -105 | BY6: 660 | BZ6: 2 | CA6: 1268 | CB6: -770 | CC6: -584 | CD6: 428 | CE6: -172 | CF6: -1125
A7: 2817 | B7: -201 | C7: 586 | D7: -299 | E7: 4 | F7: -807 | G7: -914 | H7: -28 | I7: -188 | J7: -20 | K7: 356 | L7: -232 | M7: 421 | N7: 614 | O7: -111 | P7: 535 | Q7: -552 | R7: -180 | S7: 257 | T7: 56 | U7: -673 | V7: 2549 | W7: -364 | X7: 55 | Y7: -630 | Z7: 29 | AA7: -1182 | AB7: -915 | AC7: 105 | AD7: -338 | AE7: -254 | AF7: 4 | AG7: -128 | AH7: 89 | AI7: 412 | AJ7: 194 | AK7: 549 | AL7: -685 | AM7: -165 | AN7: 141 | AO7: -177 | AP7: -822 | AQ7: 2148 | AR7: -297 | AS7: 60 | AT7: -375 | AU7: 177 | AV7: -898 | AW7: -875 | AX7: 33 | AY7: -511 | AZ7: -193 | BA7: 136 | BB7: 53 | BC7: 149 | BD7: 465 | BE7: -251 | BF7: 366 | BG7: -652 | BH7: -503 | BI7: 136 | BJ7: 38 | BK7: -765 | BL7: 2178 | BM7: -141 | BN7: 332 | BO7: -248 | BP7: -399 | BQ7: -656 | BR7: -706 | BS7: -90 | BT7: -655 | BU7: 58 | BV7: 204 | BW7: 245 | BX7: -11 | BY7: 567 | BZ7: -183 | CA7: 584 | CB7: 4 | CC7: -143 | CD7: 32 | CE7: -302 | CF7: -1217
A8: 2254 | B8: -478 | C8: 464 | D8: -522 | E8: -231 | F8: -1067 | G8: -1057 | H8: 247 | I8: 64 | J8: 44 | K8: 375 | L8: -484 | M8: 639 | N8: 1203 | O8: 397 | P8: 545 | Q8: -1275 | R8: 244 | S8: 526 | T8: 79 | U8: -1224 | V8: 2300 | W8: -170 | X8: 152 | Y8: -812 | Z8: -393 | AA8: -1550 | AB8: -1360 | AC8: 387 | AD8: -348 | AE8: 76 | AF8: 413 | AG8: -429 | AH8: 831 | AI8: 1478 | AJ8: 547 | AK8: 639 | AL8: -1104 | AM8: -177 | AN8: 546 | AO8: -77 | AP8: -1343 | AQ8: 2975 | AR8: -120 | AS8: -313 | AT8: -797 | AU8: 21 | AV8: -1249 | AW8: -1455 | AX8: -133 | AY8: -358 | AZ8: 234 | BA8: 190 | BB8: -29 | BC8: 402 | BD8: 1155 | BE8: 49 | BF8: 496 | BG8: -1266 | BH8: -347 | BI8: 105 | BJ8: 426 | BK8: -1347 | BL8: 1464 | BM8: -1 | BN8: 537 | BO8: -45 | BP8: -1021 | BQ8: -1259 | BR8: -776 | BS8: 69 | BT8: -510 | BU8: -364 | BV8: 627 | BW8: -563 | BX8: 499 | BY8: 1258 | BZ8: 75 | CA8: 468 | CB8: -873 | CC8: -119 | CD8: 276 | CE8: -215 | CF8: -1370
A9: 3550 | B9: -5 | C9: 151 | D9: -601 | E9: -315 | F9: -855 | G9: -812 | H9: -21 | I9: -466 | J9: 9 | K9: 218 | L9: -59 | M9: 480 | N9: 673 | O9: -118 | P9: 270 | Q9: -906 | R9: -232 | S9: 316 | T9: -285 | U9: -1196 | V9: 3091 | W9: -190 | X9: 102 | Y9: -526 | Z9: -146 | AA9: -1317 | AB9: -872 | AC9: 410 | AD9: -198 | AE9: -49 | AF9: 369 | AG9: -118 | AH9: 632 | AI9: 839 | AJ9: 158 | AK9: 53 | AL9: -985 | AM9: -294 | AN9: 458 | AO9: 83 | AP9: -1275 | AQ9: 2656 | AR9: -147 | AS9: -202 | AT9: -474 | AU9: -230 | AV9: -1216 | AW9: -758 | AX9: -45 | AY9: -267 | AZ9: 43 | BA9: 251 | BB9: -271 | BC9: 126 | BD9: 876 | BE9: -4 | BF9: 87 | BG9: -709 | BH9: -196 | BI9: 129 | BJ9: 106 | BK9: -1324 | BL9: 3132 | BM9: 54 | BN9: 53 | BO9: -463 | BP9: -586 | BQ9: -909 | BR9: -680 | BS9: -69 | BT9: -699 | BU9: 79 | BV9: 843 | BW9: -457 | BX9: 206 | BY9: 856 | BZ9: -15 | CA9: 438 | CB9: -310 | CC9: -291 | CD9: 423 | CE9: 59 | CF9: -1051

Sheet truncate
A1: =IF(im2colAll_confW5!A1:CF9 > 0, ROUNDDOWN(im2colAll_confW5!A1:CF9/2^4, 0), ROUNDUP(im2colAll_confW5!A1:CF9/2^4, 0)) -> 207 | B1: =IF(im2colAll_confW5!B1:CG9 > 0, ROUNDDOWN(im2colAll_confW5!B1:CG9/2^4, 0), ROUNDUP(im2colAll_confW5!B1:CG9/2^4, 0)) -> -12 | C1: =IF(im2colAll_confW5!C1:CH9 > 0, ROUNDDOWN(im2colAll_confW5!C1:CH9/2^4, 0), ROUNDUP(im2colAll_confW5!C1:CH9/2^4, 0)) -> -33 | D1: =IF(im2colAll_confW5!D1:CI9 > 0, ROUNDDOWN(im2colAll_confW5!D1:CI9/2^4, 0), ROUNDUP(im2colAll_confW5!D1:CI9/2^4, 0)) -> -16 | E1: =IF(im2colAll_confW5!E1:CJ9 > 0, ROUNDDOWN(im2colAll_confW5!E1:CJ9/2^4, 0), ROUNDUP(im2colAll_confW5!E1:CJ9/2^4, 0)) -> -1 | F1: =IF(im2colAll_confW5!F1:CK9 > 0, ROUNDDOWN(im2colAll_confW5!F1:CK9/2^4, 0), ROUNDUP(im2colAll_confW5!F1:CK9/2^4, 0)) -> -26 | G1: =IF(im2colAll_confW5!G1:CL9 > 0, ROUNDDOWN(im2colAll_confW5!G1:CL9/2^4, 0), ROUNDUP(im2colAll_confW5!G1:CL9/2^4, 0)) -> -8 | H1: =IF(im2colAll_confW5!H1:CM9 > 0, ROUNDDOWN(im2colAll_confW5!H1:CM9/2^4, 0), ROUNDUP(im2colAll_confW5!H1:CM9/2^4, 0)) -> 10 | I1: =IF(im2colAll_confW5!I1:CN9 > 0, ROUNDDOWN(im2colAll_confW5!I1:CN9/2^4, 0), ROUNDUP(im2colAll_confW5!I1:CN9/2^4, 0)) -> -72 | J1: =IF(im2colAll_confW5!J1:CO9 > 0, ROUNDDOWN(im2colAll_confW5!J1:CO9/2^4, 0), ROUNDUP(im2colAll_confW5!J1:CO9/2^4, 0)) -> 26 | K1: =IF(im2colAll_confW5!K1:CP9 > 0, ROUNDDOWN(im2colAll_confW5!K1:CP9/2^4, 0), ROUNDUP(im2colAll_confW5!K1:CP9/2^4, 0)) -> -10 | L1: =IF(im2colAll_confW5!L1:CQ9 > 0, ROUNDDOWN(im2colAll_confW5!L1:CQ9/2^4, 0), ROUNDUP(im2colAll_confW5!L1:CQ9/2^4, 0)) -> -12 | M1: =IF(im2colAll_confW5!M1:CR9 > 0, ROUNDDOWN(im2colAll_confW5!M1:CR9/2^4, 0), ROUNDUP(im2colAll_confW5!M1:CR9/2^4, 0)) -> -32 | N1: =IF(im2colAll_confW5!N1:CS9 > 0, ROUNDDOWN(im2colAll_confW5!N1:CS9/2^4, 0), ROUNDUP(im2colAll_confW5!N1:CS9/2^4, 0)) -> -13 | O1: =IF(im2colAll_confW5!O1:CT9 > 0, ROUNDDOWN(im2colAll_confW5!O1:CT9/2^4, 0), ROUNDUP(im2colAll_confW5!O1:CT9/2^4, 0)) -> -21 | P1: =IF(im2colAll_confW5!P1:CU9 > 0, ROUNDDOWN(im2colAll_confW5!P1:CU9/2^4, 0), ROUNDUP(im2colAll_confW5!P1:CU9/2^4, 0)) -> 76 | Q1: =IF(im2colAll_confW5!Q1:CV9 > 0, ROUNDDOWN(im2colAll_confW5!Q1:CV9/2^4, 0), ROUNDUP(im2colAll_confW5!Q1:CV9/2^4, 0)) -> 4 | R1: =IF(im2colAll_confW5!R1:CW9 > 0, ROUNDDOWN(im2colAll_confW5!R1:CW9/2^4, 0), ROUNDUP(im2colAll_confW5!R1:CW9/2^4, 0)) -> -50 | S1: =IF(im2colAll_confW5!S1:CX9 > 0, ROUNDDOWN(im2colAll_confW5!S1:CX9/2^4, 0), ROUNDUP(im2colAll_confW5!S1:CX9/2^4, 0)) -> 11 | T1: =IF(im2colAll_confW5!T1:CY9 > 0, ROUNDDOWN(im2colAll_confW5!T1:CY9/2^4, 0), ROUNDUP(im2colAll_confW5!T1:CY9/2^4, 0)) -> 10 | U1: =IF(im2colAll_confW5!U1:CZ9 > 0, ROUNDDOWN(im2colAll_confW5!U1:CZ9/2^4, 0), ROUNDUP(im2colAll_confW5!U1:CZ9/2^4, 0)) -> -32 | V1: =IF(im2colAll_confW5!V1:DA9 > 0, ROUNDDOWN(im2colAll_confW5!V1:DA9/2^4, 0), ROUNDUP(im2colAll_confW5!V1:DA9/2^4, 0)) -> 177 | W1: =IF(im2colAll_confW5!W1:DB9 > 0, ROUNDDOWN(im2colAll_confW5!W1:DB9/2^4, 0), ROUNDUP(im2colAll_confW5!W1:DB9/2^4, 0)) -> -23 | X1: =IF(im2colAll_confW5!X1:DC9 > 0, ROUNDDOWN(im2colAll_confW5!X1:DC9/2^4, 0), ROUNDUP(im2colAll_confW5!X1:DC9/2^4, 0)) -> -25 | Y1: =IF(im2colAll_confW5!Y1:DD9 > 0, ROUNDDOWN(im2colAll_confW5!Y1:DD9/2^4, 0), ROUNDUP(im2colAll_confW5!Y1:DD9/2^4, 0)) -> -38 | Z1: =IF(im2colAll_confW5!Z1:DE9 > 0, ROUNDDOWN(im2colAll_confW5!Z1:DE9/2^4, 0), ROUNDUP(im2colAll_confW5!Z1:DE9/2^4, 0)) -> -8 | AA1: =IF(im2colAll_confW5!AA1:DF9 > 0, ROUNDDOWN(im2colAll_confW5!AA1:DF9/2^4, 0), ROUNDUP(im2colAll_confW5!AA1:DF9/2^4, 0)) -> -33 | AB1: =IF(im2colAll_confW5!AB1:DG9 > 0, ROUNDDOWN(im2colAll_confW5!AB1:DG9/2^4, 0), ROUNDUP(im2colAll_confW5!AB1:DG9/2^4, 0)) -> -5 | AC1: =IF(im2colAll_confW5!AC1:DH9 > 0, ROUNDDOWN(im2colAll_confW5!AC1:DH9/2^4, 0), ROUNDUP(im2colAll_confW5!AC1:DH9/2^4, 0)) -> 16 | AD1: =IF(im2colAll_confW5!AD1:DI9 > 0, ROUNDDOWN(im2colAll_confW5!AD1:DI9/2^4, 0), ROUNDUP(im2colAll_confW5!AD1:DI9/2^4, 0)) -> -72 | AE1: =IF(im2colAll_confW5!AE1:DJ9 > 0, ROUNDDOWN(im2colAll_confW5!AE1:DJ9/2^4, 0), ROUNDUP(im2colAll_confW5!AE1:DJ9/2^4, 0)) -> 0 | AF1: =IF(im2colAll_confW5!AF1:DK9 > 0, ROUNDDOWN(im2colAll_confW5!AF1:DK9/2^4, 0), ROUNDUP(im2colAll_confW5!AF1:DK9/2^4, 0)) -> -19 | AG1: =IF(im2colAll_confW5!AG1:DL9 > 0, ROUNDDOWN(im2colAll_confW5!AG1:DL9/2^4, 0), ROUNDUP(im2colAll_confW5!AG1:DL9/2^4, 0)) -> -2 | AH1: =IF(im2colAll_confW5!AH1:DM9 > 0, ROUNDDOWN(im2colAll_confW5!AH1:DM9/2^4, 0), ROUNDUP(im2colAll_confW5!AH1:DM9/2^4, 0)) -> -36 | AI1: =IF(im2colAll_confW5!AI1:DN9 > 0, ROUNDDOWN(im2colAll_confW5!AI1:DN9/2^4, 0), ROUNDUP(im2colAll_confW5!AI1:DN9/2^4, 0)) -> 8 | AJ1: =IF(im2colAll_confW5!AJ1:DO9 > 0, ROUNDDOWN(im2colAll_confW5!AJ1:DO9/2^4, 0), ROUNDUP(im2colAll_confW5!AJ1:DO9/2^4, 0)) -> -7 | AK1: =IF(im2colAll_confW5!AK1:DP9 > 0, ROUNDDOWN(im2colAll_confW5!AK1:DP9/2^4, 0), ROUNDUP(im2colAll_confW5!AK1:DP9/2^4, 0)) -> 79 | AL1: =IF(im2colAll_confW5!AL1:DQ9 > 0, ROUNDDOWN(im2colAll_confW5!AL1:DQ9/2^4, 0), ROUNDUP(im2colAll_confW5!AL1:DQ9/2^4, 0)) -> -29 | AM1: =IF(im2colAll_confW5!AM1:DR9 > 0, ROUNDDOWN(im2colAll_confW5!AM1:DR9/2^4, 0), ROUNDUP(im2colAll_confW5!AM1:DR9/2^4, 0)) -> -55 | AN1: =IF(im2colAll_confW5!AN1:DS9 > 0, ROUNDDOWN(im2colAll_confW5!AN1:DS9/2^4, 0), ROUNDUP(im2colAll_confW5!AN1:DS9/2^4, 0)) -> 27 | AO1: =IF(im2colAll_confW5!AO1:DT9 > 0, ROUNDDOWN(im2colAll_confW5!AO1:DT9/2^4, 0), ROUNDUP(im2colAll_confW5!AO1:DT9/2^4, 0)) -> -11 | AP1: =IF(im2colAll_confW5!AP1:DU9 > 0, ROUNDDOWN(im2colAll_confW5!AP1:DU9/2^4, 0), ROUNDUP(im2colAll_confW5!AP1:DU9/2^4, 0)) -> -31 | AQ1: =IF(im2colAll_confW5!AQ1:DV9 > 0, ROUNDDOWN(im2colAll_confW5!AQ1:DV9/2^4, 0), ROUNDUP(im2colAll_confW5!AQ1:DV9/2^4, 0)) -> 185 | AR1: =IF(im2colAll_confW5!AR1:DW9 > 0, ROUNDDOWN(im2colAll_confW5!AR1:DW9/2^4, 0), ROUNDUP(im2colAll_confW5!AR1:DW9/2^4, 0)) -> -34 | AS1: =IF(im2colAll_confW5!AS1:DX9 > 0, ROUNDDOWN(im2colAll_confW5!AS1:DX9/2^4, 0), ROUNDUP(im2colAll_confW5!AS1:DX9/2^4, 0)) -> -36 | AT1: =IF(im2colAll_confW5!AT1:DY9 > 0, ROUNDDOWN(im2colAll_confW5!AT1:DY9/2^4, 0), ROUNDUP(im2colAll_confW5!AT1:DY9/2^4, 0)) -> -41 | AU1: =IF(im2colAll_confW5!AU1:DZ9 > 0, ROUNDDOWN(im2colAll_confW5!AU1:DZ9/2^4, 0), ROUNDUP(im2colAll_confW5!AU1:DZ9/2^4, 0)) -> 11 | AV1: =IF(im2colAll_confW5!AV1:EA9 > 0, ROUNDDOWN(im2colAll_confW5!AV1:EA9/2^4, 0), ROUNDUP(im2colAll_confW5!AV1:EA9/2^4, 0)) -> -54 | AW1: =IF(im2colAll_confW5!AW1:EB9 > 0, ROUNDDOWN(im2colAll_confW5!AW1:EB9/2^4, 0), ROUNDUP(im2colAll_confW5!AW1:EB9/2^4, 0)) -> -10 | AX1: =IF(im2colAll_confW5!AX1:EC9 > 0, ROUNDDOWN(im2colAll_confW5!AX1:EC9/2^4, 0), ROUNDUP(im2colAll_confW5!AX1:EC9/2^4, 0)) -> 30 | AY1: =IF(im2colAll_confW5!AY1:ED9 > 0, ROUNDDOWN(im2colAll_confW5!AY1:ED9/2^4, 0), ROUNDUP(im2colAll_confW5!AY1:ED9/2^4, 0)) -> -67 | AZ1: =IF(im2colAll_confW5!AZ1:EE9 > 0, ROUNDDOWN(im2colAll_confW5!AZ1:EE9/2^4, 0), ROUNDUP(im2colAll_confW5!AZ1:EE9/2^4, 0)) -> -1 | BA1: =IF(im2colAll_confW5!BA1:EF9 > 0, ROUNDDOWN(im2colAll_confW5!BA1:EF9/2^4, 0), ROUNDUP(im2colAll_confW5!BA1:EF9/2^4, 0)) -> -13 | BB1: =IF(im2colAll_confW5!BB1:EG9 > 0, ROUNDDOWN(im2colAll_confW5!BB1:EG9/2^4, 0), ROUNDUP(im2colAll_confW5!BB1:EG9/2^4, 0)) -> -10 | BC1: =IF(im2colAll_confW5!BC1:EH9 > 0, ROUNDDOWN(im2colAll_confW5!BC1:EH9/2^4, 0), ROUNDUP(im2colAll_confW5!BC1:EH9/2^4, 0)) -> -9 | BD1: =IF(im2colAll_confW5!BD1:EI9 > 0, ROUNDDOWN(im2colAll_confW5!BD1:EI9/2^4, 0), ROUNDUP(im2colAll_confW5!BD1:EI9/2^4, 0)) -> -7 | BE1: =IF(im2colAll_confW5!BE1:EJ9 > 0, ROUNDDOWN(im2colAll_confW5!BE1:EJ9/2^4, 0), ROUNDUP(im2colAll_confW5!BE1:EJ9/2^4, 0)) -> -3 | BF1: =IF(im2colAll_confW5!BF1:EK9 > 0, ROUNDDOWN(im2colAll_confW5!BF1:EK9/2^4, 0), ROUNDUP(im2colAll_confW5!BF1:EK9/2^4, 0)) -> 79 | BG1: =IF(im2colAll_confW5!BG1:EL9 > 0, ROUNDDOWN(im2colAll_confW5!BG1:EL9/2^4, 0), ROUNDUP(im2colAll_confW5!BG1:EL9/2^4, 0)) -> -27 | BH1: =IF(im2colAll_confW5!BH1:EM9 > 0, ROUNDDOWN(im2colAll_confW5!BH1:EM9/2^4, 0), ROUNDUP(im2colAll_confW5!BH1:EM9/2^4, 0)) -> -67 | BI1: =IF(im2colAll_confW5!BI1:EN9 > 0, ROUNDDOWN(im2colAll_confW5!BI1:EN9/2^4, 0), ROUNDUP(im2colAll_confW5!BI1:EN9/2^4, 0)) -> 36 | BJ1: =IF(im2colAll_confW5!BJ1:EO9 > 0, ROUNDDOWN(im2colAll_confW5!BJ1:EO9/2^4, 0), ROUNDUP(im2colAll_confW5!BJ1:EO9/2^4, 0)) -> -7 | BK1: =IF(im2colAll_confW5!BK1:EP9 > 0, ROUNDDOWN(im2colAll_confW5!BK1:EP9/2^4, 0), ROUNDUP(im2colAll_confW5!BK1:EP9/2^4, 0)) -> -26 | BL1: =IF(im2colAll_confW5!BL1:EQ9 > 0, ROUNDDOWN(im2colAll_confW5!BL1:EQ9/2^4, 0), ROUNDUP(im2colAll_confW5!BL1:EQ9/2^4, 0)) -> 168 | BM1: =IF(im2colAll_confW5!BM1:ER9 > 0, ROUNDDOWN(im2colAll_confW5!BM1:ER9/2^4, 0), ROUNDUP(im2colAll_confW5!BM1:ER9/2^4, 0)) -> -24 | BN1: =IF(im2colAll_confW5!BN1:ES9 > 0, ROUNDDOWN(im2colAll_confW5!BN1:ES9/2^4, 0), ROUNDUP(im2colAll_confW5!BN1:ES9/2^4, 0)) -> -3 | BO1: =IF(im2colAll_confW5!BO1:ET9 > 0, ROUNDDOWN(im2colAll_confW5!BO1:ET9/2^4, 0), ROUNDUP(im2colAll_confW5!BO1:ET9/2^4, 0)) -> -33 | BP1: =IF(im2colAll_confW5!BP1:EU9 > 0, ROUNDDOWN(im2colAll_confW5!BP1:EU9/2^4, 0), ROUNDUP(im2colAll_confW5!BP1:EU9/2^4, 0)) -> -7 | BQ1: =IF(im2colAll_confW5!BQ1:EV9 > 0, ROUNDDOWN(im2colAll_confW5!BQ1:EV9/2^4, 0), ROUNDUP(im2colAll_confW5!BQ1:EV9/2^4, 0)) -> -32 | BR1: =IF(im2colAll_confW5!BR1:EW9 > 0, ROUNDDOWN(im2colAll_confW5!BR1:EW9/2^4, 0), ROUNDUP(im2colAll_confW5!BR1:EW9/2^4, 0)) -> -8 | BS1: =IF(im2colAll_confW5!BS1:EX9 > 0, ROUNDDOWN(im2colAll_confW5!BS1:EX9/2^4, 0), ROUNDUP(im2colAll_confW5!BS1:EX9/2^4, 0)) -> -6 | BT1: =IF(im2colAll_confW5!BT1:EY9 > 0, ROUNDDOWN(im2colAll_confW5!BT1:EY9/2^4, 0), ROUNDUP(im2colAll_confW5!BT1:EY9/2^4, 0)) -> -47 | BU1: =IF(im2colAll_confW5!BU1:EZ9 > 0, ROUNDDOWN(im2colAll_confW5!BU1:EZ9/2^4, 0), ROUNDUP(im2colAll_confW5!BU1:EZ9/2^4, 0)) -> -10 | BV1: =IF(im2colAll_confW5!BV1:FA9 > 0, ROUNDDOWN(im2colAll_confW5!BV1:FA9/2^4, 0), ROUNDUP(im2colAll_confW5!BV1:FA9/2^4, 0)) -> -11 | BW1: =IF(im2colAll_confW5!BW1:FB9 > 0, ROUNDDOWN(im2colAll_confW5!BW1:FB9/2^4, 0), ROUNDUP(im2colAll_confW5!BW1:FB9/2^4, 0)) -> -23 | BX1: =IF(im2colAll_confW5!BX1:FC9 > 0, ROUNDDOWN(im2colAll_confW5!BX1:FC9/2^4, 0), ROUNDUP(im2colAll_confW5!BX1:FC9/2^4, 0)) -> -12 | BY1: =IF(im2colAll_confW5!BY1:FD9 > 0, ROUNDDOWN(im2colAll_confW5!BY1:FD9/2^4, 0), ROUNDUP(im2colAll_confW5!BY1:FD9/2^4, 0)) -> 7 | BZ1: =IF(im2colAll_confW5!BZ1:FE9 > 0, ROUNDDOWN(im2colAll_confW5!BZ1:FE9/2^4, 0), ROUNDUP(im2colAll_confW5!BZ1:FE9/2^4, 0)) -> -14 | CA1: =IF(im2colAll_confW5!CA1:FF9 > 0, ROUNDDOWN(im2colAll_confW5!CA1:FF9/2^4, 0), ROUNDUP(im2colAll_confW5!CA1:FF9/2^4, 0)) -> 65 | CB1: =IF(im2colAll_confW5!CB1:FG9 > 0, ROUNDDOWN(im2colAll_confW5!CB1:FG9/2^4, 0), ROUNDUP(im2colAll_confW5!CB1:FG9/2^4, 0)) -> -14 | CC1: =IF(im2colAll_confW5!CC1:FH9 > 0, ROUNDDOWN(im2colAll_confW5!CC1:FH9/2^4, 0), ROUNDUP(im2colAll_confW5!CC1:FH9/2^4, 0)) -> -58 | CD1: =IF(im2colAll_confW5!CD1:FI9 > 0, ROUNDDOWN(im2colAll_confW5!CD1:FI9/2^4, 0), ROUNDUP(im2colAll_confW5!CD1:FI9/2^4, 0)) -> 8 | CE1: =IF(im2colAll_confW5!CE1:FJ9 > 0, ROUNDDOWN(im2colAll_confW5!CE1:FJ9/2^4, 0), ROUNDUP(im2colAll_confW5!CE1:FJ9/2^4, 0)) -> -1 | CF1: =IF(im2colAll_confW5!CF1:FK9 > 0, ROUNDDOWN(im2colAll_confW5!CF1:FK9/2^4, 0), ROUNDUP(im2colAll_confW5!CF1:FK9/2^4, 0)) -> -28
A2: =IF(im2colAll_confW5!A2:CF10 > 0, ROUNDDOWN(im2colAll_confW5!A2:CF10/2^4, 0), ROUNDUP(im2colAll_confW5!A2:CF10/2^4, 0)) -> 244 | B2: =IF(im2colAll_confW5!B2:CG10 > 0, ROUNDDOWN(im2colAll_confW5!B2:CG10/2^4, 0), ROUNDUP(im2colAll_confW5!B2:CG10/2^4, 0)) -> -36 | C2: =IF(im2colAll_confW5!C2:CH10 > 0, ROUNDDOWN(im2colAll_confW5!C2:CH10/2^4, 0), ROUNDUP(im2colAll_confW5!C2:CH10/2^4, 0)) -> -33 | D2: =IF(im2colAll_confW5!D2:CI10 > 0, ROUNDDOWN(im2colAll_confW5!D2:CI10/2^4, 0), ROUNDUP(im2colAll_confW5!D2:CI10/2^4, 0)) -> -55 | E2: =IF(im2colAll_confW5!E2:CJ10 > 0, ROUNDDOWN(im2colAll_confW5!E2:CJ10/2^4, 0), ROUNDUP(im2colAll_confW5!E2:CJ10/2^4, 0)) -> -15 | F2: =IF(im2colAll_confW5!F2:CK10 > 0, ROUNDDOWN(im2colAll_confW5!F2:CK10/2^4, 0), ROUNDUP(im2colAll_confW5!F2:CK10/2^4, 0)) -> -43 | G2: =IF(im2colAll_confW5!G2:CL10 > 0, ROUNDDOWN(im2colAll_confW5!G2:CL10/2^4, 0), ROUNDUP(im2colAll_confW5!G2:CL10/2^4, 0)) -> -37 | H2: =IF(im2colAll_confW5!H2:CM10 > 0, ROUNDDOWN(im2colAll_confW5!H2:CM10/2^4, 0), ROUNDUP(im2colAll_confW5!H2:CM10/2^4, 0)) -> 48 | I2: =IF(im2colAll_confW5!I2:CN10 > 0, ROUNDDOWN(im2colAll_confW5!I2:CN10/2^4, 0), ROUNDUP(im2colAll_confW5!I2:CN10/2^4, 0)) -> -97 | J2: =IF(im2colAll_confW5!J2:CO10 > 0, ROUNDDOWN(im2colAll_confW5!J2:CO10/2^4, 0), ROUNDUP(im2colAll_confW5!J2:CO10/2^4, 0)) -> 37 | K2: =IF(im2colAll_confW5!K2:CP10 > 0, ROUNDDOWN(im2colAll_confW5!K2:CP10/2^4, 0), ROUNDUP(im2colAll_confW5!K2:CP10/2^4, 0)) -> 1 | L2: =IF(im2colAll_confW5!L2:CQ10 > 0, ROUNDDOWN(im2colAll_confW5!L2:CQ10/2^4, 0), ROUNDUP(im2colAll_confW5!L2:CQ10/2^4, 0)) -> -25 | M2: =IF(im2colAll_confW5!M2:CR10 > 0, ROUNDDOWN(im2colAll_confW5!M2:CR10/2^4, 0), ROUNDUP(im2colAll_confW5!M2:CR10/2^4, 0)) -> -33 | N2: =IF(im2colAll_confW5!N2:CS10 > 0, ROUNDDOWN(im2colAll_confW5!N2:CS10/2^4, 0), ROUNDUP(im2colAll_confW5!N2:CS10/2^4, 0)) -> -2 | O2: =IF(im2colAll_confW5!O2:CT10 > 0, ROUNDDOWN(im2colAll_confW5!O2:CT10/2^4, 0), ROUNDUP(im2colAll_confW5!O2:CT10/2^4, 0)) -> -10 | P2: =IF(im2colAll_confW5!P2:CU10 > 0, ROUNDDOWN(im2colAll_confW5!P2:CU10/2^4, 0), ROUNDUP(im2colAll_confW5!P2:CU10/2^4, 0)) -> 84 | Q2: =IF(im2colAll_confW5!Q2:CV10 > 0, ROUNDDOWN(im2colAll_confW5!Q2:CV10/2^4, 0), ROUNDUP(im2colAll_confW5!Q2:CV10/2^4, 0)) -> -24 | R2: =IF(im2colAll_confW5!R2:CW10 > 0, ROUNDDOWN(im2colAll_confW5!R2:CW10/2^4, 0), ROUNDUP(im2colAll_confW5!R2:CW10/2^4, 0)) -> -56 | S2: =IF(im2colAll_confW5!S2:CX10 > 0, ROUNDDOWN(im2colAll_confW5!S2:CX10/2^4, 0), ROUNDUP(im2colAll_confW5!S2:CX10/2^4, 0)) -> 14 | T2: =IF(im2colAll_confW5!T2:CY10 > 0, ROUNDDOWN(im2colAll_confW5!T2:CY10/2^4, 0), ROUNDUP(im2colAll_confW5!T2:CY10/2^4, 0)) -> -7 | U2: =IF(im2colAll_confW5!U2:CZ10 > 0, ROUNDDOWN(im2colAll_confW5!U2:CZ10/2^4, 0), ROUNDUP(im2colAll_confW5!U2:CZ10/2^4, 0)) -> -13 | V2: =IF(im2colAll_confW5!V2:DA10 > 0, ROUNDDOWN(im2colAll_confW5!V2:DA10/2^4, 0), ROUNDUP(im2colAll_confW5!V2:DA10/2^4, 0)) -> 257 | W2: =IF(im2colAll_confW5!W2:DB10 > 0, ROUNDDOWN(im2colAll_confW5!W2:DB10/2^4, 0), ROUNDUP(im2colAll_confW5!W2:DB10/2^4, 0)) -> -6 | X2: =IF(im2colAll_confW5!X2:DC10 > 0, ROUNDDOWN(im2colAll_confW5!X2:DC10/2^4, 0), ROUNDUP(im2colAll_confW5!X2:DC10/2^4, 0)) -> -43 | Y2: =IF(im2colAll_confW5!Y2:DD10 > 0, ROUNDDOWN(im2colAll_confW5!Y2:DD10/2^4, 0), ROUNDUP(im2colAll_confW5!Y2:DD10/2^4, 0)) -> -61 | Z2: =IF(im2colAll_confW5!Z2:DE10 > 0, ROUNDDOWN(im2colAll_confW5!Z2:DE10/2^4, 0), ROUNDUP(im2colAll_confW5!Z2:DE10/2^4, 0)) -> -27 | AA2: =IF(im2colAll_confW5!AA2:DF10 > 0, ROUNDDOWN(im2colAll_confW5!AA2:DF10/2^4, 0), ROUNDUP(im2colAll_confW5!AA2:DF10/2^4, 0)) -> -28 | AB2: =IF(im2colAll_confW5!AB2:DG10 > 0, ROUNDDOWN(im2colAll_confW5!AB2:DG10/2^4, 0), ROUNDUP(im2colAll_confW5!AB2:DG10/2^4, 0)) -> -19 | AC2: =IF(im2colAll_confW5!AC2:DH10 > 0, ROUNDDOWN(im2colAll_confW5!AC2:DH10/2^4, 0), ROUNDUP(im2colAll_confW5!AC2:DH10/2^4, 0)) -> 17 | AD2: =IF(im2colAll_confW5!AD2:DI10 > 0, ROUNDDOWN(im2colAll_confW5!AD2:DI10/2^4, 0), ROUNDUP(im2colAll_confW5!AD2:DI10/2^4, 0)) -> -95 | AE2: =IF(im2colAll_confW5!AE2:DJ10 > 0, ROUNDDOWN(im2colAll_confW5!AE2:DJ10/2^4, 0), ROUNDUP(im2colAll_confW5!AE2:DJ10/2^4, 0)) -> 22 | AF2: =IF(im2colAll_confW5!AF2:DK10 > 0, ROUNDDOWN(im2colAll_confW5!AF2:DK10/2^4, 0), ROUNDUP(im2colAll_confW5!AF2:DK10/2^4, 0)) -> -32 | AG2: =IF(im2colAll_confW5!AG2:DL10 > 0, ROUNDDOWN(im2colAll_confW5!AG2:DL10/2^4, 0), ROUNDUP(im2colAll_confW5!AG2:DL10/2^4, 0)) -> 13 | AH2: =IF(im2colAll_confW5!AH2:DM10 > 0, ROUNDDOWN(im2colAll_confW5!AH2:DM10/2^4, 0), ROUNDUP(im2colAll_confW5!AH2:DM10/2^4, 0)) -> -33 | AI2: =IF(im2colAll_confW5!AI2:DN10 > 0, ROUNDDOWN(im2colAll_confW5!AI2:DN10/2^4, 0), ROUNDUP(im2colAll_confW5!AI2:DN10/2^4, 0)) -> 26 | AJ2: =IF(im2colAll_confW5!AJ2:DO10 > 0, ROUNDDOWN(im2colAll_confW5!AJ2:DO10/2^4, 0), ROUNDUP(im2colAll_confW5!AJ2:DO10/2^4, 0)) -> 21 | AK2: =IF(im2colAll_confW5!AK2:DP10 > 0, ROUNDDOWN(im2colAll_confW5!AK2:DP10/2^4, 0), ROUNDUP(im2colAll_confW5!AK2:DP10/2^4, 0)) -> 112 | AL2: =IF(im2colAll_confW5!AL2:DQ10 > 0, ROUNDDOWN(im2colAll_confW5!AL2:DQ10/2^4, 0), ROUNDUP(im2colAll_confW5!AL2:DQ10/2^4, 0)) -> -45 | AM2: =IF(im2colAll_confW5!AM2:DR10 > 0, ROUNDDOWN(im2colAll_confW5!AM2:DR10/2^4, 0), ROUNDUP(im2colAll_confW5!AM2:DR10/2^4, 0)) -> -44 | AN2: =IF(im2colAll_confW5!AN2:DS10 > 0, ROUNDDOWN(im2colAll_confW5!AN2:DS10/2^4, 0), ROUNDUP(im2colAll_confW5!AN2:DS10/2^4, 0)) -> 49 | AO2: =IF(im2colAll_confW5!AO2:DT10 > 0, ROUNDDOWN(im2colAll_confW5!AO2:DT10/2^4, 0), ROUNDUP(im2colAll_confW5!AO2:DT10/2^4, 0)) -> -9 | AP2: =IF(im2colAll_confW5!AP2:DU10 > 0, ROUNDDOWN(im2colAll_confW5!AP2:DU10/2^4, 0), ROUNDUP(im2colAll_confW5!AP2:DU10/2^4, 0)) -> -31 | AQ2: =IF(im2colAll_confW5!AQ2:DV10 > 0, ROUNDDOWN(im2colAll_confW5!AQ2:DV10/2^4, 0), ROUNDUP(im2colAll_confW5!AQ2:DV10/2^4, 0)) -> 279 | AR2: =IF(im2colAll_confW5!AR2:DW10 > 0, ROUNDDOWN(im2colAll_confW5!AR2:DW10/2^4, 0), ROUNDUP(im2colAll_confW5!AR2:DW10/2^4, 0)) -> -30 | AS2: =IF(im2colAll_confW5!AS2:DX10 > 0, ROUNDDOWN(im2colAll_confW5!AS2:DX10/2^4, 0), ROUNDUP(im2colAll_confW5!AS2:DX10/2^4, 0)) -> -62 | AT2: =IF(im2colAll_confW5!AT2:DY10 > 0, ROUNDDOWN(im2colAll_confW5!AT2:DY10/2^4, 0), ROUNDUP(im2colAll_confW5!AT2:DY10/2^4, 0)) -> -55 | AU2: =IF(im2colAll_confW5!AU2:DZ10 > 0, ROUNDDOWN(im2colAll_confW5!AU2:DZ10/2^4, 0), ROUNDUP(im2colAll_confW5!AU2:DZ10/2^4, 0)) -> 5 | AV2: =IF(im2colAll_confW5!AV2:EA10 > 0, ROUNDDOWN(im2colAll_confW5!AV2:EA10/2^4, 0), ROUNDUP(im2colAll_confW5!AV2:EA10/2^4, 0)) -> -58 | AW2: =IF(im2colAll_confW5!AW2:EB10 > 0, ROUNDDOWN(im2colAll_confW5!AW2:EB10/2^4, 0), ROUNDUP(im2colAll_confW5!AW2:EB10/2^4, 0)) -> -13 | AX2: =IF(im2colAll_confW5!AX2:EC10 > 0, ROUNDDOWN(im2colAll_confW5!AX2:EC10/2^4, 0), ROUNDUP(im2colAll_confW5!AX2:EC10/2^4, 0)) -> 35 | AY2: =IF(im2colAll_confW5!AY2:ED10 > 0, ROUNDDOWN(im2colAll_confW5!AY2:ED10/2^4, 0), ROUNDUP(im2colAll_confW5!AY2:ED10/2^4, 0)) -> -84 | AZ2: =IF(im2colAll_confW5!AZ2:EE10 > 0, ROUNDDOWN(im2colAll_confW5!AZ2:EE10/2^4, 0), ROUNDUP(im2colAll_confW5!AZ2:EE10/2^4, 0)) -> 27 | BA2: =IF(im2colAll_confW5!BA2:EF10 > 0, ROUNDDOWN(im2colAll_confW5!BA2:EF10/2^4, 0), ROUNDUP(im2colAll_confW5!BA2:EF10/2^4, 0)) -> -9 | BB2: =IF(im2colAll_confW5!BB2:EG10 > 0, ROUNDDOWN(im2colAll_confW5!BB2:EG10/2^4, 0), ROUNDUP(im2colAll_confW5!BB2:EG10/2^4, 0)) -> -8 | BC2: =IF(im2colAll_confW5!BC2:EH10 > 0, ROUNDDOWN(im2colAll_confW5!BC2:EH10/2^4, 0), ROUNDUP(im2colAll_confW5!BC2:EH10/2^4, 0)) -> -16 | BD2: =IF(im2colAll_confW5!BD2:EI10 > 0, ROUNDDOWN(im2colAll_confW5!BD2:EI10/2^4, 0), ROUNDUP(im2colAll_confW5!BD2:EI10/2^4, 0)) -> 4 | BE2: =IF(im2colAll_confW5!BE2:EJ10 > 0, ROUNDDOWN(im2colAll_confW5!BE2:EJ10/2^4, 0), ROUNDUP(im2colAll_confW5!BE2:EJ10/2^4, 0)) -> 2 | BF2: =IF(im2colAll_confW5!BF2:EK10 > 0, ROUNDDOWN(im2colAll_confW5!BF2:EK10/2^4, 0), ROUNDUP(im2colAll_confW5!BF2:EK10/2^4, 0)) -> 121 | BG2: =IF(im2colAll_confW5!BG2:EL10 > 0, ROUNDDOWN(im2colAll_confW5!BG2:EL10/2^4, 0), ROUNDUP(im2colAll_confW5!BG2:EL10/2^4, 0)) -> -58 | BH2: =IF(im2colAll_confW5!BH2:EM10 > 0, ROUNDDOWN(im2colAll_confW5!BH2:EM10/2^4, 0), ROUNDUP(im2colAll_confW5!BH2:EM10/2^4, 0)) -> -82 | BI2: =IF(im2colAll_confW5!BI2:EN10 > 0, ROUNDDOWN(im2colAll_confW5!BI2:EN10/2^4, 0), ROUNDUP(im2colAll_confW5!BI2:EN10/2^4, 0)) -> 51 | BJ2: =IF(im2colAll_confW5!BJ2:EO10 > 0, ROUNDDOWN(im2colAll_confW5!BJ2:EO10/2^4, 0), ROUNDUP(im2colAll_confW5!BJ2:EO10/2^4, 0)) -> -6 | BK2: =IF(im2colAll_confW5!BK2:EP10 > 0, ROUNDDOWN(im2colAll_confW5!BK2:EP10/2^4, 0), ROUNDUP(im2colAll_confW5!BK2:EP10/2^4, 0)) -> -11 | BL2: =IF(im2colAll_confW5!BL2:EQ10 > 0, ROUNDDOWN(im2colAll_confW5!BL2:EQ10/2^4, 0), ROUNDUP(im2colAll_confW5!BL2:EQ10/2^4, 0)) -> 164 | BM2: =IF(im2colAll_confW5!BM2:ER10 > 0, ROUNDDOWN(im2colAll_confW5!BM2:ER10/2^4, 0), ROUNDUP(im2colAll_confW5!BM2:ER10/2^4, 0)) -> -50 | BN2: =IF(im2colAll_confW5!BN2:ES10 > 0, ROUNDDOWN(im2colAll_confW5!BN2:ES10/2^4, 0), ROUNDUP(im2colAll_confW5!BN2:ES10/2^4, 0)) -> -14 | BO2: =IF(im2colAll_confW5!BO2:ET10 > 0, ROUNDDOWN(im2colAll_confW5!BO2:ET10/2^4, 0), ROUNDUP(im2colAll_confW5!BO2:ET10/2^4, 0)) -> -60 | BP2: =IF(im2colAll_confW5!BP2:EU10 > 0, ROUNDDOWN(im2colAll_confW5!BP2:EU10/2^4, 0), ROUNDUP(im2colAll_confW5!BP2:EU10/2^4, 0)) -> -40 | BQ2: =IF(im2colAll_confW5!BQ2:EV10 > 0, ROUNDDOWN(im2colAll_confW5!BQ2:EV10/2^4, 0), ROUNDUP(im2colAll_confW5!BQ2:EV10/2^4, 0)) -> -56 | BR2: =IF(im2colAll_confW5!BR2:EW10 > 0, ROUNDDOWN(im2colAll_confW5!BR2:EW10/2^4, 0), ROUNDUP(im2colAll_confW5!BR2:EW10/2^4, 0)) -> -25 | BS2: =IF(im2colAll_confW5!BS2:EX10 > 0, ROUNDDOWN(im2colAll_confW5!BS2:EX10/2^4, 0), ROUNDUP(im2colAll_confW5!BS2:EX10/2^4, 0)) -> 5 | BT2: =IF(im2colAll_confW5!BT2:EY10 > 0, ROUNDDOWN(im2colAll_confW5!BT2:EY10/2^4, 0), ROUNDUP(im2colAll_confW5!BT2:EY10/2^4, 0)) -> -60 | BU2: =IF(im2colAll_confW5!BU2:EZ10 > 0, ROUNDDOWN(im2colAll_confW5!BU2:EZ10/2^4, 0), ROUNDUP(im2colAll_confW5!BU2:EZ10/2^4, 0)) -> 4 | BV2: =IF(im2colAll_confW5!BV2:FA10 > 0, ROUNDDOWN(im2colAll_confW5!BV2:FA10/2^4, 0), ROUNDUP(im2colAll_confW5!BV2:FA10/2^4, 0)) -> 2 | BW2: =IF(im2colAll_confW5!BW2:FB10 > 0, ROUNDDOWN(im2colAll_confW5!BW2:FB10/2^4, 0), ROUNDUP(im2colAll_confW5!BW2:FB10/2^4, 0)) -> -51 | BX2: =IF(im2colAll_confW5!BX2:FC10 > 0, ROUNDDOWN(im2colAll_confW5!BX2:FC10/2^4, 0), ROUNDUP(im2colAll_confW5!BX2:FC10/2^4, 0)) -> -5 | BY2: =IF(im2colAll_confW5!BY2:FD10 > 0, ROUNDDOWN(im2colAll_confW5!BY2:FD10/2^4, 0), ROUNDUP(im2colAll_confW5!BY2:FD10/2^4, 0)) -> 0 | BZ2: =IF(im2colAll_confW5!BZ2:FE10 > 0, ROUNDDOWN(im2colAll_confW5!BZ2:FE10/2^4, 0), ROUNDUP(im2colAll_confW5!BZ2:FE10/2^4, 0)) -> -17 | CA2: =IF(im2colAll_confW5!CA2:FF10 > 0, ROUNDDOWN(im2colAll_confW5!CA2:FF10/2^4, 0), ROUNDUP(im2colAll_confW5!CA2:FF10/2^4, 0)) -> 99 | CB2: =IF(im2colAll_confW5!CB2:FG10 > 0, ROUNDDOWN(im2colAll_confW5!CB2:FG10/2^4, 0), ROUNDUP(im2colAll_confW5!CB2:FG10/2^4, 0)) -> -61 | CC2: =IF(im2colAll_confW5!CC2:FH10 > 0, ROUNDDOWN(im2colAll_confW5!CC2:FH10/2^4, 0), ROUNDUP(im2colAll_confW5!CC2:FH10/2^4, 0)) -> -69 | CD2: =IF(im2colAll_confW5!CD2:FI10 > 0, ROUNDDOWN(im2colAll_confW5!CD2:FI10/2^4, 0), ROUNDUP(im2colAll_confW5!CD2:FI10/2^4, 0)) -> 19 | CE2: =IF(im2colAll_confW5!CE2:FJ10 > 0, ROUNDDOWN(im2colAll_confW5!CE2:FJ10/2^4, 0), ROUNDUP(im2colAll_confW5!CE2:FJ10/2^4, 0)) -> 2 | CF2: =IF(im2colAll_confW5!CF2:FK10 > 0, ROUNDDOWN(im2colAll_confW5!CF2:FK10/2^4, 0), ROUNDUP(im2colAll_confW5!CF2:FK10/2^4, 0)) -> -44
A3: =IF(im2colAll_confW5!A3:CF11 > 0, ROUNDDOWN(im2colAll_confW5!A3:CF11/2^4, 0), ROUNDUP(im2colAll_confW5!A3:CF11/2^4, 0)) -> 249 | B3: =IF(im2colAll_confW5!B3:CG11 > 0, ROUNDDOWN(im2colAll_confW5!B3:CG11/2^4, 0), ROUNDUP(im2colAll_confW5!B3:CG11/2^4, 0)) -> 3 | C3: =IF(im2colAll_confW5!C3:CH11 > 0, ROUNDDOWN(im2colAll_confW5!C3:CH11/2^4, 0), ROUNDUP(im2colAll_confW5!C3:CH11/2^4, 0)) -> -17 | D3: =IF(im2colAll_confW5!D3:CI11 > 0, ROUNDDOWN(im2colAll_confW5!D3:CI11/2^4, 0), ROUNDUP(im2colAll_confW5!D3:CI11/2^4, 0)) -> -54 | E3: =IF(im2colAll_confW5!E3:CJ11 > 0, ROUNDDOWN(im2colAll_confW5!E3:CJ11/2^4, 0), ROUNDUP(im2colAll_confW5!E3:CJ11/2^4, 0)) -> 7 | F3: =IF(im2colAll_confW5!F3:CK11 > 0, ROUNDDOWN(im2colAll_confW5!F3:CK11/2^4, 0), ROUNDUP(im2colAll_confW5!F3:CK11/2^4, 0)) -> -52 | G3: =IF(im2colAll_confW5!G3:CL11 > 0, ROUNDDOWN(im2colAll_confW5!G3:CL11/2^4, 0), ROUNDUP(im2colAll_confW5!G3:CL11/2^4, 0)) -> -26 | H3: =IF(im2colAll_confW5!H3:CM11 > 0, ROUNDDOWN(im2colAll_confW5!H3:CM11/2^4, 0), ROUNDUP(im2colAll_confW5!H3:CM11/2^4, 0)) -> 35 | I3: =IF(im2colAll_confW5!I3:CN11 > 0, ROUNDDOWN(im2colAll_confW5!I3:CN11/2^4, 0), ROUNDUP(im2colAll_confW5!I3:CN11/2^4, 0)) -> -91 | J3: =IF(im2colAll_confW5!J3:CO11 > 0, ROUNDDOWN(im2colAll_confW5!J3:CO11/2^4, 0), ROUNDUP(im2colAll_confW5!J3:CO11/2^4, 0)) -> 39 | K3: =IF(im2colAll_confW5!K3:CP11 > 0, ROUNDDOWN(im2colAll_confW5!K3:CP11/2^4, 0), ROUNDUP(im2colAll_confW5!K3:CP11/2^4, 0)) -> -2 | L3: =IF(im2colAll_confW5!L3:CQ11 > 0, ROUNDDOWN(im2colAll_confW5!L3:CQ11/2^4, 0), ROUNDUP(im2colAll_confW5!L3:CQ11/2^4, 0)) -> 2 | M3: =IF(im2colAll_confW5!M3:CR11 > 0, ROUNDDOWN(im2colAll_confW5!M3:CR11/2^4, 0), ROUNDUP(im2colAll_confW5!M3:CR11/2^4, 0)) -> -30 | N3: =IF(im2colAll_confW5!N3:CS11 > 0, ROUNDDOWN(im2colAll_confW5!N3:CS11/2^4, 0), ROUNDUP(im2colAll_confW5!N3:CS11/2^4, 0)) -> 1 | O3: =IF(im2colAll_confW5!O3:CT11 > 0, ROUNDDOWN(im2colAll_confW5!O3:CT11/2^4, 0), ROUNDUP(im2colAll_confW5!O3:CT11/2^4, 0)) -> -22 | P3: =IF(im2colAll_confW5!P3:CU11 > 0, ROUNDDOWN(im2colAll_confW5!P3:CU11/2^4, 0), ROUNDUP(im2colAll_confW5!P3:CU11/2^4, 0)) -> 57 | Q3: =IF(im2colAll_confW5!Q3:CV11 > 0, ROUNDDOWN(im2colAll_confW5!Q3:CV11/2^4, 0), ROUNDUP(im2colAll_confW5!Q3:CV11/2^4, 0)) -> -12 | R3: =IF(im2colAll_confW5!R3:CW11 > 0, ROUNDDOWN(im2colAll_confW5!R3:CW11/2^4, 0), ROUNDUP(im2colAll_confW5!R3:CW11/2^4, 0)) -> -47 | S3: =IF(im2colAll_confW5!S3:CX11 > 0, ROUNDDOWN(im2colAll_confW5!S3:CX11/2^4, 0), ROUNDUP(im2colAll_confW5!S3:CX11/2^4, 0)) -> 19 | T3: =IF(im2colAll_confW5!T3:CY11 > 0, ROUNDDOWN(im2colAll_confW5!T3:CY11/2^4, 0), ROUNDUP(im2colAll_confW5!T3:CY11/2^4, 0)) -> 0 | U3: =IF(im2colAll_confW5!U3:CZ11 > 0, ROUNDDOWN(im2colAll_confW5!U3:CZ11/2^4, 0), ROUNDUP(im2colAll_confW5!U3:CZ11/2^4, 0)) -> -26 | V3: =IF(im2colAll_confW5!V3:DA11 > 0, ROUNDDOWN(im2colAll_confW5!V3:DA11/2^4, 0), ROUNDUP(im2colAll_confW5!V3:DA11/2^4, 0)) -> 220 | W3: =IF(im2colAll_confW5!W3:DB11 > 0, ROUNDDOWN(im2colAll_confW5!W3:DB11/2^4, 0), ROUNDUP(im2colAll_confW5!W3:DB11/2^4, 0)) -> 6 | X3: =IF(im2colAll_confW5!X3:DC11 > 0, ROUNDDOWN(im2colAll_confW5!X3:DC11/2^4, 0), ROUNDUP(im2colAll_confW5!X3:DC11/2^4, 0)) -> -23 | Y3: =IF(im2colAll_confW5!Y3:DD11 > 0, ROUNDDOWN(im2colAll_confW5!Y3:DD11/2^4, 0), ROUNDUP(im2colAll_confW5!Y3:DD11/2^4, 0)) -> -57 | Z3: =IF(im2colAll_confW5!Z3:DE11 > 0, ROUNDDOWN(im2colAll_confW5!Z3:DE11/2^4, 0), ROUNDUP(im2colAll_confW5!Z3:DE11/2^4, 0)) -> 1 | AA3: =IF(im2colAll_confW5!AA3:DF11 > 0, ROUNDDOWN(im2colAll_confW5!AA3:DF11/2^4, 0), ROUNDUP(im2colAll_confW5!AA3:DF11/2^4, 0)) -> -49 | AB3: =IF(im2colAll_confW5!AB3:DG11 > 0, ROUNDDOWN(im2colAll_confW5!AB3:DG11/2^4, 0), ROUNDUP(im2colAll_confW5!AB3:DG11/2^4, 0)) -> -17 | AC3: =IF(im2colAll_confW5!AC3:DH11 > 0, ROUNDDOWN(im2colAll_confW5!AC3:DH11/2^4, 0), ROUNDUP(im2colAll_confW5!AC3:DH11/2^4, 0)) -> 3 | AD3: =IF(im2colAll_confW5!AD3:DI11 > 0, ROUNDDOWN(im2colAll_confW5!AD3:DI11/2^4, 0), ROUNDUP(im2colAll_confW5!AD3:DI11/2^4, 0)) -> -78 | AE3: =IF(im2colAll_confW5!AE3:DJ11 > 0, ROUNDDOWN(im2colAll_confW5!AE3:DJ11/2^4, 0), ROUNDUP(im2colAll_confW5!AE3:DJ11/2^4, 0)) -> 16 | AF3: =IF(im2colAll_confW5!AF3:DK11 > 0, ROUNDDOWN(im2colAll_confW5!AF3:DK11/2^4, 0), ROUNDUP(im2colAll_confW5!AF3:DK11/2^4, 0)) -> -36 | AG3: =IF(im2colAll_confW5!AG3:DL11 > 0, ROUNDDOWN(im2colAll_confW5!AG3:DL11/2^4, 0), ROUNDUP(im2colAll_confW5!AG3:DL11/2^4, 0)) -> 25 | AH3: =IF(im2colAll_confW5!AH3:DM11 > 0, ROUNDDOWN(im2colAll_confW5!AH3:DM11/2^4, 0), ROUNDUP(im2colAll_confW5!AH3:DM11/2^4, 0)) -> -12 | AI3: =IF(im2colAll_confW5!AI3:DN11 > 0, ROUNDDOWN(im2colAll_confW5!AI3:DN11/2^4, 0), ROUNDUP(im2colAll_confW5!AI3:DN11/2^4, 0)) -> 10 | AJ3: =IF(im2colAll_confW5!AJ3:DO11 > 0, ROUNDDOWN(im2colAll_confW5!AJ3:DO11/2^4, 0), ROUNDUP(im2colAll_confW5!AJ3:DO11/2^4, 0)) -> -6 | AK3: =IF(im2colAll_confW5!AK3:DP11 > 0, ROUNDDOWN(im2colAll_confW5!AK3:DP11/2^4, 0), ROUNDUP(im2colAll_confW5!AK3:DP11/2^4, 0)) -> 72 | AL3: =IF(im2colAll_confW5!AL3:DQ11 > 0, ROUNDDOWN(im2colAll_confW5!AL3:DQ11/2^4, 0), ROUNDUP(im2colAll_confW5!AL3:DQ11/2^4, 0)) -> -25 | AM3: =IF(im2colAll_confW5!AM3:DR11 > 0, ROUNDDOWN(im2colAll_confW5!AM3:DR11/2^4, 0), ROUNDUP(im2colAll_confW5!AM3:DR11/2^4, 0)) -> -48 | AN3: =IF(im2colAll_confW5!AN3:DS11 > 0, ROUNDDOWN(im2colAll_confW5!AN3:DS11/2^4, 0), ROUNDUP(im2colAll_confW5!AN3:DS11/2^4, 0)) -> 37 | AO3: =IF(im2colAll_confW5!AO3:DT11 > 0, ROUNDDOWN(im2colAll_confW5!AO3:DT11/2^4, 0), ROUNDUP(im2colAll_confW5!AO3:DT11/2^4, 0)) -> 1 | AP3: =IF(im2colAll_confW5!AP3:DU11 > 0, ROUNDDOWN(im2colAll_confW5!AP3:DU11/2^4, 0), ROUNDUP(im2colAll_confW5!AP3:DU11/2^4, 0)) -> -48 | AQ3: =IF(im2colAll_confW5!AQ3:DV11 > 0, ROUNDDOWN(im2colAll_confW5!AQ3:DV11/2^4, 0), ROUNDUP(im2colAll_confW5!AQ3:DV11/2^4, 0)) -> 217 | AR3: =IF(im2colAll_confW5!AR3:DW11 > 0, ROUNDDOWN(im2colAll_confW5!AR3:DW11/2^4, 0), ROUNDUP(im2colAll_confW5!AR3:DW11/2^4, 0)) -> -11 | AS3: =IF(im2colAll_confW5!AS3:DX11 > 0, ROUNDDOWN(im2colAll_confW5!AS3:DX11/2^4, 0), ROUNDUP(im2colAll_confW5!AS3:DX11/2^4, 0)) -> -36 | AT3: =IF(im2colAll_confW5!AT3:DY11 > 0, ROUNDDOWN(im2colAll_confW5!AT3:DY11/2^4, 0), ROUNDUP(im2colAll_confW5!AT3:DY11/2^4, 0)) -> -42 | AU3: =IF(im2colAll_confW5!AU3:DZ11 > 0, ROUNDDOWN(im2colAll_confW5!AU3:DZ11/2^4, 0), ROUNDUP(im2colAll_confW5!AU3:DZ11/2^4, 0)) -> -3 | AV3: =IF(im2colAll_confW5!AV3:EA11 > 0, ROUNDDOWN(im2colAll_confW5!AV3:EA11/2^4, 0), ROUNDUP(im2colAll_confW5!AV3:EA11/2^4, 0)) -> -30 | AW3: =IF(im2colAll_confW5!AW3:EB11 > 0, ROUNDDOWN(im2colAll_confW5!AW3:EB11/2^4, 0), ROUNDUP(im2colAll_confW5!AW3:EB11/2^4, 0)) -> -24 | AX3: =IF(im2colAll_confW5!AX3:EC11 > 0, ROUNDDOWN(im2colAll_confW5!AX3:EC11/2^4, 0), ROUNDUP(im2colAll_confW5!AX3:EC11/2^4, 0)) -> 18 | AY3: =IF(im2colAll_confW5!AY3:ED11 > 0, ROUNDDOWN(im2colAll_confW5!AY3:ED11/2^4, 0), ROUNDUP(im2colAll_confW5!AY3:ED11/2^4, 0)) -> -71 | AZ3: =IF(im2colAll_confW5!AZ3:EE11 > 0, ROUNDDOWN(im2colAll_confW5!AZ3:EE11/2^4, 0), ROUNDUP(im2colAll_confW5!AZ3:EE11/2^4, 0)) -> 13 | BA3: =IF(im2colAll_confW5!BA3:EF11 > 0, ROUNDDOWN(im2colAll_confW5!BA3:EF11/2^4, 0), ROUNDUP(im2colAll_confW5!BA3:EF11/2^4, 0)) -> -7 | BB3: =IF(im2colAll_confW5!BB3:EG11 > 0, ROUNDDOWN(im2colAll_confW5!BB3:EG11/2^4, 0), ROUNDUP(im2colAll_confW5!BB3:EG11/2^4, 0)) -> 20 | BC3: =IF(im2colAll_confW5!BC3:EH11 > 0, ROUNDDOWN(im2colAll_confW5!BC3:EH11/2^4, 0), ROUNDUP(im2colAll_confW5!BC3:EH11/2^4, 0)) -> -17 | BD3: =IF(im2colAll_confW5!BD3:EI11 > 0, ROUNDDOWN(im2colAll_confW5!BD3:EI11/2^4, 0), ROUNDUP(im2colAll_confW5!BD3:EI11/2^4, 0)) -> -3 | BE3: =IF(im2colAll_confW5!BE3:EJ11 > 0, ROUNDDOWN(im2colAll_confW5!BE3:EJ11/2^4, 0), ROUNDUP(im2colAll_confW5!BE3:EJ11/2^4, 0)) -> 2 | BF3: =IF(im2colAll_confW5!BF3:EK11 > 0, ROUNDDOWN(im2colAll_confW5!BF3:EK11/2^4, 0), ROUNDUP(im2colAll_confW5!BF3:EK11/2^4, 0)) -> 69 | BG3: =IF(im2colAll_confW5!BG3:EL11 > 0, ROUNDDOWN(im2colAll_confW5!BG3:EL11/2^4, 0), ROUNDUP(im2colAll_confW5!BG3:EL11/2^4, 0)) -> -36 | BH3: =IF(im2colAll_confW5!BH3:EM11 > 0, ROUNDDOWN(im2colAll_confW5!BH3:EM11/2^4, 0), ROUNDUP(im2colAll_confW5!BH3:EM11/2^4, 0)) -> -50 | BI3: =IF(im2colAll_confW5!BI3:EN11 > 0, ROUNDDOWN(im2colAll_confW5!BI3:EN11/2^4, 0), ROUNDUP(im2colAll_confW5!BI3:EN11/2^4, 0)) -> 20 | BJ3: =IF(im2colAll_confW5!BJ3:EO11 > 0, ROUNDDOWN(im2colAll_confW5!BJ3:EO11/2^4, 0), ROUNDUP(im2colAll_confW5!BJ3:EO11/2^4, 0)) -> -15 | BK3: =IF(im2colAll_confW5!BK3:EP11 > 0, ROUNDDOWN(im2colAll_confW5!BK3:EP11/2^4, 0), ROUNDUP(im2colAll_confW5!BK3:EP11/2^4, 0)) -> 2 | BL3: =IF(im2colAll_confW5!BL3:EQ11 > 0, ROUNDDOWN(im2colAll_confW5!BL3:EQ11/2^4, 0), ROUNDUP(im2colAll_confW5!BL3:EQ11/2^4, 0)) -> 188 | BM3: =IF(im2colAll_confW5!BM3:ER11 > 0, ROUNDDOWN(im2colAll_confW5!BM3:ER11/2^4, 0), ROUNDUP(im2colAll_confW5!BM3:ER11/2^4, 0)) -> -35 | BN3: =IF(im2colAll_confW5!BN3:ES11 > 0, ROUNDDOWN(im2colAll_confW5!BN3:ES11/2^4, 0), ROUNDUP(im2colAll_confW5!BN3:ES11/2^4, 0)) -> -25 | BO3: =IF(im2colAll_confW5!BO3:ET11 > 0, ROUNDDOWN(im2colAll_confW5!BO3:ET11/2^4, 0), ROUNDUP(im2colAll_confW5!BO3:ET11/2^4, 0)) -> -49 | BP3: =IF(im2colAll_confW5!BP3:EU11 > 0, ROUNDDOWN(im2colAll_confW5!BP3:EU11/2^4, 0), ROUNDUP(im2colAll_confW5!BP3:EU11/2^4, 0)) -> -22 | BQ3: =IF(im2colAll_confW5!BQ3:EV11 > 0, ROUNDDOWN(im2colAll_confW5!BQ3:EV11/2^4, 0), ROUNDUP(im2colAll_confW5!BQ3:EV11/2^4, 0)) -> -61 | BR3: =IF(im2colAll_confW5!BR3:EW11 > 0, ROUNDDOWN(im2colAll_confW5!BR3:EW11/2^4, 0), ROUNDUP(im2colAll_confW5!BR3:EW11/2^4, 0)) -> -20 | BS3: =IF(im2colAll_confW5!BS3:EX11 > 0, ROUNDDOWN(im2colAll_confW5!BS3:EX11/2^4, 0), ROUNDUP(im2colAll_confW5!BS3:EX11/2^4, 0)) -> 16 | BT3: =IF(im2colAll_confW5!BT3:EY11 > 0, ROUNDDOWN(im2colAll_confW5!BT3:EY11/2^4, 0), ROUNDUP(im2colAll_confW5!BT3:EY11/2^4, 0)) -> -67 | BU3: =IF(im2colAll_confW5!BU3:EZ11 > 0, ROUNDDOWN(im2colAll_confW5!BU3:EZ11/2^4, 0), ROUNDUP(im2colAll_confW5!BU3:EZ11/2^4, 0)) -> 5 | BV3: =IF(im2colAll_confW5!BV3:FA11 > 0, ROUNDDOWN(im2colAll_confW5!BV3:FA11/2^4, 0), ROUNDUP(im2colAll_confW5!BV3:FA11/2^4, 0)) -> -4 | BW3: =IF(im2colAll_confW5!BW3:FB11 > 0, ROUNDDOWN(im2colAll_confW5!BW3:FB11/2^4, 0), ROUNDUP(im2colAll_confW5!BW3:FB11/2^4, 0)) -> -23 | BX3: =IF(im2colAll_confW5!BX3:FC11 > 0, ROUNDDOWN(im2colAll_confW5!BX3:FC11/2^4, 0), ROUNDUP(im2colAll_confW5!BX3:FC11/2^4, 0)) -> -26 | BY3: =IF(im2colAll_confW5!BY3:FD11 > 0, ROUNDDOWN(im2colAll_confW5!BY3:FD11/2^4, 0), ROUNDUP(im2colAll_confW5!BY3:FD11/2^4, 0)) -> -4 | BZ3: =IF(im2colAll_confW5!BZ3:FE11 > 0, ROUNDDOWN(im2colAll_confW5!BZ3:FE11/2^4, 0), ROUNDUP(im2colAll_confW5!BZ3:FE11/2^4, 0)) -> -30 | CA3: =IF(im2colAll_confW5!CA3:FF11 > 0, ROUNDDOWN(im2colAll_confW5!CA3:FF11/2^4, 0), ROUNDUP(im2colAll_confW5!CA3:FF11/2^4, 0)) -> 78 | CB3: =IF(im2colAll_confW5!CB3:FG11 > 0, ROUNDDOWN(im2colAll_confW5!CB3:FG11/2^4, 0), ROUNDUP(im2colAll_confW5!CB3:FG11/2^4, 0)) -> -27 | CC3: =IF(im2colAll_confW5!CC3:FH11 > 0, ROUNDDOWN(im2colAll_confW5!CC3:FH11/2^4, 0), ROUNDUP(im2colAll_confW5!CC3:FH11/2^4, 0)) -> -46 | CD3: =IF(im2colAll_confW5!CD3:FI11 > 0, ROUNDDOWN(im2colAll_confW5!CD3:FI11/2^4, 0), ROUNDUP(im2colAll_confW5!CD3:FI11/2^4, 0)) -> 20 | CE3: =IF(im2colAll_confW5!CE3:FJ11 > 0, ROUNDDOWN(im2colAll_confW5!CE3:FJ11/2^4, 0), ROUNDUP(im2colAll_confW5!CE3:FJ11/2^4, 0)) -> -1 | CF3: =IF(im2colAll_confW5!CF3:FK11 > 0, ROUNDDOWN(im2colAll_confW5!CF3:FK11/2^4, 0), ROUNDUP(im2colAll_confW5!CF3:FK11/2^4, 0)) -> -38
A4: =IF(im2colAll_confW5!A4:CF12 > 0, ROUNDDOWN(im2colAll_confW5!A4:CF12/2^4, 0), ROUNDUP(im2colAll_confW5!A4:CF12/2^4, 0)) -> 154 | B4: =IF(im2colAll_confW5!B4:CG12 > 0, ROUNDDOWN(im2colAll_confW5!B4:CG12/2^4, 0), ROUNDUP(im2colAll_confW5!B4:CG12/2^4, 0)) -> -1 | C4: =IF(im2colAll_confW5!C4:CH12 > 0, ROUNDDOWN(im2colAll_confW5!C4:CH12/2^4, 0), ROUNDUP(im2colAll_confW5!C4:CH12/2^4, 0)) -> 20 | D4: =IF(im2colAll_confW5!D4:CI12 > 0, ROUNDDOWN(im2colAll_confW5!D4:CI12/2^4, 0), ROUNDUP(im2colAll_confW5!D4:CI12/2^4, 0)) -> -38 | E4: =IF(im2colAll_confW5!E4:CJ12 > 0, ROUNDDOWN(im2colAll_confW5!E4:CJ12/2^4, 0), ROUNDUP(im2colAll_confW5!E4:CJ12/2^4, 0)) -> -6 | F4: =IF(im2colAll_confW5!F4:CK12 > 0, ROUNDDOWN(im2colAll_confW5!F4:CK12/2^4, 0), ROUNDUP(im2colAll_confW5!F4:CK12/2^4, 0)) -> -69 | G4: =IF(im2colAll_confW5!G4:CL12 > 0, ROUNDDOWN(im2colAll_confW5!G4:CL12/2^4, 0), ROUNDUP(im2colAll_confW5!G4:CL12/2^4, 0)) -> -80 | H4: =IF(im2colAll_confW5!H4:CM12 > 0, ROUNDDOWN(im2colAll_confW5!H4:CM12/2^4, 0), ROUNDUP(im2colAll_confW5!H4:CM12/2^4, 0)) -> 15 | I4: =IF(im2colAll_confW5!I4:CN12 > 0, ROUNDDOWN(im2colAll_confW5!I4:CN12/2^4, 0), ROUNDUP(im2colAll_confW5!I4:CN12/2^4, 0)) -> -58 | J4: =IF(im2colAll_confW5!J4:CO12 > 0, ROUNDDOWN(im2colAll_confW5!J4:CO12/2^4, 0), ROUNDUP(im2colAll_confW5!J4:CO12/2^4, 0)) -> 7 | K4: =IF(im2colAll_confW5!K4:CP12 > 0, ROUNDDOWN(im2colAll_confW5!K4:CP12/2^4, 0), ROUNDUP(im2colAll_confW5!K4:CP12/2^4, 0)) -> 9 | L4: =IF(im2colAll_confW5!L4:CQ12 > 0, ROUNDDOWN(im2colAll_confW5!L4:CQ12/2^4, 0), ROUNDUP(im2colAll_confW5!L4:CQ12/2^4, 0)) -> -2 | M4: =IF(im2colAll_confW5!M4:CR12 > 0, ROUNDDOWN(im2colAll_confW5!M4:CR12/2^4, 0), ROUNDUP(im2colAll_confW5!M4:CR12/2^4, 0)) -> 11 | N4: =IF(im2colAll_confW5!N4:CS12 > 0, ROUNDDOWN(im2colAll_confW5!N4:CS12/2^4, 0), ROUNDUP(im2colAll_confW5!N4:CS12/2^4, 0)) -> 44 | O4: =IF(im2colAll_confW5!O4:CT12 > 0, ROUNDDOWN(im2colAll_confW5!O4:CT12/2^4, 0), ROUNDUP(im2colAll_confW5!O4:CT12/2^4, 0)) -> 1 | P4: =IF(im2colAll_confW5!P4:CU12 > 0, ROUNDDOWN(im2colAll_confW5!P4:CU12/2^4, 0), ROUNDUP(im2colAll_confW5!P4:CU12/2^4, 0)) -> 84 | Q4: =IF(im2colAll_confW5!Q4:CV12 > 0, ROUNDDOWN(im2colAll_confW5!Q4:CV12/2^4, 0), ROUNDUP(im2colAll_confW5!Q4:CV12/2^4, 0)) -> -36 | R4: =IF(im2colAll_confW5!R4:CW12 > 0, ROUNDDOWN(im2colAll_confW5!R4:CW12/2^4, 0), ROUNDUP(im2colAll_confW5!R4:CW12/2^4, 0)) -> -51 | S4: =IF(im2colAll_confW5!S4:CX12 > 0, ROUNDDOWN(im2colAll_confW5!S4:CX12/2^4, 0), ROUNDUP(im2colAll_confW5!S4:CX12/2^4, 0)) -> 14 | T4: =IF(im2colAll_confW5!T4:CY12 > 0, ROUNDDOWN(im2colAll_confW5!T4:CY12/2^4, 0), ROUNDUP(im2colAll_confW5!T4:CY12/2^4, 0)) -> 10 | U4: =IF(im2colAll_confW5!U4:CZ12 > 0, ROUNDDOWN(im2colAll_confW5!U4:CZ12/2^4, 0), ROUNDUP(im2colAll_confW5!U4:CZ12/2^4, 0)) -> -76 | V4: =IF(im2colAll_confW5!V4:DA12 > 0, ROUNDDOWN(im2colAll_confW5!V4:DA12/2^4, 0), ROUNDUP(im2colAll_confW5!V4:DA12/2^4, 0)) -> 142 | W4: =IF(im2colAll_confW5!W4:DB12 > 0, ROUNDDOWN(im2colAll_confW5!W4:DB12/2^4, 0), ROUNDUP(im2colAll_confW5!W4:DB12/2^4, 0)) -> -15 | X4: =IF(im2colAll_confW5!X4:DC12 > 0, ROUNDDOWN(im2colAll_confW5!X4:DC12/2^4, 0), ROUNDUP(im2colAll_confW5!X4:DC12/2^4, 0)) -> 1 | Y4: =IF(im2colAll_confW5!Y4:DD12 > 0, ROUNDDOWN(im2colAll_confW5!Y4:DD12/2^4, 0), ROUNDUP(im2colAll_confW5!Y4:DD12/2^4, 0)) -> -53 | Z4: =IF(im2colAll_confW5!Z4:DE12 > 0, ROUNDDOWN(im2colAll_confW5!Z4:DE12/2^4, 0), ROUNDUP(im2colAll_confW5!Z4:DE12/2^4, 0)) -> -7 | AA4: =IF(im2colAll_confW5!AA4:DF12 > 0, ROUNDDOWN(im2colAll_confW5!AA4:DF12/2^4, 0), ROUNDUP(im2colAll_confW5!AA4:DF12/2^4, 0)) -> -86 | AB4: =IF(im2colAll_confW5!AB4:DG12 > 0, ROUNDDOWN(im2colAll_confW5!AB4:DG12/2^4, 0), ROUNDUP(im2colAll_confW5!AB4:DG12/2^4, 0)) -> -74 | AC4: =IF(im2colAll_confW5!AC4:DH12 > 0, ROUNDDOWN(im2colAll_confW5!AC4:DH12/2^4, 0), ROUNDUP(im2colAll_confW5!AC4:DH12/2^4, 0)) -> 32 | AD4: =IF(im2colAll_confW5!AD4:DI12 > 0, ROUNDDOWN(im2colAll_confW5!AD4:DI12/2^4, 0), ROUNDUP(im2colAll_confW5!AD4:DI12/2^4, 0)) -> -59 | AE4: =IF(im2colAll_confW5!AE4:DJ12 > 0, ROUNDDOWN(im2colAll_confW5!AE4:DJ12/2^4, 0), ROUNDUP(im2colAll_confW5!AE4:DJ12/2^4, 0)) -> -13 | AF4: =IF(im2colAll_confW5!AF4:DK12 > 0, ROUNDDOWN(im2colAll_confW5!AF4:DK12/2^4, 0), ROUNDUP(im2colAll_confW5!AF4:DK12/2^4, 0)) -> -7 | AG4: =IF(im2colAll_confW5!AG4:DL12 > 0, ROUNDDOWN(im2colAll_confW5!AG4:DL12/2^4, 0), ROUNDUP(im2colAll_confW5!AG4:DL12/2^4, 0)) -> -1 | AH4: =IF(im2colAll_confW5!AH4:DM12 > 0, ROUNDDOWN(im2colAll_confW5!AH4:DM12/2^4, 0), ROUNDUP(im2colAll_confW5!AH4:DM12/2^4, 0)) -> -8 | AI4: =IF(im2colAll_confW5!AI4:DN12 > 0, ROUNDDOWN(im2colAll_confW5!AI4:DN12/2^4, 0), ROUNDUP(im2colAll_confW5!AI4:DN12/2^4, 0)) -> 49 | AJ4: =IF(im2colAll_confW5!AJ4:DO12 > 0, ROUNDDOWN(im2colAll_confW5!AJ4:DO12/2^4, 0), ROUNDUP(im2colAll_confW5!AJ4:DO12/2^4, 0)) -> 9 | AK4: =IF(im2colAll_confW5!AK4:DP12 > 0, ROUNDDOWN(im2colAll_confW5!AK4:DP12/2^4, 0), ROUNDUP(im2colAll_confW5!AK4:DP12/2^4, 0)) -> 78 | AL4: =IF(im2colAll_confW5!AL4:DQ12 > 0, ROUNDDOWN(im2colAll_confW5!AL4:DQ12/2^4, 0), ROUNDUP(im2colAll_confW5!AL4:DQ12/2^4, 0)) -> -59 | AM4: =IF(im2colAll_confW5!AM4:DR12 > 0, ROUNDDOWN(im2colAll_confW5!AM4:DR12/2^4, 0), ROUNDUP(im2colAll_confW5!AM4:DR12/2^4, 0)) -> -49 | AN4: =IF(im2colAll_confW5!AN4:DS12 > 0, ROUNDDOWN(im2colAll_confW5!AN4:DS12/2^4, 0), ROUNDUP(im2colAll_confW5!AN4:DS12/2^4, 0)) -> 3 | AO4: =IF(im2colAll_confW5!AO4:DT12 > 0, ROUNDDOWN(im2colAll_confW5!AO4:DT12/2^4, 0), ROUNDUP(im2colAll_confW5!AO4:DT12/2^4, 0)) -> 4 | AP4: =IF(im2colAll_confW5!AP4:DU12 > 0, ROUNDDOWN(im2colAll_confW5!AP4:DU12/2^4, 0), ROUNDUP(im2colAll_confW5!AP4:DU12/2^4, 0)) -> -87 | AQ4: =IF(im2colAll_confW5!AQ4:DV12 > 0, ROUNDDOWN(im2colAll_confW5!AQ4:DV12/2^4, 0), ROUNDUP(im2colAll_confW5!AQ4:DV12/2^4, 0)) -> 116 | AR4: =IF(im2colAll_confW5!AR4:DW12 > 0, ROUNDDOWN(im2colAll_confW5!AR4:DW12/2^4, 0), ROUNDUP(im2colAll_confW5!AR4:DW12/2^4, 0)) -> -11 | AS4: =IF(im2colAll_confW5!AS4:DX12 > 0, ROUNDDOWN(im2colAll_confW5!AS4:DX12/2^4, 0), ROUNDUP(im2colAll_confW5!AS4:DX12/2^4, 0)) -> 13 | AT4: =IF(im2colAll_confW5!AT4:DY12 > 0, ROUNDDOWN(im2colAll_confW5!AT4:DY12/2^4, 0), ROUNDUP(im2colAll_confW5!AT4:DY12/2^4, 0)) -> -42 | AU4: =IF(im2colAll_confW5!AU4:DZ12 > 0, ROUNDDOWN(im2colAll_confW5!AU4:DZ12/2^4, 0), ROUNDUP(im2colAll_confW5!AU4:DZ12/2^4, 0)) -> 4 | AV4: =IF(im2colAll_confW5!AV4:EA12 > 0, ROUNDDOWN(im2colAll_confW5!AV4:EA12/2^4, 0), ROUNDUP(im2colAll_confW5!AV4:EA12/2^4, 0)) -> -52 | AW4: =IF(im2colAll_confW5!AW4:EB12 > 0, ROUNDDOWN(im2colAll_confW5!AW4:EB12/2^4, 0), ROUNDUP(im2colAll_confW5!AW4:EB12/2^4, 0)) -> -56 | AX4: =IF(im2colAll_confW5!AX4:EC12 > 0, ROUNDDOWN(im2colAll_confW5!AX4:EC12/2^4, 0), ROUNDUP(im2colAll_confW5!AX4:EC12/2^4, 0)) -> 32 | AY4: =IF(im2colAll_confW5!AY4:ED12 > 0, ROUNDDOWN(im2colAll_confW5!AY4:ED12/2^4, 0), ROUNDUP(im2colAll_confW5!AY4:ED12/2^4, 0)) -> -55 | AZ4: =IF(im2colAll_confW5!AZ4:EE12 > 0, ROUNDDOWN(im2colAll_confW5!AZ4:EE12/2^4, 0), ROUNDUP(im2colAll_confW5!AZ4:EE12/2^4, 0)) -> -19 | BA4: =IF(im2colAll_confW5!BA4:EF12 > 0, ROUNDDOWN(im2colAll_confW5!BA4:EF12/2^4, 0), ROUNDUP(im2colAll_confW5!BA4:EF12/2^4, 0)) -> 6 | BB4: =IF(im2colAll_confW5!BB4:EG12 > 0, ROUNDDOWN(im2colAll_confW5!BB4:EG12/2^4, 0), ROUNDUP(im2colAll_confW5!BB4:EG12/2^4, 0)) -> -7 | BC4: =IF(im2colAll_confW5!BC4:EH12 > 0, ROUNDDOWN(im2colAll_confW5!BC4:EH12/2^4, 0), ROUNDUP(im2colAll_confW5!BC4:EH12/2^4, 0)) -> 11 | BD4: =IF(im2colAll_confW5!BD4:EI12 > 0, ROUNDDOWN(im2colAll_confW5!BD4:EI12/2^4, 0), ROUNDUP(im2colAll_confW5!BD4:EI12/2^4, 0)) -> 43 | BE4: =IF(im2colAll_confW5!BE4:EJ12 > 0, ROUNDDOWN(im2colAll_confW5!BE4:EJ12/2^4, 0), ROUNDUP(im2colAll_confW5!BE4:EJ12/2^4, 0)) -> -7 | BF4: =IF(im2colAll_confW5!BF4:EK12 > 0, ROUNDDOWN(im2colAll_confW5!BF4:EK12/2^4, 0), ROUNDUP(im2colAll_confW5!BF4:EK12/2^4, 0)) -> 59 | BG4: =IF(im2colAll_confW5!BG4:EL12 > 0, ROUNDDOWN(im2colAll_confW5!BG4:EL12/2^4, 0), ROUNDUP(im2colAll_confW5!BG4:EL12/2^4, 0)) -> -71 | BH4: =IF(im2colAll_confW5!BH4:EM12 > 0, ROUNDDOWN(im2colAll_confW5!BH4:EM12/2^4, 0), ROUNDUP(im2colAll_confW5!BH4:EM12/2^4, 0)) -> -47 | BI4: =IF(im2colAll_confW5!BI4:EN12 > 0, ROUNDDOWN(im2colAll_confW5!BI4:EN12/2^4, 0), ROUNDUP(im2colAll_confW5!BI4:EN12/2^4, 0)) -> 17 | BJ4: =IF(im2colAll_confW5!BJ4:EO12 > 0, ROUNDDOWN(im2colAll_confW5!BJ4:EO12/2^4, 0), ROUNDUP(im2colAll_confW5!BJ4:EO12/2^4, 0)) -> -10 | BK4: =IF(im2colAll_confW5!BK4:EP12 > 0, ROUNDDOWN(im2colAll_confW5!BK4:EP12/2^4, 0), ROUNDUP(im2colAll_confW5!BK4:EP12/2^4, 0)) -> -72 | BL4: =IF(im2colAll_confW5!BL4:EQ12 > 0, ROUNDDOWN(im2colAll_confW5!BL4:EQ12/2^4, 0), ROUNDUP(im2colAll_confW5!BL4:EQ12/2^4, 0)) -> 173 | BM4: =IF(im2colAll_confW5!BM4:ER12 > 0, ROUNDDOWN(im2colAll_confW5!BM4:ER12/2^4, 0), ROUNDUP(im2colAll_confW5!BM4:ER12/2^4, 0)) -> -24 | BN4: =IF(im2colAll_confW5!BN4:ES12 > 0, ROUNDDOWN(im2colAll_confW5!BN4:ES12/2^4, 0), ROUNDUP(im2colAll_confW5!BN4:ES12/2^4, 0)) -> 28 | BO4: =IF(im2colAll_confW5!BO4:ET12 > 0, ROUNDDOWN(im2colAll_confW5!BO4:ET12/2^4, 0), ROUNDUP(im2colAll_confW5!BO4:ET12/2^4, 0)) -> -21 | BP4: =IF(im2colAll_confW5!BP4:EU12 > 0, ROUNDDOWN(im2colAll_confW5!BP4:EU12/2^4, 0), ROUNDUP(im2colAll_confW5!BP4:EU12/2^4, 0)) -> -28 | BQ4: =IF(im2colAll_confW5!BQ4:EV12 > 0, ROUNDDOWN(im2colAll_confW5!BQ4:EV12/2^4, 0), ROUNDUP(im2colAll_confW5!BQ4:EV12/2^4, 0)) -> -66 | BR4: =IF(im2colAll_confW5!BR4:EW12 > 0, ROUNDDOWN(im2colAll_confW5!BR4:EW12/2^4, 0), ROUNDUP(im2colAll_confW5!BR4:EW12/2^4, 0)) -> -59 | BS4: =IF(im2colAll_confW5!BS4:EX12 > 0, ROUNDDOWN(im2colAll_confW5!BS4:EX12/2^4, 0), ROUNDUP(im2colAll_confW5!BS4:EX12/2^4, 0)) -> 2 | BT4: =IF(im2colAll_confW5!BT4:EY12 > 0, ROUNDDOWN(im2colAll_confW5!BT4:EY12/2^4, 0), ROUNDUP(im2colAll_confW5!BT4:EY12/2^4, 0)) -> -60 | BU4: =IF(im2colAll_confW5!BU4:EZ12 > 0, ROUNDDOWN(im2colAll_confW5!BU4:EZ12/2^4, 0), ROUNDUP(im2colAll_confW5!BU4:EZ12/2^4, 0)) -> 10 | BV4: =IF(im2colAll_confW5!BV4:FA12 > 0, ROUNDDOWN(im2colAll_confW5!BV4:FA12/2^4, 0), ROUNDUP(im2colAll_confW5!BV4:FA12/2^4, 0)) -> -4 | BW4: =IF(im2colAll_confW5!BW4:FB12 > 0, ROUNDDOWN(im2colAll_confW5!BW4:FB12/2^4, 0), ROUNDUP(im2colAll_confW5!BW4:FB12/2^4, 0)) -> -3 | BX4: =IF(im2colAll_confW5!BX4:FC12 > 0, ROUNDDOWN(im2colAll_confW5!BX4:FC12/2^4, 0), ROUNDUP(im2colAll_confW5!BX4:FC12/2^4, 0)) -> -13 | BY4: =IF(im2colAll_confW5!BY4:FD12 > 0, ROUNDDOWN(im2colAll_confW5!BY4:FD12/2^4, 0), ROUNDUP(im2colAll_confW5!BY4:FD12/2^4, 0)) -> 51 | BZ4: =IF(im2colAll_confW5!BZ4:FE12 > 0, ROUNDDOWN(im2colAll_confW5!BZ4:FE12/2^4, 0), ROUNDUP(im2colAll_confW5!BZ4:FE12/2^4, 0)) -> 8 | CA4: =IF(im2colAll_confW5!CA4:FF12 > 0, ROUNDDOWN(im2colAll_confW5!CA4:FF12/2^4, 0), ROUNDUP(im2colAll_confW5!CA4:FF12/2^4, 0)) -> 91 | CB4: =IF(im2colAll_confW5!CB4:FG12 > 0, ROUNDDOWN(im2colAll_confW5!CB4:FG12/2^4, 0), ROUNDUP(im2colAll_confW5!CB4:FG12/2^4, 0)) -> -17 | CC4: =IF(im2colAll_confW5!CC4:FH12 > 0, ROUNDDOWN(im2colAll_confW5!CC4:FH12/2^4, 0), ROUNDUP(im2colAll_confW5!CC4:FH12/2^4, 0)) -> -18 | CD4: =IF(im2colAll_confW5!CD4:FI12 > 0, ROUNDDOWN(im2colAll_confW5!CD4:FI12/2^4, 0), ROUNDUP(im2colAll_confW5!CD4:FI12/2^4, 0)) -> 24 | CE4: =IF(im2colAll_confW5!CE4:FJ12 > 0, ROUNDDOWN(im2colAll_confW5!CE4:FJ12/2^4, 0), ROUNDUP(im2colAll_confW5!CE4:FJ12/2^4, 0)) -> -20 | CF4: =IF(im2colAll_confW5!CF4:FK12 > 0, ROUNDDOWN(im2colAll_confW5!CF4:FK12/2^4, 0), ROUNDUP(im2colAll_confW5!CF4:FK12/2^4, 0)) -> -68
A5: =IF(im2colAll_confW5!A5:CF13 > 0, ROUNDDOWN(im2colAll_confW5!A5:CF13/2^4, 0), ROUNDUP(im2colAll_confW5!A5:CF13/2^4, 0)) -> 91 | B5: =IF(im2colAll_confW5!B5:CG13 > 0, ROUNDDOWN(im2colAll_confW5!B5:CG13/2^4, 0), ROUNDUP(im2colAll_confW5!B5:CG13/2^4, 0)) -> -27 | C5: =IF(im2colAll_confW5!C5:CH13 > 0, ROUNDDOWN(im2colAll_confW5!C5:CH13/2^4, 0), ROUNDUP(im2colAll_confW5!C5:CH13/2^4, 0)) -> 43 | D5: =IF(im2colAll_confW5!D5:CI13 > 0, ROUNDDOWN(im2colAll_confW5!D5:CI13/2^4, 0), ROUNDUP(im2colAll_confW5!D5:CI13/2^4, 0)) -> -56 | E5: =IF(im2colAll_confW5!E5:CJ13 > 0, ROUNDDOWN(im2colAll_confW5!E5:CJ13/2^4, 0), ROUNDUP(im2colAll_confW5!E5:CJ13/2^4, 0)) -> -31 | F5: =IF(im2colAll_confW5!F5:CK13 > 0, ROUNDDOWN(im2colAll_confW5!F5:CK13/2^4, 0), ROUNDUP(im2colAll_confW5!F5:CK13/2^4, 0)) -> -97 | G5: =IF(im2colAll_confW5!G5:CL13 > 0, ROUNDDOWN(im2colAll_confW5!G5:CL13/2^4, 0), ROUNDUP(im2colAll_confW5!G5:CL13/2^4, 0)) -> -95 | H5: =IF(im2colAll_confW5!H5:CM13 > 0, ROUNDDOWN(im2colAll_confW5!H5:CM13/2^4, 0), ROUNDUP(im2colAll_confW5!H5:CM13/2^4, 0)) -> 65 | I5: =IF(im2colAll_confW5!I5:CN13 > 0, ROUNDDOWN(im2colAll_confW5!I5:CN13/2^4, 0), ROUNDUP(im2colAll_confW5!I5:CN13/2^4, 0)) -> -49 | J5: =IF(im2colAll_confW5!J5:CO13 > 0, ROUNDDOWN(im2colAll_confW5!J5:CO13/2^4, 0), ROUNDUP(im2colAll_confW5!J5:CO13/2^4, 0)) -> 10 | K5: =IF(im2colAll_confW5!K5:CP13 > 0, ROUNDDOWN(im2colAll_confW5!K5:CP13/2^4, 0), ROUNDUP(im2colAll_confW5!K5:CP13/2^4, 0)) -> 29 | L5: =IF(im2colAll_confW5!L5:CQ13 > 0, ROUNDDOWN(im2colAll_confW5!L5:CQ13/2^4, 0), ROUNDUP(im2colAll_confW5!L5:CQ13/2^4, 0)) -> -28 | M5: =IF(im2colAll_confW5!M5:CR13 > 0, ROUNDDOWN(im2colAll_confW5!M5:CR13/2^4, 0), ROUNDUP(im2colAll_confW5!M5:CR13/2^4, 0)) -> 38 | N5: =IF(im2colAll_confW5!N5:CS13 > 0, ROUNDDOWN(im2colAll_confW5!N5:CS13/2^4, 0), ROUNDUP(im2colAll_confW5!N5:CS13/2^4, 0)) -> 111 | O5: =IF(im2colAll_confW5!O5:CT13 > 0, ROUNDDOWN(im2colAll_confW5!O5:CT13/2^4, 0), ROUNDUP(im2colAll_confW5!O5:CT13/2^4, 0)) -> 45 | P5: =IF(im2colAll_confW5!P5:CU13 > 0, ROUNDDOWN(im2colAll_confW5!P5:CU13/2^4, 0), ROUNDUP(im2colAll_confW5!P5:CU13/2^4, 0)) -> 71 | Q5: =IF(im2colAll_confW5!Q5:CV13 > 0, ROUNDDOWN(im2colAll_confW5!Q5:CV13/2^4, 0), ROUNDUP(im2colAll_confW5!Q5:CV13/2^4, 0)) -> -113 | R5: =IF(im2colAll_confW5!R5:CW13 > 0, ROUNDDOWN(im2colAll_confW5!R5:CW13/2^4, 0), ROUNDUP(im2colAll_confW5!R5:CW13/2^4, 0)) -> -45 | S5: =IF(im2colAll_confW5!S5:CX13 > 0, ROUNDDOWN(im2colAll_confW5!S5:CX13/2^4, 0), ROUNDUP(im2colAll_confW5!S5:CX13/2^4, 0)) -> 39 | T5: =IF(im2colAll_confW5!T5:CY13 > 0, ROUNDDOWN(im2colAll_confW5!T5:CY13/2^4, 0), ROUNDUP(im2colAll_confW5!T5:CY13/2^4, 0)) -> 4 | U5: =IF(im2colAll_confW5!U5:CZ13 > 0, ROUNDDOWN(im2colAll_confW5!U5:CZ13/2^4, 0), ROUNDUP(im2colAll_confW5!U5:CZ13/2^4, 0)) -> -104 | V5: =IF(im2colAll_confW5!V5:DA13 > 0, ROUNDDOWN(im2colAll_confW5!V5:DA13/2^4, 0), ROUNDUP(im2colAll_confW5!V5:DA13/2^4, 0)) -> 120 | W5: =IF(im2colAll_confW5!W5:DB13 > 0, ROUNDDOWN(im2colAll_confW5!W5:DB13/2^4, 0), ROUNDUP(im2colAll_confW5!W5:DB13/2^4, 0)) -> -3 | X5: =IF(im2colAll_confW5!X5:DC13 > 0, ROUNDDOWN(im2colAll_confW5!X5:DC13/2^4, 0), ROUNDUP(im2colAll_confW5!X5:DC13/2^4, 0)) -> 24 | Y5: =IF(im2colAll_confW5!Y5:DD13 > 0, ROUNDDOWN(im2colAll_confW5!Y5:DD13/2^4, 0), ROUNDUP(im2colAll_confW5!Y5:DD13/2^4, 0)) -> -79 | Z5: =IF(im2colAll_confW5!Z5:DE13 > 0, ROUNDDOWN(im2colAll_confW5!Z5:DE13/2^4, 0), ROUNDUP(im2colAll_confW5!Z5:DE13/2^4, 0)) -> -31 | AA5: =IF(im2colAll_confW5!AA5:DF13 > 0, ROUNDDOWN(im2colAll_confW5!AA5:DF13/2^4, 0), ROUNDUP(im2colAll_confW5!AA5:DF13/2^4, 0)) -> -108 | AB5: =IF(im2colAll_confW5!AB5:DG13 > 0, ROUNDDOWN(im2colAll_confW5!AB5:DG13/2^4, 0), ROUNDUP(im2colAll_confW5!AB5:DG13/2^4, 0)) -> -98 | AC5: =IF(im2colAll_confW5!AC5:DH13 > 0, ROUNDDOWN(im2colAll_confW5!AC5:DH13/2^4, 0), ROUNDUP(im2colAll_confW5!AC5:DH13/2^4, 0)) -> 56 | AD5: =IF(im2colAll_confW5!AD5:DI13 > 0, ROUNDDOWN(im2colAll_confW5!AD5:DI13/2^4, 0), ROUNDUP(im2colAll_confW5!AD5:DI13/2^4, 0)) -> -67 | AE5: =IF(im2colAll_confW5!AE5:DJ13 > 0, ROUNDDOWN(im2colAll_confW5!AE5:DJ13/2^4, 0), ROUNDUP(im2colAll_confW5!AE5:DJ13/2^4, 0)) -> 20 | AF5: =IF(im2colAll_confW5!AF5:DK13 > 0, ROUNDDOWN(im2colAll_confW5!AF5:DK13/2^4, 0), ROUNDUP(im2colAll_confW5!AF5:DK13/2^4, 0)) -> 15 | AG5: =IF(im2colAll_confW5!AG5:DL13 > 0, ROUNDDOWN(im2colAll_confW5!AG5:DL13/2^4, 0), ROUNDUP(im2colAll_confW5!AG5:DL13/2^4, 0)) -> -18 | AH5: =IF(im2colAll_confW5!AH5:DM13 > 0, ROUNDDOWN(im2colAll_confW5!AH5:DM13/2^4, 0), ROUNDUP(im2colAll_confW5!AH5:DM13/2^4, 0)) -> 40 | AI5: =IF(im2colAll_confW5!AI5:DN13 > 0, ROUNDDOWN(im2colAll_confW5!AI5:DN13/2^4, 0), ROUNDUP(im2colAll_confW5!AI5:DN13/2^4, 0)) -> 116 | AJ5: =IF(im2colAll_confW5!AJ5:DO13 > 0, ROUNDDOWN(im2colAll_confW5!AJ5:DO13/2^4, 0), ROUNDUP(im2colAll_confW5!AJ5:DO13/2^4, 0)) -> 50 | AK5: =IF(im2colAll_confW5!AK5:DP13 > 0, ROUNDDOWN(im2colAll_confW5!AK5:DP13/2^4, 0), ROUNDUP(im2colAll_confW5!AK5:DP13/2^4, 0)) -> 97 | AL5: =IF(im2colAll_confW5!AL5:DQ13 > 0, ROUNDDOWN(im2colAll_confW5!AL5:DQ13/2^4, 0), ROUNDUP(im2colAll_confW5!AL5:DQ13/2^4, 0)) -> -111 | AM5: =IF(im2colAll_confW5!AM5:DR13 > 0, ROUNDDOWN(im2colAll_confW5!AM5:DR13/2^4, 0), ROUNDUP(im2colAll_confW5!AM5:DR13/2^4, 0)) -> -39 | AN5: =IF(im2colAll_confW5!AN5:DS13 > 0, ROUNDDOWN(im2colAll_confW5!AN5:DS13/2^4, 0), ROUNDUP(im2colAll_confW5!AN5:DS13/2^4, 0)) -> 54 | AO5: =IF(im2colAll_confW5!AO5:DT13 > 0, ROUNDDOWN(im2colAll_confW5!AO5:DT13/2^4, 0), ROUNDUP(im2colAll_confW5!AO5:DT13/2^4, 0)) -> 5 | AP5: =IF(im2colAll_confW5!AP5:DU13 > 0, ROUNDDOWN(im2colAll_confW5!AP5:DU13/2^4, 0), ROUNDUP(im2colAll_confW5!AP5:DU13/2^4, 0)) -> -125 | AQ5: =IF(im2colAll_confW5!AQ5:DV13 > 0, ROUNDDOWN(im2colAll_confW5!AQ5:DV13/2^4, 0), ROUNDUP(im2colAll_confW5!AQ5:DV13/2^4, 0)) -> 123 | AR5: =IF(im2colAll_confW5!AR5:DW13 > 0, ROUNDDOWN(im2colAll_confW5!AR5:DW13/2^4, 0), ROUNDUP(im2colAll_confW5!AR5:DW13/2^4, 0)) -> -3 | AS5: =IF(im2colAll_confW5!AS5:DX13 > 0, ROUNDDOWN(im2colAll_confW5!AS5:DX13/2^4, 0), ROUNDUP(im2colAll_confW5!AS5:DX13/2^4, 0)) -> -16 | AT5: =IF(im2colAll_confW5!AT5:DY13 > 0, ROUNDDOWN(im2colAll_confW5!AT5:DY13/2^4, 0), ROUNDUP(im2colAll_confW5!AT5:DY13/2^4, 0)) -> -62 | AU5: =IF(im2colAll_confW5!AU5:DZ13 > 0, ROUNDDOWN(im2colAll_confW5!AU5:DZ13/2^4, 0), ROUNDUP(im2colAll_confW5!AU5:DZ13/2^4, 0)) -> -11 | AV5: =IF(im2colAll_confW5!AV5:EA13 > 0, ROUNDDOWN(im2colAll_confW5!AV5:EA13/2^4, 0), ROUNDUP(im2colAll_confW5!AV5:EA13/2^4, 0)) -> -73 | AW5: =IF(im2colAll_confW5!AW5:EB13 > 0, ROUNDDOWN(im2colAll_confW5!AW5:EB13/2^4, 0), ROUNDUP(im2colAll_confW5!AW5:EB13/2^4, 0)) -> -82 | AX5: =IF(im2colAll_confW5!AX5:EC13 > 0, ROUNDDOWN(im2colAll_confW5!AX5:EC13/2^4, 0), ROUNDUP(im2colAll_confW5!AX5:EC13/2^4, 0)) -> 44 | AY5: =IF(im2colAll_confW5!AY5:ED13 > 0, ROUNDDOWN(im2colAll_confW5!AY5:ED13/2^4, 0), ROUNDUP(im2colAll_confW5!AY5:ED13/2^4, 0)) -> -55 | AZ5: =IF(im2colAll_confW5!AZ5:EE13 > 0, ROUNDDOWN(im2colAll_confW5!AZ5:EE13/2^4, 0), ROUNDUP(im2colAll_confW5!AZ5:EE13/2^4, 0)) -> 13 | BA5: =IF(im2colAll_confW5!BA5:EF13 > 0, ROUNDDOWN(im2colAll_confW5!BA5:EF13/2^4, 0), ROUNDUP(im2colAll_confW5!BA5:EF13/2^4, 0)) -> 20 | BB5: =IF(im2colAll_confW5!BB5:EG13 > 0, ROUNDDOWN(im2colAll_confW5!BB5:EG13/2^4, 0), ROUNDUP(im2colAll_confW5!BB5:EG13/2^4, 0)) -> -22 | BC5: =IF(im2colAll_confW5!BC5:EH13 > 0, ROUNDDOWN(im2colAll_confW5!BC5:EH13/2^4, 0), ROUNDUP(im2colAll_confW5!BC5:EH13/2^4, 0)) -> 41 | BD5: =IF(im2colAll_confW5!BD5:EI13 > 0, ROUNDDOWN(im2colAll_confW5!BD5:EI13/2^4, 0), ROUNDUP(im2colAll_confW5!BD5:EI13/2^4, 0)) -> 107 | BE5: =IF(im2colAll_confW5!BE5:EJ13 > 0, ROUNDDOWN(im2colAll_confW5!BE5:EJ13/2^4, 0), ROUNDUP(im2colAll_confW5!BE5:EJ13/2^4, 0)) -> 23 | BF5: =IF(im2colAll_confW5!BF5:EK13 > 0, ROUNDDOWN(im2colAll_confW5!BF5:EK13/2^4, 0), ROUNDUP(im2colAll_confW5!BF5:EK13/2^4, 0)) -> 82 | BG5: =IF(im2colAll_confW5!BG5:EL13 > 0, ROUNDDOWN(im2colAll_confW5!BG5:EL13/2^4, 0), ROUNDUP(im2colAll_confW5!BG5:EL13/2^4, 0)) -> -119 | BH5: =IF(im2colAll_confW5!BH5:EM13 > 0, ROUNDDOWN(im2colAll_confW5!BH5:EM13/2^4, 0), ROUNDUP(im2colAll_confW5!BH5:EM13/2^4, 0)) -> -54 | BI5: =IF(im2colAll_confW5!BI5:EN13 > 0, ROUNDDOWN(im2colAll_confW5!BI5:EN13/2^4, 0), ROUNDUP(im2colAll_confW5!BI5:EN13/2^4, 0)) -> 39 | BJ5: =IF(im2colAll_confW5!BJ5:EO13 > 0, ROUNDDOWN(im2colAll_confW5!BJ5:EO13/2^4, 0), ROUNDUP(im2colAll_confW5!BJ5:EO13/2^4, 0)) -> 15 | BK5: =IF(im2colAll_confW5!BK5:EP13 > 0, ROUNDDOWN(im2colAll_confW5!BK5:EP13/2^4, 0), ROUNDUP(im2colAll_confW5!BK5:EP13/2^4, 0)) -> -102 | BL5: =IF(im2colAll_confW5!BL5:EQ13 > 0, ROUNDDOWN(im2colAll_confW5!BL5:EQ13/2^4, 0), ROUNDUP(im2colAll_confW5!BL5:EQ13/2^4, 0)) -> 117 | BM5: =IF(im2colAll_confW5!BM5:ER13 > 0, ROUNDDOWN(im2colAll_confW5!BM5:ER13/2^4, 0), ROUNDUP(im2colAll_confW5!BM5:ER13/2^4, 0)) -> -34 | BN5: =IF(im2colAll_confW5!BN5:ES13 > 0, ROUNDDOWN(im2colAll_confW5!BN5:ES13/2^4, 0), ROUNDUP(im2colAll_confW5!BN5:ES13/2^4, 0)) -> 43 | BO5: =IF(im2colAll_confW5!BO5:ET13 > 0, ROUNDDOWN(im2colAll_confW5!BO5:ET13/2^4, 0), ROUNDUP(im2colAll_confW5!BO5:ET13/2^4, 0)) -> -43 | BP5: =IF(im2colAll_confW5!BP5:EU13 > 0, ROUNDDOWN(im2colAll_confW5!BP5:EU13/2^4, 0), ROUNDUP(im2colAll_confW5!BP5:EU13/2^4, 0)) -> -89 | BQ5: =IF(im2colAll_confW5!BQ5:EV13 > 0, ROUNDDOWN(im2colAll_confW5!BQ5:EV13/2^4, 0), ROUNDUP(im2colAll_confW5!BQ5:EV13/2^4, 0)) -> -104 | BR5: =IF(im2colAll_confW5!BR5:EW13 > 0, ROUNDDOWN(im2colAll_confW5!BR5:EW13/2^4, 0), ROUNDUP(im2colAll_confW5!BR5:EW13/2^4, 0)) -> -86 | BS5: =IF(im2colAll_confW5!BS5:EX13 > 0, ROUNDDOWN(im2colAll_confW5!BS5:EX13/2^4, 0), ROUNDUP(im2colAll_confW5!BS5:EX13/2^4, 0)) -> 20 | BT5: =IF(im2colAll_confW5!BT5:EY13 > 0, ROUNDDOWN(im2colAll_confW5!BT5:EY13/2^4, 0), ROUNDUP(im2colAll_confW5!BT5:EY13/2^4, 0)) -> -65 | BU5: =IF(im2colAll_confW5!BU5:EZ13 > 0, ROUNDDOWN(im2colAll_confW5!BU5:EZ13/2^4, 0), ROUNDUP(im2colAll_confW5!BU5:EZ13/2^4, 0)) -> 7 | BV5: =IF(im2colAll_confW5!BV5:FA13 > 0, ROUNDDOWN(im2colAll_confW5!BV5:FA13/2^4, 0), ROUNDUP(im2colAll_confW5!BV5:FA13/2^4, 0)) -> 24 | BW5: =IF(im2colAll_confW5!BW5:FB13 > 0, ROUNDDOWN(im2colAll_confW5!BW5:FB13/2^4, 0), ROUNDUP(im2colAll_confW5!BW5:FB13/2^4, 0)) -> -47 | BX5: =IF(im2colAll_confW5!BX5:FC13 > 0, ROUNDDOWN(im2colAll_confW5!BX5:FC13/2^4, 0), ROUNDUP(im2colAll_confW5!BX5:FC13/2^4, 0)) -> 23 | BY5: =IF(im2colAll_confW5!BY5:FD13 > 0, ROUNDDOWN(im2colAll_confW5!BY5:FD13/2^4, 0), ROUNDUP(im2colAll_confW5!BY5:FD13/2^4, 0)) -> 75 | BZ5: =IF(im2colAll_confW5!BZ5:FE13 > 0, ROUNDDOWN(im2colAll_confW5!BZ5:FE13/2^4, 0), ROUNDUP(im2colAll_confW5!BZ5:FE13/2^4, 0)) -> 22 | CA5: =IF(im2colAll_confW5!CA5:FF13 > 0, ROUNDDOWN(im2colAll_confW5!CA5:FF13/2^4, 0), ROUNDUP(im2colAll_confW5!CA5:FF13/2^4, 0)) -> 90 | CB5: =IF(im2colAll_confW5!CB5:FG13 > 0, ROUNDDOWN(im2colAll_confW5!CB5:FG13/2^4, 0), ROUNDUP(im2colAll_confW5!CB5:FG13/2^4, 0)) -> -95 | CC5: =IF(im2colAll_confW5!CC5:FH13 > 0, ROUNDDOWN(im2colAll_confW5!CC5:FH13/2^4, 0), ROUNDUP(im2colAll_confW5!CC5:FH13/2^4, 0)) -> -46 | CD5: =IF(im2colAll_confW5!CD5:FI13 > 0, ROUNDDOWN(im2colAll_confW5!CD5:FI13/2^4, 0), ROUNDUP(im2colAll_confW5!CD5:FI13/2^4, 0)) -> 39 | CE5: =IF(im2colAll_confW5!CE5:FJ13 > 0, ROUNDDOWN(im2colAll_confW5!CE5:FJ13/2^4, 0), ROUNDUP(im2colAll_confW5!CE5:FJ13/2^4, 0)) -> -26 | CF5: =IF(im2colAll_confW5!CF5:FK13 > 0, ROUNDDOWN(im2colAll_confW5!CF5:FK13/2^4, 0), ROUNDUP(im2colAll_confW5!CF5:FK13/2^4, 0)) -> -111
A6: =IF(im2colAll_confW5!A6:CF14 > 0, ROUNDDOWN(im2colAll_confW5!A6:CF14/2^4, 0), ROUNDUP(im2colAll_confW5!A6:CF14/2^4, 0)) -> 193 | B6: =IF(im2colAll_confW5!B6:CG14 > 0, ROUNDDOWN(im2colAll_confW5!B6:CG14/2^4, 0), ROUNDUP(im2colAll_confW5!B6:CG14/2^4, 0)) -> 7 | C6: =IF(im2colAll_confW5!C6:CH14 > 0, ROUNDDOWN(im2colAll_confW5!C6:CH14/2^4, 0), ROUNDUP(im2colAll_confW5!C6:CH14/2^4, 0)) -> 31 | D6: =IF(im2colAll_confW5!D6:CI14 > 0, ROUNDDOWN(im2colAll_confW5!D6:CI14/2^4, 0), ROUNDUP(im2colAll_confW5!D6:CI14/2^4, 0)) -> -42 | E6: =IF(im2colAll_confW5!E6:CJ14 > 0, ROUNDDOWN(im2colAll_confW5!E6:CJ14/2^4, 0), ROUNDUP(im2colAll_confW5!E6:CJ14/2^4, 0)) -> -20 | F6: =IF(im2colAll_confW5!F6:CK14 > 0, ROUNDDOWN(im2colAll_confW5!F6:CK14/2^4, 0), ROUNDUP(im2colAll_confW5!F6:CK14/2^4, 0)) -> -74 | G6: =IF(im2colAll_confW5!G6:CL14 > 0, ROUNDDOWN(im2colAll_confW5!G6:CL14/2^4, 0), ROUNDUP(im2colAll_confW5!G6:CL14/2^4, 0)) -> -65 | H6: =IF(im2colAll_confW5!H6:CM14 > 0, ROUNDDOWN(im2colAll_confW5!H6:CM14/2^4, 0), ROUNDUP(im2colAll_confW5!H6:CM14/2^4, 0)) -> 29 | I6: =IF(im2colAll_confW5!I6:CN14 > 0, ROUNDDOWN(im2colAll_confW5!I6:CN14/2^4, 0), ROUNDUP(im2colAll_confW5!I6:CN14/2^4, 0)) -> -54 | J6: =IF(im2colAll_confW5!J6:CO14 > 0, ROUNDDOWN(im2colAll_confW5!J6:CO14/2^4, 0), ROUNDUP(im2colAll_confW5!J6:CO14/2^4, 0)) -> 17 | K6: =IF(im2colAll_confW5!K6:CP14 > 0, ROUNDDOWN(im2colAll_confW5!K6:CP14/2^4, 0), ROUNDUP(im2colAll_confW5!K6:CP14/2^4, 0)) -> 13 | L6: =IF(im2colAll_confW5!L6:CQ14 > 0, ROUNDDOWN(im2colAll_confW5!L6:CQ14/2^4, 0), ROUNDUP(im2colAll_confW5!L6:CQ14/2^4, 0)) -> 1 | M6: =IF(im2colAll_confW5!M6:CR14 > 0, ROUNDDOWN(im2colAll_confW5!M6:CR14/2^4, 0), ROUNDUP(im2colAll_confW5!M6:CR14/2^4, 0)) -> 17 | N6: =IF(im2colAll_confW5!N6:CS14 > 0, ROUNDDOWN(im2colAll_confW5!N6:CS14/2^4, 0), ROUNDUP(im2colAll_confW5!N6:CS14/2^4, 0)) -> 75 | O6: =IF(im2colAll_confW5!O6:CT14 > 0, ROUNDDOWN(im2colAll_confW5!O6:CT14/2^4, 0), ROUNDUP(im2colAll_confW5!O6:CT14/2^4, 0)) -> 6 | P6: =IF(im2colAll_confW5!P6:CU14 > 0, ROUNDDOWN(im2colAll_confW5!P6:CU14/2^4, 0), ROUNDUP(im2colAll_confW5!P6:CU14/2^4, 0)) -> 63 | Q6: =IF(im2colAll_confW5!Q6:CV14 > 0, ROUNDDOWN(im2colAll_confW5!Q6:CV14/2^4, 0), ROUNDUP(im2colAll_confW5!Q6:CV14/2^4, 0)) -> -82 | R6: =IF(im2colAll_confW5!R6:CW14 > 0, ROUNDDOWN(im2colAll_confW5!R6:CW14/2^4, 0), ROUNDUP(im2colAll_confW5!R6:CW14/2^4, 0)) -> -19 | S6: =IF(im2colAll_confW5!S6:CX14 > 0, ROUNDDOWN(im2colAll_confW5!S6:CX14/2^4, 0), ROUNDUP(im2colAll_confW5!S6:CX14/2^4, 0)) -> 48 | T6: =IF(im2colAll_confW5!T6:CY14 > 0, ROUNDDOWN(im2colAll_confW5!T6:CY14/2^4, 0), ROUNDUP(im2colAll_confW5!T6:CY14/2^4, 0)) -> -17 | U6: =IF(im2colAll_confW5!U6:CZ14 > 0, ROUNDDOWN(im2colAll_confW5!U6:CZ14/2^4, 0), ROUNDUP(im2colAll_confW5!U6:CZ14/2^4, 0)) -> -105 | V6: =IF(im2colAll_confW5!V6:DA14 > 0, ROUNDDOWN(im2colAll_confW5!V6:DA14/2^4, 0), ROUNDUP(im2colAll_confW5!V6:DA14/2^4, 0)) -> 175 | W6: =IF(im2colAll_confW5!W6:DB14 > 0, ROUNDDOWN(im2colAll_confW5!W6:DB14/2^4, 0), ROUNDUP(im2colAll_confW5!W6:DB14/2^4, 0)) -> 7 | X6: =IF(im2colAll_confW5!X6:DC14 > 0, ROUNDDOWN(im2colAll_confW5!X6:DC14/2^4, 0), ROUNDUP(im2colAll_confW5!X6:DC14/2^4, 0)) -> 16 | Y6: =IF(im2colAll_confW5!Y6:DD14 > 0, ROUNDDOWN(im2colAll_confW5!Y6:DD14/2^4, 0), ROUNDUP(im2colAll_confW5!Y6:DD14/2^4, 0)) -> -62 | Z6: =IF(im2colAll_confW5!Z6:DE14 > 0, ROUNDDOWN(im2colAll_confW5!Z6:DE14/2^4, 0), ROUNDUP(im2colAll_confW5!Z6:DE14/2^4, 0)) -> -12 | AA6: =IF(im2colAll_confW5!AA6:DF14 > 0, ROUNDDOWN(im2colAll_confW5!AA6:DF14/2^4, 0), ROUNDUP(im2colAll_confW5!AA6:DF14/2^4, 0)) -> -111 | AB6: =IF(im2colAll_confW5!AB6:DG14 > 0, ROUNDDOWN(im2colAll_confW5!AB6:DG14/2^4, 0), ROUNDUP(im2colAll_confW5!AB6:DG14/2^4, 0)) -> -75 | AC6: =IF(im2colAll_confW5!AC6:DH14 > 0, ROUNDDOWN(im2colAll_confW5!AC6:DH14/2^4, 0), ROUNDUP(im2colAll_confW5!AC6:DH14/2^4, 0)) -> 53 | AD6: =IF(im2colAll_confW5!AD6:DI14 > 0, ROUNDDOWN(im2colAll_confW5!AD6:DI14/2^4, 0), ROUNDUP(im2colAll_confW5!AD6:DI14/2^4, 0)) -> -69 | AE6: =IF(im2colAll_confW5!AE6:DJ14 > 0, ROUNDDOWN(im2colAll_confW5!AE6:DJ14/2^4, 0), ROUNDUP(im2colAll_confW5!AE6:DJ14/2^4, 0)) -> 3 | AF6: =IF(im2colAll_confW5!AF6:DK14 > 0, ROUNDDOWN(im2colAll_confW5!AF6:DK14/2^4, 0), ROUNDUP(im2colAll_confW5!AF6:DK14/2^4, 0)) -> 9 | AG6: =IF(im2colAll_confW5!AG6:DL14 > 0, ROUNDDOWN(im2colAll_confW5!AG6:DL14/2^4, 0), ROUNDUP(im2colAll_confW5!AG6:DL14/2^4, 0)) -> 14 | AH6: =IF(im2colAll_confW5!AH6:DM14 > 0, ROUNDDOWN(im2colAll_confW5!AH6:DM14/2^4, 0), ROUNDUP(im2colAll_confW5!AH6:DM14/2^4, 0)) -> 32 | AI6: =IF(im2colAll_confW5!AI6:DN14 > 0, ROUNDDOWN(im2colAll_confW5!AI6:DN14/2^4, 0), ROUNDUP(im2colAll_confW5!AI6:DN14/2^4, 0)) -> 65 | AJ6: =IF(im2colAll_confW5!AJ6:DO14 > 0, ROUNDDOWN(im2colAll_confW5!AJ6:DO14/2^4, 0), ROUNDUP(im2colAll_confW5!AJ6:DO14/2^4, 0)) -> 12 | AK6: =IF(im2colAll_confW5!AK6:DP14 > 0, ROUNDDOWN(im2colAll_confW5!AK6:DP14/2^4, 0), ROUNDUP(im2colAll_confW5!AK6:DP14/2^4, 0)) -> 58 | AL6: =IF(im2colAll_confW5!AL6:DQ14 > 0, ROUNDDOWN(im2colAll_confW5!AL6:DQ14/2^4, 0), ROUNDUP(im2colAll_confW5!AL6:DQ14/2^4, 0)) -> -86 | AM6: =IF(im2colAll_confW5!AM6:DR14 > 0, ROUNDDOWN(im2colAll_confW5!AM6:DR14/2^4, 0), ROUNDUP(im2colAll_confW5!AM6:DR14/2^4, 0)) -> -52 | AN6: =IF(im2colAll_confW5!AN6:DS14 > 0, ROUNDDOWN(im2colAll_confW5!AN6:DS14/2^4, 0), ROUNDUP(im2colAll_confW5!AN6:DS14/2^4, 0)) -> 60 | AO6: =IF(im2colAll_confW5!AO6:DT14 > 0, ROUNDDOWN(im2colAll_confW5!AO6:DT14/2^4, 0), ROUNDUP(im2colAll_confW5!AO6:DT14/2^4, 0)) -> 10 | AP6: =IF(im2colAll_confW5!AP6:DU14 > 0, ROUNDDOWN(im2colAll_confW5!AP6:DU14/2^4, 0), ROUNDUP(im2colAll_confW5!AP6:DU14/2^4, 0)) -> -119 | AQ6: =IF(im2colAll_confW5!AQ6:DV14 > 0, ROUNDDOWN(im2colAll_confW5!AQ6:DV14/2^4, 0), ROUNDUP(im2colAll_confW5!AQ6:DV14/2^4, 0)) -> 105 | AR6: =IF(im2colAll_confW5!AR6:DW14 > 0, ROUNDDOWN(im2colAll_confW5!AR6:DW14/2^4, 0), ROUNDUP(im2colAll_confW5!AR6:DW14/2^4, 0)) -> 9 | AS6: =IF(im2colAll_confW5!AS6:DX14 > 0, ROUNDDOWN(im2colAll_confW5!AS6:DX14/2^4, 0), ROUNDUP(im2colAll_confW5!AS6:DX14/2^4, 0)) -> -7 | AT6: =IF(im2colAll_confW5!AT6:DY14 > 0, ROUNDDOWN(im2colAll_confW5!AT6:DY14/2^4, 0), ROUNDUP(im2colAll_confW5!AT6:DY14/2^4, 0)) -> -61 | AU6: =IF(im2colAll_confW5!AU6:DZ14 > 0, ROUNDDOWN(im2colAll_confW5!AU6:DZ14/2^4, 0), ROUNDUP(im2colAll_confW5!AU6:DZ14/2^4, 0)) -> -22 | AV6: =IF(im2colAll_confW5!AV6:EA14 > 0, ROUNDDOWN(im2colAll_confW5!AV6:EA14/2^4, 0), ROUNDUP(im2colAll_confW5!AV6:EA14/2^4, 0)) -> -56 | AW6: =IF(im2colAll_confW5!AW6:EB14 > 0, ROUNDDOWN(im2colAll_confW5!AW6:EB14/2^4, 0), ROUNDUP(im2colAll_confW5!AW6:EB14/2^4, 0)) -> -62 | AX6: =IF(im2colAll_confW5!AX6:EC14 > 0, ROUNDDOWN(im2colAll_confW5!AX6:EC14/2^4, 0), ROUNDUP(im2colAll_confW5!AX6:EC14/2^4, 0)) -> 34 | AY6: =IF(im2colAll_confW5!AY6:ED14 > 0, ROUNDDOWN(im2colAll_confW5!AY6:ED14/2^4, 0), ROUNDUP(im2colAll_confW5!AY6:ED14/2^4, 0)) -> -45 | AZ6: =IF(im2colAll_confW5!AZ6:EE14 > 0, ROUNDDOWN(im2colAll_confW5!AZ6:EE14/2^4, 0), ROUNDUP(im2colAll_confW5!AZ6:EE14/2^4, 0)) -> 16 | BA6: =IF(im2colAll_confW5!BA6:EF14 > 0, ROUNDDOWN(im2colAll_confW5!BA6:EF14/2^4, 0), ROUNDUP(im2colAll_confW5!BA6:EF14/2^4, 0)) -> 23 | BB6: =IF(im2colAll_confW5!BB6:EG14 > 0, ROUNDDOWN(im2colAll_confW5!BB6:EG14/2^4, 0), ROUNDUP(im2colAll_confW5!BB6:EG14/2^4, 0)) -> -18 | BC6: =IF(im2colAll_confW5!BC6:EH14 > 0, ROUNDDOWN(im2colAll_confW5!BC6:EH14/2^4, 0), ROUNDUP(im2colAll_confW5!BC6:EH14/2^4, 0)) -> 24 | BD6: =IF(im2colAll_confW5!BD6:EI14 > 0, ROUNDDOWN(im2colAll_confW5!BD6:EI14/2^4, 0), ROUNDUP(im2colAll_confW5!BD6:EI14/2^4, 0)) -> 72 | BE6: =IF(im2colAll_confW5!BE6:EJ14 > 0, ROUNDDOWN(im2colAll_confW5!BE6:EJ14/2^4, 0), ROUNDUP(im2colAll_confW5!BE6:EJ14/2^4, 0)) -> 26 | BF6: =IF(im2colAll_confW5!BF6:EK14 > 0, ROUNDDOWN(im2colAll_confW5!BF6:EK14/2^4, 0), ROUNDUP(im2colAll_confW5!BF6:EK14/2^4, 0)) -> 29 | BG6: =IF(im2colAll_confW5!BG6:EL14 > 0, ROUNDDOWN(im2colAll_confW5!BG6:EL14/2^4, 0), ROUNDUP(im2colAll_confW5!BG6:EL14/2^4, 0)) -> -85 | BH6: =IF(im2colAll_confW5!BH6:EM14 > 0, ROUNDDOWN(im2colAll_confW5!BH6:EM14/2^4, 0), ROUNDUP(im2colAll_confW5!BH6:EM14/2^4, 0)) -> -24 | BI6: =IF(im2colAll_confW5!BI6:EN14 > 0, ROUNDDOWN(im2colAll_confW5!BI6:EN14/2^4, 0), ROUNDUP(im2colAll_confW5!BI6:EN14/2^4, 0)) -> 22 | BJ6: =IF(im2colAll_confW5!BJ6:EO14 > 0, ROUNDDOWN(im2colAll_confW5!BJ6:EO14/2^4, 0), ROUNDUP(im2colAll_confW5!BJ6:EO14/2^4, 0)) -> -9 | BK6: =IF(im2colAll_confW5!BK6:EP14 > 0, ROUNDDOWN(im2colAll_confW5!BK6:EP14/2^4, 0), ROUNDUP(im2colAll_confW5!BK6:EP14/2^4, 0)) -> -101 | BL6: =IF(im2colAll_confW5!BL6:EQ14 > 0, ROUNDDOWN(im2colAll_confW5!BL6:EQ14/2^4, 0), ROUNDUP(im2colAll_confW5!BL6:EQ14/2^4, 0)) -> 217 | BM6: =IF(im2colAll_confW5!BM6:ER14 > 0, ROUNDDOWN(im2colAll_confW5!BM6:ER14/2^4, 0), ROUNDUP(im2colAll_confW5!BM6:ER14/2^4, 0)) -> -20 | BN6: =IF(im2colAll_confW5!BN6:ES14 > 0, ROUNDDOWN(im2colAll_confW5!BN6:ES14/2^4, 0), ROUNDUP(im2colAll_confW5!BN6:ES14/2^4, 0)) -> -5 | BO6: =IF(im2colAll_confW5!BO6:ET14 > 0, ROUNDDOWN(im2colAll_confW5!BO6:ET14/2^4, 0), ROUNDUP(im2colAll_confW5!BO6:ET14/2^4, 0)) -> -62 | BP6: =IF(im2colAll_confW5!BP6:EU14 > 0, ROUNDDOWN(im2colAll_confW5!BP6:EU14/2^4, 0), ROUNDUP(im2colAll_confW5!BP6:EU14/2^4, 0)) -> -49 | BQ6: =IF(im2colAll_confW5!BQ6:EV14 > 0, ROUNDDOWN(im2colAll_confW5!BQ6:EV14/2^4, 0), ROUNDUP(im2colAll_confW5!BQ6:EV14/2^4, 0)) -> -72 | BR6: =IF(im2colAll_confW5!BR6:EW14 > 0, ROUNDDOWN(im2colAll_confW5!BR6:EW14/2^4, 0), ROUNDUP(im2colAll_confW5!BR6:EW14/2^4, 0)) -> -85 | BS6: =IF(im2colAll_confW5!BS6:EX14 > 0, ROUNDDOWN(im2colAll_confW5!BS6:EX14/2^4, 0), ROUNDUP(im2colAll_confW5!BS6:EX14/2^4, 0)) -> 0 | BT6: =IF(im2colAll_confW5!BT6:EY14 > 0, ROUNDDOWN(im2colAll_confW5!BT6:EY14/2^4, 0), ROUNDUP(im2colAll_confW5!BT6:EY14/2^4, 0)) -> -74 | BU6: =IF(im2colAll_confW5!BU6:EZ14 > 0, ROUNDDOWN(im2colAll_confW5!BU6:EZ14/2^4, 0), ROUNDUP(im2colAll_confW5!BU6:EZ14/2^4, 0)) -> 25 | BV6: =IF(im2colAll_confW5!BV6:FA14 > 0, ROUNDDOWN(im2colAll_confW5!BV6:FA14/2^4, 0), ROUNDUP(im2colAll_confW5!BV6:FA14/2^4, 0)) -> 30 | BW6: =IF(im2colAll_confW5!BW6:FB14 > 0, ROUNDDOWN(im2colAll_confW5!BW6:FB14/2^4, 0), ROUNDUP(im2colAll_confW5!BW6:FB14/2^4, 0)) -> -9 | BX6: =IF(im2colAll_confW5!BX6:FC14 > 0, ROUNDDOWN(im2colAll_confW5!BX6:FC14/2^4, 0), ROUNDUP(im2colAll_confW5!BX6:FC14/2^4, 0)) -> -7 | BY6: =IF(im2colAll_confW5!BY6:FD14 > 0, ROUNDDOWN(im2colAll_confW5!BY6:FD14/2^4, 0), ROUNDUP(im2colAll_confW5!BY6:FD14/2^4, 0)) -> 41 | BZ6: =IF(im2colAll_confW5!BZ6:FE14 > 0, ROUNDDOWN(im2colAll_confW5!BZ6:FE14/2^4, 0), ROUNDUP(im2colAll_confW5!BZ6:FE14/2^4, 0)) -> 0 | CA6: =IF(im2colAll_confW5!CA6:FF14 > 0, ROUNDDOWN(im2colAll_confW5!CA6:FF14/2^4, 0), ROUNDUP(im2colAll_confW5!CA6:FF14/2^4, 0)) -> 79 | CB6: =IF(im2colAll_confW5!CB6:FG14 > 0, ROUNDDOWN(im2colAll_confW5!CB6:FG14/2^4, 0), ROUNDUP(im2colAll_confW5!CB6:FG14/2^4, 0)) -> -49 | CC6: =IF(im2colAll_confW5!CC6:FH14 > 0, ROUNDDOWN(im2colAll_confW5!CC6:FH14/2^4, 0), ROUNDUP(im2colAll_confW5!CC6:FH14/2^4, 0)) -> -37 | CD6: =IF(im2colAll_confW5!CD6:FI14 > 0, ROUNDDOWN(im2colAll_confW5!CD6:FI14/2^4, 0), ROUNDUP(im2colAll_confW5!CD6:FI14/2^4, 0)) -> 26 | CE6: =IF(im2colAll_confW5!CE6:FJ14 > 0, ROUNDDOWN(im2colAll_confW5!CE6:FJ14/2^4, 0), ROUNDUP(im2colAll_confW5!CE6:FJ14/2^4, 0)) -> -11 | CF6: =IF(im2colAll_confW5!CF6:FK14 > 0, ROUNDDOWN(im2colAll_confW5!CF6:FK14/2^4, 0), ROUNDUP(im2colAll_confW5!CF6:FK14/2^4, 0)) -> -71
A7: =IF(im2colAll_confW5!A7:CF15 > 0, ROUNDDOWN(im2colAll_confW5!A7:CF15/2^4, 0), ROUNDUP(im2colAll_confW5!A7:CF15/2^4, 0)) -> 176 | B7: =IF(im2colAll_confW5!B7:CG15 > 0, ROUNDDOWN(im2colAll_confW5!B7:CG15/2^4, 0), ROUNDUP(im2colAll_confW5!B7:CG15/2^4, 0)) -> -13 | C7: =IF(im2colAll_confW5!C7:CH15 > 0, ROUNDDOWN(im2colAll_confW5!C7:CH15/2^4, 0), ROUNDUP(im2colAll_confW5!C7:CH15/2^4, 0)) -> 36 | D7: =IF(im2colAll_confW5!D7:CI15 > 0, ROUNDDOWN(im2colAll_confW5!D7:CI15/2^4, 0), ROUNDUP(im2colAll_confW5!D7:CI15/2^4, 0)) -> -19 | E7: =IF(im2colAll_confW5!E7:CJ15 > 0, ROUNDDOWN(im2colAll_confW5!E7:CJ15/2^4, 0), ROUNDUP(im2colAll_confW5!E7:CJ15/2^4, 0)) -> 0 | F7: =IF(im2colAll_confW5!F7:CK15 > 0, ROUNDDOWN(im2colAll_confW5!F7:CK15/2^4, 0), ROUNDUP(im2colAll_confW5!F7:CK15/2^4, 0)) -> -51 | G7: =IF(im2colAll_confW5!G7:CL15 > 0, ROUNDDOWN(im2colAll_confW5!G7:CL15/2^4, 0), ROUNDUP(im2colAll_confW5!G7:CL15/2^4, 0)) -> -58 | H7: =IF(im2colAll_confW5!H7:CM15 > 0, ROUNDDOWN(im2colAll_confW5!H7:CM15/2^4, 0), ROUNDUP(im2colAll_confW5!H7:CM15/2^4, 0)) -> -2 | I7: =IF(im2colAll_confW5!I7:CN15 > 0, ROUNDDOWN(im2colAll_confW5!I7:CN15/2^4, 0), ROUNDUP(im2colAll_confW5!I7:CN15/2^4, 0)) -> -12 | J7: =IF(im2colAll_confW5!J7:CO15 > 0, ROUNDDOWN(im2colAll_confW5!J7:CO15/2^4, 0), ROUNDUP(im2colAll_confW5!J7:CO15/2^4, 0)) -> -2 | K7: =IF(im2colAll_confW5!K7:CP15 > 0, ROUNDDOWN(im2colAll_confW5!K7:CP15/2^4, 0), ROUNDUP(im2colAll_confW5!K7:CP15/2^4, 0)) -> 22 | L7: =IF(im2colAll_confW5!L7:CQ15 > 0, ROUNDDOWN(im2colAll_confW5!L7:CQ15/2^4, 0), ROUNDUP(im2colAll_confW5!L7:CQ15/2^4, 0)) -> -15 | M7: =IF(im2colAll_confW5!M7:CR15 > 0, ROUNDDOWN(im2colAll_confW5!M7:CR15/2^4, 0), ROUNDUP(im2colAll_confW5!M7:CR15/2^4, 0)) -> 26 | N7: =IF(im2colAll_confW5!N7:CS15 > 0, ROUNDDOWN(im2colAll_confW5!N7:CS15/2^4, 0), ROUNDUP(im2colAll_confW5!N7:CS15/2^4, 0)) -> 38 | O7: =IF(im2colAll_confW5!O7:CT15 > 0, ROUNDDOWN(im2colAll_confW5!O7:CT15/2^4, 0), ROUNDUP(im2colAll_confW5!O7:CT15/2^4, 0)) -> -7 | P7: =IF(im2colAll_confW5!P7:CU15 > 0, ROUNDDOWN(im2colAll_confW5!P7:CU15/2^4, 0), ROUNDUP(im2colAll_confW5!P7:CU15/2^4, 0)) -> 33 | Q7: =IF(im2colAll_confW5!Q7:CV15 > 0, ROUNDDOWN(im2colAll_confW5!Q7:CV15/2^4, 0), ROUNDUP(im2colAll_confW5!Q7:CV15/2^4, 0)) -> -35 | R7: =IF(im2colAll_confW5!R7:CW15 > 0, ROUNDDOWN(im2colAll_confW5!R7:CW15/2^4, 0), ROUNDUP(im2colAll_confW5!R7:CW15/2^4, 0)) -> -12 | S7: =IF(im2colAll_confW5!S7:CX15 > 0, ROUNDDOWN(im2colAll_confW5!S7:CX15/2^4, 0), ROUNDUP(im2colAll_confW5!S7:CX15/2^4, 0)) -> 16 | T7: =IF(im2colAll_confW5!T7:CY15 > 0, ROUNDDOWN(im2colAll_confW5!T7:CY15/2^4, 0), ROUNDUP(im2colAll_confW5!T7:CY15/2^4, 0)) -> 3 | U7: =IF(im2colAll_confW5!U7:CZ15 > 0, ROUNDDOWN(im2colAll_confW5!U7:CZ15/2^4, 0), ROUNDUP(im2colAll_confW5!U7:CZ15/2^4, 0)) -> -43 | V7: =IF(im2colAll_confW5!V7:DA15 > 0, ROUNDDOWN(im2colAll_confW5!V7:DA15/2^4, 0), ROUNDUP(im2colAll_confW5!V7:DA15/2^4, 0)) -> 159 | W7: =IF(im2colAll_confW5!W7:DB15 > 0, ROUNDDOWN(im2colAll_confW5!W7:DB15/2^4, 0), ROUNDUP(im2colAll_confW5!W7:DB15/2^4, 0)) -> -23 | X7: =IF(im2colAll_confW5!X7:DC15 > 0, ROUNDDOWN(im2colAll_confW5!X7:DC15/2^4, 0), ROUNDUP(im2colAll_confW5!X7:DC15/2^4, 0)) -> 3 | Y7: =IF(im2colAll_confW5!Y7:DD15 > 0, ROUNDDOWN(im2colAll_confW5!Y7:DD15/2^4, 0), ROUNDUP(im2colAll_confW5!Y7:DD15/2^4, 0)) -> -40 | Z7: =IF(im2colAll_confW5!Z7:DE15 > 0, ROUNDDOWN(im2colAll_confW5!Z7:DE15/2^4, 0), ROUNDUP(im2colAll_confW5!Z7:DE15/2^4, 0)) -> 1 | AA7: =IF(im2colAll_confW5!AA7:DF15 > 0, ROUNDDOWN(im2colAll_confW5!AA7:DF15/2^4, 0), ROUNDUP(im2colAll_confW5!AA7:DF15/2^4, 0)) -> -74 | AB7: =IF(im2colAll_confW5!AB7:DG15 > 0, ROUNDDOWN(im2colAll_confW5!AB7:DG15/2^4, 0), ROUNDUP(im2colAll_confW5!AB7:DG15/2^4, 0)) -> -58 | AC7: =IF(im2colAll_confW5!AC7:DH15 > 0, ROUNDDOWN(im2colAll_confW5!AC7:DH15/2^4, 0), ROUNDUP(im2colAll_confW5!AC7:DH15/2^4, 0)) -> 6 | AD7: =IF(im2colAll_confW5!AD7:DI15 > 0, ROUNDDOWN(im2colAll_confW5!AD7:DI15/2^4, 0), ROUNDUP(im2colAll_confW5!AD7:DI15/2^4, 0)) -> -22 | AE7: =IF(im2colAll_confW5!AE7:DJ15 > 0, ROUNDDOWN(im2colAll_confW5!AE7:DJ15/2^4, 0), ROUNDUP(im2colAll_confW5!AE7:DJ15/2^4, 0)) -> -16 | AF7: =IF(im2colAll_confW5!AF7:DK15 > 0, ROUNDDOWN(im2colAll_confW5!AF7:DK15/2^4, 0), ROUNDUP(im2colAll_confW5!AF7:DK15/2^4, 0)) -> 0 | AG7: =IF(im2colAll_confW5!AG7:DL15 > 0, ROUNDDOWN(im2colAll_confW5!AG7:DL15/2^4, 0), ROUNDUP(im2colAll_confW5!AG7:DL15/2^4, 0)) -> -8 | AH7: =IF(im2colAll_confW5!AH7:DM15 > 0, ROUNDDOWN(im2colAll_confW5!AH7:DM15/2^4, 0), ROUNDUP(im2colAll_confW5!AH7:DM15/2^4, 0)) -> 5 | AI7: =IF(im2colAll_confW5!AI7:DN15 > 0, ROUNDDOWN(im2colAll_confW5!AI7:DN15/2^4, 0), ROUNDUP(im2colAll_confW5!AI7:DN15/2^4, 0)) -> 25 | AJ7: =IF(im2colAll_confW5!AJ7:DO15 > 0, ROUNDDOWN(im2colAll_confW5!AJ7:DO15/2^4, 0), ROUNDUP(im2colAll_confW5!AJ7:DO15/2^4, 0)) -> 12 | AK7: =IF(im2colAll_confW5!AK7:DP15 > 0, ROUNDDOWN(im2colAll_confW5!AK7:DP15/2^4, 0), ROUNDUP(im2colAll_confW5!AK7:DP15/2^4, 0)) -> 34 | AL7: =IF(im2colAll_confW5!AL7:DQ15 > 0, ROUNDDOWN(im2colAll_confW5!AL7:DQ15/2^4, 0), ROUNDUP(im2colAll_confW5!AL7:DQ15/2^4, 0)) -> -43 | AM7: =IF(im2colAll_confW5!AM7:DR15 > 0, ROUNDDOWN(im2colAll_confW5!AM7:DR15/2^4, 0), ROUNDUP(im2colAll_confW5!AM7:DR15/2^4, 0)) -> -11 | AN7: =IF(im2colAll_confW5!AN7:DS15 > 0, ROUNDDOWN(im2colAll_confW5!AN7:DS15/2^4, 0), ROUNDUP(im2colAll_confW5!AN7:DS15/2^4, 0)) -> 8 | AO7: =IF(im2colAll_confW5!AO7:DT15 > 0, ROUNDDOWN(im2colAll_confW5!AO7:DT15/2^4, 0), ROUNDUP(im2colAll_confW5!AO7:DT15/2^4, 0)) -> -12 | AP7: =IF(im2colAll_confW5!AP7:DU15 > 0, ROUNDDOWN(im2colAll_confW5!AP7:DU15/2^4, 0), ROUNDUP(im2colAll_confW5!AP7:DU15/2^4, 0)) -> -52 | AQ7: =IF(im2colAll_confW5!AQ7:DV15 > 0, ROUNDDOWN(im2colAll_confW5!AQ7:DV15/2^4, 0), ROUNDUP(im2colAll_confW5!AQ7:DV15/2^4, 0)) -> 134 | AR7: =IF(im2colAll_confW5!AR7:DW15 > 0, ROUNDDOWN(im2colAll_confW5!AR7:DW15/2^4, 0), ROUNDUP(im2colAll_confW5!AR7:DW15/2^4, 0)) -> -19 | AS7: =IF(im2colAll_confW5!AS7:DX15 > 0, ROUNDDOWN(im2colAll_confW5!AS7:DX15/2^4, 0), ROUNDUP(im2colAll_confW5!AS7:DX15/2^4, 0)) -> 3 | AT7: =IF(im2colAll_confW5!AT7:DY15 > 0, ROUNDDOWN(im2colAll_confW5!AT7:DY15/2^4, 0), ROUNDUP(im2colAll_confW5!AT7:DY15/2^4, 0)) -> -24 | AU7: =IF(im2colAll_confW5!AU7:DZ15 > 0, ROUNDDOWN(im2colAll_confW5!AU7:DZ15/2^4, 0), ROUNDUP(im2colAll_confW5!AU7:DZ15/2^4, 0)) -> 11 | AV7: =IF(im2colAll_confW5!AV7:EA15 > 0, ROUNDDOWN(im2colAll_confW5!AV7:EA15/2^4, 0), ROUNDUP(im2colAll_confW5!AV7:EA15/2^4, 0)) -> -57 | AW7: =IF(im2colAll_confW5!AW7:EB15 > 0, ROUNDDOWN(im2colAll_confW5!AW7:EB15/2^4, 0), ROUNDUP(im2colAll_confW5!AW7:EB15/2^4, 0)) -> -55 | AX7: =IF(im2colAll_confW5!AX7:EC15 > 0, ROUNDDOWN(im2colAll_confW5!AX7:EC15/2^4, 0), ROUNDUP(im2colAll_confW5!AX7:EC15/2^4, 0)) -> 2 | AY7: =IF(im2colAll_confW5!AY7:ED15 > 0, ROUNDDOWN(im2colAll_confW5!AY7:ED15/2^4, 0), ROUNDUP(im2colAll_confW5!AY7:ED15/2^4, 0)) -> -32 | AZ7: =IF(im2colAll_confW5!AZ7:EE15 > 0, ROUNDDOWN(im2colAll_confW5!AZ7:EE15/2^4, 0), ROUNDUP(im2colAll_confW5!AZ7:EE15/2^4, 0)) -> -13 | BA7: =IF(im2colAll_confW5!BA7:EF15 > 0, ROUNDDOWN(im2colAll_confW5!BA7:EF15/2^4, 0), ROUNDUP(im2colAll_confW5!BA7:EF15/2^4, 0)) -> 8 | BB7: =IF(im2colAll_confW5!BB7:EG15 > 0, ROUNDDOWN(im2colAll_confW5!BB7:EG15/2^4, 0), ROUNDUP(im2colAll_confW5!BB7:EG15/2^4, 0)) -> 3 | BC7: =IF(im2colAll_confW5!BC7:EH15 > 0, ROUNDDOWN(im2colAll_confW5!BC7:EH15/2^4, 0), ROUNDUP(im2colAll_confW5!BC7:EH15/2^4, 0)) -> 9 | BD7: =IF(im2colAll_confW5!BD7:EI15 > 0, ROUNDDOWN(im2colAll_confW5!BD7:EI15/2^4, 0), ROUNDUP(im2colAll_confW5!BD7:EI15/2^4, 0)) -> 29 | BE7: =IF(im2colAll_confW5!BE7:EJ15 > 0, ROUNDDOWN(im2colAll_confW5!BE7:EJ15/2^4, 0), ROUNDUP(im2colAll_confW5!BE7:EJ15/2^4, 0)) -> -16 | BF7: =IF(im2colAll_confW5!BF7:EK15 > 0, ROUNDDOWN(im2colAll_confW5!BF7:EK15/2^4, 0), ROUNDUP(im2colAll_confW5!BF7:EK15/2^4, 0)) -> 22 | BG7: =IF(im2colAll_confW5!BG7:EL15 > 0, ROUNDDOWN(im2colAll_confW5!BG7:EL15/2^4, 0), ROUNDUP(im2colAll_confW5!BG7:EL15/2^4, 0)) -> -41 | BH7: =IF(im2colAll_confW5!BH7:EM15 > 0, ROUNDDOWN(im2colAll_confW5!BH7:EM15/2^4, 0), ROUNDUP(im2colAll_confW5!BH7:EM15/2^4, 0)) -> -32 | BI7: =IF(im2colAll_confW5!BI7:EN15 > 0, ROUNDDOWN(im2colAll_confW5!BI7:EN15/2^4, 0), ROUNDUP(im2colAll_confW5!BI7:EN15/2^4, 0)) -> 8 | BJ7: =IF(im2colAll_confW5!BJ7:EO15 > 0, ROUNDDOWN(im2colAll_confW5!BJ7:EO15/2^4, 0), ROUNDUP(im2colAll_confW5!BJ7:EO15/2^4, 0)) -> 2 | BK7: =IF(im2colAll_confW5!BK7:EP15 > 0, ROUNDDOWN(im2colAll_confW5!BK7:EP15/2^4, 0), ROUNDUP(im2colAll_confW5!BK7:EP15/2^4, 0)) -> -48 | BL7: =IF(im2colAll_confW5!BL7:EQ15 > 0, ROUNDDOWN(im2colAll_confW5!BL7:EQ15/2^4, 0), ROUNDUP(im2colAll_confW5!BL7:EQ15/2^4, 0)) -> 136 | BM7: =IF(im2colAll_confW5!BM7:ER15 > 0, ROUNDDOWN(im2colAll_confW5!BM7:ER15/2^4, 0), ROUNDUP(im2colAll_confW5!BM7:ER15/2^4, 0)) -> -9 | BN7: =IF(im2colAll_confW5!BN7:ES15 > 0, ROUNDDOWN(im2colAll_confW5!BN7:ES15/2^4, 0), ROUNDUP(im2colAll_confW5!BN7:ES15/2^4, 0)) -> 20 | BO7: =IF(im2colAll_confW5!BO7:ET15 > 0, ROUNDDOWN(im2colAll_confW5!BO7:ET15/2^4, 0), ROUNDUP(im2colAll_confW5!BO7:ET15/2^4, 0)) -> -16 | BP7: =IF(im2colAll_confW5!BP7:EU15 > 0, ROUNDDOWN(im2colAll_confW5!BP7:EU15/2^4, 0), ROUNDUP(im2colAll_confW5!BP7:EU15/2^4, 0)) -> -25 | BQ7: =IF(im2colAll_confW5!BQ7:EV15 > 0, ROUNDDOWN(im2colAll_confW5!BQ7:EV15/2^4, 0), ROUNDUP(im2colAll_confW5!BQ7:EV15/2^4, 0)) -> -41 | BR7: =IF(im2colAll_confW5!BR7:EW15 > 0, ROUNDDOWN(im2colAll_confW5!BR7:EW15/2^4, 0), ROUNDUP(im2colAll_confW5!BR7:EW15/2^4, 0)) -> -45 | BS7: =IF(im2colAll_confW5!BS7:EX15 > 0, ROUNDDOWN(im2colAll_confW5!BS7:EX15/2^4, 0), ROUNDUP(im2colAll_confW5!BS7:EX15/2^4, 0)) -> -6 | BT7: =IF(im2colAll_confW5!BT7:EY15 > 0, ROUNDDOWN(im2colAll_confW5!BT7:EY15/2^4, 0), ROUNDUP(im2colAll_confW5!BT7:EY15/2^4, 0)) -> -41 | BU7: =IF(im2colAll_confW5!BU7:EZ15 > 0, ROUNDDOWN(im2colAll_confW5!BU7:EZ15/2^4, 0), ROUNDUP(im2colAll_confW5!BU7:EZ15/2^4, 0)) -> 3 | BV7: =IF(im2colAll_confW5!BV7:FA15 > 0, ROUNDDOWN(im2colAll_confW5!BV7:FA15/2^4, 0), ROUNDUP(im2colAll_confW5!BV7:FA15/2^4, 0)) -> 12 | BW7: =IF(im2colAll_confW5!BW7:FB15 > 0, ROUNDDOWN(im2colAll_confW5!BW7:FB15/2^4, 0), ROUNDUP(im2colAll_confW5!BW7:FB15/2^4, 0)) -> 15 | BX7: =IF(im2colAll_confW5!BX7:FC15 > 0, ROUNDDOWN(im2colAll_confW5!BX7:FC15/2^4, 0), ROUNDUP(im2colAll_confW5!BX7:FC15/2^4, 0)) -> -1 | BY7: =IF(im2colAll_confW5!BY7:FD15 > 0, ROUNDDOWN(im2colAll_confW5!BY7:FD15/2^4, 0), ROUNDUP(im2colAll_confW5!BY7:FD15/2^4, 0)) -> 35 | BZ7: =IF(im2colAll_confW5!BZ7:FE15 > 0, ROUNDDOWN(im2colAll_confW5!BZ7:FE15/2^4, 0), ROUNDUP(im2colAll_confW5!BZ7:FE15/2^4, 0)) -> -12 | CA7: =IF(im2colAll_confW5!CA7:FF15 > 0, ROUNDDOWN(im2colAll_confW5!CA7:FF15/2^4, 0), ROUNDUP(im2colAll_confW5!CA7:FF15/2^4, 0)) -> 36 | CB7: =IF(im2colAll_confW5!CB7:FG15 > 0, ROUNDDOWN(im2colAll_confW5!CB7:FG15/2^4, 0), ROUNDUP(im2colAll_confW5!CB7:FG15/2^4, 0)) -> 0 | CC7: =IF(im2colAll_confW5!CC7:FH15 > 0, ROUNDDOWN(im2colAll_confW5!CC7:FH15/2^4, 0), ROUNDUP(im2colAll_confW5!CC7:FH15/2^4, 0)) -> -9 | CD7: =IF(im2colAll_confW5!CD7:FI15 > 0, ROUNDDOWN(im2colAll_confW5!CD7:FI15/2^4, 0), ROUNDUP(im2colAll_confW5!CD7:FI15/2^4, 0)) -> 2 | CE7: =IF(im2colAll_confW5!CE7:FJ15 > 0, ROUNDDOWN(im2colAll_confW5!CE7:FJ15/2^4, 0), ROUNDUP(im2colAll_confW5!CE7:FJ15/2^4, 0)) -> -19 | CF7: =IF(im2colAll_confW5!CF7:FK15 > 0, ROUNDDOWN(im2colAll_confW5!CF7:FK15/2^4, 0), ROUNDUP(im2colAll_confW5!CF7:FK15/2^4, 0)) -> -77
A8: =IF(im2colAll_confW5!A8:CF16 > 0, ROUNDDOWN(im2colAll_confW5!A8:CF16/2^4, 0), ROUNDUP(im2colAll_confW5!A8:CF16/2^4, 0)) -> 140 | B8: =IF(im2colAll_confW5!B8:CG16 > 0, ROUNDDOWN(im2colAll_confW5!B8:CG16/2^4, 0), ROUNDUP(im2colAll_confW5!B8:CG16/2^4, 0)) -> -30 | C8: =IF(im2colAll_confW5!C8:CH16 > 0, ROUNDDOWN(im2colAll_confW5!C8:CH16/2^4, 0), ROUNDUP(im2colAll_confW5!C8:CH16/2^4, 0)) -> 29 | D8: =IF(im2colAll_confW5!D8:CI16 > 0, ROUNDDOWN(im2colAll_confW5!D8:CI16/2^4, 0), ROUNDUP(im2colAll_confW5!D8:CI16/2^4, 0)) -> -33 | E8: =IF(im2colAll_confW5!E8:CJ16 > 0, ROUNDDOWN(im2colAll_confW5!E8:CJ16/2^4, 0), ROUNDUP(im2colAll_confW5!E8:CJ16/2^4, 0)) -> -15 | F8: =IF(im2colAll_confW5!F8:CK16 > 0, ROUNDDOWN(im2colAll_confW5!F8:CK16/2^4, 0), ROUNDUP(im2colAll_confW5!F8:CK16/2^4, 0)) -> -67 | G8: =IF(im2colAll_confW5!G8:CL16 > 0, ROUNDDOWN(im2colAll_confW5!G8:CL16/2^4, 0), ROUNDUP(im2colAll_confW5!G8:CL16/2^4, 0)) -> -67 | H8: =IF(im2colAll_confW5!H8:CM16 > 0, ROUNDDOWN(im2colAll_confW5!H8:CM16/2^4, 0), ROUNDUP(im2colAll_confW5!H8:CM16/2^4, 0)) -> 15 | I8: =IF(im2colAll_confW5!I8:CN16 > 0, ROUNDDOWN(im2colAll_confW5!I8:CN16/2^4, 0), ROUNDUP(im2colAll_confW5!I8:CN16/2^4, 0)) -> 4 | J8: =IF(im2colAll_confW5!J8:CO16 > 0, ROUNDDOWN(im2colAll_confW5!J8:CO16/2^4, 0), ROUNDUP(im2colAll_confW5!J8:CO16/2^4, 0)) -> 2 | K8: =IF(im2colAll_confW5!K8:CP16 > 0, ROUNDDOWN(im2colAll_confW5!K8:CP16/2^4, 0), ROUNDUP(im2colAll_confW5!K8:CP16/2^4, 0)) -> 23 | L8: =IF(im2colAll_confW5!L8:CQ16 > 0, ROUNDDOWN(im2colAll_confW5!L8:CQ16/2^4, 0), ROUNDUP(im2colAll_confW5!L8:CQ16/2^4, 0)) -> -31 | M8: =IF(im2colAll_confW5!M8:CR16 > 0, ROUNDDOWN(im2colAll_confW5!M8:CR16/2^4, 0), ROUNDUP(im2colAll_confW5!M8:CR16/2^4, 0)) -> 39 | N8: =IF(im2colAll_confW5!N8:CS16 > 0, ROUNDDOWN(im2colAll_confW5!N8:CS16/2^4, 0), ROUNDUP(im2colAll_confW5!N8:CS16/2^4, 0)) -> 75 | O8: =IF(im2colAll_confW5!O8:CT16 > 0, ROUNDDOWN(im2colAll_confW5!O8:CT16/2^4, 0), ROUNDUP(im2colAll_confW5!O8:CT16/2^4, 0)) -> 24 | P8: =IF(im2colAll_confW5!P8:CU16 > 0, ROUNDDOWN(im2colAll_confW5!P8:CU16/2^4, 0), ROUNDUP(im2colAll_confW5!P8:CU16/2^4, 0)) -> 34 | Q8: =IF(im2colAll_confW5!Q8:CV16 > 0, ROUNDDOWN(im2colAll_confW5!Q8:CV16/2^4, 0), ROUNDUP(im2colAll_confW5!Q8:CV16/2^4, 0)) -> -80 | R8: =IF(im2colAll_confW5!R8:CW16 > 0, ROUNDDOWN(im2colAll_confW5!R8:CW16/2^4, 0), ROUNDUP(im2colAll_confW5!R8:CW16/2^4, 0)) -> 15 | S8: =IF(im2colAll_confW5!S8:CX16 > 0, ROUNDDOWN(im2colAll_confW5!S8:CX16/2^4, 0), ROUNDUP(im2colAll_confW5!S8:CX16/2^4, 0)) -> 32 | T8: =IF(im2colAll_confW5!T8:CY16 > 0, ROUNDDOWN(im2colAll_confW5!T8:CY16/2^4, 0), ROUNDUP(im2colAll_confW5!T8:CY16/2^4, 0)) -> 4 | U8: =IF(im2colAll_confW5!U8:CZ16 > 0, ROUNDDOWN(im2colAll_confW5!U8:CZ16/2^4, 0), ROUNDUP(im2colAll_confW5!U8:CZ16/2^4, 0)) -> -77 | V8: =IF(im2colAll_confW5!V8:DA16 > 0, ROUNDDOWN(im2colAll_confW5!V8:DA16/2^4, 0), ROUNDUP(im2colAll_confW5!V8:DA16/2^4, 0)) -> 143 | W8: =IF(im2colAll_confW5!W8:DB16 > 0, ROUNDDOWN(im2colAll_confW5!W8:DB16/2^4, 0), ROUNDUP(im2colAll_confW5!W8:DB16/2^4, 0)) -> -11 | X8: =IF(im2colAll_confW5!X8:DC16 > 0, ROUNDDOWN(im2colAll_confW5!X8:DC16/2^4, 0), ROUNDUP(im2colAll_confW5!X8:DC16/2^4, 0)) -> 9 | Y8: =IF(im2colAll_confW5!Y8:DD16 > 0, ROUNDDOWN(im2colAll_confW5!Y8:DD16/2^4, 0), ROUNDUP(im2colAll_confW5!Y8:DD16/2^4, 0)) -> -51 | Z8: =IF(im2colAll_confW5!Z8:DE16 > 0, ROUNDDOWN(im2colAll_confW5!Z8:DE16/2^4, 0), ROUNDUP(im2colAll_confW5!Z8:DE16/2^4, 0)) -> -25 | AA8: =IF(im2colAll_confW5!AA8:DF16 > 0, ROUNDDOWN(im2colAll_confW5!AA8:DF16/2^4, 0), ROUNDUP(im2colAll_confW5!AA8:DF16/2^4, 0)) -> -97 | AB8: =IF(im2colAll_confW5!AB8:DG16 > 0, ROUNDDOWN(im2colAll_confW5!AB8:DG16/2^4, 0), ROUNDUP(im2colAll_confW5!AB8:DG16/2^4, 0)) -> -85 | AC8: =IF(im2colAll_confW5!AC8:DH16 > 0, ROUNDDOWN(im2colAll_confW5!AC8:DH16/2^4, 0), ROUNDUP(im2colAll_confW5!AC8:DH16/2^4, 0)) -> 24 | AD8: =IF(im2colAll_confW5!AD8:DI16 > 0, ROUNDDOWN(im2colAll_confW5!AD8:DI16/2^4, 0), ROUNDUP(im2colAll_confW5!AD8:DI16/2^4, 0)) -> -22 | AE8: =IF(im2colAll_confW5!AE8:DJ16 > 0, ROUNDDOWN(im2colAll_confW5!AE8:DJ16/2^4, 0), ROUNDUP(im2colAll_confW5!AE8:DJ16/2^4, 0)) -> 4 | AF8: =IF(im2colAll_confW5!AF8:DK16 > 0, ROUNDDOWN(im2colAll_confW5!AF8:DK16/2^4, 0), ROUNDUP(im2colAll_confW5!AF8:DK16/2^4, 0)) -> 25 | AG8: =IF(im2colAll_confW5!AG8:DL16 > 0, ROUNDDOWN(im2colAll_confW5!AG8:DL16/2^4, 0), ROUNDUP(im2colAll_confW5!AG8:DL16/2^4, 0)) -> -27 | AH8: =IF(im2colAll_confW5!AH8:DM16 > 0, ROUNDDOWN(im2colAll_confW5!AH8:DM16/2^4, 0), ROUNDUP(im2colAll_confW5!AH8:DM16/2^4, 0)) -> 51 | AI8: =IF(im2colAll_confW5!AI8:DN16 > 0, ROUNDDOWN(im2colAll_confW5!AI8:DN16/2^4, 0), ROUNDUP(im2colAll_confW5!AI8:DN16/2^4, 0)) -> 92 | AJ8: =IF(im2colAll_confW5!AJ8:DO16 > 0, ROUNDDOWN(im2colAll_confW5!AJ8:DO16/2^4, 0), ROUNDUP(im2colAll_confW5!AJ8:DO16/2^4, 0)) -> 34 | AK8: =IF(im2colAll_confW5!AK8:DP16 > 0, ROUNDDOWN(im2colAll_confW5!AK8:DP16/2^4, 0), ROUNDUP(im2colAll_confW5!AK8:DP16/2^4, 0)) -> 39 | AL8: =IF(im2colAll_confW5!AL8:DQ16 > 0, ROUNDDOWN(im2colAll_confW5!AL8:DQ16/2^4, 0), ROUNDUP(im2colAll_confW5!AL8:DQ16/2^4, 0)) -> -69 | AM8: =IF(im2colAll_confW5!AM8:DR16 > 0, ROUNDDOWN(im2colAll_confW5!AM8:DR16/2^4, 0), ROUNDUP(im2colAll_confW5!AM8:DR16/2^4, 0)) -> -12 | AN8: =IF(im2colAll_confW5!AN8:DS16 > 0, ROUNDDOWN(im2colAll_confW5!AN8:DS16/2^4, 0), ROUNDUP(im2colAll_confW5!AN8:DS16/2^4, 0)) -> 34 | AO8: =IF(im2colAll_confW5!AO8:DT16 > 0, ROUNDDOWN(im2colAll_confW5!AO8:DT16/2^4, 0), ROUNDUP(im2colAll_confW5!AO8:DT16/2^4, 0)) -> -5 | AP8: =IF(im2colAll_confW5!AP8:DU16 > 0, ROUNDDOWN(im2colAll_confW5!AP8:DU16/2^4, 0), ROUNDUP(im2colAll_confW5!AP8:DU16/2^4, 0)) -> -84 | AQ8: =IF(im2colAll_confW5!AQ8:DV16 > 0, ROUNDDOWN(im2colAll_confW5!AQ8:DV16/2^4, 0), ROUNDUP(im2colAll_confW5!AQ8:DV16/2^4, 0)) -> 185 | AR8: =IF(im2colAll_confW5!AR8:DW16 > 0, ROUNDDOWN(im2colAll_confW5!AR8:DW16/2^4, 0), ROUNDUP(im2colAll_confW5!AR8:DW16/2^4, 0)) -> -8 | AS8: =IF(im2colAll_confW5!AS8:DX16 > 0, ROUNDDOWN(im2colAll_confW5!AS8:DX16/2^4, 0), ROUNDUP(im2colAll_confW5!AS8:DX16/2^4, 0)) -> -20 | AT8: =IF(im2colAll_confW5!AT8:DY16 > 0, ROUNDDOWN(im2colAll_confW5!AT8:DY16/2^4, 0), ROUNDUP(im2colAll_confW5!AT8:DY16/2^4, 0)) -> -50 | AU8: =IF(im2colAll_confW5!AU8:DZ16 > 0, ROUNDDOWN(im2colAll_confW5!AU8:DZ16/2^4, 0), ROUNDUP(im2colAll_confW5!AU8:DZ16/2^4, 0)) -> 1 | AV8: =IF(im2colAll_confW5!AV8:EA16 > 0, ROUNDDOWN(im2colAll_confW5!AV8:EA16/2^4, 0), ROUNDUP(im2colAll_confW5!AV8:EA16/2^4, 0)) -> -79 | AW8: =IF(im2colAll_confW5!AW8:EB16 > 0, ROUNDDOWN(im2colAll_confW5!AW8:EB16/2^4, 0), ROUNDUP(im2colAll_confW5!AW8:EB16/2^4, 0)) -> -91 | AX8: =IF(im2colAll_confW5!AX8:EC16 > 0, ROUNDDOWN(im2colAll_confW5!AX8:EC16/2^4, 0), ROUNDUP(im2colAll_confW5!AX8:EC16/2^4, 0)) -> -9 | AY8: =IF(im2colAll_confW5!AY8:ED16 > 0, ROUNDDOWN(im2colAll_confW5!AY8:ED16/2^4, 0), ROUNDUP(im2colAll_confW5!AY8:ED16/2^4, 0)) -> -23 | AZ8: =IF(im2colAll_confW5!AZ8:EE16 > 0, ROUNDDOWN(im2colAll_confW5!AZ8:EE16/2^4, 0), ROUNDUP(im2colAll_confW5!AZ8:EE16/2^4, 0)) -> 14 | BA8: =IF(im2colAll_confW5!BA8:EF16 > 0, ROUNDDOWN(im2colAll_confW5!BA8:EF16/2^4, 0), ROUNDUP(im2colAll_confW5!BA8:EF16/2^4, 0)) -> 11 | BB8: =IF(im2colAll_confW5!BB8:EG16 > 0, ROUNDDOWN(im2colAll_confW5!BB8:EG16/2^4, 0), ROUNDUP(im2colAll_confW5!BB8:EG16/2^4, 0)) -> -2 | BC8: =IF(im2colAll_confW5!BC8:EH16 > 0, ROUNDDOWN(im2colAll_confW5!BC8:EH16/2^4, 0), ROUNDUP(im2colAll_confW5!BC8:EH16/2^4, 0)) -> 25 | BD8: =IF(im2colAll_confW5!BD8:EI16 > 0, ROUNDDOWN(im2colAll_confW5!BD8:EI16/2^4, 0), ROUNDUP(im2colAll_confW5!BD8:EI16/2^4, 0)) -> 72 | BE8: =IF(im2colAll_confW5!BE8:EJ16 > 0, ROUNDDOWN(im2colAll_confW5!BE8:EJ16/2^4, 0), ROUNDUP(im2colAll_confW5!BE8:EJ16/2^4, 0)) -> 3 | BF8: =IF(im2colAll_confW5!BF8:EK16 > 0, ROUNDDOWN(im2colAll_confW5!BF8:EK16/2^4, 0), ROUNDUP(im2colAll_confW5!BF8:EK16/2^4, 0)) -> 31 | BG8: =IF(im2colAll_confW5!BG8:EL16 > 0, ROUNDDOWN(im2colAll_confW5!BG8:EL16/2^4, 0), ROUNDUP(im2colAll_confW5!BG8:EL16/2^4, 0)) -> -80 | BH8: =IF(im2colAll_confW5!BH8:EM16 > 0, ROUNDDOWN(im2colAll_confW5!BH8:EM16/2^4, 0), ROUNDUP(im2colAll_confW5!BH8:EM16/2^4, 0)) -> -22 | BI8: =IF(im2colAll_confW5!BI8:EN16 > 0, ROUNDDOWN(im2colAll_confW5!BI8:EN16/2^4, 0), ROUNDUP(im2colAll_confW5!BI8:EN16/2^4, 0)) -> 6 | BJ8: =IF(im2colAll_confW5!BJ8:EO16 > 0, ROUNDDOWN(im2colAll_confW5!BJ8:EO16/2^4, 0), ROUNDUP(im2colAll_confW5!BJ8:EO16/2^4, 0)) -> 26 | BK8: =IF(im2colAll_confW5!BK8:EP16 > 0, ROUNDDOWN(im2colAll_confW5!BK8:EP16/2^4, 0), ROUNDUP(im2colAll_confW5!BK8:EP16/2^4, 0)) -> -85 | BL8: =IF(im2colAll_confW5!BL8:EQ16 > 0, ROUNDDOWN(im2colAll_confW5!BL8:EQ16/2^4, 0), ROUNDUP(im2colAll_confW5!BL8:EQ16/2^4, 0)) -> 91 | BM8: =IF(im2colAll_confW5!BM8:ER16 > 0, ROUNDDOWN(im2colAll_confW5!BM8:ER16/2^4, 0), ROUNDUP(im2colAll_confW5!BM8:ER16/2^4, 0)) -> -1 | BN8: =IF(im2colAll_confW5!BN8:ES16 > 0, ROUNDDOWN(im2colAll_confW5!BN8:ES16/2^4, 0), ROUNDUP(im2colAll_confW5!BN8:ES16/2^4, 0)) -> 33 | BO8: =IF(im2colAll_confW5!BO8:ET16 > 0, ROUNDDOWN(im2colAll_confW5!BO8:ET16/2^4, 0), ROUNDUP(im2colAll_confW5!BO8:ET16/2^4, 0)) -> -3 | BP8: =IF(im2colAll_confW5!BP8:EU16 > 0, ROUNDDOWN(im2colAll_confW5!BP8:EU16/2^4, 0), ROUNDUP(im2colAll_confW5!BP8:EU16/2^4, 0)) -> -64 | BQ8: =IF(im2colAll_confW5!BQ8:EV16 > 0, ROUNDDOWN(im2colAll_confW5!BQ8:EV16/2^4, 0), ROUNDUP(im2colAll_confW5!BQ8:EV16/2^4, 0)) -> -79 | BR8: =IF(im2colAll_confW5!BR8:EW16 > 0, ROUNDDOWN(im2colAll_confW5!BR8:EW16/2^4, 0), ROUNDUP(im2colAll_confW5!BR8:EW16/2^4, 0)) -> -49 | BS8: =IF(im2colAll_confW5!BS8:EX16 > 0, ROUNDDOWN(im2colAll_confW5!BS8:EX16/2^4, 0), ROUNDUP(im2colAll_confW5!BS8:EX16/2^4, 0)) -> 4 | BT8: =IF(im2colAll_confW5!BT8:EY16 > 0, ROUNDDOWN(im2colAll_confW5!BT8:EY16/2^4, 0), ROUNDUP(im2colAll_confW5!BT8:EY16/2^4, 0)) -> -32 | BU8: =IF(im2colAll_confW5!BU8:EZ16 > 0, ROUNDDOWN(im2colAll_confW5!BU8:EZ16/2^4, 0), ROUNDUP(im2colAll_confW5!BU8:EZ16/2^4, 0)) -> -23 | BV8: =IF(im2colAll_confW5!BV8:FA16 > 0, ROUNDDOWN(im2colAll_confW5!BV8:FA16/2^4, 0), ROUNDUP(im2colAll_confW5!BV8:FA16/2^4, 0)) -> 39 | BW8: =IF(im2colAll_confW5!BW8:FB16 > 0, ROUNDDOWN(im2colAll_confW5!BW8:FB16/2^4, 0), ROUNDUP(im2colAll_confW5!BW8:FB16/2^4, 0)) -> -36 | BX8: =IF(im2colAll_confW5!BX8:FC16 > 0, ROUNDDOWN(im2colAll_confW5!BX8:FC16/2^4, 0), ROUNDUP(im2colAll_confW5!BX8:FC16/2^4, 0)) -> 31 | BY8: =IF(im2colAll_confW5!BY8:FD16 > 0, ROUNDDOWN(im2colAll_confW5!BY8:FD16/2^4, 0), ROUNDUP(im2colAll_confW5!BY8:FD16/2^4, 0)) -> 78 | BZ8: =IF(im2colAll_confW5!BZ8:FE16 > 0, ROUNDDOWN(im2colAll_confW5!BZ8:FE16/2^4, 0), ROUNDUP(im2colAll_confW5!BZ8:FE16/2^4, 0)) -> 4 | CA8: =IF(im2colAll_confW5!CA8:FF16 > 0, ROUNDDOWN(im2colAll_confW5!CA8:FF16/2^4, 0), ROUNDUP(im2colAll_confW5!CA8:FF16/2^4, 0)) -> 29 | CB8: =IF(im2colAll_confW5!CB8:FG16 > 0, ROUNDDOWN(im2colAll_confW5!CB8:FG16/2^4, 0), ROUNDUP(im2colAll_confW5!CB8:FG16/2^4, 0)) -> -55 | CC8: =IF(im2colAll_confW5!CC8:FH16 > 0, ROUNDDOWN(im2colAll_confW5!CC8:FH16/2^4, 0), ROUNDUP(im2colAll_confW5!CC8:FH16/2^4, 0)) -> -8 | CD8: =IF(im2colAll_confW5!CD8:FI16 > 0, ROUNDDOWN(im2colAll_confW5!CD8:FI16/2^4, 0), ROUNDUP(im2colAll_confW5!CD8:FI16/2^4, 0)) -> 17 | CE8: =IF(im2colAll_confW5!CE8:FJ16 > 0, ROUNDDOWN(im2colAll_confW5!CE8:FJ16/2^4, 0), ROUNDUP(im2colAll_confW5!CE8:FJ16/2^4, 0)) -> -14 | CF8: =IF(im2colAll_confW5!CF8:FK16 > 0, ROUNDDOWN(im2colAll_confW5!CF8:FK16/2^4, 0), ROUNDUP(im2colAll_confW5!CF8:FK16/2^4, 0)) -> -86
A9: =IF(im2colAll_confW5!A9:CF17 > 0, ROUNDDOWN(im2colAll_confW5!A9:CF17/2^4, 0), ROUNDUP(im2colAll_confW5!A9:CF17/2^4, 0)) -> 221 | B9: =IF(im2colAll_confW5!B9:CG17 > 0, ROUNDDOWN(im2colAll_confW5!B9:CG17/2^4, 0), ROUNDUP(im2colAll_confW5!B9:CG17/2^4, 0)) -> -1 | C9: =IF(im2colAll_confW5!C9:CH17 > 0, ROUNDDOWN(im2colAll_confW5!C9:CH17/2^4, 0), ROUNDUP(im2colAll_confW5!C9:CH17/2^4, 0)) -> 9 | D9: =IF(im2colAll_confW5!D9:CI17 > 0, ROUNDDOWN(im2colAll_confW5!D9:CI17/2^4, 0), ROUNDUP(im2colAll_confW5!D9:CI17/2^4, 0)) -> -38 | E9: =IF(im2colAll_confW5!E9:CJ17 > 0, ROUNDDOWN(im2colAll_confW5!E9:CJ17/2^4, 0), ROUNDUP(im2colAll_confW5!E9:CJ17/2^4, 0)) -> -20 | F9: =IF(im2colAll_confW5!F9:CK17 > 0, ROUNDDOWN(im2colAll_confW5!F9:CK17/2^4, 0), ROUNDUP(im2colAll_confW5!F9:CK17/2^4, 0)) -> -54 | G9: =IF(im2colAll_confW5!G9:CL17 > 0, ROUNDDOWN(im2colAll_confW5!G9:CL17/2^4, 0), ROUNDUP(im2colAll_confW5!G9:CL17/2^4, 0)) -> -51 | H9: =IF(im2colAll_confW5!H9:CM17 > 0, ROUNDDOWN(im2colAll_confW5!H9:CM17/2^4, 0), ROUNDUP(im2colAll_confW5!H9:CM17/2^4, 0)) -> -2 | I9: =IF(im2colAll_confW5!I9:CN17 > 0, ROUNDDOWN(im2colAll_confW5!I9:CN17/2^4, 0), ROUNDUP(im2colAll_confW5!I9:CN17/2^4, 0)) -> -30 | J9: =IF(im2colAll_confW5!J9:CO17 > 0, ROUNDDOWN(im2colAll_confW5!J9:CO17/2^4, 0), ROUNDUP(im2colAll_confW5!J9:CO17/2^4, 0)) -> 0 | K9: =IF(im2colAll_confW5!K9:CP17 > 0, ROUNDDOWN(im2colAll_confW5!K9:CP17/2^4, 0), ROUNDUP(im2colAll_confW5!K9:CP17/2^4, 0)) -> 13 | L9: =IF(im2colAll_confW5!L9:CQ17 > 0, ROUNDDOWN(im2colAll_confW5!L9:CQ17/2^4, 0), ROUNDUP(im2colAll_confW5!L9:CQ17/2^4, 0)) -> -4 | M9: =IF(im2colAll_confW5!M9:CR17 > 0, ROUNDDOWN(im2colAll_confW5!M9:CR17/2^4, 0), ROUNDUP(im2colAll_confW5!M9:CR17/2^4, 0)) -> 30 | N9: =IF(im2colAll_confW5!N9:CS17 > 0, ROUNDDOWN(im2colAll_confW5!N9:CS17/2^4, 0), ROUNDUP(im2colAll_confW5!N9:CS17/2^4, 0)) -> 42 | O9: =IF(im2colAll_confW5!O9:CT17 > 0, ROUNDDOWN(im2colAll_confW5!O9:CT17/2^4, 0), ROUNDUP(im2colAll_confW5!O9:CT17/2^4, 0)) -> -8 | P9: =IF(im2colAll_confW5!P9:CU17 > 0, ROUNDDOWN(im2colAll_confW5!P9:CU17/2^4, 0), ROUNDUP(im2colAll_confW5!P9:CU17/2^4, 0)) -> 16 | Q9: =IF(im2colAll_confW5!Q9:CV17 > 0, ROUNDDOWN(im2colAll_confW5!Q9:CV17/2^4, 0), ROUNDUP(im2colAll_confW5!Q9:CV17/2^4, 0)) -> -57 | R9: =IF(im2colAll_confW5!R9:CW17 > 0, ROUNDDOWN(im2colAll_confW5!R9:CW17/2^4, 0), ROUNDUP(im2colAll_confW5!R9:CW17/2^4, 0)) -> -15 | S9: =IF(im2colAll_confW5!S9:CX17 > 0, ROUNDDOWN(im2colAll_confW5!S9:CX17/2^4, 0), ROUNDUP(im2colAll_confW5!S9:CX17/2^4, 0)) -> 19 | T9: =IF(im2colAll_confW5!T9:CY17 > 0, ROUNDDOWN(im2colAll_confW5!T9:CY17/2^4, 0), ROUNDUP(im2colAll_confW5!T9:CY17/2^4, 0)) -> -18 | U9: =IF(im2colAll_confW5!U9:CZ17 > 0, ROUNDDOWN(im2colAll_confW5!U9:CZ17/2^4, 0), ROUNDUP(im2colAll_confW5!U9:CZ17/2^4, 0)) -> -75 | V9: =IF(im2colAll_confW5!V9:DA17 > 0, ROUNDDOWN(im2colAll_confW5!V9:DA17/2^4, 0), ROUNDUP(im2colAll_confW5!V9:DA17/2^4, 0)) -> 193 | W9: =IF(im2colAll_confW5!W9:DB17 > 0, ROUNDDOWN(im2colAll_confW5!W9:DB17/2^4, 0), ROUNDUP(im2colAll_confW5!W9:DB17/2^4, 0)) -> -12 | X9: =IF(im2colAll_confW5!X9:DC17 > 0, ROUNDDOWN(im2colAll_confW5!X9:DC17/2^4, 0), ROUNDUP(im2colAll_confW5!X9:DC17/2^4, 0)) -> 6 | Y9: =IF(im2colAll_confW5!Y9:DD17 > 0, ROUNDDOWN(im2colAll_confW5!Y9:DD17/2^4, 0), ROUNDUP(im2colAll_confW5!Y9:DD17/2^4, 0)) -> -33 | Z9: =IF(im2colAll_confW5!Z9:DE17 > 0, ROUNDDOWN(im2colAll_confW5!Z9:DE17/2^4, 0), ROUNDUP(im2colAll_confW5!Z9:DE17/2^4, 0)) -> -10 | AA9: =IF(im2colAll_confW5!AA9:DF17 > 0, ROUNDDOWN(im2colAll_confW5!AA9:DF17/2^4, 0), ROUNDUP(im2colAll_confW5!AA9:DF17/2^4, 0)) -> -83 | AB9: =IF(im2colAll_confW5!AB9:DG17 > 0, ROUNDDOWN(im2colAll_confW5!AB9:DG17/2^4, 0), ROUNDUP(im2colAll_confW5!AB9:DG17/2^4, 0)) -> -55 | AC9: =IF(im2colAll_confW5!AC9:DH17 > 0, ROUNDDOWN(im2colAll_confW5!AC9:DH17/2^4, 0), ROUNDUP(im2colAll_confW5!AC9:DH17/2^4, 0)) -> 25 | AD9: =IF(im2colAll_confW5!AD9:DI17 > 0, ROUNDDOWN(im2colAll_confW5!AD9:DI17/2^4, 0), ROUNDUP(im2colAll_confW5!AD9:DI17/2^4, 0)) -> -13 | AE9: =IF(im2colAll_confW5!AE9:DJ17 > 0, ROUNDDOWN(im2colAll_confW5!AE9:DJ17/2^4, 0), ROUNDUP(im2colAll_confW5!AE9:DJ17/2^4, 0)) -> -4 | AF9: =IF(im2colAll_confW5!AF9:DK17 > 0, ROUNDDOWN(im2colAll_confW5!AF9:DK17/2^4, 0), ROUNDUP(im2colAll_confW5!AF9:DK17/2^4, 0)) -> 23 | AG9: =IF(im2colAll_confW5!AG9:DL17 > 0, ROUNDDOWN(im2colAll_confW5!AG9:DL17/2^4, 0), ROUNDUP(im2colAll_confW5!AG9:DL17/2^4, 0)) -> -8 | AH9: =IF(im2colAll_confW5!AH9:DM17 > 0, ROUNDDOWN(im2colAll_confW5!AH9:DM17/2^4, 0), ROUNDUP(im2colAll_confW5!AH9:DM17/2^4, 0)) -> 39 | AI9: =IF(im2colAll_confW5!AI9:DN17 > 0, ROUNDDOWN(im2colAll_confW5!AI9:DN17/2^4, 0), ROUNDUP(im2colAll_confW5!AI9:DN17/2^4, 0)) -> 52 | AJ9: =IF(im2colAll_confW5!AJ9:DO17 > 0, ROUNDDOWN(im2colAll_confW5!AJ9:DO17/2^4, 0), ROUNDUP(im2colAll_confW5!AJ9:DO17/2^4, 0)) -> 9 | AK9: =IF(im2colAll_confW5!AK9:DP17 > 0, ROUNDDOWN(im2colAll_confW5!AK9:DP17/2^4, 0), ROUNDUP(im2colAll_confW5!AK9:DP17/2^4, 0)) -> 3 | AL9: =IF(im2colAll_confW5!AL9:DQ17 > 0, ROUNDDOWN(im2colAll_confW5!AL9:DQ17/2^4, 0), ROUNDUP(im2colAll_confW5!AL9:DQ17/2^4, 0)) -> -62 | AM9: =IF(im2colAll_confW5!AM9:DR17 > 0, ROUNDDOWN(im2colAll_confW5!AM9:DR17/2^4, 0), ROUNDUP(im2colAll_confW5!AM9:DR17/2^4, 0)) -> -19 | AN9: =IF(im2colAll_confW5!AN9:DS17 > 0, ROUNDDOWN(im2colAll_confW5!AN9:DS17/2^4, 0), ROUNDUP(im2colAll_confW5!AN9:DS17/2^4, 0)) -> 28 | AO9: =IF(im2colAll_confW5!AO9:DT17 > 0, ROUNDDOWN(im2colAll_confW5!AO9:DT17/2^4, 0), ROUNDUP(im2colAll_confW5!AO9:DT17/2^4, 0)) -> 5 | AP9: =IF(im2colAll_confW5!AP9:DU17 > 0, ROUNDDOWN(im2colAll_confW5!AP9:DU17/2^4, 0), ROUNDUP(im2colAll_confW5!AP9:DU17/2^4, 0)) -> -80 | AQ9: =IF(im2colAll_confW5!AQ9:DV17 > 0, ROUNDDOWN(im2colAll_confW5!AQ9:DV17/2^4, 0), ROUNDUP(im2colAll_confW5!AQ9:DV17/2^4, 0)) -> 166 | AR9: =IF(im2colAll_confW5!AR9:DW17 > 0, ROUNDDOWN(im2colAll_confW5!AR9:DW17/2^4, 0), ROUNDUP(im2colAll_confW5!AR9:DW17/2^4, 0)) -> -10 | AS9: =IF(im2colAll_confW5!AS9:DX17 > 0, ROUNDDOWN(im2colAll_confW5!AS9:DX17/2^4, 0), ROUNDUP(im2colAll_confW5!AS9:DX17/2^4, 0)) -> -13 | AT9: =IF(im2colAll_confW5!AT9:DY17 > 0, ROUNDDOWN(im2colAll_confW5!AT9:DY17/2^4, 0), ROUNDUP(im2colAll_confW5!AT9:DY17/2^4, 0)) -> -30 | AU9: =IF(im2colAll_confW5!AU9:DZ17 > 0, ROUNDDOWN(im2colAll_confW5!AU9:DZ17/2^4, 0), ROUNDUP(im2colAll_confW5!AU9:DZ17/2^4, 0)) -> -15 | AV9: =IF(im2colAll_confW5!AV9:EA17 > 0, ROUNDDOWN(im2colAll_confW5!AV9:EA17/2^4, 0), ROUNDUP(im2colAll_confW5!AV9:EA17/2^4, 0)) -> -76 | AW9: =IF(im2colAll_confW5!AW9:EB17 > 0, ROUNDDOWN(im2colAll_confW5!AW9:EB17/2^4, 0), ROUNDUP(im2colAll_confW5!AW9:EB17/2^4, 0)) -> -48 | AX9: =IF(im2colAll_confW5!AX9:EC17 > 0, ROUNDDOWN(im2colAll_confW5!AX9:EC17/2^4, 0), ROUNDUP(im2colAll_confW5!AX9:EC17/2^4, 0)) -> -3 | AY9: =IF(im2colAll_confW5!AY9:ED17 > 0, ROUNDDOWN(im2colAll_confW5!AY9:ED17/2^4, 0), ROUNDUP(im2colAll_confW5!AY9:ED17/2^4, 0)) -> -17 | AZ9: =IF(im2colAll_confW5!AZ9:EE17 > 0, ROUNDDOWN(im2colAll_confW5!AZ9:EE17/2^4, 0), ROUNDUP(im2colAll_confW5!AZ9:EE17/2^4, 0)) -> 2 | BA9: =IF(im2colAll_confW5!BA9:EF17 > 0, ROUNDDOWN(im2colAll_confW5!BA9:EF17/2^4, 0), ROUNDUP(im2colAll_confW5!BA9:EF17/2^4, 0)) -> 15 | BB9: =IF(im2colAll_confW5!BB9:EG17 > 0, ROUNDDOWN(im2colAll_confW5!BB9:EG17/2^4, 0), ROUNDUP(im2colAll_confW5!BB9:EG17/2^4, 0)) -> -17 | BC9: =IF(im2colAll_confW5!BC9:EH17 > 0, ROUNDDOWN(im2colAll_confW5!BC9:EH17/2^4, 0), ROUNDUP(im2colAll_confW5!BC9:EH17/2^4, 0)) -> 7 | BD9: =IF(im2colAll_confW5!BD9:EI17 > 0, ROUNDDOWN(im2colAll_confW5!BD9:EI17/2^4, 0), ROUNDUP(im2colAll_confW5!BD9:EI17/2^4, 0)) -> 54 | BE9: =IF(im2colAll_confW5!BE9:EJ17 > 0, ROUNDDOWN(im2colAll_confW5!BE9:EJ17/2^4, 0), ROUNDUP(im2colAll_confW5!BE9:EJ17/2^4, 0)) -> -1 | BF9: =IF(im2colAll_confW5!BF9:EK17 > 0, ROUNDDOWN(im2colAll_confW5!BF9:EK17/2^4, 0), ROUNDUP(im2colAll_confW5!BF9:EK17/2^4, 0)) -> 5 | BG9: =IF(im2colAll_confW5!BG9:EL17 > 0, ROUNDDOWN(im2colAll_confW5!BG9:EL17/2^4, 0), ROUNDUP(im2colAll_confW5!BG9:EL17/2^4, 0)) -> -45 | BH9: =IF(im2colAll_confW5!BH9:EM17 > 0, ROUNDDOWN(im2colAll_confW5!BH9:EM17/2^4, 0), ROUNDUP(im2colAll_confW5!BH9:EM17/2^4, 0)) -> -13 | BI9: =IF(im2colAll_confW5!BI9:EN17 > 0, ROUNDDOWN(im2colAll_confW5!BI9:EN17/2^4, 0), ROUNDUP(im2colAll_confW5!BI9:EN17/2^4, 0)) -> 8 | BJ9: =IF(im2colAll_confW5!BJ9:EO17 > 0, ROUNDDOWN(im2colAll_confW5!BJ9:EO17/2^4, 0), ROUNDUP(im2colAll_confW5!BJ9:EO17/2^4, 0)) -> 6 | BK9: =IF(im2colAll_confW5!BK9:EP17 > 0, ROUNDDOWN(im2colAll_confW5!BK9:EP17/2^4, 0), ROUNDUP(im2colAll_confW5!BK9:EP17/2^4, 0)) -> -83 | BL9: =IF(im2colAll_confW5!BL9:EQ17 > 0, ROUNDDOWN(im2colAll_confW5!BL9:EQ17/2^4, 0), ROUNDUP(im2colAll_confW5!BL9:EQ17/2^4, 0)) -> 195 | BM9: =IF(im2colAll_confW5!BM9:ER17 > 0, ROUNDDOWN(im2colAll_confW5!BM9:ER17/2^4, 0), ROUNDUP(im2colAll_confW5!BM9:ER17/2^4, 0)) -> 3 | BN9: =IF(im2colAll_confW5!BN9:ES17 > 0, ROUNDDOWN(im2colAll_confW5!BN9:ES17/2^4, 0), ROUNDUP(im2colAll_confW5!BN9:ES17/2^4, 0)) -> 3 | BO9: =IF(im2colAll_confW5!BO9:ET17 > 0, ROUNDDOWN(im2colAll_confW5!BO9:ET17/2^4, 0), ROUNDUP(im2colAll_confW5!BO9:ET17/2^4, 0)) -> -29 | BP9: =IF(im2colAll_confW5!BP9:EU17 > 0, ROUNDDOWN(im2colAll_confW5!BP9:EU17/2^4, 0), ROUNDUP(im2colAll_confW5!BP9:EU17/2^4, 0)) -> -37 | BQ9: =IF(im2colAll_confW5!BQ9:EV17 > 0, ROUNDDOWN(im2colAll_confW5!BQ9:EV17/2^4, 0), ROUNDUP(im2colAll_confW5!BQ9:EV17/2^4, 0)) -> -57 | BR9: =IF(im2colAll_confW5!BR9:EW17 > 0, ROUNDDOWN(im2colAll_confW5!BR9:EW17/2^4, 0), ROUNDUP(im2colAll_confW5!BR9:EW17/2^4, 0)) -> -43 | BS9: =IF(im2colAll_confW5!BS9:EX17 > 0, ROUNDDOWN(im2colAll_confW5!BS9:EX17/2^4, 0), ROUNDUP(im2colAll_confW5!BS9:EX17/2^4, 0)) -> -5 | BT9: =IF(im2colAll_confW5!BT9:EY17 > 0, ROUNDDOWN(im2colAll_confW5!BT9:EY17/2^4, 0), ROUNDUP(im2colAll_confW5!BT9:EY17/2^4, 0)) -> -44 | BU9: =IF(im2colAll_confW5!BU9:EZ17 > 0, ROUNDDOWN(im2colAll_confW5!BU9:EZ17/2^4, 0), ROUNDUP(im2colAll_confW5!BU9:EZ17/2^4, 0)) -> 4 | BV9: =IF(im2colAll_confW5!BV9:FA17 > 0, ROUNDDOWN(im2colAll_confW5!BV9:FA17/2^4, 0), ROUNDUP(im2colAll_confW5!BV9:FA17/2^4, 0)) -> 52 | BW9: =IF(im2colAll_confW5!BW9:FB17 > 0, ROUNDDOWN(im2colAll_confW5!BW9:FB17/2^4, 0), ROUNDUP(im2colAll_confW5!BW9:FB17/2^4, 0)) -> -29 | BX9: =IF(im2colAll_confW5!BX9:FC17 > 0, ROUNDDOWN(im2colAll_confW5!BX9:FC17/2^4, 0), ROUNDUP(im2colAll_confW5!BX9:FC17/2^4, 0)) -> 12 | BY9: =IF(im2colAll_confW5!BY9:FD17 > 0, ROUNDDOWN(im2colAll_confW5!BY9:FD17/2^4, 0), ROUNDUP(im2colAll_confW5!BY9:FD17/2^4, 0)) -> 53 | BZ9: =IF(im2colAll_confW5!BZ9:FE17 > 0, ROUNDDOWN(im2colAll_confW5!BZ9:FE17/2^4, 0), ROUNDUP(im2colAll_confW5!BZ9:FE17/2^4, 0)) -> -1 | CA9: =IF(im2colAll_confW5!CA9:FF17 > 0, ROUNDDOWN(im2colAll_confW5!CA9:FF17/2^4, 0), ROUNDUP(im2colAll_confW5!CA9:FF17/2^4, 0)) -> 27 | CB9: =IF(im2colAll_confW5!CB9:FG17 > 0, ROUNDDOWN(im2colAll_confW5!CB9:FG17/2^4, 0), ROUNDUP(im2colAll_confW5!CB9:FG17/2^4, 0)) -> -20 | CC9: =IF(im2colAll_confW5!CC9:FH17 > 0, ROUNDDOWN(im2colAll_confW5!CC9:FH17/2^4, 0), ROUNDUP(im2colAll_confW5!CC9:FH17/2^4, 0)) -> -19 | CD9: =IF(im2colAll_confW5!CD9:FI17 > 0, ROUNDDOWN(im2colAll_confW5!CD9:FI17/2^4, 0), ROUNDUP(im2colAll_confW5!CD9:FI17/2^4, 0)) -> 26 | CE9: =IF(im2colAll_confW5!CE9:FJ17 > 0, ROUNDDOWN(im2colAll_confW5!CE9:FJ17/2^4, 0), ROUNDUP(im2colAll_confW5!CE9:FJ17/2^4, 0)) -> 3 | CF9: =IF(im2colAll_confW5!CF9:FK17 > 0, ROUNDDOWN(im2colAll_confW5!CF9:FK17/2^4, 0), ROUNDUP(im2colAll_confW5!CF9:FK17/2^4, 0)) -> -66

Sheet outCh
A1: =OFFSET(INDIRECT(ADDRESS(1,1,,,"truncate")), 0, (ROW()-1-0)*21+(COLUMN()-1)) -> 207 | B1: -12 | C1: -33 | D1: -16 | E1: -1 | F1: -26 | G1: -8 | H1: 10 | I1: -72 | J1: 26 | K1: =OFFSET(INDIRECT(ADDRESS(1,1,,,"truncate")), 0, (ROW()-1-0)*21+(COLUMN()-1)) -> -10 | L1: -12 | M1: -32 | N1: -13 | O1: -21 | P1: 76 | Q1: 4 | R1: -50 | S1: 11 | T1: 10 | U1: -32
A2: 177 | B2: -23 | C2: -25 | D2: -38 | E2: -8 | F2: -33 | G2: -5 | H2: 16 | I2: -72 | J2: 0 | K2: -19 | L2: -2 | M2: -36 | N2: 8 | O2: -7 | P2: 79 | Q2: -29 | R2: -55 | S2: 27 | T2: -11 | U2: -31
A3: 185 | B3: -34 | C3: -36 | D3: -41 | E3: 11 | F3: -54 | G3: -10 | H3: 30 | I3: -67 | J3: -1 | K3: -13 | L3: -10 | M3: -9 | N3: -7 | O3: -3 | P3: 79 | Q3: -27 | R3: -67 | S3: 36 | T3: -7 | U3: -26
A4: 168 | B4: -24 | C4: -3 | D4: -33 | E4: -7 | F4: -32 | G4: -8 | H4: -6 | I4: -47 | J4: -10 | K4: -11 | L4: -23 | M4: -12 | N4: 7 | O4: -14 | P4: 65 | Q4: -14 | R4: -58 | S4: 8 | T4: -1 | U4: -28
A5: =OFFSET(INDIRECT(ADDRESS(2,1,,,"truncate")), 0, (ROW()-1-4)*21+(COLUMN()-1)) -> 244 | B5: -36 | C5: -33 | D5: -55 | E5: -15 | F5: -43 | G5: -37 | H5: 48 | I5: -97 | J5: 37 | K5: =OFFSET(INDIRECT(ADDRESS(2,1,,,"truncate")), 0, (ROW()-1-4)*21+(COLUMN()-1)) -> 1 | L5: -25 | M5: -33 | N5: -2 | O5: -10 | P5: 84 | Q5: -24 | R5: -56 | S5: 14 | T5: -7 | U5: -13
A6: 257 | B6: -6 | C6: -43 | D6: -61 | E6: -27 | F6: -28 | G6: -19 | H6: 17 | I6: -95 | J6: 22 | K6: -32 | L6: 13 | M6: -33 | N6: 26 | O6: 21 | P6: 112 | Q6: -45 | R6: -44 | S6: 49 | T6: -9 | U6: -31
A7: 279 | B7: -30 | C7: -62 | D7: -55 | E7: 5 | F7: -58 | G7: -13 | H7: 35 | I7: -84 | J7: 27 | K7: -9 | L7: -8 | M7: -16 | N7: 4 | O7: 2 | P7: 121 | Q7: -58 | R7: -82 | S7: 51 | T7: -6 | U7: -11
A8: 164 | B8: -50 | C8: -14 | D8: -60 | E8: -40 | F8: -56 | G8: -25 | H8: 5 | I8: -60 | J8: 4 | K8: 2 | L8: -51 | M8: -5 | N8: 0 | O8: -17 | P8: 99 | Q8: -61 | R8: -69 | S8: 19 | T8: 2 | U8: -44
A9: =OFFSET(INDIRECT(ADDRESS(3,1,,,"truncate")), 0, (ROW()-1-8)*21+(COLUMN()-1)) -> 249 | B9: 3 | C9: -17 | D9: -54 | E9: 7 | F9: -52 | G9: -26 | H9: 35 | I9: -91 | J9: 39 | K9: =OFFSET(INDIRECT(ADDRESS(3,1,,,"truncate")), 0, (ROW()-1-8)*21+(COLUMN()-1)) -> -2 | L9: 2 | M9: -30 | N9: 1 | O9: -22 | P9: 57 | Q9: -12 | R9: -47 | S9: 19 | T9: 0 | U9: -26
A10: 220 | B10: 6 | C10: -23 | D10: -57 | E10: 1 | F10: -49 | G10: -17 | H10: 3 | I10: -78 | J10: 16 | K10: -36 | L10: 25 | M10: -12 | N10: 10 | O10: -6 | P10: 72 | Q10: -25 | R10: -48 | S10: 37 | T10: 1 | U10: -48
A11: 217 | B11: -11 | C11: -36 | D11: -42 | E11: -3 | F11: -30 | G11: -24 | H11: 18 | I11: -71 | J11: 13 | K11: -7 | L11: 20 | M11: -17 | N11: -3 | O11: 2 | P11: 69 | Q11: -36 | R11: -50 | S11: 20 | T11: -15 | U11: 2
A12: 188 | B12: -35 | C12: -25 | D12: -49 | E12: -22 | F12: -61 | G12: -20 | H12: 16 | I12: -67 | J12: 5 | K12: -4 | L12: -23 | M12: -26 | N12: -4 | O12: -30 | P12: 78 | Q12: -27 | R12: -46 | S12: 20 | T12: -1 | U12: -38
A13: =OFFSET(INDIRECT(ADDRESS(4,1,,,"truncate")), 0, (ROW()-1-12)*21+(COLUMN()-1)) -> 154 | B13: -1 | C13: 20 | D13: -38 | E13: -6 | F13: -69 | G13: -80 | H13: 15 | I13: -58 | J13: 7 | K13: =OFFSET(INDIRECT(ADDRESS(4,1,,,"truncate")), 0, (ROW()-1-12)*21+(COLUMN()-1)) -> 9 | L13: -2 | M13: 11 | N13: 44 | O13: 1 | P13: 84 | Q13: -36 | R13: -51 | S13: 14 | T13: 10 | U13: -76
A14: 142 | B14: -15 | C14: 1 | D14: -53 | E14: -7 | F14: -86 | G14: -74 | H14: 32 | I14: -59 | J14: -13 | K14: -7 | L14: -1 | M14: -8 | N14: 49 | O14: 9 | P14: 78 | Q14: -59 | R14: -49 | S14: 3 | T14: 4 | U14: -87
A15: 116 | B15: -11 | C15: 13 | D15: -42 | E15: 4 | F15: -52 | G15: -56 | H15: 32 | I15: -55 | J15: -19 | K15: 6 | L15: -7 | M15: 11 | N15: 43 | O15: -7 | P15: 59 | Q15: -71 | R15: -47 | S15: 17 | T15: -10 | U15: -72
A16: 173 | B16: -24 | C16: 28 | D16: -21 | E16: -28 | F16: -66 | G16: -59 | H16: 2 | I16: -60 | J16: 10 | K16: -4 | L16: -3 | M16: -13 | N16: 51 | O16: 8 | P16: 91 | Q16: -17 | R16: -18 | S16: 24 | T16: -20 | U16: -68
A17: =OFFSET(INDIRECT(ADDRESS(5,1,,,"truncate")), 0, (ROW()-1-16)*21+(COLUMN()-1)) -> 91 | B17: -27 | C17: 43 | D17: -56 | E17: -31 | F17: -97 | G17: -95 | H17: 65 | I17: -49 | J17: 10 | K17: =OFFSET(INDIRECT(ADDRESS(5,1,,,"truncate")), 0, (ROW()-1-16)*21+(COLUMN()-1)) -> 29 | L17: -28 | M17: 38 | N17: 111 | O17: 45 | P17: 71 | Q17: -113 | R17: -45 | S17: 39 | T17: 4 | U17: -104
A18: 120 | B18: -3 | C18: 24 | D18: -79 | E18: -31 | F18: -108 | G18: -98 | H18: 56 | I18: -67 | J18: 20 | K18: 15 | L18: -18 | M18: 40 | N18: 116 | O18: 50 | P18: 97 | Q18: -111 | R18: -39 | S18: 54 | T18: 5 | U18: -125
A19: 123 | B19: -3 | C19: -16 | D19: -62 | E19: -11 | F19: -73 | G19: -82 | H19: 44 | I19: -55 | J19: 13 | K19: 20 | L19: -22 | M19: 41 | N19: 107 | O19: 23 | P19: 82 | Q19: -119 | R19: -54 | S19: 39 | T19: 15 | U19: -102
A20: 117 | B20: -34 | C20: 43 | D20: -43 | E20: -89 | F20: -104 | G20: -86 | H20: 20 | I20: -65 | J20: 7 | K20: 24 | L20: -47 | M20: 23 | N20: 75 | O20: 22 | P20: 90 | Q20: -95 | R20: -46 | S20: 39 | T20: -26 | U20: -111
A21: =OFFSET(INDIRECT(ADDRESS(6,1,,,"truncate")), 0, (ROW()-1-20)*21+(COLUMN()-1)) -> 193 | B21: 7 | C21: 31 | D21: -42 | E21: -20 | F21: -74 | G21: -65 | H21: 29 | I21: -54 | J21: 17 | K21: =OFFSET(INDIRECT(ADDRESS(6,1,,,"truncate")), 0, (ROW()-1-20)*21+(COLUMN()-1)) -> 13 | L21: 1 | M21: 17 | N21: 75 | O21: 6 | P21: 63 | Q21: -82 | R21: -19 | S21: 48 | T21: -17 | U21: -105
A22: 175 | B22: 7 | C22: 16 | D22: -62 | E22: -12 | F22: -111 | G22: -75 | H22: 53 | I22: -69 | J22: 3 | K22: 9 | L22: 14 | M22: 32 | N22: 65 | O22: 12 | P22: 58 | Q22: -86 | R22: -52 | S22: 60 | T22: 10 | U22: -119
A23: 105 | B23: 9 | C23: -7 | D23: -61 | E23: -22 | F23: -56 | G23: -62 | H23: 34 | I23: -45 | J23: 16 | K23: 23 | L23: -18 | M23: 24 | N23: 72 | O23: 26 | P23: 29 | Q23: -85 | R23: -24 | S23: 22 | T23: -9 | U23: -101
A24: 217 | B24: -20 | C24: -5 | D24: -62 | E24: -49 | F24: -72 | G24: -85 | H24: 0 | I24: -74 | J24: 25 | K24: 30 | L24: -9 | M24: -7 | N24: 41 | O24: 0 | P24: 79 | Q24: -49 | R24: -37 | S24: 26 | T24: -11 | U24: -71
A25: =OFFSET(INDIRECT(ADDRESS(7,1,,,"truncate")), 0, (ROW()-1-24)*21+(COLUMN()-1)) -> 176 | B25: -13 | C25: 36 | D25: -19 | E25: 0 | F25: -51 | G25: -58 | H25: -2 | I25: -12 | J25: -2 | K25: =OFFSET(INDIRECT(ADDRESS(7,1,,,"truncate")), 0, (ROW()-1-24)*21+(COLUMN()-1)) -> 22 | L25: -15 | M25: 26 | N25: 38 | O25: -7 | P25: 33 | Q25: -35 | R25: -12 | S25: 16 | T25: 3 | U25: -43
A26: 159 | B26: -23 | C26: 3 | D26: -40 | E26: 1 | F26: -74 | G26: -58 | H26: 6 | I26: -22 | J26: -16 | K26: 0 | L26: -8 | M26: 5 | N26: 25 | O26: 12 | P26: 34 | Q26: -43 | R26: -11 | S26: 8 | T26: -12 | U26: -52
A27: 134 | B27: -19 | C27: 3 | D27: -24 | E27: 11 | F27: -57 | G27: -55 | H27: 2 | I27: -32 | J27: -13 | K27: 8 | L27: 3 | M27: 9 | N27: 29 | O27: -16 | P27: 22 | Q27: -41 | R27: -32 | S27: 8 | T27: 2 | U27: -48
A28: 136 | B28: -9 | C28: 20 | D28: -16 | E28: -25 | F28: -41 | G28: -45 | H28: -6 | I28: -41 | J28: 3 | K28: 12 | L28: 15 | M28: -1 | N28: 35 | O28: -12 | P28: 36 | Q28: 0 | R28: -9 | S28: 2 | T28: -19 | U28: -77
A29: =OFFSET(INDIRECT(ADDRESS(8,1,,,"truncate")), 0, (ROW()-1-28)*21+(COLUMN()-1)) -> 140 | B29: -30 | C29: 29 | D29: -33 | E29: -15 | F29: -67 | G29: -67 | H29: 15 | I29: 4 | J29: 2 | K29: =OFFSET(INDIRECT(ADDRESS(8,1,,,"truncate")), 0, (ROW()-1-28)*21+(COLUMN()-1)) -> 23 | L29: -31 | M29: 39 | N29: 75 | O29: 24 | P29: 34 | Q29: -80 | R29: 15 | S29: 32 | T29: 4 | U29: -77
A30: 143 | B30: -11 | C30: 9 | D30: -51 | E30: -25 | F30: -97 | G30: -85 | H30: 24 | I30: -22 | J30: 4 | K30: 25 | L30: -27 | M30: 51 | N30: 92 | O30: 34 | P30: 39 | Q30: -69 | R30: -12 | S30: 34 | T30: -5 | U30: -84
A31: 185 | B31: -8 | C31: -20 | D31: -50 | E31: 1 | F31: -79 | G31: -91 | H31: -9 | I31: -23 | J31: 14 | K31: 11 | L31: -2 | M31: 25 | N31: 72 | O31: 3 | P31: 31 | Q31: -80 | R31: -22 | S31: 6 | T31: 26 | U31: -85
A32: 91 | B32: -1 | C32: 33 | D32: -3 | E32: -64 | F32: -79 | G32: -49 | H32: 4 | I32: -32 | J32: -23 | K32: 39 | L32: -36 | M32: 31 | N32: 78 | O32: 4 | P32: 29 | Q32: -55 | R32: -8 | S32: 17 | T32: -14 | U32: -86
A33: =OFFSET(INDIRECT(ADDRESS(9,1,,,"truncate")), 0, (ROW()-1-32)*21+(COLUMN()-1)) -> 221 | B33: -1 | C33: 9 | D33: -38 | E33: -20 | F33: -54 | G33: -51 | H33: -2 | I33: -30 | J33: 0 | K33: =OFFSET(INDIRECT(ADDRESS(9,1,,,"truncate")), 0, (ROW()-1-32)*21+(COLUMN()-1)) -> 13 | L33: -4 | M33: 30 | N33: 42 | O33: -8 | P33: 16 | Q33: -57 | R33: -15 | S33: 19 | T33: -18 | U33: -75
A34: 193 | B34: -12 | C34: 6 | D34: -33 | E34: -10 | F34: -83 | G34: -55 | H34: 25 | I34: -13 | J34: -4 | K34: 23 | L34: -8 | M34: 39 | N34: 52 | O34: 9 | P34: 3 | Q34: -62 | R34: -19 | S34: 28 | T34: 5 | U34: -80
A35: 166 | B35: -10 | C35: -13 | D35: -30 | E35: -15 | F35: -76 | G35: -48 | H35: -3 | I35: -17 | J35: 2 | K35: 15 | L35: -17 | M35: 7 | N35: 54 | O35: -1 | P35: 5 | Q35: -45 | R35: -13 | S35: 8 | T35: 6 | U35: -83
A36: 195 | B36: 3 | C36: 3 | D36: -29 | E36: -37 | F36: -57 | G36: -43 | H36: -5 | I36: -44 | J36: 4 | K36: 52 | L36: -29 | M36: 12 | N36: 53 | O36: -1 | P36: 27 | Q36: -20 | R36: -19 | S36: 26 | T36: 3 | U36: -66
A39: =MIN(A1:U36) -> -125

Sheet outOffset
A1: 279 | B1: 60 | C1: 39 | D1: 56 | E1: 71 | F1: 46 | G1: 64 | H1: 82 | I1: 0 | J1: 98 | K1: 62 | L1: 60 | M1: 40 | N1: 59 | O1: 51 | P1: 148 | Q1: 76 | R1: 22 | S1: 83 | T1: 82 | U1: 40
A2: 249 | B2: 49 | C2: 47 | D2: 34 | E2: 64 | F2: 39 | G2: 67 | H2: 88 | I2: 0 | J2: 72 | K2: 53 | L2: 70 | M2: 36 | N2: 80 | O2: 65 | P2: 151 | Q2: 43 | R2: 17 | S2: 99 | T2: 61 | U2: 41
A3: 252 | B3: 33 | C3: 31 | D3: 26 | E3: 78 | F3: 13 | G3: 57 | H3: 97 | I3: 0 | J3: 66 | K3: 54 | L3: 57 | M3: 58 | N3: 60 | O3: 64 | P3: 146 | Q3: 40 | R3: 0 | S3: 103 | T3: 60 | U3: 41
A4: 226 | B4: 34 | C4: 55 | D4: 25 | E4: 51 | F4: 26 | G4: 50 | H4: 52 | I4: 11 | J4: 48 | K4: 47 | L4: 35 | M4: 46 | N4: 65 | O4: 44 | P4: 123 | Q4: 44 | R4: 0 | S4: 66 | T4: 57 | U4: 30
A5: 341 | B5: 61 | C5: 64 | D5: 42 | E5: 82 | F5: 54 | G5: 60 | H5: 145 | I5: 0 | J5: 134 | K5: 98 | L5: 72 | M5: 64 | N5: 95 | O5: 87 | P5: 181 | Q5: 73 | R5: 41 | S5: 111 | T5: 90 | U5: 84
A6: 352 | B6: 89 | C6: 52 | D6: 34 | E6: 68 | F6: 67 | G6: 76 | H6: 112 | I6: 0 | J6: 117 | K6: 63 | L6: 108 | M6: 62 | N6: 121 | O6: 116 | P6: 207 | Q6: 50 | R6: 51 | S6: 144 | T6: 86 | U6: 64
A7: 363 | B7: 54 | C7: 22 | D7: 29 | E7: 89 | F7: 26 | G7: 71 | H7: 119 | I7: 0 | J7: 111 | K7: 75 | L7: 76 | M7: 68 | N7: 88 | O7: 86 | P7: 205 | Q7: 26 | R7: 2 | S7: 135 | T7: 78 | U7: 73
A8: 233 | B8: 19 | C8: 55 | D8: 9 | E8: 29 | F8: 13 | G8: 44 | H8: 74 | I8: 9 | J8: 73 | K8: 71 | L8: 18 | M8: 64 | N8: 69 | O8: 52 | P8: 168 | Q8: 8 | R8: 0 | S8: 88 | T8: 71 | U8: 25
A9: 340 | B9: 94 | C9: 74 | D9: 37 | E9: 98 | F9: 39 | G9: 65 | H9: 126 | I9: 0 | J9: 130 | K9: 89 | L9: 93 | M9: 61 | N9: 92 | O9: 69 | P9: 148 | Q9: 79 | R9: 44 | S9: 110 | T9: 91 | U9: 65
